Workbook

Sheet EventConfig
A1: ID | B1: EventLinksId | C1: EventTriggerType | D1: EventTag | E1: EventType | F1: Score | G1: EventQuality | H1: PrizeType | I1: PrizeIDs | J1: PrizeNums | K1: RefreshProbability | L1: RefreshCount | M1: placeID | N1: SmallPlacesId | Q1: XiantuID | R1: =SUMIF(C:C,2,K:K) -> 0 | S1: EventConditionId | T1: EventValue | U1: EventCount | V1: EventName | W1: Description
A2: int | B2: int[] | C2: int | D2: int | E2: int | F2: int | G2: int | H2: int[] | I2: int[] | J2: int[] | K2: int | L2: int | M2: int | N2: int | Q2: int | S2: int | T2: int[] | U2: int | V2: int | W2: int
X3: 语言表最大值 | Y3: =MAX(V:W) -> 4325 | AA3: 1 | AB3: 2 | AC3: 3 | AD3: 4 | AE3: 5 | AF3: 6 | AG3: 7 | AH3: 8 | AI3: 9 | AJ3: 10 | AK3: 11 | AL3: 12 | AM3: 13 | AN3: 14 | AO3: 15 | AP3: 16 | AQ3: 17 | AR3: 18 | AS3: 19 | AT3: 20
A4: ID | B4: 事件包含的ID | C4: 事件类型： 1.通用事件 2.挂机事件 4.主线任务 5.仙山探险 6.支线事件 88.特定任务触发的事件 99.无标记 | D4: tag 1主线2支线 3通用 4地图通用 5道友6任务 7资源 | E4: 1.正常触发 2.直接结算 | F4: 增加进度值 | G4: 事件品质 | H4: 产出tag 在辅助表查询 | I4: 事件结局奖励 | J4: 事件结局奖励数量 | K4: 刷新的概率 （100=100%） | L4: 最大刷新数量 | M4: 属于哪张地图 | N4: 属于哪张小地图 | O4: 地图 | P4: 参考等级 | Q4: 仙途日志ID | R4: 触发条件 | S4: 触发条件类型 只能配处于什么状态和数值，不能配变化的数值 | T4: 触发效果值 | U4: 触发判定数量or次数 | V4: 任务标题 | W4: 任务详情界面的总描述 | X4: 标题 | Y4: 整体描述 | Z4: 总步数 | AA4: 步骤1 | AB4: 步骤2 | AC4: 步骤3 | AD4: 步骤4 | AE4: 步骤5 | AF4: 步骤6 | AG4: 步骤7 | AH4: 步骤8 | AI4: 步骤9 | AJ4: 步骤10 | AK4: 步骤11 | AL4: 步骤12 | AM4: 步骤13 | AN4: 步骤14 | AO4: 步骤15 | AP4: 步骤16 | AQ4: 步骤17 | AR4: 步骤18 | AS4: 步骤19 | AT4: 步骤20 | AU4: 道具1 | AV4: 数量1 | AW4: 道具2 | AX4: 数量2
A5: 101 | B5: =IF(Z5>0,_xlfn.TEXTJOIN(";",1,ROW(INDIRECT(CONCATENATE("",A5*100+1,":",A5*100+Z5,""))),102),"") -> 10101;102 | C5: 1 | D5: 7 | E5: 1 | F5: 0 | G5: 1 | H5: 6 | I5: =_xlfn.TEXTJOIN(";",1,AU5,AW5) -> 1003;999001 | J5: =_xlfn.TEXTJOIN(";",1,AV5,AX5) -> -5000;1 | K5: 10 | R5: =IF(S5="","",VLOOKUP(S5,条件类型查询!A:B,2,FALSE)) ->  | V5: 4001 | W5: 4076 | X5: =CONCATENATE("[资源",G5,"]",AZ5) -> [资源1]法宝掉落×1 | Z5: =COUNTIF(EventLinkConfig!O:O,EventConfig!A5) -> 1 | AT5: 100 | AU5: 1003 | AV5: -5000 | AW5: 999001 | AX5: 1 | AY5: =IF(AU5="","",CONCATENATE(VLOOKUP(AU5,[1]DropConfig!$A:$F,3,FALSE),"×",AV5)) -> 修为×-5000 | AZ5: =IF(AW5="","",CONCATENATE(VLOOKUP(AW5,[1]DropConfig!$A:$F,3,FALSE),"×",AX5)) -> 法宝掉落×1
A6: 102 | B6: =IF(Z6>0,_xlfn.TEXTJOIN(";",1,ROW(INDIRECT(CONCATENATE("",A6*100+1,":",A6*100+Z6,""))),102),"") -> 10201;102 | C6: 1 | D6: 7 | E6: 1 | F6: 0 | G6: 1 | H6: 5 | I6: =_xlfn.TEXTJOIN(";",1,AU6,AW6) -> 1003;999002 | J6: =_xlfn.TEXTJOIN(";",1,AV6,AX6) -> -5000;1 | K6: 10 | R6: =IF(S6="","",VLOOKUP(S6,条件类型查询!A:B,2,FALSE)) ->  | V6: 4002 | W6: 4077 | X6: =CONCATENATE("[资源",G6,"]",AZ6) -> [资源1]功法掉落×1 | Z6: =COUNTIF(EventLinkConfig!O:O,EventConfig!A6) -> 1 | AT6: 100 | AU6: 1003 | AV6: -5000 | AW6: 999002 | AX6: 1 | AY6: =IF(AU6="","",CONCATENATE(VLOOKUP(AU6,[1]DropConfig!$A:$F,3,FALSE),"×",AV6)) -> 修为×-5000 | AZ6: =IF(AW6="","",CONCATENATE(VLOOKUP(AW6,[1]DropConfig!$A:$F,3,FALSE),"×",AX6)) -> 功法掉落×1
A7: 103 | B7: =IF(Z7>0,_xlfn.TEXTJOIN(";",1,ROW(INDIRECT(CONCATENATE("",A7*100+1,":",A7*100+Z7,""))),102),"") -> 10301;102 | C7: 1 | D7: 7 | E7: 1 | F7: 0 | G7: 1 | H7: 1 | I7: 1003;1001 | J7: -5000;-5000 | K7: 100 | R7: =IF(S7="","",VLOOKUP(S7,条件类型查询!A:B,2,FALSE)) ->  | V7: 4003 | W7: 4078 | X7: [资源1]灵石×-5000 | Z7: =COUNTIF(EventLinkConfig!O:O,EventConfig!A7) -> 1 | AT7: 100 | AU7: 1003 | AV7: -5000 | AW7: 1001 | AX7: -5000 | AY7: =IF(AU7="","",CONCATENATE(VLOOKUP(AU7,[1]DropConfig!$A:$F,3,FALSE),"×",AV7)) -> 修为×-5000 | AZ7: =IF(AW7="","",CONCATENATE(VLOOKUP(AW7,[1]DropConfig!$A:$F,3,FALSE),"×",AX7)) -> 灵石×-5000
A8: 104 | B8: =IF(Z8>0,_xlfn.TEXTJOIN(";",1,ROW(INDIRECT(CONCATENATE("",A8*100+1,":",A8*100+Z8,""))),102),"") -> 10401;102 | C8: 1 | D8: 7 | E8: 1 | F8: 0 | G8: 1 | H8: 3 | I8: 1003;1005 | J8: -5000;-5000 | K8: 100 | R8: =IF(S8="","",VLOOKUP(S8,条件类型查询!A:B,2,FALSE)) ->  | V8: 4004 | W8: 4079 | X8: [资源1]灵气×-5000 | Z8: =COUNTIF(EventLinkConfig!O:O,EventConfig!A8) -> 1 | AT8: 100 | AU8: 1003 | AV8: -5000 | AW8: 1005 | AX8: -5000 | AY8: =IF(AU8="","",CONCATENATE(VLOOKUP(AU8,[1]DropConfig!$A:$F,3,FALSE),"×",AV8)) -> 修为×-5000 | AZ8: =IF(AW8="","",CONCATENATE(VLOOKUP(AW8,[1]DropConfig!$A:$F,3,FALSE),"×",AX8)) -> 灵气×-5000
A9: 105 | B9: =IF(Z9>0,_xlfn.TEXTJOIN(";",1,ROW(INDIRECT(CONCATENATE("",A9*100+1,":",A9*100+Z9,""))),102),"") -> 10501;102 | C9: 1 | D9: 7 | E9: 1 | F9: 0 | G9: 1 | H9: 4 | I9: 1003;1006 | J9: -5000;-5000 | K9: 100 | R9: =IF(S9="","",VLOOKUP(S9,条件类型查询!A:B,2,FALSE)) ->  | V9: 4005 | W9: 4080 | X9: [资源1]玄晶×-5000 | Z9: =COUNTIF(EventLinkConfig!O:O,EventConfig!A9) -> 1 | AT9: 100 | AU9: 1003 | AV9: -5000 | AW9: 1006 | AX9: -5000 | AY9: =IF(AU9="","",CONCATENATE(VLOOKUP(AU9,[1]DropConfig!$A:$F,3,FALSE),"×",AV9)) -> 修为×-5000 | AZ9: =IF(AW9="","",CONCATENATE(VLOOKUP(AW9,[1]DropConfig!$A:$F,3,FALSE),"×",AX9)) -> 玄晶×-5000
A10: 106 | B10: =IF(Z10>0,_xlfn.TEXTJOIN(";",1,ROW(INDIRECT(CONCATENATE("",A10*100+1,":",A10*100+Z10,""))),102),"") -> 10601;102 | C10: 1 | D10: 7 | E10: 1 | F10: 0 | G10: 1 | H10: 12 | I10: 1003;1002 | J10: -5000;100 | K10: 30 | R10: =IF(S10="","",VLOOKUP(S10,条件类型查询!A:B,2,FALSE)) ->  | V10: 4006 | W10: 4081 | X10: [资源1]妖丹×100 | Z10: =COUNTIF(EventLinkConfig!O:O,EventConfig!A10) -> 1 | AT10: 100 | AU10: 1003 | AV10: -5000 | AW10: 1002 | AX10: 100 | AY10: =IF(AU10="","",CONCATENATE(VLOOKUP(AU10,[1]DropConfig!$A:$F,3,FALSE),"×",AV10)) -> 修为×-5000 | AZ10: =IF(AW10="","",CONCATENATE(VLOOKUP(AW10,[1]DropConfig!$A:$F,3,FALSE),"×",AX10)) -> 妖丹×100
A11: 107 | B11: =IF(Z11>0,_xlfn.TEXTJOIN(";",1,ROW(INDIRECT(CONCATENATE("",A11*100+1,":",A11*100+Z11,""))),102),"") -> 10701;102 | C11: 1 | D11: 7 | E11: 1 | F11: 0 | G11: 1 | H11: 13 | I11: 1003;1004 | J11: -5000;10 | K11: 20 | V11: 4007 | W11: 4082 | X11: [资源1]仙缘宝券×10 | Z11: =COUNTIF(EventLinkConfig!O:O,EventConfig!A11) -> 1 | AH11: =IF($Z11>=AH$3,$A11*100+AH$3,"") ->  | AI11: =IF($Z11>=AI$3,$A11*100+AI$3,"") ->  | AJ11: =IF($Z11>=AJ$3,$A11*100+AJ$3,"") ->  | AK11: =IF($Z11>=AK$3,$A11*100+AK$3,"") ->  | AL11: =IF($Z11>=AL$3,$A11*100+AL$3,"") ->  | AM11: =IF($Z11>=AM$3,$A11*100+AM$3,"") ->  | AN11: =IF($Z11>=AN$3,$A11*100+AN$3,"") ->  | AO11: =IF($Z11>=AO$3,$A11*100+AO$3,"") ->  | AP11: =IF($Z11>=AP$3,$A11*100+AP$3,"") ->  | AT11: 100 | AU11: 1003 | AV11: -5000 | AW11: 1004 | AX11: 10 | AY11: =IF(AU11="","",CONCATENATE(VLOOKUP(AU11,[1]DropConfig!$A:$F,3,FALSE),"×",AV11)) -> 修为×-5000 | AZ11: =IF(AW11="","",CONCATENATE(VLOOKUP(AW11,[1]DropConfig!$A:$F,3,FALSE),"×",AX11)) -> 仙缘宝券×10
A12: 108 | B12: =IF(Z12>0,_xlfn.TEXTJOIN(";",1,ROW(INDIRECT(CONCATENATE("",A12*100+1,":",A12*100+Z12,""))),102),"") -> 10801;102 | C12: 1 | D12: 7 | E12: 1 | F12: 0 | G12: 1 | H12: 10 | I12: 1003;1501 | J12: -5000;1 | K12: 60 | V12: 4008 | W12: 4083 | X12: [资源1]好感度礼物1×1 | Z12: =COUNTIF(EventLinkConfig!O:O,EventConfig!A12) -> 1 | AH12: =IF($Z12>=AH$3,$A12*100+AH$3,"") ->  | AI12: =IF($Z12>=AI$3,$A12*100+AI$3,"") ->  | AJ12: =IF($Z12>=AJ$3,$A12*100+AJ$3,"") ->  | AK12: =IF($Z12>=AK$3,$A12*100+AK$3,"") ->  | AL12: =IF($Z12>=AL$3,$A12*100+AL$3,"") ->  | AM12: =IF($Z12>=AM$3,$A12*100+AM$3,"") ->  | AN12: =IF($Z12>=AN$3,$A12*100+AN$3,"") ->  | AO12: =IF($Z12>=AO$3,$A12*100+AO$3,"") ->  | AP12: =IF($Z12>=AP$3,$A12*100+AP$3,"") ->  | AT12: 100 | AU12: 1003 | AV12: -5000 | AW12: 1501 | AX12: 1 | AY12: =IF(AU12="","",CONCATENATE(VLOOKUP(AU12,[1]DropConfig!$A:$F,3,FALSE),"×",AV12)) -> 修为×-5000 | AZ12: =IF(AW12="","",CONCATENATE(VLOOKUP(AW12,[1]DropConfig!$A:$F,3,FALSE),"×",AX12)) -> 好感度礼物1×1
A13: 109 | B13: =IF(Z13>0,_xlfn.TEXTJOIN(";",1,ROW(INDIRECT(CONCATENATE("",A13*100+1,":",A13*100+Z13,""))),102),"") -> 10901;102 | C13: 1 | D13: 7 | E13: 1 | F13: 0 | G13: 1 | H13: 11 | I13: 1003;1601 | J13: -5000;1 | K13: 40 | V13: 4009 | W13: 4084 | X13: [资源1]心情礼物1×1 | Z13: =COUNTIF(EventLinkConfig!O:O,EventConfig!A13) -> 1 | AH13: =IF($Z13>=AH$3,$A13*100+AH$3,"") ->  | AI13: =IF($Z13>=AI$3,$A13*100+AI$3,"") ->  | AJ13: =IF($Z13>=AJ$3,$A13*100+AJ$3,"") ->  | AK13: =IF($Z13>=AK$3,$A13*100+AK$3,"") ->  | AL13: =IF($Z13>=AL$3,$A13*100+AL$3,"") ->  | AM13: =IF($Z13>=AM$3,$A13*100+AM$3,"") ->  | AN13: =IF($Z13>=AN$3,$A13*100+AN$3,"") ->  | AO13: =IF($Z13>=AO$3,$A13*100+AO$3,"") ->  | AP13: =IF($Z13>=AP$3,$A13*100+AP$3,"") ->  | AT13: 100 | AU13: 1003 | AV13: -5000 | AW13: 1601 | AX13: 1 | AY13: =IF(AU13="","",CONCATENATE(VLOOKUP(AU13,[1]DropConfig!$A:$F,3,FALSE),"×",AV13)) -> 修为×-5000 | AZ13: =IF(AW13="","",CONCATENATE(VLOOKUP(AW13,[1]DropConfig!$A:$F,3,FALSE),"×",AX13)) -> 心情礼物1×1
A14: 110 | B14: =IF(Z14>0,_xlfn.TEXTJOIN(";",1,ROW(INDIRECT(CONCATENATE("",A14*100+1,":",A14*100+Z14,""))),102),"") -> 11001;102 | C14: 1 | D14: 7 | E14: 1 | F14: 0 | G14: 2 | H14: 6 | I14: 1003;999001 | J14: -7500;1 | K14: 15 | V14: 4010 | W14: 4085 | X14: [资源2]法宝掉落×1 | Z14: =COUNTIF(EventLinkConfig!O:O,EventConfig!A14) -> 1 | AH14: =IF($Z14>=AH$3,$A14*100+AH$3,"") ->  | AI14: =IF($Z14>=AI$3,$A14*100+AI$3,"") ->  | AJ14: =IF($Z14>=AJ$3,$A14*100+AJ$3,"") ->  | AK14: =IF($Z14>=AK$3,$A14*100+AK$3,"") ->  | AL14: =IF($Z14>=AL$3,$A14*100+AL$3,"") ->  | AM14: =IF($Z14>=AM$3,$A14*100+AM$3,"") ->  | AN14: =IF($Z14>=AN$3,$A14*100+AN$3,"") ->  | AO14: =IF($Z14>=AO$3,$A14*100+AO$3,"") ->  | AP14: =IF($Z14>=AP$3,$A14*100+AP$3,"") ->  | AT14: 100 | AU14: 1003 | AV14: -7500 | AW14: 999001 | AX14: 1 | AY14: =IF(AU14="","",CONCATENATE(VLOOKUP(AU14,[1]DropConfig!$A:$F,3,FALSE),"×",AV14)) -> 修为×-7500 | AZ14: =IF(AW14="","",CONCATENATE(VLOOKUP(AW14,[1]DropConfig!$A:$F,3,FALSE),"×",AX14)) -> 法宝掉落×1
A15: 111 | B15: =IF(Z15>0,_xlfn.TEXTJOIN(";",1,ROW(INDIRECT(CONCATENATE("",A15*100+1,":",A15*100+Z15,""))),102),"") -> 11101;102 | C15: 1 | D15: 7 | E15: 1 | F15: 0 | G15: 2 | H15: 5 | I15: 1003;999002 | J15: -7500;1 | K15: 15 | V15: 4011 | W15: 4086 | X15: [资源2]功法掉落×1 | Z15: =COUNTIF(EventLinkConfig!O:O,EventConfig!A15) -> 1 | AH15: =IF($Z15>=AH$3,$A15*100+AH$3,"") ->  | AI15: =IF($Z15>=AI$3,$A15*100+AI$3,"") ->  | AJ15: =IF($Z15>=AJ$3,$A15*100+AJ$3,"") ->  | AK15: =IF($Z15>=AK$3,$A15*100+AK$3,"") ->  | AL15: =IF($Z15>=AL$3,$A15*100+AL$3,"") ->  | AM15: =IF($Z15>=AM$3,$A15*100+AM$3,"") ->  | AN15: =IF($Z15>=AN$3,$A15*100+AN$3,"") ->  | AO15: =IF($Z15>=AO$3,$A15*100+AO$3,"") ->  | AP15: =IF($Z15>=AP$3,$A15*100+AP$3,"") ->  | AT15: 100 | AU15: 1003 | AV15: -7500 | AW15: 999002 | AX15: 1 | AY15: =IF(AU15="","",CONCATENATE(VLOOKUP(AU15,[1]DropConfig!$A:$F,3,FALSE),"×",AV15)) -> 修为×-7500 | AZ15: =IF(AW15="","",CONCATENATE(VLOOKUP(AW15,[1]DropConfig!$A:$F,3,FALSE),"×",AX15)) -> 功法掉落×1
A16: 112 | B16: =IF(Z16>0,_xlfn.TEXTJOIN(";",1,ROW(INDIRECT(CONCATENATE("",A16*100+1,":",A16*100+Z16,""))),102),"") -> 11201;102 | C16: 1 | D16: 7 | E16: 1 | F16: 0 | G16: 2 | H16: 1 | I16: 1003;1001 | J16: -7500;-5000 | K16: 100 | V16: 4012 | W16: 4087 | X16: [资源2]灵石×-5000 | Z16: =COUNTIF(EventLinkConfig!O:O,EventConfig!A16) -> 1 | AH16: =IF($Z16>=AH$3,$A16*100+AH$3,"") ->  | AI16: =IF($Z16>=AI$3,$A16*100+AI$3,"") ->  | AJ16: =IF($Z16>=AJ$3,$A16*100+AJ$3,"") ->  | AK16: =IF($Z16>=AK$3,$A16*100+AK$3,"") ->  | AL16: =IF($Z16>=AL$3,$A16*100+AL$3,"") ->  | AM16: =IF($Z16>=AM$3,$A16*100+AM$3,"") ->  | AN16: =IF($Z16>=AN$3,$A16*100+AN$3,"") ->  | AO16: =IF($Z16>=AO$3,$A16*100+AO$3,"") ->  | AP16: =IF($Z16>=AP$3,$A16*100+AP$3,"") ->  | AT16: 100 | AU16: 1003 | AV16: -7500 | AW16: 1001 | AX16: -5000 | AY16: =IF(AU16="","",CONCATENATE(VLOOKUP(AU16,[1]DropConfig!$A:$F,3,FALSE),"×",AV16)) -> 修为×-7500 | AZ16: =IF(AW16="","",CONCATENATE(VLOOKUP(AW16,[1]DropConfig!$A:$F,3,FALSE),"×",AX16)) -> 灵石×-5000
A17: 113 | B17: =IF(Z17>0,_xlfn.TEXTJOIN(";",1,ROW(INDIRECT(CONCATENATE("",A17*100+1,":",A17*100+Z17,""))),102),"") -> 11301;102 | C17: 1 | D17: 7 | E17: 1 | F17: 0 | G17: 2 | H17: 3 | I17: 1003;1005 | J17: -7500;-5000 | K17: 100 | V17: 4013 | W17: 4088 | X17: [资源2]灵气×-5000 | Z17: =COUNTIF(EventLinkConfig!O:O,EventConfig!A17) -> 1 | AH17: =IF($Z17>=AH$3,$A17*100+AH$3,"") ->  | AI17: =IF($Z17>=AI$3,$A17*100+AI$3,"") ->  | AJ17: =IF($Z17>=AJ$3,$A17*100+AJ$3,"") ->  | AK17: =IF($Z17>=AK$3,$A17*100+AK$3,"") ->  | AL17: =IF($Z17>=AL$3,$A17*100+AL$3,"") ->  | AM17: =IF($Z17>=AM$3,$A17*100+AM$3,"") ->  | AN17: =IF($Z17>=AN$3,$A17*100+AN$3,"") ->  | AO17: =IF($Z17>=AO$3,$A17*100+AO$3,"") ->  | AP17: =IF($Z17>=AP$3,$A17*100+AP$3,"") ->  | AT17: 100 | AU17: 1003 | AV17: -7500 | AW17: 1005 | AX17: -5000 | AY17: =IF(AU17="","",CONCATENATE(VLOOKUP(AU17,[1]DropConfig!$A:$F,3,FALSE),"×",AV17)) -> 修为×-7500 | AZ17: =IF(AW17="","",CONCATENATE(VLOOKUP(AW17,[1]DropConfig!$A:$F,3,FALSE),"×",AX17)) -> 灵气×-5000
A18: 114 | B18: =IF(Z18>0,_xlfn.TEXTJOIN(";",1,ROW(INDIRECT(CONCATENATE("",A18*100+1,":",A18*100+Z18,""))),102),"") -> 11401;102 | C18: 1 | D18: 7 | E18: 1 | F18: 0 | G18: 2 | H18: 4 | I18: 1003;1006 | J18: -7500;-5000 | K18: 100 | V18: 4014 | W18: 4089 | X18: [资源2]玄晶×-5000 | Z18: =COUNTIF(EventLinkConfig!O:O,EventConfig!A18) -> 1 | AH18: =IF($Z18>=AH$3,$A18*100+AH$3,"") ->  | AI18: =IF($Z18>=AI$3,$A18*100+AI$3,"") ->  | AJ18: =IF($Z18>=AJ$3,$A18*100+AJ$3,"") ->  | AK18: =IF($Z18>=AK$3,$A18*100+AK$3,"") ->  | AL18: =IF($Z18>=AL$3,$A18*100+AL$3,"") ->  | AM18: =IF($Z18>=AM$3,$A18*100+AM$3,"") ->  | AN18: =IF($Z18>=AN$3,$A18*100+AN$3,"") ->  | AO18: =IF($Z18>=AO$3,$A18*100+AO$3,"") ->  | AP18: =IF($Z18>=AP$3,$A18*100+AP$3,"") ->  | AT18: 100 | AU18: 1003 | AV18: -7500 | AW18: 1006 | AX18: -5000 | AY18: =IF(AU18="","",CONCATENATE(VLOOKUP(AU18,[1]DropConfig!$A:$F,3,FALSE),"×",AV18)) -> 修为×-7500 | AZ18: =IF(AW18="","",CONCATENATE(VLOOKUP(AW18,[1]DropConfig!$A:$F,3,FALSE),"×",AX18)) -> 玄晶×-5000
A19: 115 | B19: =IF(Z19>0,_xlfn.TEXTJOIN(";",1,ROW(INDIRECT(CONCATENATE("",A19*100+1,":",A19*100+Z19,""))),102),"") -> 11501;102 | C19: 1 | D19: 7 | E19: 1 | F19: 0 | G19: 2 | H19: 12 | I19: 1003;1002 | J19: -7500;100 | K19: 35 | V19: 4015 | W19: 4090 | X19: [资源2]妖丹×100 | Z19: =COUNTIF(EventLinkConfig!O:O,EventConfig!A19) -> 1 | AA19: =IF($Z19>=AA$3,$A19*100+AA$3,"") -> 11501 | AB19: =IF($Z19>=AB$3,$A19*100+AB$3,"") ->  | AC19: =IF($Z19>=AC$3,$A19*100+AC$3,"") ->  | AD19: =IF($Z19>=AD$3,$A19*100+AD$3,"") ->  | AE19: =IF($Z19>=AE$3,$A19*100+AE$3,"") ->  | AF19: =IF($Z19>=AF$3,$A19*100+AF$3,"") ->  | AG19: =IF($Z19>=AG$3,$A19*100+AG$3,"") ->  | AH19: =IF($Z19>=AH$3,$A19*100+AH$3,"") ->  | AI19: =IF($Z19>=AI$3,$A19*100+AI$3,"") ->  | AJ19: =IF($Z19>=AJ$3,$A19*100+AJ$3,"") ->  | AK19: =IF($Z19>=AK$3,$A19*100+AK$3,"") ->  | AL19: =IF($Z19>=AL$3,$A19*100+AL$3,"") ->  | AM19: =IF($Z19>=AM$3,$A19*100+AM$3,"") ->  | AN19: =IF($Z19>=AN$3,$A19*100+AN$3,"") ->  | AO19: =IF($Z19>=AO$3,$A19*100+AO$3,"") ->  | AP19: =IF($Z19>=AP$3,$A19*100+AP$3,"") ->  | AT19: 100 | AU19: 1003 | AV19: -7500 | AW19: 1002 | AX19: 100 | AY19: =IF(AU19="","",CONCATENATE(VLOOKUP(AU19,[1]DropConfig!$A:$F,3,FALSE),"×",AV19)) -> 修为×-7500 | AZ19: =IF(AW19="","",CONCATENATE(VLOOKUP(AW19,[1]DropConfig!$A:$F,3,FALSE),"×",AX19)) -> 妖丹×100
A20: 116 | B20: =IF(Z20>0,_xlfn.TEXTJOIN(";",1,ROW(INDIRECT(CONCATENATE("",A20*100+1,":",A20*100+Z20,""))),102),"") -> 11601;102 | C20: 1 | D20: 7 | E20: 1 | F20: 0 | G20: 2 | H20: 13 | I20: 1003;1004 | J20: -7500;10 | K20: 25 | V20: 4016 | W20: 4091 | X20: [资源2]仙缘宝券×10 | Z20: =COUNTIF(EventLinkConfig!O:O,EventConfig!A20) -> 1 | AA20: =IF($Z20>=AA$3,$A20*100+AA$3,"") -> 11601 | AB20: =IF($Z20>=AB$3,$A20*100+AB$3,"") ->  | AC20: =IF($Z20>=AC$3,$A20*100+AC$3,"") ->  | AD20: =IF($Z20>=AD$3,$A20*100+AD$3,"") ->  | AE20: =IF($Z20>=AE$3,$A20*100+AE$3,"") ->  | AF20: =IF($Z20>=AF$3,$A20*100+AF$3,"") ->  | AG20: =IF($Z20>=AG$3,$A20*100+AG$3,"") ->  | AH20: =IF($Z20>=AH$3,$A20*100+AH$3,"") ->  | AI20: =IF($Z20>=AI$3,$A20*100+AI$3,"") ->  | AJ20: =IF($Z20>=AJ$3,$A20*100+AJ$3,"") ->  | AK20: =IF($Z20>=AK$3,$A20*100+AK$3,"") ->  | AL20: =IF($Z20>=AL$3,$A20*100+AL$3,"") ->  | AM20: =IF($Z20>=AM$3,$A20*100+AM$3,"") ->  | AN20: =IF($Z20>=AN$3,$A20*100+AN$3,"") ->  | AO20: =IF($Z20>=AO$3,$A20*100+AO$3,"") ->  | AP20: =IF($Z20>=AP$3,$A20*100+AP$3,"") ->  | AT20: 100 | AU20: 1003 | AV20: -7500 | AW20: 1004 | AX20: 10 | AY20: =IF(AU20="","",CONCATENATE(VLOOKUP(AU20,[1]DropConfig!$A:$F,3,FALSE),"×",AV20)) -> 修为×-7500 | AZ20: =IF(AW20="","",CONCATENATE(VLOOKUP(AW20,[1]DropConfig!$A:$F,3,FALSE),"×",AX20)) -> 仙缘宝券×10
A21: 117 | B21: =IF(Z21>0,_xlfn.TEXTJOIN(";",1,ROW(INDIRECT(CONCATENATE("",A21*100+1,":",A21*100+Z21,""))),102),"") -> 11701;102 | C21: 1 | D21: 7 | E21: 1 | F21: 0 | G21: 2 | H21: 10 | I21: 1003;1501 | J21: -7500;1 | K21: 65 | V21: 4017 | W21: 4092 | X21: [资源2]好感度礼物1×1 | Z21: =COUNTIF(EventLinkConfig!O:O,EventConfig!A21) -> 1 | AA21: =IF($Z21>=AA$3,$A21*100+AA$3,"") -> 11701 | AB21: =IF($Z21>=AB$3,$A21*100+AB$3,"") ->  | AC21: =IF($Z21>=AC$3,$A21*100+AC$3,"") ->  | AD21: =IF($Z21>=AD$3,$A21*100+AD$3,"") ->  | AE21: =IF($Z21>=AE$3,$A21*100+AE$3,"") ->  | AF21: =IF($Z21>=AF$3,$A21*100+AF$3,"") ->  | AG21: =IF($Z21>=AG$3,$A21*100+AG$3,"") ->  | AH21: =IF($Z21>=AH$3,$A21*100+AH$3,"") ->  | AI21: =IF($Z21>=AI$3,$A21*100+AI$3,"") ->  | AJ21: =IF($Z21>=AJ$3,$A21*100+AJ$3,"") ->  | AK21: =IF($Z21>=AK$3,$A21*100+AK$3,"") ->  | AL21: =IF($Z21>=AL$3,$A21*100+AL$3,"") ->  | AM21: =IF($Z21>=AM$3,$A21*100+AM$3,"") ->  | AN21: =IF($Z21>=AN$3,$A21*100+AN$3,"") ->  | AO21: =IF($Z21>=AO$3,$A21*100+AO$3,"") ->  | AP21: =IF($Z21>=AP$3,$A21*100+AP$3,"") ->  | AT21: 100 | AU21: 1003 | AV21: -7500 | AW21: 1501 | AX21: 1 | AY21: =IF(AU21="","",CONCATENATE(VLOOKUP(AU21,[1]DropConfig!$A:$F,3,FALSE),"×",AV21)) -> 修为×-7500 | AZ21: =IF(AW21="","",CONCATENATE(VLOOKUP(AW21,[1]DropConfig!$A:$F,3,FALSE),"×",AX21)) -> 好感度礼物1×1
A22: 118 | B22: =IF(Z22>0,_xlfn.TEXTJOIN(";",1,ROW(INDIRECT(CONCATENATE("",A22*100+1,":",A22*100+Z22,""))),102),"") -> 11801;102 | C22: 1 | D22: 7 | E22: 1 | F22: 0 | G22: 2 | H22: 11 | I22: 1003;1601 | J22: -7500;1 | K22: 45 | V22: 4018 | W22: 4093 | X22: [资源2]心情礼物1×1 | Z22: =COUNTIF(EventLinkConfig!O:O,EventConfig!A22) -> 1 | AA22: =IF($Z22>=AA$3,$A22*100+AA$3,"") -> 11801 | AB22: =IF($Z22>=AB$3,$A22*100+AB$3,"") ->  | AC22: =IF($Z22>=AC$3,$A22*100+AC$3,"") ->  | AD22: =IF($Z22>=AD$3,$A22*100+AD$3,"") ->  | AE22: =IF($Z22>=AE$3,$A22*100+AE$3,"") ->  | AF22: =IF($Z22>=AF$3,$A22*100+AF$3,"") ->  | AG22: =IF($Z22>=AG$3,$A22*100+AG$3,"") ->  | AH22: =IF($Z22>=AH$3,$A22*100+AH$3,"") ->  | AI22: =IF($Z22>=AI$3,$A22*100+AI$3,"") ->  | AJ22: =IF($Z22>=AJ$3,$A22*100+AJ$3,"") ->  | AK22: =IF($Z22>=AK$3,$A22*100+AK$3,"") ->  | AL22: =IF($Z22>=AL$3,$A22*100+AL$3,"") ->  | AM22: =IF($Z22>=AM$3,$A22*100+AM$3,"") ->  | AN22: =IF($Z22>=AN$3,$A22*100+AN$3,"") ->  | AO22: =IF($Z22>=AO$3,$A22*100+AO$3,"") ->  | AP22: =IF($Z22>=AP$3,$A22*100+AP$3,"") ->  | AT22: 100 | AU22: 1003 | AV22: -7500 | AW22: 1601 | AX22: 1 | AY22: =IF(AU22="","",CONCATENATE(VLOOKUP(AU22,[1]DropConfig!$A:$F,3,FALSE),"×",AV22)) -> 修为×-7500 | AZ22: =IF(AW22="","",CONCATENATE(VLOOKUP(AW22,[1]DropConfig!$A:$F,3,FALSE),"×",AX22)) -> 心情礼物1×1
A23: 119 | B23: =IF(Z23>0,_xlfn.TEXTJOIN(";",1,ROW(INDIRECT(CONCATENATE("",A23*100+1,":",A23*100+Z23,""))),102),"") -> 11901;102 | C23: 1 | D23: 7 | E23: 1 | F23: 0 | G23: 3 | H23: 6 | I23: 1003;999001 | J23: -15000;1 | K23: 20 | V23: 4298 | W23: 4094 | X23: [资源3]法宝掉落×1 | Z23: =COUNTIF(EventLinkConfig!O:O,EventConfig!A23) -> 1 | AA23: =IF($Z23>=AA$3,$A23*100+AA$3,"") -> 11901 | AB23: =IF($Z23>=AB$3,$A23*100+AB$3,"") ->  | AC23: =IF($Z23>=AC$3,$A23*100+AC$3,"") ->  | AD23: =IF($Z23>=AD$3,$A23*100+AD$3,"") ->  | AE23: =IF($Z23>=AE$3,$A23*100+AE$3,"") ->  | AF23: =IF($Z23>=AF$3,$A23*100+AF$3,"") ->  | AG23: =IF($Z23>=AG$3,$A23*100+AG$3,"") ->  | AH23: =IF($Z23>=AH$3,$A23*100+AH$3,"") ->  | AI23: =IF($Z23>=AI$3,$A23*100+AI$3,"") ->  | AJ23: =IF($Z23>=AJ$3,$A23*100+AJ$3,"") ->  | AK23: =IF($Z23>=AK$3,$A23*100+AK$3,"") ->  | AL23: =IF($Z23>=AL$3,$A23*100+AL$3,"") ->  | AM23: =IF($Z23>=AM$3,$A23*100+AM$3,"") ->  | AN23: =IF($Z23>=AN$3,$A23*100+AN$3,"") ->  | AO23: =IF($Z23>=AO$3,$A23*100+AO$3,"") ->  | AP23: =IF($Z23>=AP$3,$A23*100+AP$3,"") ->  | AT23: 100 | AU23: 1003 | AV23: -15000 | AW23: 999001 | AX23: 1 | AY23: =IF(AU23="","",CONCATENATE(VLOOKUP(AU23,[1]DropConfig!$A:$F,3,FALSE),"×",AV23)) -> 修为×-15000 | AZ23: =IF(AW23="","",CONCATENATE(VLOOKUP(AW23,[1]DropConfig!$A:$F,3,FALSE),"×",AX23)) -> 法宝掉落×1
A24: 120 | B24: =IF(Z24>0,_xlfn.TEXTJOIN(";",1,ROW(INDIRECT(CONCATENATE("",A24*100+1,":",A24*100+Z24,""))),102),"") -> 12001;102 | C24: 1 | D24: 7 | E24: 1 | F24: 0 | G24: 3 | H24: 5 | I24: 1003;999002 | J24: -15000;1 | K24: 20 | V24: 4299 | W24: 4095 | X24: [资源3]功法掉落×1 | Z24: =COUNTIF(EventLinkConfig!O:O,EventConfig!A24) -> 1 | AA24: =IF($Z24>=AA$3,$A24*100+AA$3,"") -> 12001 | AB24: =IF($Z24>=AB$3,$A24*100+AB$3,"") ->  | AC24: =IF($Z24>=AC$3,$A24*100+AC$3,"") ->  | AD24: =IF($Z24>=AD$3,$A24*100+AD$3,"") ->  | AE24: =IF($Z24>=AE$3,$A24*100+AE$3,"") ->  | AF24: =IF($Z24>=AF$3,$A24*100+AF$3,"") ->  | AG24: =IF($Z24>=AG$3,$A24*100+AG$3,"") ->  | AH24: =IF($Z24>=AH$3,$A24*100+AH$3,"") ->  | AI24: =IF($Z24>=AI$3,$A24*100+AI$3,"") ->  | AJ24: =IF($Z24>=AJ$3,$A24*100+AJ$3,"") ->  | AK24: =IF($Z24>=AK$3,$A24*100+AK$3,"") ->  | AL24: =IF($Z24>=AL$3,$A24*100+AL$3,"") ->  | AM24: =IF($Z24>=AM$3,$A24*100+AM$3,"") ->  | AN24: =IF($Z24>=AN$3,$A24*100+AN$3,"") ->  | AO24: =IF($Z24>=AO$3,$A24*100+AO$3,"") ->  | AP24: =IF($Z24>=AP$3,$A24*100+AP$3,"") ->  | AT24: 100 | AU24: 1003 | AV24: -15000 | AW24: 999002 | AX24: 1 | AY24: =IF(AU24="","",CONCATENATE(VLOOKUP(AU24,[1]DropConfig!$A:$F,3,FALSE),"×",AV24)) -> 修为×-15000 | AZ24: =IF(AW24="","",CONCATENATE(VLOOKUP(AW24,[1]DropConfig!$A:$F,3,FALSE),"×",AX24)) -> 功法掉落×1
A25: 121 | B25: =IF(Z25>0,_xlfn.TEXTJOIN(";",1,ROW(INDIRECT(CONCATENATE("",A25*100+1,":",A25*100+Z25,""))),102),"") -> 12101;102 | C25: 1 | D25: 7 | E25: 1 | F25: 0 | G25: 3 | H25: 1 | I25: 1003;1001 | J25: -15000;-5000 | K25: 100 | V25: 4300 | W25: 4096 | X25: [资源3]灵石×-5000 | Z25: =COUNTIF(EventLinkConfig!O:O,EventConfig!A25) -> 1 | AA25: =IF($Z25>=AA$3,$A25*100+AA$3,"") -> 12101 | AB25: =IF($Z25>=AB$3,$A25*100+AB$3,"") ->  | AC25: =IF($Z25>=AC$3,$A25*100+AC$3,"") ->  | AD25: =IF($Z25>=AD$3,$A25*100+AD$3,"") ->  | AE25: =IF($Z25>=AE$3,$A25*100+AE$3,"") ->  | AF25: =IF($Z25>=AF$3,$A25*100+AF$3,"") ->  | AG25: =IF($Z25>=AG$3,$A25*100+AG$3,"") ->  | AH25: =IF($Z25>=AH$3,$A25*100+AH$3,"") ->  | AI25: =IF($Z25>=AI$3,$A25*100+AI$3,"") ->  | AJ25: =IF($Z25>=AJ$3,$A25*100+AJ$3,"") ->  | AK25: =IF($Z25>=AK$3,$A25*100+AK$3,"") ->  | AL25: =IF($Z25>=AL$3,$A25*100+AL$3,"") ->  | AM25: =IF($Z25>=AM$3,$A25*100+AM$3,"") ->  | AN25: =IF($Z25>=AN$3,$A25*100+AN$3,"") ->  | AO25: =IF($Z25>=AO$3,$A25*100+AO$3,"") ->  | AP25: =IF($Z25>=AP$3,$A25*100+AP$3,"") ->  | AT25: 100 | AU25: 1003 | AV25: -15000 | AW25: 1001 | AX25: -5000 | AY25: =IF(AU25="","",CONCATENATE(VLOOKUP(AU25,[1]DropConfig!$A:$F,3,FALSE),"×",AV25)) -> 修为×-15000 | AZ25: =IF(AW25="","",CONCATENATE(VLOOKUP(AW25,[1]DropConfig!$A:$F,3,FALSE),"×",AX25)) -> 灵石×-5000
A26: 122 | B26: =IF(Z26>0,_xlfn.TEXTJOIN(";",1,ROW(INDIRECT(CONCATENATE("",A26*100+1,":",A26*100+Z26,""))),102),"") -> 12201;102 | C26: 1 | D26: 7 | E26: 1 | F26: 0 | G26: 3 | H26: 3 | I26: 1003;1005 | J26: -15000;-5000 | K26: 100 | V26: 4301 | W26: 4097 | X26: [资源3]灵气×-5000 | Z26: =COUNTIF(EventLinkConfig!O:O,EventConfig!A26) -> 1 | AA26: =IF($Z26>=AA$3,$A26*100+AA$3,"") -> 12201 | AB26: =IF($Z26>=AB$3,$A26*100+AB$3,"") ->  | AC26: =IF($Z26>=AC$3,$A26*100+AC$3,"") ->  | AD26: =IF($Z26>=AD$3,$A26*100+AD$3,"") ->  | AE26: =IF($Z26>=AE$3,$A26*100+AE$3,"") ->  | AF26: =IF($Z26>=AF$3,$A26*100+AF$3,"") ->  | AG26: =IF($Z26>=AG$3,$A26*100+AG$3,"") ->  | AH26: =IF($Z26>=AH$3,$A26*100+AH$3,"") ->  | AI26: =IF($Z26>=AI$3,$A26*100+AI$3,"") ->  | AJ26: =IF($Z26>=AJ$3,$A26*100+AJ$3,"") ->  | AK26: =IF($Z26>=AK$3,$A26*100+AK$3,"") ->  | AL26: =IF($Z26>=AL$3,$A26*100+AL$3,"") ->  | AM26: =IF($Z26>=AM$3,$A26*100+AM$3,"") ->  | AN26: =IF($Z26>=AN$3,$A26*100+AN$3,"") ->  | AO26: =IF($Z26>=AO$3,$A26*100+AO$3,"") ->  | AP26: =IF($Z26>=AP$3,$A26*100+AP$3,"") ->  | AT26: 100 | AU26: 1003 | AV26: -15000 | AW26: 1005 | AX26: -5000 | AY26: =IF(AU26="","",CONCATENATE(VLOOKUP(AU26,[1]DropConfig!$A:$F,3,FALSE),"×",AV26)) -> 修为×-15000 | AZ26: =IF(AW26="","",CONCATENATE(VLOOKUP(AW26,[1]DropConfig!$A:$F,3,FALSE),"×",AX26)) -> 灵气×-5000
A27: 123 | B27: =IF(Z27>0,_xlfn.TEXTJOIN(";",1,ROW(INDIRECT(CONCATENATE("",A27*100+1,":",A27*100+Z27,""))),102),"") -> 12301;102 | C27: 1 | D27: 7 | E27: 1 | F27: 0 | G27: 3 | H27: 4 | I27: 1003;1006 | J27: -15000;-5000 | K27: 100 | V27: 4302 | W27: 4098 | X27: [资源3]玄晶×-5000 | Z27: =COUNTIF(EventLinkConfig!O:O,EventConfig!A27) -> 1 | AA27: =IF($Z27>=AA$3,$A27*100+AA$3,"") -> 12301 | AB27: =IF($Z27>=AB$3,$A27*100+AB$3,"") ->  | AC27: =IF($Z27>=AC$3,$A27*100+AC$3,"") ->  | AD27: =IF($Z27>=AD$3,$A27*100+AD$3,"") ->  | AE27: =IF($Z27>=AE$3,$A27*100+AE$3,"") ->  | AF27: =IF($Z27>=AF$3,$A27*100+AF$3,"") ->  | AG27: =IF($Z27>=AG$3,$A27*100+AG$3,"") ->  | AH27: =IF($Z27>=AH$3,$A27*100+AH$3,"") ->  | AI27: =IF($Z27>=AI$3,$A27*100+AI$3,"") ->  | AJ27: =IF($Z27>=AJ$3,$A27*100+AJ$3,"") ->  | AK27: =IF($Z27>=AK$3,$A27*100+AK$3,"") ->  | AL27: =IF($Z27>=AL$3,$A27*100+AL$3,"") ->  | AM27: =IF($Z27>=AM$3,$A27*100+AM$3,"") ->  | AN27: =IF($Z27>=AN$3,$A27*100+AN$3,"") ->  | AO27: =IF($Z27>=AO$3,$A27*100+AO$3,"") ->  | AP27: =IF($Z27>=AP$3,$A27*100+AP$3,"") ->  | AT27: 100 | AU27: 1003 | AV27: -15000 | AW27: 1006 | AX27: -5000 | AY27: =IF(AU27="","",CONCATENATE(VLOOKUP(AU27,[1]DropConfig!$A:$F,3,FALSE),"×",AV27)) -> 修为×-15000 | AZ27: =IF(AW27="","",CONCATENATE(VLOOKUP(AW27,[1]DropConfig!$A:$F,3,FALSE),"×",AX27)) -> 玄晶×-5000
A28: 124 | B28: =IF(Z28>0,_xlfn.TEXTJOIN(";",1,ROW(INDIRECT(CONCATENATE("",A28*100+1,":",A28*100+Z28,""))),102),"") -> 12401;102 | C28: 1 | D28: 7 | E28: 1 | F28: 0 | G28: 3 | H28: 12 | I28: 1003;1002 | J28: -15000;100 | K28: 40 | V28: 4303 | W28: 4099 | X28: [资源3]妖丹×100 | Z28: =COUNTIF(EventLinkConfig!O:O,EventConfig!A28) -> 1 | AA28: =IF($Z28>=AA$3,$A28*100+AA$3,"") -> 12401 | AB28: =IF($Z28>=AB$3,$A28*100+AB$3,"") ->  | AC28: =IF($Z28>=AC$3,$A28*100+AC$3,"") ->  | AD28: =IF($Z28>=AD$3,$A28*100+AD$3,"") ->  | AE28: =IF($Z28>=AE$3,$A28*100+AE$3,"") ->  | AF28: =IF($Z28>=AF$3,$A28*100+AF$3,"") ->  | AG28: =IF($Z28>=AG$3,$A28*100+AG$3,"") ->  | AH28: =IF($Z28>=AH$3,$A28*100+AH$3,"") ->  | AI28: =IF($Z28>=AI$3,$A28*100+AI$3,"") ->  | AJ28: =IF($Z28>=AJ$3,$A28*100+AJ$3,"") ->  | AK28: =IF($Z28>=AK$3,$A28*100+AK$3,"") ->  | AL28: =IF($Z28>=AL$3,$A28*100+AL$3,"") ->  | AM28: =IF($Z28>=AM$3,$A28*100+AM$3,"") ->  | AN28: =IF($Z28>=AN$3,$A28*100+AN$3,"") ->  | AO28: =IF($Z28>=AO$3,$A28*100+AO$3,"") ->  | AP28: =IF($Z28>=AP$3,$A28*100+AP$3,"") ->  | AT28: 100 | AU28: 1003 | AV28: -15000 | AW28: 1002 | AX28: 100 | AY28: =IF(AU28="","",CONCATENATE(VLOOKUP(AU28,[1]DropConfig!$A:$F,3,FALSE),"×",AV28)) -> 修为×-15000 | AZ28: =IF(AW28="","",CONCATENATE(VLOOKUP(AW28,[1]DropConfig!$A:$F,3,FALSE),"×",AX28)) -> 妖丹×100
A29: 125 | B29: =IF(Z29>0,_xlfn.TEXTJOIN(";",1,ROW(INDIRECT(CONCATENATE("",A29*100+1,":",A29*100+Z29,""))),102),"") -> 12501;102 | C29: 1 | D29: 7 | E29: 1 | F29: 0 | G29: 3 | H29: 13 | I29: 1003;1004 | J29: -15000;10 | K29: 30 | V29: 4304 | W29: 4100 | X29: [资源3]仙缘宝券×10 | Z29: =COUNTIF(EventLinkConfig!O:O,EventConfig!A29) -> 1 | AA29: =IF($Z29>=AA$3,$A29*100+AA$3,"") -> 12501 | AB29: =IF($Z29>=AB$3,$A29*100+AB$3,"") ->  | AC29: =IF($Z29>=AC$3,$A29*100+AC$3,"") ->  | AD29: =IF($Z29>=AD$3,$A29*100+AD$3,"") ->  | AE29: =IF($Z29>=AE$3,$A29*100+AE$3,"") ->  | AF29: =IF($Z29>=AF$3,$A29*100+AF$3,"") ->  | AG29: =IF($Z29>=AG$3,$A29*100+AG$3,"") ->  | AH29: =IF($Z29>=AH$3,$A29*100+AH$3,"") ->  | AI29: =IF($Z29>=AI$3,$A29*100+AI$3,"") ->  | AJ29: =IF($Z29>=AJ$3,$A29*100+AJ$3,"") ->  | AK29: =IF($Z29>=AK$3,$A29*100+AK$3,"") ->  | AL29: =IF($Z29>=AL$3,$A29*100+AL$3,"") ->  | AM29: =IF($Z29>=AM$3,$A29*100+AM$3,"") ->  | AN29: =IF($Z29>=AN$3,$A29*100+AN$3,"") ->  | AO29: =IF($Z29>=AO$3,$A29*100+AO$3,"") ->  | AP29: =IF($Z29>=AP$3,$A29*100+AP$3,"") ->  | AT29: 100 | AU29: 1003 | AV29: -15000 | AW29: 1004 | AX29: 10 | AY29: =IF(AU29="","",CONCATENATE(VLOOKUP(AU29,[1]DropConfig!$A:$F,3,FALSE),"×",AV29)) -> 修为×-15000 | AZ29: =IF(AW29="","",CONCATENATE(VLOOKUP(AW29,[1]DropConfig!$A:$F,3,FALSE),"×",AX29)) -> 仙缘宝券×10
A30: 126 | B30: =IF(Z30>0,_xlfn.TEXTJOIN(";",1,ROW(INDIRECT(CONCATENATE("",A30*100+1,":",A30*100+Z30,""))),102),"") -> 12601;102 | C30: 1 | D30: 7 | E30: 1 | F30: 0 | G30: 3 | H30: 10 | I30: 1003;1501 | J30: -15000;1 | K30: 70 | V30: 4305 | W30: 4101 | X30: [资源3]好感度礼物1×1 | Z30: =COUNTIF(EventLinkConfig!O:O,EventConfig!A30) -> 1 | AA30: =IF($Z30>=AA$3,$A30*100+AA$3,"") -> 12601 | AB30: =IF($Z30>=AB$3,$A30*100+AB$3,"") ->  | AC30: =IF($Z30>=AC$3,$A30*100+AC$3,"") ->  | AD30: =IF($Z30>=AD$3,$A30*100+AD$3,"") ->  | AE30: =IF($Z30>=AE$3,$A30*100+AE$3,"") ->  | AF30: =IF($Z30>=AF$3,$A30*100+AF$3,"") ->  | AG30: =IF($Z30>=AG$3,$A30*100+AG$3,"") ->  | AH30: =IF($Z30>=AH$3,$A30*100+AH$3,"") ->  | AI30: =IF($Z30>=AI$3,$A30*100+AI$3,"") ->  | AJ30: =IF($Z30>=AJ$3,$A30*100+AJ$3,"") ->  | AK30: =IF($Z30>=AK$3,$A30*100+AK$3,"") ->  | AL30: =IF($Z30>=AL$3,$A30*100+AL$3,"") ->  | AM30: =IF($Z30>=AM$3,$A30*100+AM$3,"") ->  | AN30: =IF($Z30>=AN$3,$A30*100+AN$3,"") ->  | AO30: =IF($Z30>=AO$3,$A30*100+AO$3,"") ->  | AP30: =IF($Z30>=AP$3,$A30*100+AP$3,"") ->  | AT30: 100 | AU30: 1003 | AV30: -15000 | AW30: 1501 | AX30: 1 | AY30: =IF(AU30="","",CONCATENATE(VLOOKUP(AU30,[1]DropConfig!$A:$F,3,FALSE),"×",AV30)) -> 修为×-15000 | AZ30: =IF(AW30="","",CONCATENATE(VLOOKUP(AW30,[1]DropConfig!$A:$F,3,FALSE),"×",AX30)) -> 好感度礼物1×1
A31: 127 | B31: =IF(Z31>0,_xlfn.TEXTJOIN(";",1,ROW(INDIRECT(CONCATENATE("",A31*100+1,":",A31*100+Z31,""))),102),"") -> 12701;102 | C31: 1 | D31: 7 | E31: 1 | F31: 0 | G31: 3 | H31: 11 | I31: 1003;1601 | J31: -15000;1 | K31: 50 | V31: 4306 | W31: 4102 | X31: [资源3]心情礼物1×1 | Z31: =COUNTIF(EventLinkConfig!O:O,EventConfig!A31) -> 1 | AA31: =IF($Z31>=AA$3,$A31*100+AA$3,"") -> 12701 | AB31: =IF($Z31>=AB$3,$A31*100+AB$3,"") ->  | AC31: =IF($Z31>=AC$3,$A31*100+AC$3,"") ->  | AD31: =IF($Z31>=AD$3,$A31*100+AD$3,"") ->  | AE31: =IF($Z31>=AE$3,$A31*100+AE$3,"") ->  | AF31: =IF($Z31>=AF$3,$A31*100+AF$3,"") ->  | AG31: =IF($Z31>=AG$3,$A31*100+AG$3,"") ->  | AH31: =IF($Z31>=AH$3,$A31*100+AH$3,"") ->  | AI31: =IF($Z31>=AI$3,$A31*100+AI$3,"") ->  | AJ31: =IF($Z31>=AJ$3,$A31*100+AJ$3,"") ->  | AK31: =IF($Z31>=AK$3,$A31*100+AK$3,"") ->  | AL31: =IF($Z31>=AL$3,$A31*100+AL$3,"") ->  | AM31: =IF($Z31>=AM$3,$A31*100+AM$3,"") ->  | AN31: =IF($Z31>=AN$3,$A31*100+AN$3,"") ->  | AO31: =IF($Z31>=AO$3,$A31*100+AO$3,"") ->  | AP31: =IF($Z31>=AP$3,$A31*100+AP$3,"") ->  | AT31: 100 | AU31: 1003 | AV31: -15000 | AW31: 1601 | AX31: 1 | AY31: =IF(AU31="","",CONCATENATE(VLOOKUP(AU31,[1]DropConfig!$A:$F,3,FALSE),"×",AV31)) -> 修为×-15000 | AZ31: =IF(AW31="","",CONCATENATE(VLOOKUP(AW31,[1]DropConfig!$A:$F,3,FALSE),"×",AX31)) -> 心情礼物1×1
A32: 128 | B32: =IF(Z32>0,_xlfn.TEXTJOIN(";",1,ROW(INDIRECT(CONCATENATE("",A32*100+1,":",A32*100+Z32,""))),102),"") -> 12801;102 | C32: 1 | D32: 7 | E32: 1 | F32: 0 | G32: 4 | H32: 6 | I32: =_xlfn.TEXTJOIN(";",1,AU32,AW32) -> 1003;999001 | J32: =_xlfn.TEXTJOIN(";",1,AV32,AX32) -> -30000;1 | K32: 25 | V32: 4307 | W32: 4094 | X32: [资源4]法宝掉落×1 | Z32: =COUNTIF(EventLinkConfig!O:O,EventConfig!A32) -> 1 | AA32: =IF($Z32>=AA$3,$A32*100+AA$3,"") -> 12801 | AB32: =IF($Z32>=AB$3,$A32*100+AB$3,"") ->  | AC32: =IF($Z32>=AC$3,$A32*100+AC$3,"") ->  | AD32: =IF($Z32>=AD$3,$A32*100+AD$3,"") ->  | AE32: =IF($Z32>=AE$3,$A32*100+AE$3,"") ->  | AF32: =IF($Z32>=AF$3,$A32*100+AF$3,"") ->  | AG32: =IF($Z32>=AG$3,$A32*100+AG$3,"") ->  | AH32: =IF($Z32>=AH$3,$A32*100+AH$3,"") ->  | AI32: =IF($Z32>=AI$3,$A32*100+AI$3,"") ->  | AJ32: =IF($Z32>=AJ$3,$A32*100+AJ$3,"") ->  | AK32: =IF($Z32>=AK$3,$A32*100+AK$3,"") ->  | AL32: =IF($Z32>=AL$3,$A32*100+AL$3,"") ->  | AM32: =IF($Z32>=AM$3,$A32*100+AM$3,"") ->  | AN32: =IF($Z32>=AN$3,$A32*100+AN$3,"") ->  | AO32: =IF($Z32>=AO$3,$A32*100+AO$3,"") ->  | AP32: =IF($Z32>=AP$3,$A32*100+AP$3,"") ->  | AT32: 100 | AU32: 1003 | AV32: -30000 | AW32: 999001 | AX32: 1 | AY32: =IF(AU32="","",CONCATENATE(VLOOKUP(AU32,[1]DropConfig!$A:$F,3,FALSE),"×",AV32)) -> 修为×-30000 | AZ32: =IF(AW32="","",CONCATENATE(VLOOKUP(AW32,[1]DropConfig!$A:$F,3,FALSE),"×",AX32)) -> 法宝掉落×1
A33: 129 | B33: =IF(Z33>0,_xlfn.TEXTJOIN(";",1,ROW(INDIRECT(CONCATENATE("",A33*100+1,":",A33*100+Z33,""))),102),"") -> 12901;102 | C33: 1 | D33: 7 | E33: 1 | F33: 0 | G33: 4 | H33: 5 | I33: 1003;999002 | J33: -30000;1 | K33: 25 | V33: 4308 | W33: 4095 | X33: [资源4]功法掉落×1 | Z33: =COUNTIF(EventLinkConfig!O:O,EventConfig!A33) -> 1 | AA33: =IF($Z33>=AA$3,$A33*100+AA$3,"") -> 12901 | AB33: =IF($Z33>=AB$3,$A33*100+AB$3,"") ->  | AC33: =IF($Z33>=AC$3,$A33*100+AC$3,"") ->  | AD33: =IF($Z33>=AD$3,$A33*100+AD$3,"") ->  | AE33: =IF($Z33>=AE$3,$A33*100+AE$3,"") ->  | AF33: =IF($Z33>=AF$3,$A33*100+AF$3,"") ->  | AG33: =IF($Z33>=AG$3,$A33*100+AG$3,"") ->  | AH33: =IF($Z33>=AH$3,$A33*100+AH$3,"") ->  | AI33: =IF($Z33>=AI$3,$A33*100+AI$3,"") ->  | AJ33: =IF($Z33>=AJ$3,$A33*100+AJ$3,"") ->  | AK33: =IF($Z33>=AK$3,$A33*100+AK$3,"") ->  | AL33: =IF($Z33>=AL$3,$A33*100+AL$3,"") ->  | AM33: =IF($Z33>=AM$3,$A33*100+AM$3,"") ->  | AN33: =IF($Z33>=AN$3,$A33*100+AN$3,"") ->  | AO33: =IF($Z33>=AO$3,$A33*100+AO$3,"") ->  | AP33: =IF($Z33>=AP$3,$A33*100+AP$3,"") ->  | AT33: 100 | AU33: 1003 | AV33: -30000 | AW33: 999002 | AX33: 1 | AY33: =IF(AU33="","",CONCATENATE(VLOOKUP(AU33,[1]DropConfig!$A:$F,3,FALSE),"×",AV33)) -> 修为×-30000 | AZ33: =IF(AW33="","",CONCATENATE(VLOOKUP(AW33,[1]DropConfig!$A:$F,3,FALSE),"×",AX33)) -> 功法掉落×1
A34: 130 | B34: =IF(Z34>0,_xlfn.TEXTJOIN(";",1,ROW(INDIRECT(CONCATENATE("",A34*100+1,":",A34*100+Z34,""))),102),"") -> 13001;102 | C34: 1 | D34: 7 | E34: 1 | F34: 0 | G34: 4 | H34: 1 | I34: 1003;1001 | J34: -30000;-5000 | K34: 100 | V34: 4309 | W34: 4096 | X34: [资源4]灵石×-5000 | Z34: =COUNTIF(EventLinkConfig!O:O,EventConfig!A34) -> 1 | AA34: =IF($Z34>=AA$3,$A34*100+AA$3,"") -> 13001 | AB34: =IF($Z34>=AB$3,$A34*100+AB$3,"") ->  | AC34: =IF($Z34>=AC$3,$A34*100+AC$3,"") ->  | AD34: =IF($Z34>=AD$3,$A34*100+AD$3,"") ->  | AE34: =IF($Z34>=AE$3,$A34*100+AE$3,"") ->  | AF34: =IF($Z34>=AF$3,$A34*100+AF$3,"") ->  | AG34: =IF($Z34>=AG$3,$A34*100+AG$3,"") ->  | AH34: =IF($Z34>=AH$3,$A34*100+AH$3,"") ->  | AI34: =IF($Z34>=AI$3,$A34*100+AI$3,"") ->  | AJ34: =IF($Z34>=AJ$3,$A34*100+AJ$3,"") ->  | AK34: =IF($Z34>=AK$3,$A34*100+AK$3,"") ->  | AL34: =IF($Z34>=AL$3,$A34*100+AL$3,"") ->  | AM34: =IF($Z34>=AM$3,$A34*100+AM$3,"") ->  | AN34: =IF($Z34>=AN$3,$A34*100+AN$3,"") ->  | AO34: =IF($Z34>=AO$3,$A34*100+AO$3,"") ->  | AP34: =IF($Z34>=AP$3,$A34*100+AP$3,"") ->  | AT34: 100 | AU34: 1003 | AV34: -30000 | AW34: 1001 | AX34: -5000 | AY34: =IF(AU34="","",CONCATENATE(VLOOKUP(AU34,[1]DropConfig!$A:$F,3,FALSE),"×",AV34)) -> 修为×-30000 | AZ34: =IF(AW34="","",CONCATENATE(VLOOKUP(AW34,[1]DropConfig!$A:$F,3,FALSE),"×",AX34)) -> 灵石×-5000
A35: 131 | B35: =IF(Z35>0,_xlfn.TEXTJOIN(";",1,ROW(INDIRECT(CONCATENATE("",A35*100+1,":",A35*100+Z35,""))),102),"") -> 13101;102 | C35: 1 | D35: 7 | E35: 1 | F35: 0 | G35: 4 | H35: 3 | I35: 1003;1005 | J35: -30000;-5000 | K35: 100 | V35: 4310 | W35: 4097 | X35: [资源4]灵气×-5000 | Z35: =COUNTIF(EventLinkConfig!O:O,EventConfig!A35) -> 1 | AA35: =IF($Z35>=AA$3,$A35*100+AA$3,"") -> 13101 | AB35: =IF($Z35>=AB$3,$A35*100+AB$3,"") ->  | AC35: =IF($Z35>=AC$3,$A35*100+AC$3,"") ->  | AD35: =IF($Z35>=AD$3,$A35*100+AD$3,"") ->  | AE35: =IF($Z35>=AE$3,$A35*100+AE$3,"") ->  | AF35: =IF($Z35>=AF$3,$A35*100+AF$3,"") ->  | AG35: =IF($Z35>=AG$3,$A35*100+AG$3,"") ->  | AH35: =IF($Z35>=AH$3,$A35*100+AH$3,"") ->  | AI35: =IF($Z35>=AI$3,$A35*100+AI$3,"") ->  | AJ35: =IF($Z35>=AJ$3,$A35*100+AJ$3,"") ->  | AK35: =IF($Z35>=AK$3,$A35*100+AK$3,"") ->  | AL35: =IF($Z35>=AL$3,$A35*100+AL$3,"") ->  | AM35: =IF($Z35>=AM$3,$A35*100+AM$3,"") ->  | AN35: =IF($Z35>=AN$3,$A35*100+AN$3,"") ->  | AO35: =IF($Z35>=AO$3,$A35*100+AO$3,"") ->  | AP35: =IF($Z35>=AP$3,$A35*100+AP$3,"") ->  | AT35: 100 | AU35: 1003 | AV35: -30000 | AW35: 1005 | AX35: -5000 | AY35: =IF(AU35="","",CONCATENATE(VLOOKUP(AU35,[1]DropConfig!$A:$F,3,FALSE),"×",AV35)) -> 修为×-30000 | AZ35: =IF(AW35="","",CONCATENATE(VLOOKUP(AW35,[1]DropConfig!$A:$F,3,FALSE),"×",AX35)) -> 灵气×-5000
A36: 132 | B36: =IF(Z36>0,_xlfn.TEXTJOIN(";",1,ROW(INDIRECT(CONCATENATE("",A36*100+1,":",A36*100+Z36,""))),102),"") -> 13201;102 | C36: 1 | D36: 7 | E36: 1 | F36: 0 | G36: 4 | H36: 4 | I36: 1003;1006 | J36: -30000;-5000 | K36: 100 | V36: 4311 | W36: 4098 | X36: [资源4]玄晶×-5000 | Z36: =COUNTIF(EventLinkConfig!O:O,EventConfig!A36) -> 1 | AA36: =IF($Z36>=AA$3,$A36*100+AA$3,"") -> 13201 | AB36: =IF($Z36>=AB$3,$A36*100+AB$3,"") ->  | AC36: =IF($Z36>=AC$3,$A36*100+AC$3,"") ->  | AD36: =IF($Z36>=AD$3,$A36*100+AD$3,"") ->  | AE36: =IF($Z36>=AE$3,$A36*100+AE$3,"") ->  | AF36: =IF($Z36>=AF$3,$A36*100+AF$3,"") ->  | AG36: =IF($Z36>=AG$3,$A36*100+AG$3,"") ->  | AH36: =IF($Z36>=AH$3,$A36*100+AH$3,"") ->  | AI36: =IF($Z36>=AI$3,$A36*100+AI$3,"") ->  | AJ36: =IF($Z36>=AJ$3,$A36*100+AJ$3,"") ->  | AK36: =IF($Z36>=AK$3,$A36*100+AK$3,"") ->  | AL36: =IF($Z36>=AL$3,$A36*100+AL$3,"") ->  | AM36: =IF($Z36>=AM$3,$A36*100+AM$3,"") ->  | AN36: =IF($Z36>=AN$3,$A36*100+AN$3,"") ->  | AO36: =IF($Z36>=AO$3,$A36*100+AO$3,"") ->  | AP36: =IF($Z36>=AP$3,$A36*100+AP$3,"") ->  | AT36: 100 | AU36: 1003 | AV36: -30000 | AW36: 1006 | AX36: -5000 | AY36: =IF(AU36="","",CONCATENATE(VLOOKUP(AU36,[1]DropConfig!$A:$F,3,FALSE),"×",AV36)) -> 修为×-30000 | AZ36: =IF(AW36="","",CONCATENATE(VLOOKUP(AW36,[1]DropConfig!$A:$F,3,FALSE),"×",AX36)) -> 玄晶×-5000
A37: 133 | B37: =IF(Z37>0,_xlfn.TEXTJOIN(";",1,ROW(INDIRECT(CONCATENATE("",A37*100+1,":",A37*100+Z37,""))),102),"") -> 13301;102 | C37: 1 | D37: 7 | E37: 1 | F37: 0 | G37: 4 | H37: 12 | I37: 1003;1002 | J37: -30000;100 | K37: 45 | V37: 4312 | W37: 4099 | X37: [资源4]妖丹×100 | Z37: =COUNTIF(EventLinkConfig!O:O,EventConfig!A37) -> 1 | AA37: =IF($Z37>=AA$3,$A37*100+AA$3,"") -> 13301 | AB37: =IF($Z37>=AB$3,$A37*100+AB$3,"") ->  | AC37: =IF($Z37>=AC$3,$A37*100+AC$3,"") ->  | AD37: =IF($Z37>=AD$3,$A37*100+AD$3,"") ->  | AE37: =IF($Z37>=AE$3,$A37*100+AE$3,"") ->  | AF37: =IF($Z37>=AF$3,$A37*100+AF$3,"") ->  | AG37: =IF($Z37>=AG$3,$A37*100+AG$3,"") ->  | AH37: =IF($Z37>=AH$3,$A37*100+AH$3,"") ->  | AI37: =IF($Z37>=AI$3,$A37*100+AI$3,"") ->  | AJ37: =IF($Z37>=AJ$3,$A37*100+AJ$3,"") ->  | AK37: =IF($Z37>=AK$3,$A37*100+AK$3,"") ->  | AL37: =IF($Z37>=AL$3,$A37*100+AL$3,"") ->  | AM37: =IF($Z37>=AM$3,$A37*100+AM$3,"") ->  | AN37: =IF($Z37>=AN$3,$A37*100+AN$3,"") ->  | AO37: =IF($Z37>=AO$3,$A37*100+AO$3,"") ->  | AP37: =IF($Z37>=AP$3,$A37*100+AP$3,"") ->  | AT37: 100 | AU37: 1003 | AV37: -30000 | AW37: 1002 | AX37: 100 | AY37: =IF(AU37="","",CONCATENATE(VLOOKUP(AU37,[1]DropConfig!$A:$F,3,FALSE),"×",AV37)) -> 修为×-30000 | AZ37: =IF(AW37="","",CONCATENATE(VLOOKUP(AW37,[1]DropConfig!$A:$F,3,FALSE),"×",AX37)) -> 妖丹×100
A38: 134 | B38: =IF(Z38>0,_xlfn.TEXTJOIN(";",1,ROW(INDIRECT(CONCATENATE("",A38*100+1,":",A38*100+Z38,""))),102),"") -> 13401;102 | C38: 1 | D38: 7 | E38: 1 | F38: 0 | G38: 4 | H38: 13 | I38: 1003;1004 | J38: -30000;10 | K38: 35 | V38: 4313 | W38: 4100 | X38: [资源4]仙缘宝券×10 | Z38: =COUNTIF(EventLinkConfig!O:O,EventConfig!A38) -> 1 | AA38: =IF($Z38>=AA$3,$A38*100+AA$3,"") -> 13401 | AB38: =IF($Z38>=AB$3,$A38*100+AB$3,"") ->  | AC38: =IF($Z38>=AC$3,$A38*100+AC$3,"") ->  | AD38: =IF($Z38>=AD$3,$A38*100+AD$3,"") ->  | AE38: =IF($Z38>=AE$3,$A38*100+AE$3,"") ->  | AF38: =IF($Z38>=AF$3,$A38*100+AF$3,"") ->  | AG38: =IF($Z38>=AG$3,$A38*100+AG$3,"") ->  | AH38: =IF($Z38>=AH$3,$A38*100+AH$3,"") ->  | AI38: =IF($Z38>=AI$3,$A38*100+AI$3,"") ->  | AJ38: =IF($Z38>=AJ$3,$A38*100+AJ$3,"") ->  | AK38: =IF($Z38>=AK$3,$A38*100+AK$3,"") ->  | AL38: =IF($Z38>=AL$3,$A38*100+AL$3,"") ->  | AM38: =IF($Z38>=AM$3,$A38*100+AM$3,"") ->  | AN38: =IF($Z38>=AN$3,$A38*100+AN$3,"") ->  | AO38: =IF($Z38>=AO$3,$A38*100+AO$3,"") ->  | AP38: =IF($Z38>=AP$3,$A38*100+AP$3,"") ->  | AT38: 100 | AU38: 1003 | AV38: -30000 | AW38: 1004 | AX38: 10 | AY38: =IF(AU38="","",CONCATENATE(VLOOKUP(AU38,[1]DropConfig!$A:$F,3,FALSE),"×",AV38)) -> 修为×-30000 | AZ38: =IF(AW38="","",CONCATENATE(VLOOKUP(AW38,[1]DropConfig!$A:$F,3,FALSE),"×",AX38)) -> 仙缘宝券×10
A39: 135 | B39: =IF(Z39>0,_xlfn.TEXTJOIN(";",1,ROW(INDIRECT(CONCATENATE("",A39*100+1,":",A39*100+Z39,""))),102),"") -> 13501;102 | C39: 1 | D39: 7 | E39: 1 | F39: 0 | G39: 4 | H39: 10 | I39: 1003;1501 | J39: -30000;1 | K39: 75 | V39: 4314 | W39: 4101 | X39: [资源4]好感度礼物1×1 | Z39: =COUNTIF(EventLinkConfig!O:O,EventConfig!A39) -> 1 | AA39: =IF($Z39>=AA$3,$A39*100+AA$3,"") -> 13501 | AB39: =IF($Z39>=AB$3,$A39*100+AB$3,"") ->  | AC39: =IF($Z39>=AC$3,$A39*100+AC$3,"") ->  | AD39: =IF($Z39>=AD$3,$A39*100+AD$3,"") ->  | AE39: =IF($Z39>=AE$3,$A39*100+AE$3,"") ->  | AF39: =IF($Z39>=AF$3,$A39*100+AF$3,"") ->  | AG39: =IF($Z39>=AG$3,$A39*100+AG$3,"") ->  | AH39: =IF($Z39>=AH$3,$A39*100+AH$3,"") ->  | AI39: =IF($Z39>=AI$3,$A39*100+AI$3,"") ->  | AJ39: =IF($Z39>=AJ$3,$A39*100+AJ$3,"") ->  | AK39: =IF($Z39>=AK$3,$A39*100+AK$3,"") ->  | AL39: =IF($Z39>=AL$3,$A39*100+AL$3,"") ->  | AM39: =IF($Z39>=AM$3,$A39*100+AM$3,"") ->  | AN39: =IF($Z39>=AN$3,$A39*100+AN$3,"") ->  | AO39: =IF($Z39>=AO$3,$A39*100+AO$3,"") ->  | AP39: =IF($Z39>=AP$3,$A39*100+AP$3,"") ->  | AT39: 100 | AU39: 1003 | AV39: -30000 | AW39: 1501 | AX39: 1 | AY39: =IF(AU39="","",CONCATENATE(VLOOKUP(AU39,[1]DropConfig!$A:$F,3,FALSE),"×",AV39)) -> 修为×-30000 | AZ39: =IF(AW39="","",CONCATENATE(VLOOKUP(AW39,[1]DropConfig!$A:$F,3,FALSE),"×",AX39)) -> 好感度礼物1×1
A40: 136 | B40: =IF(Z40>0,_xlfn.TEXTJOIN(";",1,ROW(INDIRECT(CONCATENATE("",A40*100+1,":",A40*100+Z40,""))),102),"") -> 13601;102 | C40: 1 | D40: 7 | E40: 1 | F40: 0 | G40: 4 | H40: 11 | I40: 1003;1601 | J40: -30000;1 | K40: 55 | V40: 4315 | W40: 4102 | X40: [资源4]心情礼物1×1 | Z40: =COUNTIF(EventLinkConfig!O:O,EventConfig!A40) -> 1 | AA40: =IF($Z40>=AA$3,$A40*100+AA$3,"") -> 13601 | AB40: =IF($Z40>=AB$3,$A40*100+AB$3,"") ->  | AC40: =IF($Z40>=AC$3,$A40*100+AC$3,"") ->  | AD40: =IF($Z40>=AD$3,$A40*100+AD$3,"") ->  | AE40: =IF($Z40>=AE$3,$A40*100+AE$3,"") ->  | AF40: =IF($Z40>=AF$3,$A40*100+AF$3,"") ->  | AG40: =IF($Z40>=AG$3,$A40*100+AG$3,"") ->  | AH40: =IF($Z40>=AH$3,$A40*100+AH$3,"") ->  | AI40: =IF($Z40>=AI$3,$A40*100+AI$3,"") ->  | AJ40: =IF($Z40>=AJ$3,$A40*100+AJ$3,"") ->  | AK40: =IF($Z40>=AK$3,$A40*100+AK$3,"") ->  | AL40: =IF($Z40>=AL$3,$A40*100+AL$3,"") ->  | AM40: =IF($Z40>=AM$3,$A40*100+AM$3,"") ->  | AN40: =IF($Z40>=AN$3,$A40*100+AN$3,"") ->  | AO40: =IF($Z40>=AO$3,$A40*100+AO$3,"") ->  | AP40: =IF($Z40>=AP$3,$A40*100+AP$3,"") ->  | AT40: 100 | AU40: 1003 | AV40: -30000 | AW40: 1601 | AX40: 1 | AY40: =IF(AU40="","",CONCATENATE(VLOOKUP(AU40,[1]DropConfig!$A:$F,3,FALSE),"×",AV40)) -> 修为×-30000 | AZ40: =IF(AW40="","",CONCATENATE(VLOOKUP(AW40,[1]DropConfig!$A:$F,3,FALSE),"×",AX40)) -> 心情礼物1×1
A41: 137 | B41: =IF(Z41>0,_xlfn.TEXTJOIN(";",1,ROW(INDIRECT(CONCATENATE("",A41*100+1,":",A41*100+Z41,""))),102),"") -> 13701;102 | C41: 1 | D41: 7 | E41: 1 | F41: 0 | G41: 5 | H41: 6 | I41: =_xlfn.TEXTJOIN(";",1,AU41,AW41) -> 1003;999001 | J41: =_xlfn.TEXTJOIN(";",1,AV41,AX41) -> -50000;1 | K41: 30 | V41: 4316 | W41: 4094 | X41: [资源5]法宝掉落×1 | Z41: =COUNTIF(EventLinkConfig!O:O,EventConfig!A41) -> 1 | AA41: =IF($Z41>=AA$3,$A41*100+AA$3,"") -> 13701 | AB41: =IF($Z41>=AB$3,$A41*100+AB$3,"") ->  | AC41: =IF($Z41>=AC$3,$A41*100+AC$3,"") ->  | AD41: =IF($Z41>=AD$3,$A41*100+AD$3,"") ->  | AE41: =IF($Z41>=AE$3,$A41*100+AE$3,"") ->  | AF41: =IF($Z41>=AF$3,$A41*100+AF$3,"") ->  | AG41: =IF($Z41>=AG$3,$A41*100+AG$3,"") ->  | AH41: =IF($Z41>=AH$3,$A41*100+AH$3,"") ->  | AI41: =IF($Z41>=AI$3,$A41*100+AI$3,"") ->  | AJ41: =IF($Z41>=AJ$3,$A41*100+AJ$3,"") ->  | AK41: =IF($Z41>=AK$3,$A41*100+AK$3,"") ->  | AL41: =IF($Z41>=AL$3,$A41*100+AL$3,"") ->  | AM41: =IF($Z41>=AM$3,$A41*100+AM$3,"") ->  | AN41: =IF($Z41>=AN$3,$A41*100+AN$3,"") ->  | AO41: =IF($Z41>=AO$3,$A41*100+AO$3,"") ->  | AP41: =IF($Z41>=AP$3,$A41*100+AP$3,"") ->  | AT41: 100 | AU41: 1003 | AV41: -50000 | AW41: 999001 | AX41: 1 | AY41: =IF(AU41="","",CONCATENATE(VLOOKUP(AU41,[1]DropConfig!$A:$F,3,FALSE),"×",AV41)) -> 修为×-50000 | AZ41: =IF(AW41="","",CONCATENATE(VLOOKUP(AW41,[1]DropConfig!$A:$F,3,FALSE),"×",AX41)) -> 法宝掉落×1
A42: 138 | B42: =IF(Z42>0,_xlfn.TEXTJOIN(";",1,ROW(INDIRECT(CONCATENATE("",A42*100+1,":",A42*100+Z42,""))),102),"") -> 13801;102 | C42: 1 | D42: 7 | E42: 1 | F42: 0 | G42: 5 | H42: 5 | I42: 1003;999002 | J42: -50000;1 | K42: 30 | V42: 4317 | W42: 4095 | X42: [资源5]功法掉落×1 | Z42: =COUNTIF(EventLinkConfig!O:O,EventConfig!A42) -> 1 | AA42: =IF($Z42>=AA$3,$A42*100+AA$3,"") -> 13801 | AB42: =IF($Z42>=AB$3,$A42*100+AB$3,"") ->  | AC42: =IF($Z42>=AC$3,$A42*100+AC$3,"") ->  | AD42: =IF($Z42>=AD$3,$A42*100+AD$3,"") ->  | AE42: =IF($Z42>=AE$3,$A42*100+AE$3,"") ->  | AF42: =IF($Z42>=AF$3,$A42*100+AF$3,"") ->  | AG42: =IF($Z42>=AG$3,$A42*100+AG$3,"") ->  | AH42: =IF($Z42>=AH$3,$A42*100+AH$3,"") ->  | AI42: =IF($Z42>=AI$3,$A42*100+AI$3,"") ->  | AJ42: =IF($Z42>=AJ$3,$A42*100+AJ$3,"") ->  | AK42: =IF($Z42>=AK$3,$A42*100+AK$3,"") ->  | AL42: =IF($Z42>=AL$3,$A42*100+AL$3,"") ->  | AM42: =IF($Z42>=AM$3,$A42*100+AM$3,"") ->  | AN42: =IF($Z42>=AN$3,$A42*100+AN$3,"") ->  | AO42: =IF($Z42>=AO$3,$A42*100+AO$3,"") ->  | AP42: =IF($Z42>=AP$3,$A42*100+AP$3,"") ->  | AT42: 100 | AU42: 1003 | AV42: -50000 | AW42: 999002 | AX42: 1 | AY42: =IF(AU42="","",CONCATENATE(VLOOKUP(AU42,[1]DropConfig!$A:$F,3,FALSE),"×",AV42)) -> 修为×-50000 | AZ42: =IF(AW42="","",CONCATENATE(VLOOKUP(AW42,[1]DropConfig!$A:$F,3,FALSE),"×",AX42)) -> 功法掉落×1
A43: 139 | B43: =IF(Z43>0,_xlfn.TEXTJOIN(";",1,ROW(INDIRECT(CONCATENATE("",A43*100+1,":",A43*100+Z43,""))),102),"") -> 13901;102 | C43: 1 | D43: 7 | E43: 1 | F43: 0 | G43: 5 | H43: 1 | I43: 1003;1001 | J43: -50000;-5000 | K43: 100 | V43: 4318 | W43: 4096 | X43: [资源5]灵石×-5000 | Z43: =COUNTIF(EventLinkConfig!O:O,EventConfig!A43) -> 1 | AA43: =IF($Z43>=AA$3,$A43*100+AA$3,"") -> 13901 | AB43: =IF($Z43>=AB$3,$A43*100+AB$3,"") ->  | AC43: =IF($Z43>=AC$3,$A43*100+AC$3,"") ->  | AD43: =IF($Z43>=AD$3,$A43*100+AD$3,"") ->  | AE43: =IF($Z43>=AE$3,$A43*100+AE$3,"") ->  | AF43: =IF($Z43>=AF$3,$A43*100+AF$3,"") ->  | AG43: =IF($Z43>=AG$3,$A43*100+AG$3,"") ->  | AH43: =IF($Z43>=AH$3,$A43*100+AH$3,"") ->  | AI43: =IF($Z43>=AI$3,$A43*100+AI$3,"") ->  | AJ43: =IF($Z43>=AJ$3,$A43*100+AJ$3,"") ->  | AK43: =IF($Z43>=AK$3,$A43*100+AK$3,"") ->  | AL43: =IF($Z43>=AL$3,$A43*100+AL$3,"") ->  | AM43: =IF($Z43>=AM$3,$A43*100+AM$3,"") ->  | AN43: =IF($Z43>=AN$3,$A43*100+AN$3,"") ->  | AO43: =IF($Z43>=AO$3,$A43*100+AO$3,"") ->  | AP43: =IF($Z43>=AP$3,$A43*100+AP$3,"") ->  | AT43: 100 | AU43: 1003 | AV43: -50000 | AW43: 1001 | AX43: -5000 | AY43: =IF(AU43="","",CONCATENATE(VLOOKUP(AU43,[1]DropConfig!$A:$F,3,FALSE),"×",AV43)) -> 修为×-50000 | AZ43: =IF(AW43="","",CONCATENATE(VLOOKUP(AW43,[1]DropConfig!$A:$F,3,FALSE),"×",AX43)) -> 灵石×-5000
A44: 140 | B44: =IF(Z44>0,_xlfn.TEXTJOIN(";",1,ROW(INDIRECT(CONCATENATE("",A44*100+1,":",A44*100+Z44,""))),102),"") -> 14001;102 | C44: 1 | D44: 7 | E44: 1 | F44: 0 | G44: 5 | H44: 3 | I44: 1003;1005 | J44: -50000;-5000 | K44: 100 | V44: 4319 | W44: 4097 | X44: [资源5]灵气×-5000 | Z44: =COUNTIF(EventLinkConfig!O:O,EventConfig!A44) -> 1 | AA44: =IF($Z44>=AA$3,$A44*100+AA$3,"") -> 14001 | AB44: =IF($Z44>=AB$3,$A44*100+AB$3,"") ->  | AC44: =IF($Z44>=AC$3,$A44*100+AC$3,"") ->  | AD44: =IF($Z44>=AD$3,$A44*100+AD$3,"") ->  | AE44: =IF($Z44>=AE$3,$A44*100+AE$3,"") ->  | AF44: =IF($Z44>=AF$3,$A44*100+AF$3,"") ->  | AG44: =IF($Z44>=AG$3,$A44*100+AG$3,"") ->  | AH44: =IF($Z44>=AH$3,$A44*100+AH$3,"") ->  | AI44: =IF($Z44>=AI$3,$A44*100+AI$3,"") ->  | AJ44: =IF($Z44>=AJ$3,$A44*100+AJ$3,"") ->  | AK44: =IF($Z44>=AK$3,$A44*100+AK$3,"") ->  | AL44: =IF($Z44>=AL$3,$A44*100+AL$3,"") ->  | AM44: =IF($Z44>=AM$3,$A44*100+AM$3,"") ->  | AN44: =IF($Z44>=AN$3,$A44*100+AN$3,"") ->  | AO44: =IF($Z44>=AO$3,$A44*100+AO$3,"") ->  | AP44: =IF($Z44>=AP$3,$A44*100+AP$3,"") ->  | AT44: 100 | AU44: 1003 | AV44: -50000 | AW44: 1005 | AX44: -5000 | AY44: =IF(AU44="","",CONCATENATE(VLOOKUP(AU44,[1]DropConfig!$A:$F,3,FALSE),"×",AV44)) -> 修为×-50000 | AZ44: =IF(AW44="","",CONCATENATE(VLOOKUP(AW44,[1]DropConfig!$A:$F,3,FALSE),"×",AX44)) -> 灵气×-5000
A45: 141 | B45: =IF(Z45>0,_xlfn.TEXTJOIN(";",1,ROW(INDIRECT(CONCATENATE("",A45*100+1,":",A45*100+Z45,""))),102),"") -> 14101;102 | C45: 1 | D45: 7 | E45: 1 | F45: 0 | G45: 5 | H45: 4 | I45: 1003;1006 | J45: -50000;-5000 | K45: 100 | V45: 4320 | W45: 4098 | X45: [资源5]玄晶×-5000 | Z45: =COUNTIF(EventLinkConfig!O:O,EventConfig!A45) -> 1 | AA45: =IF($Z45>=AA$3,$A45*100+AA$3,"") -> 14101 | AB45: =IF($Z45>=AB$3,$A45*100+AB$3,"") ->  | AC45: =IF($Z45>=AC$3,$A45*100+AC$3,"") ->  | AD45: =IF($Z45>=AD$3,$A45*100+AD$3,"") ->  | AE45: =IF($Z45>=AE$3,$A45*100+AE$3,"") ->  | AF45: =IF($Z45>=AF$3,$A45*100+AF$3,"") ->  | AG45: =IF($Z45>=AG$3,$A45*100+AG$3,"") ->  | AH45: =IF($Z45>=AH$3,$A45*100+AH$3,"") ->  | AI45: =IF($Z45>=AI$3,$A45*100+AI$3,"") ->  | AJ45: =IF($Z45>=AJ$3,$A45*100+AJ$3,"") ->  | AK45: =IF($Z45>=AK$3,$A45*100+AK$3,"") ->  | AL45: =IF($Z45>=AL$3,$A45*100+AL$3,"") ->  | AM45: =IF($Z45>=AM$3,$A45*100+AM$3,"") ->  | AN45: =IF($Z45>=AN$3,$A45*100+AN$3,"") ->  | AO45: =IF($Z45>=AO$3,$A45*100+AO$3,"") ->  | AP45: =IF($Z45>=AP$3,$A45*100+AP$3,"") ->  | AT45: 100 | AU45: 1003 | AV45: -50000 | AW45: 1006 | AX45: -5000 | AY45: =IF(AU45="","",CONCATENATE(VLOOKUP(AU45,[1]DropConfig!$A:$F,3,FALSE),"×",AV45)) -> 修为×-50000 | AZ45: =IF(AW45="","",CONCATENATE(VLOOKUP(AW45,[1]DropConfig!$A:$F,3,FALSE),"×",AX45)) -> 玄晶×-5000
A46: 142 | B46: =IF(Z46>0,_xlfn.TEXTJOIN(";",1,ROW(INDIRECT(CONCATENATE("",A46*100+1,":",A46*100+Z46,""))),102),"") -> 14201;102 | C46: 1 | D46: 7 | E46: 1 | F46: 0 | G46: 5 | H46: 12 | I46: 1003;1002 | J46: -50000;100 | K46: 50 | V46: 4321 | W46: 4099 | X46: [资源5]妖丹×100 | Z46: =COUNTIF(EventLinkConfig!O:O,EventConfig!A46) -> 1 | AA46: =IF($Z46>=AA$3,$A46*100+AA$3,"") -> 14201 | AB46: =IF($Z46>=AB$3,$A46*100+AB$3,"") ->  | AC46: =IF($Z46>=AC$3,$A46*100+AC$3,"") ->  | AD46: =IF($Z46>=AD$3,$A46*100+AD$3,"") ->  | AE46: =IF($Z46>=AE$3,$A46*100+AE$3,"") ->  | AF46: =IF($Z46>=AF$3,$A46*100+AF$3,"") ->  | AG46: =IF($Z46>=AG$3,$A46*100+AG$3,"") ->  | AH46: =IF($Z46>=AH$3,$A46*100+AH$3,"") ->  | AI46: =IF($Z46>=AI$3,$A46*100+AI$3,"") ->  | AJ46: =IF($Z46>=AJ$3,$A46*100+AJ$3,"") ->  | AK46: =IF($Z46>=AK$3,$A46*100+AK$3,"") ->  | AL46: =IF($Z46>=AL$3,$A46*100+AL$3,"") ->  | AM46: =IF($Z46>=AM$3,$A46*100+AM$3,"") ->  | AN46: =IF($Z46>=AN$3,$A46*100+AN$3,"") ->  | AO46: =IF($Z46>=AO$3,$A46*100+AO$3,"") ->  | AP46: =IF($Z46>=AP$3,$A46*100+AP$3,"") ->  | AT46: 100 | AU46: 1003 | AV46: -50000 | AW46: 1002 | AX46: 100 | AY46: =IF(AU46="","",CONCATENATE(VLOOKUP(AU46,[1]DropConfig!$A:$F,3,FALSE),"×",AV46)) -> 修为×-50000 | AZ46: =IF(AW46="","",CONCATENATE(VLOOKUP(AW46,[1]DropConfig!$A:$F,3,FALSE),"×",AX46)) -> 妖丹×100
A47: 143 | B47: =IF(Z47>0,_xlfn.TEXTJOIN(";",1,ROW(INDIRECT(CONCATENATE("",A47*100+1,":",A47*100+Z47,""))),102),"") -> 14301;102 | C47: 1 | D47: 7 | E47: 1 | F47: 0 | G47: 5 | H47: 13 | I47: 1003;1004 | J47: -50000;10 | K47: 40 | V47: 4322 | W47: 4100 | X47: [资源5]仙缘宝券×10 | Z47: =COUNTIF(EventLinkConfig!O:O,EventConfig!A47) -> 1 | AA47: =IF($Z47>=AA$3,$A47*100+AA$3,"") -> 14301 | AB47: =IF($Z47>=AB$3,$A47*100+AB$3,"") ->  | AC47: =IF($Z47>=AC$3,$A47*100+AC$3,"") ->  | AD47: =IF($Z47>=AD$3,$A47*100+AD$3,"") ->  | AE47: =IF($Z47>=AE$3,$A47*100+AE$3,"") ->  | AF47: =IF($Z47>=AF$3,$A47*100+AF$3,"") ->  | AG47: =IF($Z47>=AG$3,$A47*100+AG$3,"") ->  | AH47: =IF($Z47>=AH$3,$A47*100+AH$3,"") ->  | AI47: =IF($Z47>=AI$3,$A47*100+AI$3,"") ->  | AJ47: =IF($Z47>=AJ$3,$A47*100+AJ$3,"") ->  | AK47: =IF($Z47>=AK$3,$A47*100+AK$3,"") ->  | AL47: =IF($Z47>=AL$3,$A47*100+AL$3,"") ->  | AM47: =IF($Z47>=AM$3,$A47*100+AM$3,"") ->  | AN47: =IF($Z47>=AN$3,$A47*100+AN$3,"") ->  | AO47: =IF($Z47>=AO$3,$A47*100+AO$3,"") ->  | AP47: =IF($Z47>=AP$3,$A47*100+AP$3,"") ->  | AT47: 100 | AU47: 1003 | AV47: -50000 | AW47: 1004 | AX47: 10 | AY47: =IF(AU47="","",CONCATENATE(VLOOKUP(AU47,[1]DropConfig!$A:$F,3,FALSE),"×",AV47)) -> 修为×-50000 | AZ47: =IF(AW47="","",CONCATENATE(VLOOKUP(AW47,[1]DropConfig!$A:$F,3,FALSE),"×",AX47)) -> 仙缘宝券×10
A48: 144 | B48: =IF(Z48>0,_xlfn.TEXTJOIN(";",1,ROW(INDIRECT(CONCATENATE("",A48*100+1,":",A48*100+Z48,""))),102),"") -> 14401;102 | C48: 1 | D48: 7 | E48: 1 | F48: 0 | G48: 5 | H48: 10 | I48: 1003;1501 | J48: -50000;1 | K48: 80 | V48: 4323 | W48: 4101 | X48: [资源5]好感度礼物1×1 | Z48: =COUNTIF(EventLinkConfig!O:O,EventConfig!A48) -> 1 | AA48: =IF($Z48>=AA$3,$A48*100+AA$3,"") -> 14401 | AB48: =IF($Z48>=AB$3,$A48*100+AB$3,"") ->  | AC48: =IF($Z48>=AC$3,$A48*100+AC$3,"") ->  | AD48: =IF($Z48>=AD$3,$A48*100+AD$3,"") ->  | AE48: =IF($Z48>=AE$3,$A48*100+AE$3,"") ->  | AF48: =IF($Z48>=AF$3,$A48*100+AF$3,"") ->  | AG48: =IF($Z48>=AG$3,$A48*100+AG$3,"") ->  | AH48: =IF($Z48>=AH$3,$A48*100+AH$3,"") ->  | AI48: =IF($Z48>=AI$3,$A48*100+AI$3,"") ->  | AJ48: =IF($Z48>=AJ$3,$A48*100+AJ$3,"") ->  | AK48: =IF($Z48>=AK$3,$A48*100+AK$3,"") ->  | AL48: =IF($Z48>=AL$3,$A48*100+AL$3,"") ->  | AM48: =IF($Z48>=AM$3,$A48*100+AM$3,"") ->  | AN48: =IF($Z48>=AN$3,$A48*100+AN$3,"") ->  | AO48: =IF($Z48>=AO$3,$A48*100+AO$3,"") ->  | AP48: =IF($Z48>=AP$3,$A48*100+AP$3,"") ->  | AT48: 100 | AU48: 1003 | AV48: -50000 | AW48: 1501 | AX48: 1 | AY48: =IF(AU48="","",CONCATENATE(VLOOKUP(AU48,[1]DropConfig!$A:$F,3,FALSE),"×",AV48)) -> 修为×-50000 | AZ48: =IF(AW48="","",CONCATENATE(VLOOKUP(AW48,[1]DropConfig!$A:$F,3,FALSE),"×",AX48)) -> 好感度礼物1×1
A49: 145 | B49: =IF(Z49>0,_xlfn.TEXTJOIN(";",1,ROW(INDIRECT(CONCATENATE("",A49*100+1,":",A49*100+Z49,""))),102),"") -> 14501;102 | C49: 1 | D49: 7 | E49: 1 | F49: 0 | G49: 5 | H49: 11 | I49: 1003;1601 | J49: -50000;1 | K49: 60 | V49: 4324 | W49: 4102 | X49: [资源5]心情礼物1×1 | Z49: =COUNTIF(EventLinkConfig!O:O,EventConfig!A49) -> 1 | AA49: =IF($Z49>=AA$3,$A49*100+AA$3,"") -> 14501 | AB49: =IF($Z49>=AB$3,$A49*100+AB$3,"") ->  | AC49: =IF($Z49>=AC$3,$A49*100+AC$3,"") ->  | AD49: =IF($Z49>=AD$3,$A49*100+AD$3,"") ->  | AE49: =IF($Z49>=AE$3,$A49*100+AE$3,"") ->  | AF49: =IF($Z49>=AF$3,$A49*100+AF$3,"") ->  | AG49: =IF($Z49>=AG$3,$A49*100+AG$3,"") ->  | AH49: =IF($Z49>=AH$3,$A49*100+AH$3,"") ->  | AI49: =IF($Z49>=AI$3,$A49*100+AI$3,"") ->  | AJ49: =IF($Z49>=AJ$3,$A49*100+AJ$3,"") ->  | AK49: =IF($Z49>=AK$3,$A49*100+AK$3,"") ->  | AL49: =IF($Z49>=AL$3,$A49*100+AL$3,"") ->  | AM49: =IF($Z49>=AM$3,$A49*100+AM$3,"") ->  | AN49: =IF($Z49>=AN$3,$A49*100+AN$3,"") ->  | AO49: =IF($Z49>=AO$3,$A49*100+AO$3,"") ->  | AP49: =IF($Z49>=AP$3,$A49*100+AP$3,"") ->  | AT49: 100 | AU49: 1003 | AV49: -50000 | AW49: 1601 | AX49: 1 | AY49: =IF(AU49="","",CONCATENATE(VLOOKUP(AU49,[1]DropConfig!$A:$F,3,FALSE),"×",AV49)) -> 修为×-50000 | AZ49: =IF(AW49="","",CONCATENATE(VLOOKUP(AW49,[1]DropConfig!$A:$F,3,FALSE),"×",AX49)) -> 心情礼物1×1
AY50: =IF(AU50="","",CONCATENATE(VLOOKUP(AU50,[1]DropConfig!$A:$F,3,FALSE),"×",AV50)) ->  | AZ50: =IF(AW50="","",CONCATENATE(VLOOKUP(AW50,[1]DropConfig!$A:$F,3,FALSE),"×",AX50)) -> 
A51: 9999 | B51: =IF(A51="","",_xlfn.TEXTJOIN(";",1,AA51:AT51,102)) -> 999901;100;102 | C51: 99 | D51: 3 | E51: 1 | F51: 0 | G51: 1 | V51: 4325 | X51: 突破心魔失败鼓励 | Z51: =COUNTIF(EventLinkConfig!O:O,EventConfig!A51) -> 1 | AA51: =IF($Z51>=AA$3,$A51*100+AA$3,"") -> 999901 | AB51: =IF($Z51>=AB$3,$A51*100+AB$3,"") ->  | AC51: =IF($Z51>=AC$3,$A51*100+AC$3,"") ->  | AD51: =IF($Z51>=AD$3,$A51*100+AD$3,"") ->  | AE51: =IF($Z51>=AE$3,$A51*100+AE$3,"") ->  | AF51: =IF($Z51>=AF$3,$A51*100+AF$3,"") ->  | AG51: =IF($Z51>=AG$3,$A51*100+AG$3,"") ->  | AH51: =IF($Z51>=AH$3,$A51*100+AH$3,"") ->  | AI51: =IF($Z51>=AI$3,$A51*100+AI$3,"") ->  | AJ51: =IF($Z51>=AJ$3,$A51*100+AJ$3,"") ->  | AK51: =IF($Z51>=AK$3,$A51*100+AK$3,"") ->  | AL51: =IF($Z51>=AL$3,$A51*100+AL$3,"") ->  | AT51: 100 | AY51: =IF(AU51="","",CONCATENATE(VLOOKUP(AU51,[1]DropConfig!$A:$F,3,FALSE),"×",AV51)) ->  | AZ51: =IF(AW51="","",CONCATENATE(VLOOKUP(AW51,[1]DropConfig!$A:$F,3,FALSE),"×",AX51)) -> 
C52: 2 | D52: 3 | E52: 1 | F52: 0 | G52: 1 | X52: 挂机2 | Y52: 灵气 | Z52: =COUNTIF(EventLinkConfig!O:O,EventConfig!A52) -> 0 | AA52: =IF($Z52>=AA$3,$A52*100+AA$3,"") ->  | AB52: =IF($Z52>=AB$3,$A52*100+AB$3,"") ->  | AC52: =IF($Z52>=AC$3,$A52*100+AC$3,"") ->  | AD52: =IF($Z52>=AD$3,$A52*100+AD$3,"") ->  | AE52: =IF($Z52>=AE$3,$A52*100+AE$3,"") ->  | AF52: =IF($Z52>=AF$3,$A52*100+AF$3,"") ->  | AG52: =IF($Z52>=AG$3,$A52*100+AG$3,"") ->  | AH52: =IF($Z52>=AH$3,$A52*100+AH$3,"") ->  | AI52: =IF($Z52>=AI$3,$A52*100+AI$3,"") ->  | AJ52: =IF($Z52>=AJ$3,$A52*100+AJ$3,"") ->  | AK52: =IF($Z52>=AK$3,$A52*100+AK$3,"") ->  | AL52: =IF($Z52>=AL$3,$A52*100+AL$3,"") ->  | AT52: 100 | AY52: =IF(AU52="","",CONCATENATE(VLOOKUP(AU52,[1]DropConfig!$A:$F,3,FALSE),"×",AV52)) ->  | AZ52: =IF(AW52="","",CONCATENATE(VLOOKUP(AW52,[1]DropConfig!$A:$F,3,FALSE),"×",AX52)) -> 
C53: 2 | D53: 3 | E53: 1 | F53: 0 | G53: 1 | X53: 挂机3 | Y53: 玄晶 | Z53: =COUNTIF(EventLinkConfig!O:O,EventConfig!A53) -> 0 | AA53: =IF($Z53>=AA$3,$A53*100+AA$3,"") ->  | AB53: =IF($Z53>=AB$3,$A53*100+AB$3,"") ->  | AC53: =IF($Z53>=AC$3,$A53*100+AC$3,"") ->  | AD53: =IF($Z53>=AD$3,$A53*100+AD$3,"") ->  | AE53: =IF($Z53>=AE$3,$A53*100+AE$3,"") ->  | AF53: =IF($Z53>=AF$3,$A53*100+AF$3,"") ->  | AG53: =IF($Z53>=AG$3,$A53*100+AG$3,"") ->  | AH53: =IF($Z53>=AH$3,$A53*100+AH$3,"") ->  | AI53: =IF($Z53>=AI$3,$A53*100+AI$3,"") ->  | AJ53: =IF($Z53>=AJ$3,$A53*100+AJ$3,"") ->  | AK53: =IF($Z53>=AK$3,$A53*100+AK$3,"") ->  | AL53: =IF($Z53>=AL$3,$A53*100+AL$3,"") ->  | AT53: 100 | AY53: =IF(AU53="","",CONCATENATE(VLOOKUP(AU53,[1]DropConfig!$A:$F,3,FALSE),"×",AV53)) ->  | AZ53: =IF(AW53="","",CONCATENATE(VLOOKUP(AW53,[1]DropConfig!$A:$F,3,FALSE),"×",AX53)) -> 
C54: 2 | D54: 3 | E54: 1 | F54: 0 | G54: 1 | X54: 挂机4 | Y54: 灵石 | Z54: =COUNTIF(EventLinkConfig!O:O,EventConfig!A54) -> 0 | AA54: =IF($Z54>=AA$3,$A54*100+AA$3,"") ->  | AB54: =IF($Z54>=AB$3,$A54*100+AB$3,"") ->  | AC54: =IF($Z54>=AC$3,$A54*100+AC$3,"") ->  | AD54: =IF($Z54>=AD$3,$A54*100+AD$3,"") ->  | AE54: =IF($Z54>=AE$3,$A54*100+AE$3,"") ->  | AF54: =IF($Z54>=AF$3,$A54*100+AF$3,"") ->  | AG54: =IF($Z54>=AG$3,$A54*100+AG$3,"") ->  | AH54: =IF($Z54>=AH$3,$A54*100+AH$3,"") ->  | AI54: =IF($Z54>=AI$3,$A54*100+AI$3,"") ->  | AJ54: =IF($Z54>=AJ$3,$A54*100+AJ$3,"") ->  | AK54: =IF($Z54>=AK$3,$A54*100+AK$3,"") ->  | AL54: =IF($Z54>=AL$3,$A54*100+AL$3,"") ->  | AT54: 100 | AY54: =IF(AU54="","",CONCATENATE(VLOOKUP(AU54,[1]DropConfig!$A:$F,3,FALSE),"×",AV54)) ->  | AZ54: =IF(AW54="","",CONCATENATE(VLOOKUP(AW54,[1]DropConfig!$A:$F,3,FALSE),"×",AX54)) -> 
C55: 2 | D55: 3 | E55: 1 | F55: 0 | G55: 1 | X55: 挂机5 | Y55: 神识丹 | Z55: =COUNTIF(EventLinkConfig!O:O,EventConfig!A55) -> 0 | AA55: =IF($Z55>=AA$3,$A55*100+AA$3,"") ->  | AB55: =IF($Z55>=AB$3,$A55*100+AB$3,"") ->  | AC55: =IF($Z55>=AC$3,$A55*100+AC$3,"") ->  | AD55: =IF($Z55>=AD$3,$A55*100+AD$3,"") ->  | AE55: =IF($Z55>=AE$3,$A55*100+AE$3,"") ->  | AF55: =IF($Z55>=AF$3,$A55*100+AF$3,"") ->  | AG55: =IF($Z55>=AG$3,$A55*100+AG$3,"") ->  | AH55: =IF($Z55>=AH$3,$A55*100+AH$3,"") ->  | AI55: =IF($Z55>=AI$3,$A55*100+AI$3,"") ->  | AJ55: =IF($Z55>=AJ$3,$A55*100+AJ$3,"") ->  | AK55: =IF($Z55>=AK$3,$A55*100+AK$3,"") ->  | AL55: =IF($Z55>=AL$3,$A55*100+AL$3,"") ->  | AT55: 100 | AY55: =IF(AU55="","",CONCATENATE(VLOOKUP(AU55,[1]DropConfig!$A:$F,3,FALSE),"×",AV55)) ->  | AZ55: =IF(AW55="","",CONCATENATE(VLOOKUP(AW55,[1]DropConfig!$A:$F,3,FALSE),"×",AX55)) -> 
C56: 2 | D56: 3 | E56: 1 | F56: 0 | G56: 1 | X56: 挂机6 | Y56: 妖丹 | Z56: =COUNTIF(EventLinkConfig!O:O,EventConfig!A56) -> 0 | AA56: =IF($Z56>=AA$3,$A56*100+AA$3,"") ->  | AB56: =IF($Z56>=AB$3,$A56*100+AB$3,"") ->  | AC56: =IF($Z56>=AC$3,$A56*100+AC$3,"") ->  | AD56: =IF($Z56>=AD$3,$A56*100+AD$3,"") ->  | AE56: =IF($Z56>=AE$3,$A56*100+AE$3,"") ->  | AF56: =IF($Z56>=AF$3,$A56*100+AF$3,"") ->  | AG56: =IF($Z56>=AG$3,$A56*100+AG$3,"") ->  | AH56: =IF($Z56>=AH$3,$A56*100+AH$3,"") ->  | AI56: =IF($Z56>=AI$3,$A56*100+AI$3,"") ->  | AJ56: =IF($Z56>=AJ$3,$A56*100+AJ$3,"") ->  | AK56: =IF($Z56>=AK$3,$A56*100+AK$3,"") ->  | AL56: =IF($Z56>=AL$3,$A56*100+AL$3,"") ->  | AT56: 100 | AY56: =IF(AU56="","",CONCATENATE(VLOOKUP(AU56,[1]DropConfig!$A:$F,3,FALSE),"×",AV56)) ->  | AZ56: =IF(AW56="","",CONCATENATE(VLOOKUP(AW56,[1]DropConfig!$A:$F,3,FALSE),"×",AX56)) -> 
AY57: =IF(AU57="","",CONCATENATE(VLOOKUP(AU57,[1]DropConfig!$A:$F,3,FALSE),"×",AV57)) ->  | AZ57: =IF(AW57="","",CONCATENATE(VLOOKUP(AW57,[1]DropConfig!$A:$F,3,FALSE),"×",AX57)) -> 
A58: 10000 | B58: =IF(Z58>0,_xlfn.TEXTJOIN(";",1,ROW(INDIRECT(CONCATENATE("",A58*100+1,":",A58*100+Z58,""))),102),"") -> 1000001;1000002;1000003;1000004;1000005;1000006;1000007;1000008;1000009;1000010;1000011;1000012;1000013;1000014;1000015;1000016;1000017;1000018;1000019;1000020;1000021;102 | C58: 99 | D58: 1 | E58: 1 | F58: 10 | G58: 1 | I58: =_xlfn.TEXTJOIN(";",1,AU58,AW58) ->  | J58: =_xlfn.TEXTJOIN(";",1,AV58,AX58) ->  | M58: 1 | O58: =CONCATENATE(VLOOKUP(M58,[2]PlacesConfig!$A:$C,3,FALSE),IF(N58="",""," - "&VLOOKUP(N58,[2]SmallPlacesConfig!$A:$G,7,FALSE))) -> 北海 | P58: 1 | Q58: 1 | V58: 4259 | X58: 渡劫之殇 | Z58: =COUNTIF(EventLinkConfig!O:O,EventConfig!A58) -> 21 | AA58: =IF($Z58>=AA$3,$A58*100+AA$3,"") -> 1000001 | AB58: =IF($Z58>=AB$3,$A58*100+AB$3,"") -> 1000002 | AC58: =IF($Z58>=AC$3,$A58*100+AC$3,"") -> 1000003 | AD58: =IF($Z58>=AD$3,$A58*100+AD$3,"") -> 1000004 | AE58: =IF($Z58>=AE$3,$A58*100+AE$3,"") -> 1000005 | AF58: =IF($Z58>=AF$3,$A58*100+AF$3,"") -> 1000006 | AG58: =IF($Z58>=AG$3,$A58*100+AG$3,"") -> 1000007 | AH58: =IF($Z58>=AH$3,$A58*100+AH$3,"") -> 1000008 | AI58: =IF($Z58>=AI$3,$A58*100+AI$3,"") -> 1000009 | AJ58: =IF($Z58>=AJ$3,$A58*100+AJ$3,"") -> 1000010 | AK58: =IF($Z58>=AK$3,$A58*100+AK$3,"") -> 1000011 | AL58: =IF($Z58>=AL$3,$A58*100+AL$3,"") -> 1000012 | AM58: =IF($Z58>=AM$3,$A58*100+AM$3,"") -> 1000013 | AN58: =IF($Z58>=AN$3,$A58*100+AN$3,"") -> 1000014 | AO58: =IF($Z58>=AO$3,$A58*100+AO$3,"") -> 1000015 | AP58: =IF($Z58>=AP$3,$A58*100+AP$3,"") -> 1000016 | AY58: =IF(AU58="","",CONCATENATE(VLOOKUP(AU58,[1]DropConfig!$A:$F,3,FALSE),"×",AV58)) ->  | AZ58: =IF(AW58="","",CONCATENATE(VLOOKUP(AW58,[1]DropConfig!$A:$F,3,FALSE),"×",AX58)) -> 
A59: 10001 | B59: =IF(Z59>0,_xlfn.TEXTJOIN(";",1,ROW(INDIRECT(CONCATENATE("",A59*100+1,":",A59*100+Z59,""))),102),"") -> 1000101;1000102;1000103;1000104;102 | C59: 4 | D59: 1 | E59: 1 | F59: 10 | G59: 1 | I59: 12004;1701 | J59: 1;1 | M59: 1 | O59: =CONCATENATE(VLOOKUP(M59,[2]PlacesConfig!$A:$C,3,FALSE),IF(N59="",""," - "&VLOOKUP(N59,[2]SmallPlacesConfig!$A:$G,7,FALSE))) -> 北海 | P59: 3 | Q59: 1 | V59: 4028 | W59: 4103 | X59: 鲲鹏何在 | Y59: 神识未灭 | Z59: =COUNTIF(EventLinkConfig!O:O,EventConfig!A59) -> 4 | AA59: =IF($Z59>=AA$3,$A59*100+AA$3,"") -> 1000101 | AB59: =IF($Z59>=AB$3,$A59*100+AB$3,"") -> 1000102 | AC59: =IF($Z59>=AC$3,$A59*100+AC$3,"") -> 1000103 | AD59: =IF($Z59>=AD$3,$A59*100+AD$3,"") -> 1000104 | AE59: =IF($Z59>=AE$3,$A59*100+AE$3,"") ->  | AF59: =IF($Z59>=AF$3,$A59*100+AF$3,"") ->  | AG59: =IF($Z59>=AG$3,$A59*100+AG$3,"") ->  | AH59: =IF($Z59>=AH$3,$A59*100+AH$3,"") ->  | AI59: =IF($Z59>=AI$3,$A59*100+AI$3,"") ->  | AJ59: =IF($Z59>=AJ$3,$A59*100+AJ$3,"") ->  | AK59: =IF($Z59>=AK$3,$A59*100+AK$3,"") ->  | AL59: =IF($Z59>=AL$3,$A59*100+AL$3,"") ->  | AM59: =IF($Z59>=AM$3,$A59*100+AM$3,"") ->  | AN59: =IF($Z59>=AN$3,$A59*100+AN$3,"") ->  | AO59: =IF($Z59>=AO$3,$A59*100+AO$3,"") ->  | AP59: =IF($Z59>=AP$3,$A59*100+AP$3,"") ->  | AU59: 12004 | AV59: 1 | AW59: 1701 | AX59: 1 | AY59: =IF(AU59="","",CONCATENATE(VLOOKUP(AU59,[1]DropConfig!$A:$F,3,FALSE),"×",AV59)) -> 飞刃×1 | AZ59: =IF(AW59="","",CONCATENATE(VLOOKUP(AW59,[1]DropConfig!$A:$F,3,FALSE),"×",AX59)) -> 清识还元丹×1
A60: 10002 | B60: =IF(Z60>0,_xlfn.TEXTJOIN(";",1,ROW(INDIRECT(CONCATENATE("",A60*100+1,":",A60*100+Z60,""))),102),"") -> 1000201;1000202;1000203;102 | C60: 4 | D60: 1 | E60: 1 | F60: 10 | G60: 1 | I60: =_xlfn.TEXTJOIN(";",1,AU60,AW60) -> 12507;1701 | J60: =_xlfn.TEXTJOIN(";",1,AV60,AX60) -> 1;1 | M60: 1 | N60: 2 | O60: =CONCATENATE(VLOOKUP(M60,[2]PlacesConfig!$A:$C,3,FALSE),IF(N60="",""," - "&VLOOKUP(N60,[2]SmallPlacesConfig!$A:$G,7,FALSE))) -> 北海 - 秘境 | P60: 5 | Q60: 1 | V60: 4029 | W60: 4104 | X60: 北海迷径1 | Y60: 御剑而行 | Z60: =COUNTIF(EventLinkConfig!O:O,EventConfig!A60) -> 3 | AA60: =IF($Z60>=AA$3,$A60*100+AA$3,"") -> 1000201 | AB60: =IF($Z60>=AB$3,$A60*100+AB$3,"") -> 1000202 | AC60: =IF($Z60>=AC$3,$A60*100+AC$3,"") -> 1000203 | AD60: =IF($Z60>=AD$3,$A60*100+AD$3,"") ->  | AE60: =IF($Z60>=AE$3,$A60*100+AE$3,"") ->  | AF60: =IF($Z60>=AF$3,$A60*100+AF$3,"") ->  | AG60: =IF($Z60>=AG$3,$A60*100+AG$3,"") ->  | AH60: =IF($Z60>=AH$3,$A60*100+AH$3,"") ->  | AI60: =IF($Z60>=AI$3,$A60*100+AI$3,"") ->  | AJ60: =IF($Z60>=AJ$3,$A60*100+AJ$3,"") ->  | AK60: =IF($Z60>=AK$3,$A60*100+AK$3,"") ->  | AL60: =IF($Z60>=AL$3,$A60*100+AL$3,"") ->  | AM60: =IF($Z60>=AM$3,$A60*100+AM$3,"") ->  | AN60: =IF($Z60>=AN$3,$A60*100+AN$3,"") ->  | AO60: =IF($Z60>=AO$3,$A60*100+AO$3,"") ->  | AP60: =IF($Z60>=AP$3,$A60*100+AP$3,"") ->  | AU60: 12507 | AV60: 1 | AW60: 1701 | AX60: 1 | AY60: =IF(AU60="","",CONCATENATE(VLOOKUP(AU60,[1]DropConfig!$A:$F,3,FALSE),"×",AV60)) -> 极速齿轮×1 | AZ60: =IF(AW60="","",CONCATENATE(VLOOKUP(AW60,[1]DropConfig!$A:$F,3,FALSE),"×",AX60)) -> 清识还元丹×1
A61: 10003 | B61: =IF(Z61>0,_xlfn.TEXTJOIN(";",1,ROW(INDIRECT(CONCATENATE("",A61*100+1,":",A61*100+Z61,""))),102),"") -> 1000301;1000302;1000303;1000304;1000305;1000306;1000307;1000308;1000309;102 | C61: 4 | D61: 1 | E61: 1 | F61: 10 | G61: 1 | I61: 12005;1701 | J61: 1;2 | M61: 1 | N61: 2 | O61: =CONCATENATE(VLOOKUP(M61,[2]PlacesConfig!$A:$C,3,FALSE),IF(N61="",""," - "&VLOOKUP(N61,[2]SmallPlacesConfig!$A:$G,7,FALSE))) -> 北海 - 秘境 | P61: 7 | Q61: 1 | V61: 4030 | W61: 4105 | X61: 北海迷径2 | Y61: 雀笑大鹏 | Z61: =COUNTIF(EventLinkConfig!O:O,EventConfig!A61) -> 9 | AA61: =IF($Z61>=AA$3,$A61*100+AA$3,"") -> 1000301 | AB61: =IF($Z61>=AB$3,$A61*100+AB$3,"") -> 1000302 | AC61: =IF($Z61>=AC$3,$A61*100+AC$3,"") -> 1000303 | AD61: =IF($Z61>=AD$3,$A61*100+AD$3,"") -> 1000304 | AE61: =IF($Z61>=AE$3,$A61*100+AE$3,"") -> 1000305 | AF61: =IF($Z61>=AF$3,$A61*100+AF$3,"") -> 1000306 | AG61: =IF($Z61>=AG$3,$A61*100+AG$3,"") -> 1000307 | AH61: =IF($Z61>=AH$3,$A61*100+AH$3,"") -> 1000308 | AI61: =IF($Z61>=AI$3,$A61*100+AI$3,"") -> 1000309 | AJ61: =IF($Z61>=AJ$3,$A61*100+AJ$3,"") ->  | AK61: =IF($Z61>=AK$3,$A61*100+AK$3,"") ->  | AL61: =IF($Z61>=AL$3,$A61*100+AL$3,"") ->  | AM61: =IF($Z61>=AM$3,$A61*100+AM$3,"") ->  | AN61: =IF($Z61>=AN$3,$A61*100+AN$3,"") ->  | AO61: =IF($Z61>=AO$3,$A61*100+AO$3,"") ->  | AP61: =IF($Z61>=AP$3,$A61*100+AP$3,"") ->  | AU61: 12005 | AV61: 1 | AW61: 1701 | AX61: 2 | AY61: =IF(AU61="","",CONCATENATE(VLOOKUP(AU61,[1]DropConfig!$A:$F,3,FALSE),"×",AV61)) -> 金针×1 | AZ61: =IF(AW61="","",CONCATENATE(VLOOKUP(AW61,[1]DropConfig!$A:$F,3,FALSE),"×",AX61)) -> 清识还元丹×2
A62: 10004 | B62: =IF(Z62>0,_xlfn.TEXTJOIN(";",1,ROW(INDIRECT(CONCATENATE("",A62*100+1,":",A62*100+Z62,""))),102),"") -> 1000401;1000402;1000403;1000404;102 | C62: 4 | D62: 1 | E62: 1 | F62: 10 | G62: 1 | I62: 10001;1701 | J62: 1;2 | M62: 1 | N62: 2 | O62: =CONCATENATE(VLOOKUP(M62,[2]PlacesConfig!$A:$C,3,FALSE),IF(N62="",""," - "&VLOOKUP(N62,[2]SmallPlacesConfig!$A:$G,7,FALSE))) -> 北海 - 秘境 | P62: 9 | Q62: 1 | V62: 4031 | W62: 4106 | X62: 古径阵法 | Y62: 击败结界兽 | Z62: =COUNTIF(EventLinkConfig!O:O,EventConfig!A62) -> 4 | AA62: =IF($Z62>=AA$3,$A62*100+AA$3,"") -> 1000401 | AB62: =IF($Z62>=AB$3,$A62*100+AB$3,"") -> 1000402 | AC62: =IF($Z62>=AC$3,$A62*100+AC$3,"") -> 1000403 | AD62: =IF($Z62>=AD$3,$A62*100+AD$3,"") -> 1000404 | AE62: =IF($Z62>=AE$3,$A62*100+AE$3,"") ->  | AF62: =IF($Z62>=AF$3,$A62*100+AF$3,"") ->  | AG62: =IF($Z62>=AG$3,$A62*100+AG$3,"") ->  | AH62: =IF($Z62>=AH$3,$A62*100+AH$3,"") ->  | AI62: =IF($Z62>=AI$3,$A62*100+AI$3,"") ->  | AJ62: =IF($Z62>=AJ$3,$A62*100+AJ$3,"") ->  | AK62: =IF($Z62>=AK$3,$A62*100+AK$3,"") ->  | AL62: =IF($Z62>=AL$3,$A62*100+AL$3,"") ->  | AM62: =IF($Z62>=AM$3,$A62*100+AM$3,"") ->  | AN62: =IF($Z62>=AN$3,$A62*100+AN$3,"") ->  | AO62: =IF($Z62>=AO$3,$A62*100+AO$3,"") ->  | AP62: =IF($Z62>=AP$3,$A62*100+AP$3,"") ->  | AU62: 10001 | AV62: 1 | AW62: 1701 | AX62: 2 | AY62: =IF(AU62="","",CONCATENATE(VLOOKUP(AU62,[1]DropConfig!$A:$F,3,FALSE),"×",AV62)) -> 神龙鼎×1 | AZ62: =IF(AW62="","",CONCATENATE(VLOOKUP(AW62,[1]DropConfig!$A:$F,3,FALSE),"×",AX62)) -> 清识还元丹×2
A63: 10005 | B63: =IF(Z63>0,_xlfn.TEXTJOIN(";",1,ROW(INDIRECT(CONCATENATE("",A63*100+1,":",A63*100+Z63,""))),102),"") -> 1000501;1000502;1000503;1000504;1000505;1000506;1000507;1000508;1000509;1000510;1000511;1000512;1000513;1000514;102 | C63: 4 | D63: 1 | E63: 1 | F63: 10 | G63: 1 | I63: 12501;1701 | J63: 1;2 | M63: 1 | N63: 3 | O63: =CONCATENATE(VLOOKUP(M63,[2]PlacesConfig!$A:$C,3,FALSE),IF(N63="",""," - "&VLOOKUP(N63,[2]SmallPlacesConfig!$A:$G,7,FALSE))) -> 北海 - 浮岛 | P63: 11 | Q63: 1 | R63: 11 | V63: 4032 | W63: 4107 | X63: 浮空之岛1 | Y63: 初见疯道人 | Z63: =COUNTIF(EventLinkConfig!O:O,EventConfig!A63) -> 14 | AA63: =IF($Z63>=AA$3,$A63*100+AA$3,"") -> 1000501 | AB63: =IF($Z63>=AB$3,$A63*100+AB$3,"") -> 1000502 | AC63: =IF($Z63>=AC$3,$A63*100+AC$3,"") -> 1000503 | AD63: =IF($Z63>=AD$3,$A63*100+AD$3,"") -> 1000504 | AE63: =IF($Z63>=AE$3,$A63*100+AE$3,"") -> 1000505 | AF63: =IF($Z63>=AF$3,$A63*100+AF$3,"") -> 1000506 | AG63: =IF($Z63>=AG$3,$A63*100+AG$3,"") -> 1000507 | AH63: =IF($Z63>=AH$3,$A63*100+AH$3,"") -> 1000508 | AI63: =IF($Z63>=AI$3,$A63*100+AI$3,"") -> 1000509 | AJ63: =IF($Z63>=AJ$3,$A63*100+AJ$3,"") -> 1000510 | AK63: =IF($Z63>=AK$3,$A63*100+AK$3,"") -> 1000511 | AL63: =IF($Z63>=AL$3,$A63*100+AL$3,"") -> 1000512 | AM63: =IF($Z63>=AM$3,$A63*100+AM$3,"") -> 1000513 | AN63: =IF($Z63>=AN$3,$A63*100+AN$3,"") -> 1000514 | AO63: =IF($Z63>=AO$3,$A63*100+AO$3,"") ->  | AP63: =IF($Z63>=AP$3,$A63*100+AP$3,"") ->  | AU63: 12501 | AV63: 1 | AW63: 1701 | AX63: 2 | AY63: =IF(AU63="","",CONCATENATE(VLOOKUP(AU63,[1]DropConfig!$A:$F,3,FALSE),"×",AV63)) -> 天衍星辰诀×1 | AZ63: =IF(AW63="","",CONCATENATE(VLOOKUP(AW63,[1]DropConfig!$A:$F,3,FALSE),"×",AX63)) -> 清识还元丹×2
A64: 10006 | B64: =IF(Z64>0,_xlfn.TEXTJOIN(";",1,ROW(INDIRECT(CONCATENATE("",A64*100+1,":",A64*100+Z64,""))),102),"") -> 1000601;1000602;1000603;1000604;1000605;1000606;102 | C64: 4 | D64: 1 | E64: 1 | F64: 10 | G64: 1 | I64: 12009;1701 | J64: 1;2 | M64: 1 | N64: 3 | O64: =CONCATENATE(VLOOKUP(M64,[2]PlacesConfig!$A:$C,3,FALSE),IF(N64="",""," - "&VLOOKUP(N64,[2]SmallPlacesConfig!$A:$G,7,FALSE))) -> 北海 - 浮岛 | P64: 13 | Q64: 1 | V64: 4033 | W64: 4108 | X64: 浮空之岛2 | Y64: 筑基中期 | Z64: =COUNTIF(EventLinkConfig!O:O,EventConfig!A64) -> 6 | AA64: =IF($Z64>=AA$3,$A64*100+AA$3,"") -> 1000601 | AB64: =IF($Z64>=AB$3,$A64*100+AB$3,"") -> 1000602 | AC64: =IF($Z64>=AC$3,$A64*100+AC$3,"") -> 1000603 | AD64: =IF($Z64>=AD$3,$A64*100+AD$3,"") -> 1000604 | AE64: =IF($Z64>=AE$3,$A64*100+AE$3,"") -> 1000605 | AF64: =IF($Z64>=AF$3,$A64*100+AF$3,"") -> 1000606 | AG64: =IF($Z64>=AG$3,$A64*100+AG$3,"") ->  | AH64: =IF($Z64>=AH$3,$A64*100+AH$3,"") ->  | AI64: =IF($Z64>=AI$3,$A64*100+AI$3,"") ->  | AJ64: =IF($Z64>=AJ$3,$A64*100+AJ$3,"") ->  | AK64: =IF($Z64>=AK$3,$A64*100+AK$3,"") ->  | AL64: =IF($Z64>=AL$3,$A64*100+AL$3,"") ->  | AM64: =IF($Z64>=AM$3,$A64*100+AM$3,"") ->  | AN64: =IF($Z64>=AN$3,$A64*100+AN$3,"") ->  | AO64: =IF($Z64>=AO$3,$A64*100+AO$3,"") ->  | AP64: =IF($Z64>=AP$3,$A64*100+AP$3,"") ->  | AU64: 12009 | AV64: 1 | AW64: 1701 | AX64: 2 | AY64: =IF(AU64="","",CONCATENATE(VLOOKUP(AU64,[1]DropConfig!$A:$F,3,FALSE),"×",AV64)) -> 水球×1 | AZ64: =IF(AW64="","",CONCATENATE(VLOOKUP(AW64,[1]DropConfig!$A:$F,3,FALSE),"×",AX64)) -> 清识还元丹×2
A65: 10007 | B65: =IF(Z65>0,_xlfn.TEXTJOIN(";",1,ROW(INDIRECT(CONCATENATE("",A65*100+1,":",A65*100+Z65,""))),102),"") -> 1000701;1000702;1000703;1000704;1000705;102 | C65: 4 | D65: 1 | E65: 1 | F65: 10 | G65: 1 | I65: 12506;1701 | J65: 1;2 | M65: 1 | N65: 3 | O65: =CONCATENATE(VLOOKUP(M65,[2]PlacesConfig!$A:$C,3,FALSE),IF(N65="",""," - "&VLOOKUP(N65,[2]SmallPlacesConfig!$A:$G,7,FALSE))) -> 北海 - 浮岛 | P65: 16 | Q65: 1 | V65: 4034 | W65: 4109 | X65: 风中洞府1 | Y65: 击败痴道人 | Z65: =COUNTIF(EventLinkConfig!O:O,EventConfig!A65) -> 5 | AA65: =IF($Z65>=AA$3,$A65*100+AA$3,"") -> 1000701 | AB65: =IF($Z65>=AB$3,$A65*100+AB$3,"") -> 1000702 | AC65: =IF($Z65>=AC$3,$A65*100+AC$3,"") -> 1000703 | AD65: =IF($Z65>=AD$3,$A65*100+AD$3,"") -> 1000704 | AE65: =IF($Z65>=AE$3,$A65*100+AE$3,"") -> 1000705 | AF65: =IF($Z65>=AF$3,$A65*100+AF$3,"") ->  | AG65: =IF($Z65>=AG$3,$A65*100+AG$3,"") ->  | AH65: =IF($Z65>=AH$3,$A65*100+AH$3,"") ->  | AI65: =IF($Z65>=AI$3,$A65*100+AI$3,"") ->  | AJ65: =IF($Z65>=AJ$3,$A65*100+AJ$3,"") ->  | AK65: =IF($Z65>=AK$3,$A65*100+AK$3,"") ->  | AL65: =IF($Z65>=AL$3,$A65*100+AL$3,"") ->  | AM65: =IF($Z65>=AM$3,$A65*100+AM$3,"") ->  | AN65: =IF($Z65>=AN$3,$A65*100+AN$3,"") ->  | AO65: =IF($Z65>=AO$3,$A65*100+AO$3,"") ->  | AP65: =IF($Z65>=AP$3,$A65*100+AP$3,"") ->  | AU65: 12506 | AV65: 1 | AW65: 1701 | AX65: 2 | AY65: =IF(AU65="","",CONCATENATE(VLOOKUP(AU65,[1]DropConfig!$A:$F,3,FALSE),"×",AV65)) -> 乾坤巨灵诀×1 | AZ65: =IF(AW65="","",CONCATENATE(VLOOKUP(AW65,[1]DropConfig!$A:$F,3,FALSE),"×",AX65)) -> 清识还元丹×2
A66: 10008 | B66: =IF(Z66>0,_xlfn.TEXTJOIN(";",1,ROW(INDIRECT(CONCATENATE("",A66*100+1,":",A66*100+Z66,""))),102),"") -> 1000801;1000802;1000803;1000804;1000805;1000806;1000807;1000808;1000809;1000810;1000811;1000812;1000813;1000814;102 | C66: 4 | D66: 1 | E66: 1 | F66: 10 | G66: 1 | I66: 10003;1701 | J66: 1;2 | M66: 1 | N66: 3 | O66: =CONCATENATE(VLOOKUP(M66,[2]PlacesConfig!$A:$C,3,FALSE),IF(N66="",""," - "&VLOOKUP(N66,[2]SmallPlacesConfig!$A:$G,7,FALSE))) -> 北海 - 浮岛 | P66: 19 | Q66: 1 | V66: 4035 | W66: 4110 | X66: 风中洞府2 | Y66: 疯痴相聚 | Z66: =COUNTIF(EventLinkConfig!O:O,EventConfig!A66) -> 14 | AA66: =IF($Z66>=AA$3,$A66*100+AA$3,"") -> 1000801 | AB66: =IF($Z66>=AB$3,$A66*100+AB$3,"") -> 1000802 | AC66: =IF($Z66>=AC$3,$A66*100+AC$3,"") -> 1000803 | AD66: =IF($Z66>=AD$3,$A66*100+AD$3,"") -> 1000804 | AE66: =IF($Z66>=AE$3,$A66*100+AE$3,"") -> 1000805 | AF66: =IF($Z66>=AF$3,$A66*100+AF$3,"") -> 1000806 | AG66: =IF($Z66>=AG$3,$A66*100+AG$3,"") -> 1000807 | AH66: =IF($Z66>=AH$3,$A66*100+AH$3,"") -> 1000808 | AI66: =IF($Z66>=AI$3,$A66*100+AI$3,"") -> 1000809 | AJ66: =IF($Z66>=AJ$3,$A66*100+AJ$3,"") -> 1000810 | AK66: =IF($Z66>=AK$3,$A66*100+AK$3,"") -> 1000811 | AL66: =IF($Z66>=AL$3,$A66*100+AL$3,"") -> 1000812 | AM66: =IF($Z66>=AM$3,$A66*100+AM$3,"") -> 1000813 | AN66: =IF($Z66>=AN$3,$A66*100+AN$3,"") -> 1000814 | AO66: =IF($Z66>=AO$3,$A66*100+AO$3,"") ->  | AP66: =IF($Z66>=AP$3,$A66*100+AP$3,"") ->  | AU66: 10003 | AV66: 1 | AW66: 1701 | AX66: 2 | AY66: =IF(AU66="","",CONCATENATE(VLOOKUP(AU66,[1]DropConfig!$A:$F,3,FALSE),"×",AV66)) -> 翡翠葫芦×1 | AZ66: =IF(AW66="","",CONCATENATE(VLOOKUP(AW66,[1]DropConfig!$A:$F,3,FALSE),"×",AX66)) -> 清识还元丹×2
A67: 10009 | B67: =IF(Z67>0,_xlfn.TEXTJOIN(";",1,ROW(INDIRECT(CONCATENATE("",A67*100+1,":",A67*100+Z67,""))),102),"") -> 1000901;1000902;1000903;102 | C67: 4 | D67: 1 | E67: 1 | F67: 10 | G67: 1 | I67: 12010;1702 | J67: 1;1 | M67: 1 | N67: 3 | O67: =CONCATENATE(VLOOKUP(M67,[2]PlacesConfig!$A:$C,3,FALSE),IF(N67="",""," - "&VLOOKUP(N67,[2]SmallPlacesConfig!$A:$G,7,FALSE))) -> 北海 - 浮岛 | P67: 21 | Q67: 1 | R67: 21 | V67: 4036 | W67: 4111 | X67: 风灵之力 | Y67: 筑基后期 | Z67: =COUNTIF(EventLinkConfig!O:O,EventConfig!A67) -> 3 | AA67: =IF($Z67>=AA$3,$A67*100+AA$3,"") -> 1000901 | AB67: =IF($Z67>=AB$3,$A67*100+AB$3,"") -> 1000902 | AC67: =IF($Z67>=AC$3,$A67*100+AC$3,"") -> 1000903 | AD67: =IF($Z67>=AD$3,$A67*100+AD$3,"") ->  | AE67: =IF($Z67>=AE$3,$A67*100+AE$3,"") ->  | AF67: =IF($Z67>=AF$3,$A67*100+AF$3,"") ->  | AG67: =IF($Z67>=AG$3,$A67*100+AG$3,"") ->  | AH67: =IF($Z67>=AH$3,$A67*100+AH$3,"") ->  | AI67: =IF($Z67>=AI$3,$A67*100+AI$3,"") ->  | AJ67: =IF($Z67>=AJ$3,$A67*100+AJ$3,"") ->  | AK67: =IF($Z67>=AK$3,$A67*100+AK$3,"") ->  | AL67: =IF($Z67>=AL$3,$A67*100+AL$3,"") ->  | AM67: =IF($Z67>=AM$3,$A67*100+AM$3,"") ->  | AN67: =IF($Z67>=AN$3,$A67*100+AN$3,"") ->  | AO67: =IF($Z67>=AO$3,$A67*100+AO$3,"") ->  | AP67: =IF($Z67>=AP$3,$A67*100+AP$3,"") ->  | AU67: 12010 | AV67: 1 | AW67: 1702 | AX67: 1 | AY67: =IF(AU67="","",CONCATENATE(VLOOKUP(AU67,[1]DropConfig!$A:$F,3,FALSE),"×",AV67)) -> 冰刀×1 | AZ67: =IF(AW67="","",CONCATENATE(VLOOKUP(AW67,[1]DropConfig!$A:$F,3,FALSE),"×",AX67)) -> 清识还元丹×1
A68: 10010 | B68: =IF(Z68>0,_xlfn.TEXTJOIN(";",1,ROW(INDIRECT(CONCATENATE("",A68*100+1,":",A68*100+Z68,""))),102),"") -> 1001001;1001002;1001003;1001004;1001005;1001006;102 | C68: 4 | D68: 1 | E68: 1 | F68: 10 | G68: 1 | I68: 1301;1702 | J68: 1;1 | M68: 1 | N68: 4 | O68: =CONCATENATE(VLOOKUP(M68,[2]PlacesConfig!$A:$C,3,FALSE),IF(N68="",""," - "&VLOOKUP(N68,[2]SmallPlacesConfig!$A:$G,7,FALSE))) -> 北海 - 深处 | P68: 25 | Q68: 1 | V68: 4037 | W68: 4112 | X68: 北海深处1 | Y68: 妖兽横行 | Z68: =COUNTIF(EventLinkConfig!O:O,EventConfig!A68) -> 6 | AA68: =IF($Z68>=AA$3,$A68*100+AA$3,"") -> 1001001 | AB68: =IF($Z68>=AB$3,$A68*100+AB$3,"") -> 1001002 | AC68: =IF($Z68>=AC$3,$A68*100+AC$3,"") -> 1001003 | AD68: =IF($Z68>=AD$3,$A68*100+AD$3,"") -> 1001004 | AE68: =IF($Z68>=AE$3,$A68*100+AE$3,"") -> 1001005 | AF68: =IF($Z68>=AF$3,$A68*100+AF$3,"") -> 1001006 | AG68: =IF($Z68>=AG$3,$A68*100+AG$3,"") ->  | AH68: =IF($Z68>=AH$3,$A68*100+AH$3,"") ->  | AI68: =IF($Z68>=AI$3,$A68*100+AI$3,"") ->  | AJ68: =IF($Z68>=AJ$3,$A68*100+AJ$3,"") ->  | AK68: =IF($Z68>=AK$3,$A68*100+AK$3,"") ->  | AL68: =IF($Z68>=AL$3,$A68*100+AL$3,"") ->  | AM68: =IF($Z68>=AM$3,$A68*100+AM$3,"") ->  | AN68: =IF($Z68>=AN$3,$A68*100+AN$3,"") ->  | AO68: =IF($Z68>=AO$3,$A68*100+AO$3,"") ->  | AP68: =IF($Z68>=AP$3,$A68*100+AP$3,"") ->  | AU68: 1301 | AV68: 1 | AW68: 1702 | AX68: 1 | AY68: =IF(AU68="","",CONCATENATE(VLOOKUP(AU68,[1]DropConfig!$A:$F,3,FALSE),"×",AV68)) -> 筑基丹×1 | AZ68: =IF(AW68="","",CONCATENATE(VLOOKUP(AW68,[1]DropConfig!$A:$F,3,FALSE),"×",AX68)) -> 清识还元丹×1
A69: 10011 | B69: =IF(Z69>0,_xlfn.TEXTJOIN(";",1,ROW(INDIRECT(CONCATENATE("",A69*100+1,":",A69*100+Z69,""))),102),"") -> 1001101;1001102;1001103;1001104;1001105;1001106;1001107;1001108;1001109;1001110;1001111;1001112;102 | C69: 4 | D69: 1 | E69: 1 | F69: 10 | G69: 1 | I69: 12502;1702 | J69: 1;1 | M69: 1 | N69: 4 | O69: =CONCATENATE(VLOOKUP(M69,[2]PlacesConfig!$A:$C,3,FALSE),IF(N69="",""," - "&VLOOKUP(N69,[2]SmallPlacesConfig!$A:$G,7,FALSE))) -> 北海 - 深处 | P69: 31 | Q69: 1 | R69: 31 | V69: 4038 | W69: 4113 | X69: 北海深处2 | Y69: 遇见鲲鹏 | Z69: =COUNTIF(EventLinkConfig!O:O,EventConfig!A69) -> 12 | AA69: =IF($Z69>=AA$3,$A69*100+AA$3,"") -> 1001101 | AB69: =IF($Z69>=AB$3,$A69*100+AB$3,"") -> 1001102 | AC69: =IF($Z69>=AC$3,$A69*100+AC$3,"") -> 1001103 | AD69: =IF($Z69>=AD$3,$A69*100+AD$3,"") -> 1001104 | AE69: =IF($Z69>=AE$3,$A69*100+AE$3,"") -> 1001105 | AF69: =IF($Z69>=AF$3,$A69*100+AF$3,"") -> 1001106 | AG69: =IF($Z69>=AG$3,$A69*100+AG$3,"") -> 1001107 | AH69: =IF($Z69>=AH$3,$A69*100+AH$3,"") -> 1001108 | AI69: =IF($Z69>=AI$3,$A69*100+AI$3,"") -> 1001109 | AJ69: =IF($Z69>=AJ$3,$A69*100+AJ$3,"") -> 1001110 | AK69: =IF($Z69>=AK$3,$A69*100+AK$3,"") -> 1001111 | AL69: =IF($Z69>=AL$3,$A69*100+AL$3,"") -> 1001112 | AM69: =IF($Z69>=AM$3,$A69*100+AM$3,"") ->  | AN69: =IF($Z69>=AN$3,$A69*100+AN$3,"") ->  | AO69: =IF($Z69>=AO$3,$A69*100+AO$3,"") ->  | AP69: =IF($Z69>=AP$3,$A69*100+AP$3,"") ->  | AU69: 12502 | AV69: 1 | AW69: 1702 | AX69: 1 | AY69: =IF(AU69="","",CONCATENATE(VLOOKUP(AU69,[1]DropConfig!$A:$F,3,FALSE),"×",AV69)) -> 法宝秘籍×1 | AZ69: =IF(AW69="","",CONCATENATE(VLOOKUP(AW69,[1]DropConfig!$A:$F,3,FALSE),"×",AX69)) -> 清识还元丹×1
A70: 10012 | B70: =IF(Z70>0,_xlfn.TEXTJOIN(";",1,ROW(INDIRECT(CONCATENATE("",A70*100+1,":",A70*100+Z70,""))),102),"") -> 1001201;1001202;1001203;102 | C70: 4 | D70: 1 | E70: 1 | F70: 10 | G70: 1 | I70: 12014;1702 | J70: 1;1 | M70: 2 | N70: 5 | O70: =CONCATENATE(VLOOKUP(M70,[2]PlacesConfig!$A:$C,3,FALSE),IF(N70="",""," - "&VLOOKUP(N70,[2]SmallPlacesConfig!$A:$G,7,FALSE))) -> 尧之都 - 主城 | P70: 34 | Q70: 1 | V70: 4039 | W70: 4114 | X70: 尧都寻踪 | Z70: =COUNTIF(EventLinkConfig!O:O,EventConfig!A70) -> 3 | AA70: =IF($Z70>=AA$3,$A70*100+AA$3,"") -> 1001201 | AB70: =IF($Z70>=AB$3,$A70*100+AB$3,"") -> 1001202 | AC70: =IF($Z70>=AC$3,$A70*100+AC$3,"") -> 1001203 | AD70: =IF($Z70>=AD$3,$A70*100+AD$3,"") ->  | AE70: =IF($Z70>=AE$3,$A70*100+AE$3,"") ->  | AF70: =IF($Z70>=AF$3,$A70*100+AF$3,"") ->  | AG70: =IF($Z70>=AG$3,$A70*100+AG$3,"") ->  | AH70: =IF($Z70>=AH$3,$A70*100+AH$3,"") ->  | AI70: =IF($Z70>=AI$3,$A70*100+AI$3,"") ->  | AJ70: =IF($Z70>=AJ$3,$A70*100+AJ$3,"") ->  | AK70: =IF($Z70>=AK$3,$A70*100+AK$3,"") ->  | AL70: =IF($Z70>=AL$3,$A70*100+AL$3,"") ->  | AM70: =IF($Z70>=AM$3,$A70*100+AM$3,"") ->  | AN70: =IF($Z70>=AN$3,$A70*100+AN$3,"") ->  | AO70: =IF($Z70>=AO$3,$A70*100+AO$3,"") ->  | AP70: =IF($Z70>=AP$3,$A70*100+AP$3,"") ->  | AU70: 12014 | AV70: 1 | AW70: 1702 | AX70: 1 | AY70: =IF(AU70="","",CONCATENATE(VLOOKUP(AU70,[1]DropConfig!$A:$F,3,FALSE),"×",AV70)) -> 竹刺×1 | AZ70: =IF(AW70="","",CONCATENATE(VLOOKUP(AW70,[1]DropConfig!$A:$F,3,FALSE),"×",AX70)) -> 清识还元丹×1
A71: 10013 | B71: =IF(Z71>0,_xlfn.TEXTJOIN(";",1,ROW(INDIRECT(CONCATENATE("",A71*100+1,":",A71*100+Z71,""))),102),"") -> 1001301;1001302;1001303;1001304;1001305;1001306;1001307;1001308;1001309;1001310;1001311;1001312;102 | C71: 4 | D71: 1 | E71: 1 | F71: 10 | G71: 1 | I71: 12508;1702 | J71: 1;1 | M71: 2 | N71: 5 | O71: =CONCATENATE(VLOOKUP(M71,[2]PlacesConfig!$A:$C,3,FALSE),IF(N71="",""," - "&VLOOKUP(N71,[2]SmallPlacesConfig!$A:$G,7,FALSE))) -> 尧之都 - 主城 | P71: 37 | Q71: 1 | V71: 4040 | W71: 4115 | X71: 尧之都 | Y71: 尧让天下 | Z71: =COUNTIF(EventLinkConfig!O:O,EventConfig!A71) -> 12 | AA71: =IF($Z71>=AA$3,$A71*100+AA$3,"") -> 1001301 | AB71: =IF($Z71>=AB$3,$A71*100+AB$3,"") -> 1001302 | AC71: =IF($Z71>=AC$3,$A71*100+AC$3,"") -> 1001303 | AD71: =IF($Z71>=AD$3,$A71*100+AD$3,"") -> 1001304 | AE71: =IF($Z71>=AE$3,$A71*100+AE$3,"") -> 1001305 | AF71: =IF($Z71>=AF$3,$A71*100+AF$3,"") -> 1001306 | AG71: =IF($Z71>=AG$3,$A71*100+AG$3,"") -> 1001307 | AH71: =IF($Z71>=AH$3,$A71*100+AH$3,"") -> 1001308 | AI71: =IF($Z71>=AI$3,$A71*100+AI$3,"") -> 1001309 | AJ71: =IF($Z71>=AJ$3,$A71*100+AJ$3,"") -> 1001310 | AK71: =IF($Z71>=AK$3,$A71*100+AK$3,"") -> 1001311 | AL71: =IF($Z71>=AL$3,$A71*100+AL$3,"") -> 1001312 | AM71: =IF($Z71>=AM$3,$A71*100+AM$3,"") ->  | AN71: =IF($Z71>=AN$3,$A71*100+AN$3,"") ->  | AO71: =IF($Z71>=AO$3,$A71*100+AO$3,"") ->  | AP71: =IF($Z71>=AP$3,$A71*100+AP$3,"") ->  | AU71: 12508 | AV71: 1 | AW71: 1702 | AX71: 1 | AY71: =IF(AU71="","",CONCATENATE(VLOOKUP(AU71,[1]DropConfig!$A:$F,3,FALSE),"×",AV71)) -> 太虚剑意×1 | AZ71: =IF(AW71="","",CONCATENATE(VLOOKUP(AW71,[1]DropConfig!$A:$F,3,FALSE),"×",AX71)) -> 清识还元丹×1
A72: 10014 | B72: =IF(Z72>0,_xlfn.TEXTJOIN(";",1,ROW(INDIRECT(CONCATENATE("",A72*100+1,":",A72*100+Z72,""))),102),"") -> 1001401;1001402;1001403;1001404;1001405;1001406;1001407;1001408;1001409;1001410;1001411;1001412;1001413;1001414;1001415;1001416;102 | C72: 4 | D72: 1 | E72: 1 | F72: 10 | G72: 1 | I72: 10006;1702 | J72: 1;1 | M72: 2 | N72: 6 | O72: =CONCATENATE(VLOOKUP(M72,[2]PlacesConfig!$A:$C,3,FALSE),IF(N72="",""," - "&VLOOKUP(N72,[2]SmallPlacesConfig!$A:$G,7,FALSE))) -> 尧之都 - 山林 | P72: 41 | Q72: 1 | R72: 41 | V72: 4041 | W72: 4116 | X72: 山林清音 | Y72: 访贤许由 | Z72: =COUNTIF(EventLinkConfig!O:O,EventConfig!A72) -> 16 | AA72: =IF($Z72>=AA$3,$A72*100+AA$3,"") -> 1001401 | AB72: =IF($Z72>=AB$3,$A72*100+AB$3,"") -> 1001402 | AC72: =IF($Z72>=AC$3,$A72*100+AC$3,"") -> 1001403 | AD72: =IF($Z72>=AD$3,$A72*100+AD$3,"") -> 1001404 | AE72: =IF($Z72>=AE$3,$A72*100+AE$3,"") -> 1001405 | AF72: =IF($Z72>=AF$3,$A72*100+AF$3,"") -> 1001406 | AG72: =IF($Z72>=AG$3,$A72*100+AG$3,"") -> 1001407 | AH72: =IF($Z72>=AH$3,$A72*100+AH$3,"") -> 1001408 | AI72: =IF($Z72>=AI$3,$A72*100+AI$3,"") -> 1001409 | AJ72: =IF($Z72>=AJ$3,$A72*100+AJ$3,"") -> 1001410 | AK72: =IF($Z72>=AK$3,$A72*100+AK$3,"") -> 1001411 | AL72: =IF($Z72>=AL$3,$A72*100+AL$3,"") -> 1001412 | AM72: =IF($Z72>=AM$3,$A72*100+AM$3,"") -> 1001413 | AN72: =IF($Z72>=AN$3,$A72*100+AN$3,"") -> 1001414 | AO72: =IF($Z72>=AO$3,$A72*100+AO$3,"") -> 1001415 | AP72: =IF($Z72>=AP$3,$A72*100+AP$3,"") -> 1001416 | AU72: 10006 | AV72: 1 | AW72: 1702 | AX72: 1 | AY72: =IF(AU72="","",CONCATENATE(VLOOKUP(AU72,[1]DropConfig!$A:$F,3,FALSE),"×",AV72)) -> 九幽镇魂瓶×1 | AZ72: =IF(AW72="","",CONCATENATE(VLOOKUP(AW72,[1]DropConfig!$A:$F,3,FALSE),"×",AX72)) -> 清识还元丹×1
A73: 10015 | B73: =IF(Z73>0,_xlfn.TEXTJOIN(";",1,ROW(INDIRECT(CONCATENATE("",A73*100+1,":",A73*100+Z73,""))),102),"") -> 1001501;1001502;1001503;1001504;1001505;1001506;1001507;1001508;102 | C73: 4 | D73: 1 | E73: 1 | F73: 10 | G73: 1 | I73: 12015;1702 | J73: 1;1 | M73: 2 | N73: 6 | O73: =CONCATENATE(VLOOKUP(M73,[2]PlacesConfig!$A:$C,3,FALSE),IF(N73="",""," - "&VLOOKUP(N73,[2]SmallPlacesConfig!$A:$G,7,FALSE))) -> 尧之都 - 山林 | P73: 46 | Q73: 1 | V73: 4042 | W73: 4117 | X73: 山中劳作 | Y73: 割草喝茶 | Z73: =COUNTIF(EventLinkConfig!O:O,EventConfig!A73) -> 8 | AA73: =IF($Z73>=AA$3,$A73*100+AA$3,"") -> 1001501 | AB73: =IF($Z73>=AB$3,$A73*100+AB$3,"") -> 1001502 | AC73: =IF($Z73>=AC$3,$A73*100+AC$3,"") -> 1001503 | AD73: =IF($Z73>=AD$3,$A73*100+AD$3,"") -> 1001504 | AE73: =IF($Z73>=AE$3,$A73*100+AE$3,"") -> 1001505 | AF73: =IF($Z73>=AF$3,$A73*100+AF$3,"") -> 1001506 | AG73: =IF($Z73>=AG$3,$A73*100+AG$3,"") -> 1001507 | AH73: =IF($Z73>=AH$3,$A73*100+AH$3,"") -> 1001508 | AI73: =IF($Z73>=AI$3,$A73*100+AI$3,"") ->  | AJ73: =IF($Z73>=AJ$3,$A73*100+AJ$3,"") ->  | AK73: =IF($Z73>=AK$3,$A73*100+AK$3,"") ->  | AL73: =IF($Z73>=AL$3,$A73*100+AL$3,"") ->  | AM73: =IF($Z73>=AM$3,$A73*100+AM$3,"") ->  | AN73: =IF($Z73>=AN$3,$A73*100+AN$3,"") ->  | AO73: =IF($Z73>=AO$3,$A73*100+AO$3,"") ->  | AP73: =IF($Z73>=AP$3,$A73*100+AP$3,"") ->  | AU73: 12015 | AV73: 1 | AW73: 1702 | AX73: 1 | AY73: =IF(AU73="","",CONCATENATE(VLOOKUP(AU73,[1]DropConfig!$A:$F,3,FALSE),"×",AV73)) -> 飞叶×1 | AZ73: =IF(AW73="","",CONCATENATE(VLOOKUP(AW73,[1]DropConfig!$A:$F,3,FALSE),"×",AX73)) -> 清识还元丹×1
A74: 10016 | B74: =IF(Z74>0,_xlfn.TEXTJOIN(";",1,ROW(INDIRECT(CONCATENATE("",A74*100+1,":",A74*100+Z74,""))),102),"") -> 1001601;1001602;1001603;1001604;1001605;1001606;1001607;1001608;102 | C74: 4 | D74: 1 | E74: 1 | F74: 10 | G74: 1 | I74: 12503;1702 | J74: 1;2 | M74: 2 | N74: 6 | O74: =CONCATENATE(VLOOKUP(M74,[2]PlacesConfig!$A:$C,3,FALSE),IF(N74="",""," - "&VLOOKUP(N74,[2]SmallPlacesConfig!$A:$G,7,FALSE))) -> 尧之都 - 山林 | P74: 51 | Q74: 1 | R74: 51 | V74: 4043 | W74: 4118 | X74: 风起夜战 | Y74: 再来一杯 | Z74: =COUNTIF(EventLinkConfig!O:O,EventConfig!A74) -> 8 | AA74: =IF($Z74>=AA$3,$A74*100+AA$3,"") -> 1001601 | AB74: =IF($Z74>=AB$3,$A74*100+AB$3,"") -> 1001602 | AC74: =IF($Z74>=AC$3,$A74*100+AC$3,"") -> 1001603 | AD74: =IF($Z74>=AD$3,$A74*100+AD$3,"") -> 1001604 | AE74: =IF($Z74>=AE$3,$A74*100+AE$3,"") -> 1001605 | AF74: =IF($Z74>=AF$3,$A74*100+AF$3,"") -> 1001606 | AG74: =IF($Z74>=AG$3,$A74*100+AG$3,"") -> 1001607 | AH74: =IF($Z74>=AH$3,$A74*100+AH$3,"") -> 1001608 | AI74: =IF($Z74>=AI$3,$A74*100+AI$3,"") ->  | AJ74: =IF($Z74>=AJ$3,$A74*100+AJ$3,"") ->  | AK74: =IF($Z74>=AK$3,$A74*100+AK$3,"") ->  | AL74: =IF($Z74>=AL$3,$A74*100+AL$3,"") ->  | AM74: =IF($Z74>=AM$3,$A74*100+AM$3,"") ->  | AN74: =IF($Z74>=AN$3,$A74*100+AN$3,"") ->  | AO74: =IF($Z74>=AO$3,$A74*100+AO$3,"") ->  | AP74: =IF($Z74>=AP$3,$A74*100+AP$3,"") ->  | AU74: 12503 | AV74: 1 | AW74: 1702 | AX74: 2 | AY74: =IF(AU74="","",CONCATENATE(VLOOKUP(AU74,[1]DropConfig!$A:$F,3,FALSE),"×",AV74)) -> 崩脉决×1 | AZ74: =IF(AW74="","",CONCATENATE(VLOOKUP(AW74,[1]DropConfig!$A:$F,3,FALSE),"×",AX74)) -> 清识还元丹×2
A75: 10017 | B75: =IF(Z75>0,_xlfn.TEXTJOIN(";",1,ROW(INDIRECT(CONCATENATE("",A75*100+1,":",A75*100+Z75,""))),102),"") -> 1001701;1001702;1001703;1001704;1001705;1001706;1001707;1001708;1001709;1001710;1001711;1001712;1001713;102 | C75: 4 | D75: 1 | E75: 1 | F75: 10 | G75: 1 | I75: 1302;1702 | J75: 1;2 | M75: 2 | N75: 6 | O75: =CONCATENATE(VLOOKUP(M75,[2]PlacesConfig!$A:$C,3,FALSE),IF(N75="",""," - "&VLOOKUP(N75,[2]SmallPlacesConfig!$A:$G,7,FALSE))) -> 尧之都 - 山林 | P75: 56 | Q75: 1 | V75: 4044 | W75: 4119 | X75: 吃茶三问 | Y75: 战胜妖王 | Z75: =COUNTIF(EventLinkConfig!O:O,EventConfig!A75) -> 13 | AA75: =IF($Z75>=AA$3,$A75*100+AA$3,"") -> 1001701 | AB75: =IF($Z75>=AB$3,$A75*100+AB$3,"") -> 1001702 | AC75: =IF($Z75>=AC$3,$A75*100+AC$3,"") -> 1001703 | AD75: =IF($Z75>=AD$3,$A75*100+AD$3,"") -> 1001704 | AE75: =IF($Z75>=AE$3,$A75*100+AE$3,"") -> 1001705 | AF75: =IF($Z75>=AF$3,$A75*100+AF$3,"") -> 1001706 | AG75: =IF($Z75>=AG$3,$A75*100+AG$3,"") -> 1001707 | AH75: =IF($Z75>=AH$3,$A75*100+AH$3,"") -> 1001708 | AI75: =IF($Z75>=AI$3,$A75*100+AI$3,"") -> 1001709 | AJ75: =IF($Z75>=AJ$3,$A75*100+AJ$3,"") -> 1001710 | AK75: =IF($Z75>=AK$3,$A75*100+AK$3,"") -> 1001711 | AL75: =IF($Z75>=AL$3,$A75*100+AL$3,"") -> 1001712 | AM75: =IF($Z75>=AM$3,$A75*100+AM$3,"") -> 1001713 | AN75: =IF($Z75>=AN$3,$A75*100+AN$3,"") ->  | AO75: =IF($Z75>=AO$3,$A75*100+AO$3,"") ->  | AP75: =IF($Z75>=AP$3,$A75*100+AP$3,"") ->  | AU75: 1302 | AV75: 1 | AW75: 1702 | AX75: 2 | AY75: =IF(AU75="","",CONCATENATE(VLOOKUP(AU75,[1]DropConfig!$A:$F,3,FALSE),"×",AV75)) -> 金阳果×1 | AZ75: =IF(AW75="","",CONCATENATE(VLOOKUP(AW75,[1]DropConfig!$A:$F,3,FALSE),"×",AX75)) -> 清识还元丹×2
A76: 10018 | B76: =IF(Z76>0,_xlfn.TEXTJOIN(";",1,ROW(INDIRECT(CONCATENATE("",A76*100+1,":",A76*100+Z76,""))),102),"") -> 1001801;1001802;1001803;1001804;1001805;1001806;1001807;1001808;1001809;1001810;102 | C76: 4 | D76: 1 | E76: 1 | F76: 10 | G76: 1 | I76: 12019;1702 | J76: 1;2 | M76: 2 | N76: 5 | O76: =CONCATENATE(VLOOKUP(M76,[2]PlacesConfig!$A:$C,3,FALSE),IF(N76="",""," - "&VLOOKUP(N76,[2]SmallPlacesConfig!$A:$G,7,FALSE))) -> 尧之都 - 主城 | P76: 61 | Q76: 1 | R76: 61 | V76: 4045 | W76: 4120 | X76: 尧让天下 | Y76: 复命尧帝 | Z76: =COUNTIF(EventLinkConfig!O:O,EventConfig!A76) -> 10 | AA76: =IF($Z76>=AA$3,$A76*100+AA$3,"") -> 1001801 | AB76: =IF($Z76>=AB$3,$A76*100+AB$3,"") -> 1001802 | AC76: =IF($Z76>=AC$3,$A76*100+AC$3,"") -> 1001803 | AD76: =IF($Z76>=AD$3,$A76*100+AD$3,"") -> 1001804 | AE76: =IF($Z76>=AE$3,$A76*100+AE$3,"") -> 1001805 | AF76: =IF($Z76>=AF$3,$A76*100+AF$3,"") -> 1001806 | AG76: =IF($Z76>=AG$3,$A76*100+AG$3,"") -> 1001807 | AH76: =IF($Z76>=AH$3,$A76*100+AH$3,"") -> 1001808 | AI76: =IF($Z76>=AI$3,$A76*100+AI$3,"") -> 1001809 | AJ76: =IF($Z76>=AJ$3,$A76*100+AJ$3,"") -> 1001810 | AK76: =IF($Z76>=AK$3,$A76*100+AK$3,"") ->  | AL76: =IF($Z76>=AL$3,$A76*100+AL$3,"") ->  | AM76: =IF($Z76>=AM$3,$A76*100+AM$3,"") ->  | AN76: =IF($Z76>=AN$3,$A76*100+AN$3,"") ->  | AO76: =IF($Z76>=AO$3,$A76*100+AO$3,"") ->  | AP76: =IF($Z76>=AP$3,$A76*100+AP$3,"") ->  | AU76: 12019 | AV76: 1 | AW76: 1702 | AX76: 2 | AY76: =IF(AU76="","",CONCATENATE(VLOOKUP(AU76,[1]DropConfig!$A:$F,3,FALSE),"×",AV76)) -> 火球×1 | AZ76: =IF(AW76="","",CONCATENATE(VLOOKUP(AW76,[1]DropConfig!$A:$F,3,FALSE),"×",AX76)) -> 清识还元丹×2
A77: 10019 | B77: =IF(Z77>0,_xlfn.TEXTJOIN(";",1,ROW(INDIRECT(CONCATENATE("",A77*100+1,":",A77*100+Z77,""))),102),"") -> 1001901;1001902;1001903;1001904;1001905;1001906;1001907;1001908;1001909;1001910;1001911;1001912;1001913;1001914;1001915;1001916;1001917;1001918;1001919;1001920;102 | C77: 4 | D77: 1 | E77: 1 | F77: 10 | G77: 1 | I77: 12509;1702 | J77: 1;2 | M77: 2 | N77: 7 | O77: =CONCATENATE(VLOOKUP(M77,[2]PlacesConfig!$A:$C,3,FALSE),IF(N77="",""," - "&VLOOKUP(N77,[2]SmallPlacesConfig!$A:$G,7,FALSE))) -> 尧之都 - 郊外 | P77: 65 | Q77: 1 | V77: 4046 | W77: 4121 | X77: 无用之树 | Y77: 树下闲话 | Z77: =COUNTIF(EventLinkConfig!O:O,EventConfig!A77) -> 20 | AA77: =IF($Z77>=AA$3,$A77*100+AA$3,"") -> 1001901 | AB77: =IF($Z77>=AB$3,$A77*100+AB$3,"") -> 1001902 | AC77: =IF($Z77>=AC$3,$A77*100+AC$3,"") -> 1001903 | AD77: =IF($Z77>=AD$3,$A77*100+AD$3,"") -> 1001904 | AE77: =IF($Z77>=AE$3,$A77*100+AE$3,"") -> 1001905 | AF77: =IF($Z77>=AF$3,$A77*100+AF$3,"") -> 1001906 | AG77: =IF($Z77>=AG$3,$A77*100+AG$3,"") -> 1001907 | AH77: =IF($Z77>=AH$3,$A77*100+AH$3,"") -> 1001908 | AI77: =IF($Z77>=AI$3,$A77*100+AI$3,"") -> 1001909 | AJ77: =IF($Z77>=AJ$3,$A77*100+AJ$3,"") -> 1001910 | AK77: =IF($Z77>=AK$3,$A77*100+AK$3,"") -> 1001911 | AL77: =IF($Z77>=AL$3,$A77*100+AL$3,"") -> 1001912 | AM77: =IF($Z77>=AM$3,$A77*100+AM$3,"") -> 1001913 | AN77: =IF($Z77>=AN$3,$A77*100+AN$3,"") -> 1001914 | AO77: =IF($Z77>=AO$3,$A77*100+AO$3,"") -> 1001915 | AP77: =IF($Z77>=AP$3,$A77*100+AP$3,"") -> 1001916 | AQ77: =IF($Z77>=AQ$3,$A77*100+AQ$3,"") -> 1001917 | AR77: =IF($Z77>=AR$3,$A77*100+AR$3,"") -> 1001918 | AS77: =IF($Z77>=AS$3,$A77*100+AS$3,"") -> 1001919 | AT77: =IF($Z77>=AT$3,$A77*100+AT$3,"") -> 1001920 | AU77: 12509 | AV77: 1 | AW77: 1702 | AX77: 2 | AY77: =IF(AU77="","",CONCATENATE(VLOOKUP(AU77,[1]DropConfig!$A:$F,3,FALSE),"×",AV77)) -> 青莲净体诀×1 | AZ77: =IF(AW77="","",CONCATENATE(VLOOKUP(AW77,[1]DropConfig!$A:$F,3,FALSE),"×",AX77)) -> 清识还元丹×2
A78: 10020 | B78: =IF(Z78>0,_xlfn.TEXTJOIN(";",1,ROW(INDIRECT(CONCATENATE("",A78*100+1,":",A78*100+Z78,""))),102),"") -> 1002001;1002002;102 | C78: 4 | D78: 1 | E78: 1 | F78: 10 | G78: 1 | I78: 10008;1702 | J78: 1;2 | M78: 2 | N78: 7 | O78: =CONCATENATE(VLOOKUP(M78,[2]PlacesConfig!$A:$C,3,FALSE),IF(N78="",""," - "&VLOOKUP(N78,[2]SmallPlacesConfig!$A:$G,7,FALSE))) -> 尧之都 - 郊外 | P78: 69 | Q78: 1 | V78: 4047 | W78: 4122 | X78: 樗木之灵 | Y78: 切磋切磋 | Z78: =COUNTIF(EventLinkConfig!O:O,EventConfig!A78) -> 2 | AA78: =IF($Z78>=AA$3,$A78*100+AA$3,"") -> 1002001 | AB78: =IF($Z78>=AB$3,$A78*100+AB$3,"") -> 1002002 | AC78: =IF($Z78>=AC$3,$A78*100+AC$3,"") ->  | AD78: =IF($Z78>=AD$3,$A78*100+AD$3,"") ->  | AE78: =IF($Z78>=AE$3,$A78*100+AE$3,"") ->  | AF78: =IF($Z78>=AF$3,$A78*100+AF$3,"") ->  | AG78: =IF($Z78>=AG$3,$A78*100+AG$3,"") ->  | AH78: =IF($Z78>=AH$3,$A78*100+AH$3,"") ->  | AI78: =IF($Z78>=AI$3,$A78*100+AI$3,"") ->  | AJ78: =IF($Z78>=AJ$3,$A78*100+AJ$3,"") ->  | AK78: =IF($Z78>=AK$3,$A78*100+AK$3,"") ->  | AL78: =IF($Z78>=AL$3,$A78*100+AL$3,"") ->  | AM78: =IF($Z78>=AM$3,$A78*100+AM$3,"") ->  | AN78: =IF($Z78>=AN$3,$A78*100+AN$3,"") ->  | AO78: =IF($Z78>=AO$3,$A78*100+AO$3,"") ->  | AP78: =IF($Z78>=AP$3,$A78*100+AP$3,"") ->  | AU78: 10008 | AV78: 1 | AW78: 1702 | AX78: 2 | AY78: =IF(AU78="","",CONCATENATE(VLOOKUP(AU78,[1]DropConfig!$A:$F,3,FALSE),"×",AV78)) -> 融灵塔×1 | AZ78: =IF(AW78="","",CONCATENATE(VLOOKUP(AW78,[1]DropConfig!$A:$F,3,FALSE),"×",AX78)) -> 清识还元丹×2
A79: 10021 | B79: =IF(Z79>0,_xlfn.TEXTJOIN(";",1,ROW(INDIRECT(CONCATENATE("",A79*100+1,":",A79*100+Z79,""))),102),"") -> 1002101;1002102;1002103;1002104;102 | C79: 4 | D79: 1 | E79: 1 | F79: 10 | G79: 1 | I79: 12020;1702 | J79: 1;2 | M79: 2 | N79: 5 | O79: =CONCATENATE(VLOOKUP(M79,[2]PlacesConfig!$A:$C,3,FALSE),IF(N79="",""," - "&VLOOKUP(N79,[2]SmallPlacesConfig!$A:$G,7,FALSE))) -> 尧之都 - 主城 | P79: 71 | Q79: 1 | R79: 71 | V79: 4048 | W79: 4123 | X79: 游尧都 | Y79: 金丹前期 | Z79: =COUNTIF(EventLinkConfig!O:O,EventConfig!A79) -> 4 | AA79: =IF($Z79>=AA$3,$A79*100+AA$3,"") -> 1002101 | AB79: =IF($Z79>=AB$3,$A79*100+AB$3,"") -> 1002102 | AC79: =IF($Z79>=AC$3,$A79*100+AC$3,"") -> 1002103 | AD79: =IF($Z79>=AD$3,$A79*100+AD$3,"") -> 1002104 | AE79: =IF($Z79>=AE$3,$A79*100+AE$3,"") ->  | AF79: =IF($Z79>=AF$3,$A79*100+AF$3,"") ->  | AG79: =IF($Z79>=AG$3,$A79*100+AG$3,"") ->  | AH79: =IF($Z79>=AH$3,$A79*100+AH$3,"") ->  | AI79: =IF($Z79>=AI$3,$A79*100+AI$3,"") ->  | AJ79: =IF($Z79>=AJ$3,$A79*100+AJ$3,"") ->  | AK79: =IF($Z79>=AK$3,$A79*100+AK$3,"") ->  | AL79: =IF($Z79>=AL$3,$A79*100+AL$3,"") ->  | AM79: =IF($Z79>=AM$3,$A79*100+AM$3,"") ->  | AN79: =IF($Z79>=AN$3,$A79*100+AN$3,"") ->  | AO79: =IF($Z79>=AO$3,$A79*100+AO$3,"") ->  | AP79: =IF($Z79>=AP$3,$A79*100+AP$3,"") ->  | AU79: 12020 | AV79: 1 | AW79: 1702 | AX79: 2 | AY79: =IF(AU79="","",CONCATENATE(VLOOKUP(AU79,[1]DropConfig!$A:$F,3,FALSE),"×",AV79)) -> 火刀×1 | AZ79: =IF(AW79="","",CONCATENATE(VLOOKUP(AW79,[1]DropConfig!$A:$F,3,FALSE),"×",AX79)) -> 清识还元丹×2
A80: 10022 | B80: =IF(Z80>0,_xlfn.TEXTJOIN(";",1,ROW(INDIRECT(CONCATENATE("",A80*100+1,":",A80*100+Z80,""))),102),"") -> 1002201;1002202;1002203;1002204;1002205;1002206;1002207;1002208;1002209;1002210;1002211;1002212;102 | C80: 4 | D80: 1 | E80: 1 | F80: 10 | G80: 1 | I80: 12505;1702 | J80: 1;2 | M80: 2 | N80: 5 | O80: =CONCATENATE(VLOOKUP(M80,[2]PlacesConfig!$A:$C,3,FALSE),IF(N80="",""," - "&VLOOKUP(N80,[2]SmallPlacesConfig!$A:$G,7,FALSE))) -> 尧之都 - 主城 | P80: 81 | Q80: 1 | R80: 81 | V80: 4049 | W80: 4124 | X80: 再见尧帝 | Y80: 仙山传说 | Z80: =COUNTIF(EventLinkConfig!O:O,EventConfig!A80) -> 12 | AA80: =IF($Z80>=AA$3,$A80*100+AA$3,"") -> 1002201 | AB80: =IF($Z80>=AB$3,$A80*100+AB$3,"") -> 1002202 | AC80: =IF($Z80>=AC$3,$A80*100+AC$3,"") -> 1002203 | AD80: =IF($Z80>=AD$3,$A80*100+AD$3,"") -> 1002204 | AE80: =IF($Z80>=AE$3,$A80*100+AE$3,"") -> 1002205 | AF80: =IF($Z80>=AF$3,$A80*100+AF$3,"") -> 1002206 | AG80: =IF($Z80>=AG$3,$A80*100+AG$3,"") -> 1002207 | AH80: =IF($Z80>=AH$3,$A80*100+AH$3,"") -> 1002208 | AI80: =IF($Z80>=AI$3,$A80*100+AI$3,"") -> 1002209 | AJ80: =IF($Z80>=AJ$3,$A80*100+AJ$3,"") -> 1002210 | AK80: =IF($Z80>=AK$3,$A80*100+AK$3,"") -> 1002211 | AL80: =IF($Z80>=AL$3,$A80*100+AL$3,"") -> 1002212 | AM80: =IF($Z80>=AM$3,$A80*100+AM$3,"") ->  | AN80: =IF($Z80>=AN$3,$A80*100+AN$3,"") ->  | AO80: =IF($Z80>=AO$3,$A80*100+AO$3,"") ->  | AP80: =IF($Z80>=AP$3,$A80*100+AP$3,"") ->  | AU80: 12505 | AV80: 1 | AW80: 1702 | AX80: 2 | AY80: =IF(AU80="","",CONCATENATE(VLOOKUP(AU80,[1]DropConfig!$A:$F,3,FALSE),"×",AV80)) -> 火焰决×1 | AZ80: =IF(AW80="","",CONCATENATE(VLOOKUP(AW80,[1]DropConfig!$A:$F,3,FALSE),"×",AX80)) -> 清识还元丹×2
A81: 10023 | B81: =IF(Z81>0,_xlfn.TEXTJOIN(";",1,ROW(INDIRECT(CONCATENATE("",A81*100+1,":",A81*100+Z81,""))),102),"") -> 1002301;1002302;1002303;102 | C81: 4 | D81: 1 | E81: 1 | F81: 10 | G81: 1 | I81: 1303;1702 | J81: 1;2 | M81: 3 | N81: 8 | O81: =CONCATENATE(VLOOKUP(M81,[2]PlacesConfig!$A:$C,3,FALSE),IF(N81="",""," - "&VLOOKUP(N81,[2]SmallPlacesConfig!$A:$G,7,FALSE))) -> 藐姑射山 - 山脚 | P81: 86 | Q81: 1 | V81: 4050 | W81: 4125 | X81: 云海漫行 | Y81: 入山幻阵 | Z81: =COUNTIF(EventLinkConfig!O:O,EventConfig!A81) -> 3 | AA81: =IF($Z81>=AA$3,$A81*100+AA$3,"") -> 1002301 | AB81: =IF($Z81>=AB$3,$A81*100+AB$3,"") -> 1002302 | AC81: =IF($Z81>=AC$3,$A81*100+AC$3,"") -> 1002303 | AD81: =IF($Z81>=AD$3,$A81*100+AD$3,"") ->  | AE81: =IF($Z81>=AE$3,$A81*100+AE$3,"") ->  | AF81: =IF($Z81>=AF$3,$A81*100+AF$3,"") ->  | AG81: =IF($Z81>=AG$3,$A81*100+AG$3,"") ->  | AH81: =IF($Z81>=AH$3,$A81*100+AH$3,"") ->  | AI81: =IF($Z81>=AI$3,$A81*100+AI$3,"") ->  | AJ81: =IF($Z81>=AJ$3,$A81*100+AJ$3,"") ->  | AK81: =IF($Z81>=AK$3,$A81*100+AK$3,"") ->  | AL81: =IF($Z81>=AL$3,$A81*100+AL$3,"") ->  | AM81: =IF($Z81>=AM$3,$A81*100+AM$3,"") ->  | AN81: =IF($Z81>=AN$3,$A81*100+AN$3,"") ->  | AO81: =IF($Z81>=AO$3,$A81*100+AO$3,"") ->  | AP81: =IF($Z81>=AP$3,$A81*100+AP$3,"") ->  | AU81: 1303 | AV81: 1 | AW81: 1702 | AX81: 2 | AY81: =IF(AU81="","",CONCATENATE(VLOOKUP(AU81,[1]DropConfig!$A:$F,3,FALSE),"×",AV81)) -> 九窍芝×1 | AZ81: =IF(AW81="","",CONCATENATE(VLOOKUP(AW81,[1]DropConfig!$A:$F,3,FALSE),"×",AX81)) -> 清识还元丹×2
A82: 10024 | B82: =IF(Z82>0,_xlfn.TEXTJOIN(";",1,ROW(INDIRECT(CONCATENATE("",A82*100+1,":",A82*100+Z82,""))),102),"") -> 1002401;1002402;1002403;1002404;1002405;1002406;1002407;1002408;1002409;1002410;1002411;1002412;1002413;102 | C82: 4 | D82: 1 | E82: 1 | F82: 10 | G82: 1 | I82: 12024;1702 | J82: 1;2 | M82: 3 | N82: 8 | O82: =CONCATENATE(VLOOKUP(M82,[2]PlacesConfig!$A:$C,3,FALSE),IF(N82="",""," - "&VLOOKUP(N82,[2]SmallPlacesConfig!$A:$G,7,FALSE))) -> 藐姑射山 - 山脚 | P82: 84 | Q82: 1 | R82: 91 | V82: 4051 | W82: 4126 | X82: 初见惠子 | Y82: 葫芦种子 | Z82: =COUNTIF(EventLinkConfig!O:O,EventConfig!A82) -> 13 | AA82: =IF($Z82>=AA$3,$A82*100+AA$3,"") -> 1002401 | AB82: =IF($Z82>=AB$3,$A82*100+AB$3,"") -> 1002402 | AC82: =IF($Z82>=AC$3,$A82*100+AC$3,"") -> 1002403 | AD82: =IF($Z82>=AD$3,$A82*100+AD$3,"") -> 1002404 | AE82: =IF($Z82>=AE$3,$A82*100+AE$3,"") -> 1002405 | AF82: =IF($Z82>=AF$3,$A82*100+AF$3,"") -> 1002406 | AG82: =IF($Z82>=AG$3,$A82*100+AG$3,"") -> 1002407 | AH82: =IF($Z82>=AH$3,$A82*100+AH$3,"") -> 1002408 | AI82: =IF($Z82>=AI$3,$A82*100+AI$3,"") -> 1002409 | AJ82: =IF($Z82>=AJ$3,$A82*100+AJ$3,"") -> 1002410 | AK82: =IF($Z82>=AK$3,$A82*100+AK$3,"") -> 1002411 | AL82: =IF($Z82>=AL$3,$A82*100+AL$3,"") -> 1002412 | AM82: =IF($Z82>=AM$3,$A82*100+AM$3,"") -> 1002413 | AN82: =IF($Z82>=AN$3,$A82*100+AN$3,"") ->  | AO82: =IF($Z82>=AO$3,$A82*100+AO$3,"") ->  | AP82: =IF($Z82>=AP$3,$A82*100+AP$3,"") ->  | AU82: 12024 | AV82: 1 | AW82: 1702 | AX82: 2 | AY82: =IF(AU82="","",CONCATENATE(VLOOKUP(AU82,[1]DropConfig!$A:$F,3,FALSE),"×",AV82)) -> 落石×1 | AZ82: =IF(AW82="","",CONCATENATE(VLOOKUP(AW82,[1]DropConfig!$A:$F,3,FALSE),"×",AX82)) -> 清识还元丹×2
A83: 10025 | B83: =IF(Z83>0,_xlfn.TEXTJOIN(";",1,ROW(INDIRECT(CONCATENATE("",A83*100+1,":",A83*100+Z83,""))),102),"") -> 1002501;1002502;1002503;1002504;1002505;1002506;1002507;1002508;102 | C83: 4 | D83: 1 | E83: 1 | F83: 10 | G83: 1 | I83: 12510;1703 | J83: 1;1 | M83: 3 | N83: 8 | O83: =CONCATENATE(VLOOKUP(M83,[2]PlacesConfig!$A:$C,3,FALSE),IF(N83="",""," - "&VLOOKUP(N83,[2]SmallPlacesConfig!$A:$G,7,FALSE))) -> 藐姑射山 - 山脚 | P83: 101 | Q83: 1 | R83: 101 | V83: 4052 | W83: 4127 | X83: 葫芦肥料 | Y83: 天肥地肥 | Z83: =COUNTIF(EventLinkConfig!O:O,EventConfig!A83) -> 8 | AA83: =IF($Z83>=AA$3,$A83*100+AA$3,"") -> 1002501 | AB83: =IF($Z83>=AB$3,$A83*100+AB$3,"") -> 1002502 | AC83: =IF($Z83>=AC$3,$A83*100+AC$3,"") -> 1002503 | AD83: =IF($Z83>=AD$3,$A83*100+AD$3,"") -> 1002504 | AE83: =IF($Z83>=AE$3,$A83*100+AE$3,"") -> 1002505 | AF83: =IF($Z83>=AF$3,$A83*100+AF$3,"") -> 1002506 | AG83: =IF($Z83>=AG$3,$A83*100+AG$3,"") -> 1002507 | AH83: =IF($Z83>=AH$3,$A83*100+AH$3,"") -> 1002508 | AI83: =IF($Z83>=AI$3,$A83*100+AI$3,"") ->  | AJ83: =IF($Z83>=AJ$3,$A83*100+AJ$3,"") ->  | AK83: =IF($Z83>=AK$3,$A83*100+AK$3,"") ->  | AL83: =IF($Z83>=AL$3,$A83*100+AL$3,"") ->  | AM83: =IF($Z83>=AM$3,$A83*100+AM$3,"") ->  | AN83: =IF($Z83>=AN$3,$A83*100+AN$3,"") ->  | AO83: =IF($Z83>=AO$3,$A83*100+AO$3,"") ->  | AP83: =IF($Z83>=AP$3,$A83*100+AP$3,"") ->  | AU83: 12510 | AV83: 1 | AW83: 1703 | AX83: 1 | AY83: =IF(AU83="","",CONCATENATE(VLOOKUP(AU83,[1]DropConfig!$A:$F,3,FALSE),"×",AV83)) -> 碧霄回春术×1 | AZ83: =IF(AW83="","",CONCATENATE(VLOOKUP(AW83,[1]DropConfig!$A:$F,3,FALSE),"×",AX83)) -> 清识还元丹×1
A84: 10026 | B84: =IF(Z84>0,_xlfn.TEXTJOIN(";",1,ROW(INDIRECT(CONCATENATE("",A84*100+1,":",A84*100+Z84,""))),102),"") -> 1002601;1002602;1002603;1002604;1002605;1002606;1002607;1002608;1002609;102 | C84: 4 | D84: 1 | E84: 1 | F84: 10 | G84: 1 | I84: 1304;1703 | J84: 1;1 | M84: 3 | N84: 9 | O84: =CONCATENATE(VLOOKUP(M84,[2]PlacesConfig!$A:$C,3,FALSE),IF(N84="",""," - "&VLOOKUP(N84,[2]SmallPlacesConfig!$A:$G,7,FALSE))) -> 藐姑射山 - 山径 | P84: 111 | Q84: 1 | R84: 111 | V84: 4053 | W84: 4128 | X84: 藐姑射山 | Y84: 登山 | Z84: =COUNTIF(EventLinkConfig!O:O,EventConfig!A84) -> 9 | AA84: =IF($Z84>=AA$3,$A84*100+AA$3,"") -> 1002601 | AB84: =IF($Z84>=AB$3,$A84*100+AB$3,"") -> 1002602 | AC84: =IF($Z84>=AC$3,$A84*100+AC$3,"") -> 1002603 | AD84: =IF($Z84>=AD$3,$A84*100+AD$3,"") -> 1002604 | AE84: =IF($Z84>=AE$3,$A84*100+AE$3,"") -> 1002605 | AF84: =IF($Z84>=AF$3,$A84*100+AF$3,"") -> 1002606 | AG84: =IF($Z84>=AG$3,$A84*100+AG$3,"") -> 1002607 | AH84: =IF($Z84>=AH$3,$A84*100+AH$3,"") -> 1002608 | AI84: =IF($Z84>=AI$3,$A84*100+AI$3,"") -> 1002609 | AJ84: =IF($Z84>=AJ$3,$A84*100+AJ$3,"") ->  | AK84: =IF($Z84>=AK$3,$A84*100+AK$3,"") ->  | AL84: =IF($Z84>=AL$3,$A84*100+AL$3,"") ->  | AM84: =IF($Z84>=AM$3,$A84*100+AM$3,"") ->  | AN84: =IF($Z84>=AN$3,$A84*100+AN$3,"") ->  | AO84: =IF($Z84>=AO$3,$A84*100+AO$3,"") ->  | AP84: =IF($Z84>=AP$3,$A84*100+AP$3,"") ->  | AU84: 1304 | AV84: 1 | AW84: 1703 | AX84: 1 | AY84: =IF(AU84="","",CONCATENATE(VLOOKUP(AU84,[1]DropConfig!$A:$F,3,FALSE),"×",AV84)) -> 玄冥髓×1 | AZ84: =IF(AW84="","",CONCATENATE(VLOOKUP(AW84,[1]DropConfig!$A:$F,3,FALSE),"×",AX84)) -> 清识还元丹×1
A85: 10027 | B85: =IF(Z85>0,_xlfn.TEXTJOIN(";",1,ROW(INDIRECT(CONCATENATE("",A85*100+1,":",A85*100+Z85,""))),102),"") -> 1002701;1002702;1002703;1002704;1002705;1002706;1002707;1002708;1002709;1002710;1002711;1002712;1002713;1002714;1002715;1002716;1002717;1002718;1002719;1002720;1002721;1002722;1002723;1002724;1002725;1002726;1002727;1002728;1002729;1002730;1002731;1002732;1002733;1002734;1002735;1002736;102 | C85: 4 | D85: 1 | E85: 1 | F85: 10 | G85: 1 | I85: 10010;1703 | J85: 1;1 | M85: 3 | N85: 9 | O85: =CONCATENATE(VLOOKUP(M85,[2]PlacesConfig!$A:$C,3,FALSE),IF(N85="",""," - "&VLOOKUP(N85,[2]SmallPlacesConfig!$A:$G,7,FALSE))) -> 藐姑射山 - 山径 | P85: 121 | Q85: 1 | R85: 121 | V85: 4054 | W85: 4129 | X85: 藐姑射山 | Y85: 雾中幻径 | Z85: =COUNTIF(EventLinkConfig!O:O,EventConfig!A85) -> 36 | AA85: =IF($Z85>=AA$3,$A85*100+AA$3,"") -> 1002701 | AB85: =IF($Z85>=AB$3,$A85*100+AB$3,"") -> 1002702 | AC85: =IF($Z85>=AC$3,$A85*100+AC$3,"") -> 1002703 | AD85: =IF($Z85>=AD$3,$A85*100+AD$3,"") -> 1002704 | AE85: =IF($Z85>=AE$3,$A85*100+AE$3,"") -> 1002705 | AF85: =IF($Z85>=AF$3,$A85*100+AF$3,"") -> 1002706 | AG85: =IF($Z85>=AG$3,$A85*100+AG$3,"") -> 1002707 | AH85: =IF($Z85>=AH$3,$A85*100+AH$3,"") -> 1002708 | AI85: =IF($Z85>=AI$3,$A85*100+AI$3,"") -> 1002709 | AJ85: =IF($Z85>=AJ$3,$A85*100+AJ$3,"") -> 1002710 | AK85: =IF($Z85>=AK$3,$A85*100+AK$3,"") -> 1002711 | AL85: =IF($Z85>=AL$3,$A85*100+AL$3,"") -> 1002712 | AM85: =IF($Z85>=AM$3,$A85*100+AM$3,"") -> 1002713 | AN85: =IF($Z85>=AN$3,$A85*100+AN$3,"") -> 1002714 | AO85: =IF($Z85>=AO$3,$A85*100+AO$3,"") -> 1002715 | AP85: =IF($Z85>=AP$3,$A85*100+AP$3,"") -> 1002716 | AU85: 10010 | AV85: 1 | AW85: 1703 | AX85: 1 | AY85: =IF(AU85="","",CONCATENATE(VLOOKUP(AU85,[1]DropConfig!$A:$F,3,FALSE),"×",AV85)) -> 玄龟盾×1 | AZ85: =IF(AW85="","",CONCATENATE(VLOOKUP(AW85,[1]DropConfig!$A:$F,3,FALSE),"×",AX85)) -> 清识还元丹×1
A86: 10028 | B86: =IF(Z86>0,_xlfn.TEXTJOIN(";",1,ROW(INDIRECT(CONCATENATE("",A86*100+1,":",A86*100+Z86,""))),102),"") -> 1002801;102 | C86: 4 | D86: 1 | E86: 1 | F86: 10 | G86: 1 | I86: 12025;1703 | J86: 1;1 | M86: 3 | N86: 9 | O86: =CONCATENATE(VLOOKUP(M86,[2]PlacesConfig!$A:$C,3,FALSE),IF(N86="",""," - "&VLOOKUP(N86,[2]SmallPlacesConfig!$A:$G,7,FALSE))) -> 藐姑射山 - 山径 | P86: 126 | Q86: 1 | V86: 4055 | W86: 4130 | X86: 露水清心 | Z86: =COUNTIF(EventLinkConfig!O:O,EventConfig!A86) -> 1 | AA86: =IF($Z86>=AA$3,$A86*100+AA$3,"") -> 1002801 | AB86: =IF($Z86>=AB$3,$A86*100+AB$3,"") ->  | AC86: =IF($Z86>=AC$3,$A86*100+AC$3,"") ->  | AD86: =IF($Z86>=AD$3,$A86*100+AD$3,"") ->  | AE86: =IF($Z86>=AE$3,$A86*100+AE$3,"") ->  | AF86: =IF($Z86>=AF$3,$A86*100+AF$3,"") ->  | AG86: =IF($Z86>=AG$3,$A86*100+AG$3,"") ->  | AH86: =IF($Z86>=AH$3,$A86*100+AH$3,"") ->  | AI86: =IF($Z86>=AI$3,$A86*100+AI$3,"") ->  | AJ86: =IF($Z86>=AJ$3,$A86*100+AJ$3,"") ->  | AK86: =IF($Z86>=AK$3,$A86*100+AK$3,"") ->  | AL86: =IF($Z86>=AL$3,$A86*100+AL$3,"") ->  | AM86: =IF($Z86>=AM$3,$A86*100+AM$3,"") ->  | AN86: =IF($Z86>=AN$3,$A86*100+AN$3,"") ->  | AO86: =IF($Z86>=AO$3,$A86*100+AO$3,"") ->  | AP86: =IF($Z86>=AP$3,$A86*100+AP$3,"") ->  | AU86: 12025 | AV86: 1 | AW86: 1703 | AX86: 1 | AY86: =IF(AU86="","",CONCATENATE(VLOOKUP(AU86,[1]DropConfig!$A:$F,3,FALSE),"×",AV86)) -> 小石头×1 | AZ86: =IF(AW86="","",CONCATENATE(VLOOKUP(AW86,[1]DropConfig!$A:$F,3,FALSE),"×",AX86)) -> 清识还元丹×1
A87: 10029 | B87: =IF(Z87>0,_xlfn.TEXTJOIN(";",1,ROW(INDIRECT(CONCATENATE("",A87*100+1,":",A87*100+Z87,""))),102),"") -> 1002901;1002902;1002903;1002904;1002905;1002906;1002907;1002908;1002909;1002910;1002911;1002912;1002913;1002914;1002915;1002916;1002917;1002918;1002919;1002920;102 | C87: 4 | D87: 1 | E87: 1 | F87: 10 | G87: 1 | I87: 12504;1703 | J87: 1;1 | M87: 3 | N87: 10 | O87: =CONCATENATE(VLOOKUP(M87,[2]PlacesConfig!$A:$C,3,FALSE),IF(N87="",""," - "&VLOOKUP(N87,[2]SmallPlacesConfig!$A:$G,7,FALSE))) -> 藐姑射山 - 山顶 | P87: 131 | Q87: 1 | R87: 131 | V87: 4056 | W87: 4131 | X87: 山顶神仙 | Z87: =COUNTIF(EventLinkConfig!O:O,EventConfig!A87) -> 20 | AA87: =IF($Z87>=AA$3,$A87*100+AA$3,"") -> 1002901 | AB87: =IF($Z87>=AB$3,$A87*100+AB$3,"") -> 1002902 | AC87: =IF($Z87>=AC$3,$A87*100+AC$3,"") -> 1002903 | AD87: =IF($Z87>=AD$3,$A87*100+AD$3,"") -> 1002904 | AE87: =IF($Z87>=AE$3,$A87*100+AE$3,"") -> 1002905 | AF87: =IF($Z87>=AF$3,$A87*100+AF$3,"") -> 1002906 | AG87: =IF($Z87>=AG$3,$A87*100+AG$3,"") -> 1002907 | AH87: =IF($Z87>=AH$3,$A87*100+AH$3,"") -> 1002908 | AI87: =IF($Z87>=AI$3,$A87*100+AI$3,"") -> 1002909 | AJ87: =IF($Z87>=AJ$3,$A87*100+AJ$3,"") -> 1002910 | AK87: =IF($Z87>=AK$3,$A87*100+AK$3,"") -> 1002911 | AL87: =IF($Z87>=AL$3,$A87*100+AL$3,"") -> 1002912 | AM87: =IF($Z87>=AM$3,$A87*100+AM$3,"") -> 1002913 | AN87: =IF($Z87>=AN$3,$A87*100+AN$3,"") -> 1002914 | AO87: =IF($Z87>=AO$3,$A87*100+AO$3,"") -> 1002915 | AP87: =IF($Z87>=AP$3,$A87*100+AP$3,"") -> 1002916 | AU87: 12504 | AV87: 1 | AW87: 1703 | AX87: 1 | AY87: =IF(AU87="","",CONCATENATE(VLOOKUP(AU87,[1]DropConfig!$A:$F,3,FALSE),"×",AV87)) -> 两仪决×1 | AZ87: =IF(AW87="","",CONCATENATE(VLOOKUP(AW87,[1]DropConfig!$A:$F,3,FALSE),"×",AX87)) -> 清识还元丹×1
A88: 10030 | B88: =IF(Z88>0,_xlfn.TEXTJOIN(";",1,ROW(INDIRECT(CONCATENATE("",A88*100+1,":",A88*100+Z88,""))),102),"") -> 1003001;1003002;1003003;1003004;1003005;1003006;1003007;1003008;102 | C88: 4 | D88: 1 | E88: 1 | F88: 10 | G88: 1 | I88: 1305;1703 | J88: 1;1 | M88: 3 | N88: 10 | O88: =CONCATENATE(VLOOKUP(M88,[2]PlacesConfig!$A:$C,3,FALSE),IF(N88="",""," - "&VLOOKUP(N88,[2]SmallPlacesConfig!$A:$G,7,FALSE))) -> 藐姑射山 - 山顶 | P88: 141 | Q88: 1 | R88: 141 | V88: 4057 | W88: 4132 | X88: 心魔之战 | Y88: 破除枷锁 | Z88: =COUNTIF(EventLinkConfig!O:O,EventConfig!A88) -> 8 | AA88: =IF($Z88>=AA$3,$A88*100+AA$3,"") -> 1003001 | AB88: =IF($Z88>=AB$3,$A88*100+AB$3,"") -> 1003002 | AC88: =IF($Z88>=AC$3,$A88*100+AC$3,"") -> 1003003 | AD88: =IF($Z88>=AD$3,$A88*100+AD$3,"") -> 1003004 | AE88: =IF($Z88>=AE$3,$A88*100+AE$3,"") -> 1003005 | AF88: =IF($Z88>=AF$3,$A88*100+AF$3,"") -> 1003006 | AG88: =IF($Z88>=AG$3,$A88*100+AG$3,"") -> 1003007 | AH88: =IF($Z88>=AH$3,$A88*100+AH$3,"") -> 1003008 | AI88: =IF($Z88>=AI$3,$A88*100+AI$3,"") ->  | AJ88: =IF($Z88>=AJ$3,$A88*100+AJ$3,"") ->  | AK88: =IF($Z88>=AK$3,$A88*100+AK$3,"") ->  | AL88: =IF($Z88>=AL$3,$A88*100+AL$3,"") ->  | AM88: =IF($Z88>=AM$3,$A88*100+AM$3,"") ->  | AN88: =IF($Z88>=AN$3,$A88*100+AN$3,"") ->  | AO88: =IF($Z88>=AO$3,$A88*100+AO$3,"") ->  | AP88: =IF($Z88>=AP$3,$A88*100+AP$3,"") ->  | AU88: 1305 | AV88: 1 | AW88: 1703 | AX88: 1 | AY88: =IF(AU88="","",CONCATENATE(VLOOKUP(AU88,[1]DropConfig!$A:$F,3,FALSE),"×",AV88)) -> 九焰莲×1 | AZ88: =IF(AW88="","",CONCATENATE(VLOOKUP(AW88,[1]DropConfig!$A:$F,3,FALSE),"×",AX88)) -> 清识还元丹×1
A89: 10031 | B89: =IF(Z89>0,_xlfn.TEXTJOIN(";",1,ROW(INDIRECT(CONCATENATE("",A89*100+1,":",A89*100+Z89,""))),102),"") -> 1003101;1003102;1003103;1003104;1003105;1003106;1003107;1003108;1003109;1003110;1003111;1003112;1003113;1003114;1003115;1003116;102 | C89: 4 | D89: 1 | E89: 1 | F89: 10 | G89: 1 | I89: 22001;1703 | J89: 1;1 | M89: 3 | N89: 10 | O89: =CONCATENATE(VLOOKUP(M89,[2]PlacesConfig!$A:$C,3,FALSE),IF(N89="",""," - "&VLOOKUP(N89,[2]SmallPlacesConfig!$A:$G,7,FALSE))) -> 藐姑射山 - 山顶 | P89: 151 | Q89: 1 | R89: 151 | V89: 4191 | W89: 4192 | X89: 鲲鹏飞天 | Z89: =COUNTIF(EventLinkConfig!O:O,EventConfig!A89) -> 16 | AA89: =IF($Z89>=AA$3,$A89*100+AA$3,"") -> 1003101 | AB89: =IF($Z89>=AB$3,$A89*100+AB$3,"") -> 1003102 | AC89: =IF($Z89>=AC$3,$A89*100+AC$3,"") -> 1003103 | AD89: =IF($Z89>=AD$3,$A89*100+AD$3,"") -> 1003104 | AE89: =IF($Z89>=AE$3,$A89*100+AE$3,"") -> 1003105 | AF89: =IF($Z89>=AF$3,$A89*100+AF$3,"") -> 1003106 | AG89: =IF($Z89>=AG$3,$A89*100+AG$3,"") -> 1003107 | AH89: =IF($Z89>=AH$3,$A89*100+AH$3,"") -> 1003108 | AI89: =IF($Z89>=AI$3,$A89*100+AI$3,"") -> 1003109 | AJ89: =IF($Z89>=AJ$3,$A89*100+AJ$3,"") -> 1003110 | AK89: =IF($Z89>=AK$3,$A89*100+AK$3,"") -> 1003111 | AL89: =IF($Z89>=AL$3,$A89*100+AL$3,"") -> 1003112 | AM89: =IF($Z89>=AM$3,$A89*100+AM$3,"") -> 1003113 | AN89: =IF($Z89>=AN$3,$A89*100+AN$3,"") -> 1003114 | AO89: =IF($Z89>=AO$3,$A89*100+AO$3,"") -> 1003115 | AP89: =IF($Z89>=AP$3,$A89*100+AP$3,"") -> 1003116 | AU89: 22001 | AV89: 1 | AW89: 1703 | AX89: 1 | AY89: =IF(AU89="","",CONCATENATE(VLOOKUP(AU89,[1]DropConfig!$A:$F,3,FALSE),"×",AV89)) -> 感悟点1×1 | AZ89: =IF(AW89="","",CONCATENATE(VLOOKUP(AW89,[1]DropConfig!$A:$F,3,FALSE),"×",AX89)) -> 清识还元丹×1
B90: =IF(A90="","",_xlfn.TEXTJOIN(";",1,AA90:AT90,102)) ->  | AY90: =IF(AU90="","",CONCATENATE(VLOOKUP(AU90,[1]DropConfig!$A:$F,3,FALSE),"×",AV90)) ->  | AZ90: =IF(AW90="","",CONCATENATE(VLOOKUP(AW90,[1]DropConfig!$A:$F,3,FALSE),"×",AX90)) -> 
C91: 5 | E91: 1 | F91: 0 | G91: 1 | I91: 1001 | J91: 10 | V91: 4058 | W91: 4133 | X91: 受伤的狼 | Y91: 你发现一只奄奄一息的狼，决定上前一探究竟。 | AA91: 1001 | AB91: 1002 | AC91: 1003 | AD91: 1004 | AE91: 1005 | AY91: =IF(AU91="","",CONCATENATE(VLOOKUP(AU91,[1]DropConfig!$A:$F,3,FALSE),"×",AV91)) ->  | AZ91: =IF(AW91="","",CONCATENATE(VLOOKUP(AW91,[1]DropConfig!$A:$F,3,FALSE),"×",AX91)) -> 
C92: 5 | E92: 1 | F92: 0 | G92: 1 | I92: 1001 | J92: 10 | R92: =IF(S92="","",VLOOKUP(S92,条件类型查询!A:B,2,FALSE)) ->  | V92: 4059 | W92: 4134 | X92: 鹬蚌相争 | Y92: 附近的小树林闹的不可开交，你决定去看看怎么回事。 | AA92: 1010 | AB92: 1011 | AC92: 1012 | AD92: 1013 | AE92: 1014 | AF92: 1015 | AG92: 1016 | AY92: =IF(AU92="","",CONCATENATE(VLOOKUP(AU92,[1]DropConfig!$A:$F,3,FALSE),"×",AV92)) ->  | AZ92: =IF(AW92="","",CONCATENATE(VLOOKUP(AW92,[1]DropConfig!$A:$F,3,FALSE),"×",AX92)) -> 
C93: 5 | E93: 1 | F93: 0 | G93: 1 | I93: 1001 | J93: 10 | V93: 4060 | W93: 4135 | X93: 受伤的鸟 | Y93: 你发现一只奄奄一息的鸟，决定上前一探究竟。 | AA93: 1001 | AB93: 1002 | AC93: 1003 | AD93: 1004 | AE93: 1005 | AY93: =IF(AU93="","",CONCATENATE(VLOOKUP(AU93,[1]DropConfig!$A:$F,3,FALSE),"×",AV93)) ->  | AZ93: =IF(AW93="","",CONCATENATE(VLOOKUP(AW93,[1]DropConfig!$A:$F,3,FALSE),"×",AX93)) -> 
AY94: =IF(AU94="","",CONCATENATE(VLOOKUP(AU94,[1]DropConfig!$A:$F,3,FALSE),"×",AV94)) ->  | AZ94: =IF(AW94="","",CONCATENATE(VLOOKUP(AW94,[1]DropConfig!$A:$F,3,FALSE),"×",AX94)) -> 
C95: 6 | D95: 3 | E95: 1 | F95: 0 | G95: 1 | I95: 1001 | J95: 10 | V95: 4061 | W95: 4136 | X95: 受伤的狼 | Y95: 你发现一只奄奄一息的狼，决定上前一探究竟。 | AA95: 1001 | AB95: 1002 | AC95: 1003 | AD95: 1004 | AE95: 1005 | AY95: =IF(AU95="","",CONCATENATE(VLOOKUP(AU95,[1]DropConfig!$A:$F,3,FALSE),"×",AV95)) ->  | AZ95: =IF(AW95="","",CONCATENATE(VLOOKUP(AW95,[1]DropConfig!$A:$F,3,FALSE),"×",AX95)) -> 
C96: 6 | D96: 3 | E96: 1 | F96: 0 | G96: 1 | I96: 1001 | J96: 10 | R96: =IF(S96="","",VLOOKUP(S96,条件类型查询!A:B,2,FALSE)) ->  | V96: 4062 | W96: 4137 | X96: 鹬蚌相争 | Y96: 附近的小树林闹的不可开交，你决定去看看怎么回事。 | AA96: 1010 | AB96: 1011 | AC96: 1012 | AD96: 1013 | AE96: 1014 | AF96: 1015 | AG96: 1016 | AY96: =IF(AU96="","",CONCATENATE(VLOOKUP(AU96,[1]DropConfig!$A:$F,3,FALSE),"×",AV96)) ->  | AZ96: =IF(AW96="","",CONCATENATE(VLOOKUP(AW96,[1]DropConfig!$A:$F,3,FALSE),"×",AX96)) -> 
C97: 6 | D97: 3 | E97: 1 | F97: 0 | G97: 1 | I97: 1001 | J97: 10 | M97: 1 | Q97: 2 | V97: 4063 | W97: 4138 | X97: 惠子.没用的大葫芦 | Y97: 惠子种的葫芦没用，他非常生气 | AY97: =IF(AU97="","",CONCATENATE(VLOOKUP(AU97,[1]DropConfig!$A:$F,3,FALSE),"×",AV97)) ->  | AZ97: =IF(AW97="","",CONCATENATE(VLOOKUP(AW97,[1]DropConfig!$A:$F,3,FALSE),"×",AX97)) -> 
C98: 6 | D98: 3 | E98: 1 | F98: 0 | G98: 1 | I98: 1001 | J98: 10 | M98: 2 | Q98: 2 | V98: 4064 | W98: 4139 | X98: 发现魔修 | Y98: 发现一群魔修，正在夺人钱财 | AA98: 9014 | AY98: =IF(AU98="","",CONCATENATE(VLOOKUP(AU98,[1]DropConfig!$A:$F,3,FALSE),"×",AV98)) ->  | AZ98: =IF(AW98="","",CONCATENATE(VLOOKUP(AW98,[1]DropConfig!$A:$F,3,FALSE),"×",AX98)) -> 
C99: 6 | D99: 3 | E99: 1 | F99: 0 | G99: 1 | I99: 1001 | J99: 10 | K99: 30 | L99: 2 | M99: 3 | Q99: 2 | V99: 4065 | W99: 4140 | X99: 魔修 | Y99: 打败魔休 | AA99: 9031 | AY99: =IF(AU99="","",CONCATENATE(VLOOKUP(AU99,[1]DropConfig!$A:$F,3,FALSE),"×",AV99)) ->  | AZ99: =IF(AW99="","",CONCATENATE(VLOOKUP(AW99,[1]DropConfig!$A:$F,3,FALSE),"×",AX99)) -> 
C100: 6 | D100: 5 | E100: 1 | F100: 0 | G100: 1 | I100: 1001 | J100: 10 | V100: 4066 | W100: 4141 | X100: 幽谷剑鸣 | Y100: 你在闭关修炼时，感受到一股凌厉的剑意波动。深入探查，发现一名白衣剑修“清霜”盘坐于谷中，周围剑气环绕，正与一柄散发不祥气息的灵剑对峙。她似在参悟剑诀，却灵气不足，剑灵桀骜。 | AA100: 9003 | AB100: 9004 | AC100: 9005 | AD100: 9006 | AE100: 9007 | AF100: 9008 | AY100: =IF(AU100="","",CONCATENATE(VLOOKUP(AU100,[1]DropConfig!$A:$F,3,FALSE),"×",AV100)) ->  | AZ100: =IF(AW100="","",CONCATENATE(VLOOKUP(AW100,[1]DropConfig!$A:$F,3,FALSE),"×",AX100)) -> 
AY101: =IF(AU101="","",CONCATENATE(VLOOKUP(AU101,[1]DropConfig!$A:$F,3,FALSE),"×",AV101)) ->  | AZ101: =IF(AW101="","",CONCATENATE(VLOOKUP(AW101,[1]DropConfig!$A:$F,3,FALSE),"×",AX101)) -> 
B102: =IF(A102="","",_xlfn.TEXTJOIN(";",1,AA102:AT102,102)) ->  | C102: 99 | D102: 2 | E102: 1 | F102: 10 | G102: 1 | I102: 1001 | J102: 10 | M102: 1 | Q102: 4 | R102: =IF(S102="","",VLOOKUP(S102,条件类型查询!A:B,2,FALSE)) -> 拥有特定道具 | S102: 1 | T102: 1004 | U102: 1 | V102: 4067 | W102: 4142 | X102: 鹬蚌相争2 | Y102: 附近的小树林闹的不可开交，你决定去看看怎么回事。 | AA102: 1020 | AB102: 1021 | AC102: 1022 | AD102: 1023 | AE102: 1024 | AF102: 1025 | AG102: 1026 | AY102: =IF(AU102="","",CONCATENATE(VLOOKUP(AU102,[1]DropConfig!$A:$F,3,FALSE),"×",AV102)) ->  | AZ102: =IF(AW102="","",CONCATENATE(VLOOKUP(AW102,[1]DropConfig!$A:$F,3,FALSE),"×",AX102)) -> 
B103: =IF(A103="","",_xlfn.TEXTJOIN(";",1,AA103:AT103,102)) ->  | C103: 99 | D103: 4 | E103: 1 | F103: 10 | G103: 1 | I103: 1001 | J103: 10 | R103: =IF(S103="","",VLOOKUP(S103,条件类型查询!A:B,2,FALSE)) ->  | V103: 4068 | W103: 4143 | X103: 受伤的鸟 | Y103: 你发现一只奄奄一息的鸟，决定上前一探究竟。 | AA103: 1001 | AB103: 1002 | AC103: 1003 | AD103: 1004 | AE103: 1005 | AT103: 100 | AY103: =IF(AU103="","",CONCATENATE(VLOOKUP(AU103,[1]DropConfig!$A:$F,3,FALSE),"×",AV103)) ->  | AZ103: =IF(AW103="","",CONCATENATE(VLOOKUP(AW103,[1]DropConfig!$A:$F,3,FALSE),"×",AX103)) -> 
A104: 30001 | B104: 100;102 | C104: 98 | D104: 6 | E104: 1 | F104: 0 | G104: 1 | K104: 50 | L104: 5 | O104: =CONCATENATE(VLOOKUP(M104,[2]PlacesConfig!$A:$C,3,FALSE),IF(N104="",""," - "&VLOOKUP(N104,[2]SmallPlacesConfig!$A:$G,7,FALSE))) ->  | R104: =IF(S104="","",VLOOKUP(S104,条件类型查询!A:B,2,FALSE)) ->  | Z104: =COUNTIF(EventLinkConfig!O:O,EventConfig!A104) -> 0 | AA104: =IF($Z104>=AA$3,$A104*100+AA$3,"") ->  | AB104: =IF($Z104>=AB$3,$A104*100+AB$3,"") ->  | AC104: =IF($Z104>=AC$3,$A104*100+AC$3,"") ->  | AD104: =IF($Z104>=AD$3,$A104*100+AD$3,"") ->  | AE104: =IF($Z104>=AE$3,$A104*100+AE$3,"") ->  | AF104: =IF($Z104>=AF$3,$A104*100+AF$3,"") ->  | AG104: =IF($Z104>=AG$3,$A104*100+AG$3,"") ->  | AH104: =IF($Z104>=AH$3,$A104*100+AH$3,"") ->  | AI104: =IF($Z104>=AI$3,$A104*100+AI$3,"") ->  | AJ104: =IF($Z104>=AJ$3,$A104*100+AJ$3,"") ->  | AK104: =IF($Z104>=AK$3,$A104*100+AK$3,"") ->  | AL104: =IF($Z104>=AL$3,$A104*100+AL$3,"") ->  | AM104: =IF($Z104>=AM$3,$A104*100+AM$3,"") ->  | AN104: =IF($Z104>=AN$3,$A104*100+AN$3,"") ->  | AO104: =IF($Z104>=AO$3,$A104*100+AO$3,"") ->  | AP104: =IF($Z104>=AP$3,$A104*100+AP$3,"") ->  | AT104: 100 | AY104: =IF(AU104="","",CONCATENATE(VLOOKUP(AU104,[1]DropConfig!$A:$F,3,FALSE),"×",AV104)) ->  | AZ104: =IF(AW104="","",CONCATENATE(VLOOKUP(AW104,[1]DropConfig!$A:$F,3,FALSE),"×",AX104)) -> 
A105: =A104+1 -> 30002 | B105: 100;102 | C105: 98 | D105: 6 | E105: 1 | F105: 0 | G105: 1 | K105: 50 | L105: 1 | O105: =CONCATENATE(VLOOKUP(M105,[2]PlacesConfig!$A:$C,3,FALSE),IF(N105="",""," - "&VLOOKUP(N105,[2]SmallPlacesConfig!$A:$G,7,FALSE))) ->  | R105: =IF(S105="","",VLOOKUP(S105,条件类型查询!A:B,2,FALSE)) ->  | Z105: =COUNTIF(EventLinkConfig!O:O,EventConfig!A105) -> 0 | AA105: =IF($Z105>=AA$3,$A105*100+AA$3,"") ->  | AB105: =IF($Z105>=AB$3,$A105*100+AB$3,"") ->  | AC105: =IF($Z105>=AC$3,$A105*100+AC$3,"") ->  | AD105: =IF($Z105>=AD$3,$A105*100+AD$3,"") ->  | AE105: =IF($Z105>=AE$3,$A105*100+AE$3,"") ->  | AF105: =IF($Z105>=AF$3,$A105*100+AF$3,"") ->  | AG105: =IF($Z105>=AG$3,$A105*100+AG$3,"") ->  | AH105: =IF($Z105>=AH$3,$A105*100+AH$3,"") ->  | AI105: =IF($Z105>=AI$3,$A105*100+AI$3,"") ->  | AJ105: =IF($Z105>=AJ$3,$A105*100+AJ$3,"") ->  | AK105: =IF($Z105>=AK$3,$A105*100+AK$3,"") ->  | AL105: =IF($Z105>=AL$3,$A105*100+AL$3,"") ->  | AM105: =IF($Z105>=AM$3,$A105*100+AM$3,"") ->  | AN105: =IF($Z105>=AN$3,$A105*100+AN$3,"") ->  | AO105: =IF($Z105>=AO$3,$A105*100+AO$3,"") ->  | AP105: =IF($Z105>=AP$3,$A105*100+AP$3,"") ->  | AT105: 100 | AY105: =IF(AU105="","",CONCATENATE(VLOOKUP(AU105,[1]DropConfig!$A:$F,3,FALSE),"×",AV105)) ->  | AZ105: =IF(AW105="","",CONCATENATE(VLOOKUP(AW105,[1]DropConfig!$A:$F,3,FALSE),"×",AX105)) -> 
A106: 30003 | B106: 3000301;100;102 | C106: 98 | D106: 6 | E106: 1 | F106: 0 | G106: 1 | K106: 50 | L106: 1 | M106: 1 | O106: =CONCATENATE(VLOOKUP(M106,[2]PlacesConfig!$A:$C,3,FALSE),IF(N106="",""," - "&VLOOKUP(N106,[2]SmallPlacesConfig!$A:$G,7,FALSE))) -> 北海 | R106: =IF(S106="","",VLOOKUP(S106,条件类型查询!A:B,2,FALSE)) ->  | Z106: =COUNTIF(EventLinkConfig!O:O,EventConfig!A106) -> 1 | AA106: =IF($Z106>=AA$3,$A106*100+AA$3,"") -> 3000301 | AB106: =IF($Z106>=AB$3,$A106*100+AB$3,"") ->  | AC106: =IF($Z106>=AC$3,$A106*100+AC$3,"") ->  | AD106: =IF($Z106>=AD$3,$A106*100+AD$3,"") ->  | AE106: =IF($Z106>=AE$3,$A106*100+AE$3,"") ->  | AF106: =IF($Z106>=AF$3,$A106*100+AF$3,"") ->  | AG106: =IF($Z106>=AG$3,$A106*100+AG$3,"") ->  | AH106: =IF($Z106>=AH$3,$A106*100+AH$3,"") ->  | AI106: =IF($Z106>=AI$3,$A106*100+AI$3,"") ->  | AJ106: =IF($Z106>=AJ$3,$A106*100+AJ$3,"") ->  | AK106: =IF($Z106>=AK$3,$A106*100+AK$3,"") ->  | AL106: =IF($Z106>=AL$3,$A106*100+AL$3,"") ->  | AM106: =IF($Z106>=AM$3,$A106*100+AM$3,"") ->  | AN106: =IF($Z106>=AN$3,$A106*100+AN$3,"") ->  | AO106: =IF($Z106>=AO$3,$A106*100+AO$3,"") ->  | AP106: =IF($Z106>=AP$3,$A106*100+AP$3,"") ->  | AT106: 100 | AY106: =IF(AU106="","",CONCATENATE(VLOOKUP(AU106,[1]DropConfig!$A:$F,3,FALSE),"×",AV106)) ->  | AZ106: =IF(AW106="","",CONCATENATE(VLOOKUP(AW106,[1]DropConfig!$A:$F,3,FALSE),"×",AX106)) -> 
A107: 30004 | B107: 3000401;100;102 | C107: 98 | D107: 6 | E107: 1 | F107: 0 | G107: 1 | K107: 50 | L107: 3 | M107: 2 | O107: =CONCATENATE(VLOOKUP(M107,[2]PlacesConfig!$A:$C,3,FALSE),IF(N107="",""," - "&VLOOKUP(N107,[2]SmallPlacesConfig!$A:$G,7,FALSE))) -> 尧之都 | R107: =IF(S107="","",VLOOKUP(S107,条件类型查询!A:B,2,FALSE)) ->  | Z107: =COUNTIF(EventLinkConfig!O:O,EventConfig!A107) -> 1 | AA107: =IF($Z107>=AA$3,$A107*100+AA$3,"") -> 3000401 | AB107: =IF($Z107>=AB$3,$A107*100+AB$3,"") ->  | AC107: =IF($Z107>=AC$3,$A107*100+AC$3,"") ->  | AD107: =IF($Z107>=AD$3,$A107*100+AD$3,"") ->  | AE107: =IF($Z107>=AE$3,$A107*100+AE$3,"") ->  | AF107: =IF($Z107>=AF$3,$A107*100+AF$3,"") ->  | AG107: =IF($Z107>=AG$3,$A107*100+AG$3,"") ->  | AH107: =IF($Z107>=AH$3,$A107*100+AH$3,"") ->  | AI107: =IF($Z107>=AI$3,$A107*100+AI$3,"") ->  | AJ107: =IF($Z107>=AJ$3,$A107*100+AJ$3,"") ->  | AK107: =IF($Z107>=AK$3,$A107*100+AK$3,"") ->  | AL107: =IF($Z107>=AL$3,$A107*100+AL$3,"") ->  | AM107: =IF($Z107>=AM$3,$A107*100+AM$3,"") ->  | AN107: =IF($Z107>=AN$3,$A107*100+AN$3,"") ->  | AO107: =IF($Z107>=AO$3,$A107*100+AO$3,"") ->  | AP107: =IF($Z107>=AP$3,$A107*100+AP$3,"") ->  | AT107: 100 | AY107: =IF(AU107="","",CONCATENATE(VLOOKUP(AU107,[1]DropConfig!$A:$F,3,FALSE),"×",AV107)) ->  | AZ107: =IF(AW107="","",CONCATENATE(VLOOKUP(AW107,[1]DropConfig!$A:$F,3,FALSE),"×",AX107)) -> 
A108: 30005 | B108: 3000501;100;102 | C108: 98 | D108: 6 | E108: 1 | F108: 0 | G108: 1 | K108: 50 | L108: 1 | M108: 2 | O108: =CONCATENATE(VLOOKUP(M108,[2]PlacesConfig!$A:$C,3,FALSE),IF(N108="",""," - "&VLOOKUP(N108,[2]SmallPlacesConfig!$A:$G,7,FALSE))) -> 尧之都 | R108: =IF(S108="","",VLOOKUP(S108,条件类型查询!A:B,2,FALSE)) ->  | Z108: =COUNTIF(EventLinkConfig!O:O,EventConfig!A108) -> 1 | AA108: =IF($Z108>=AA$3,$A108*100+AA$3,"") -> 3000501 | AB108: =IF($Z108>=AB$3,$A108*100+AB$3,"") ->  | AC108: =IF($Z108>=AC$3,$A108*100+AC$3,"") ->  | AD108: =IF($Z108>=AD$3,$A108*100+AD$3,"") ->  | AE108: =IF($Z108>=AE$3,$A108*100+AE$3,"") ->  | AF108: =IF($Z108>=AF$3,$A108*100+AF$3,"") ->  | AG108: =IF($Z108>=AG$3,$A108*100+AG$3,"") ->  | AH108: =IF($Z108>=AH$3,$A108*100+AH$3,"") ->  | AI108: =IF($Z108>=AI$3,$A108*100+AI$3,"") ->  | AJ108: =IF($Z108>=AJ$3,$A108*100+AJ$3,"") ->  | AK108: =IF($Z108>=AK$3,$A108*100+AK$3,"") ->  | AL108: =IF($Z108>=AL$3,$A108*100+AL$3,"") ->  | AM108: =IF($Z108>=AM$3,$A108*100+AM$3,"") ->  | AN108: =IF($Z108>=AN$3,$A108*100+AN$3,"") ->  | AO108: =IF($Z108>=AO$3,$A108*100+AO$3,"") ->  | AP108: =IF($Z108>=AP$3,$A108*100+AP$3,"") ->  | AT108: 100 | AY108: =IF(AU108="","",CONCATENATE(VLOOKUP(AU108,[1]DropConfig!$A:$F,3,FALSE),"×",AV108)) ->  | AZ108: =IF(AW108="","",CONCATENATE(VLOOKUP(AW108,[1]DropConfig!$A:$F,3,FALSE),"×",AX108)) -> 
A109: 30006 | B109: 3000601;100;102 | C109: 98 | D109: 6 | E109: 1 | F109: 0 | G109: 1 | K109: 50 | L109: 1 | M109: 2 | O109: =CONCATENATE(VLOOKUP(M109,[2]PlacesConfig!$A:$C,3,FALSE),IF(N109="",""," - "&VLOOKUP(N109,[2]SmallPlacesConfig!$A:$G,7,FALSE))) -> 尧之都 | R109: =IF(S109="","",VLOOKUP(S109,条件类型查询!A:B,2,FALSE)) ->  | Z109: =COUNTIF(EventLinkConfig!O:O,EventConfig!A109) -> 1 | AA109: =IF($Z109>=AA$3,$A109*100+AA$3,"") -> 3000601 | AB109: =IF($Z109>=AB$3,$A109*100+AB$3,"") ->  | AC109: =IF($Z109>=AC$3,$A109*100+AC$3,"") ->  | AD109: =IF($Z109>=AD$3,$A109*100+AD$3,"") ->  | AE109: =IF($Z109>=AE$3,$A109*100+AE$3,"") ->  | AF109: =IF($Z109>=AF$3,$A109*100+AF$3,"") ->  | AG109: =IF($Z109>=AG$3,$A109*100+AG$3,"") ->  | AH109: =IF($Z109>=AH$3,$A109*100+AH$3,"") ->  | AI109: =IF($Z109>=AI$3,$A109*100+AI$3,"") ->  | AJ109: =IF($Z109>=AJ$3,$A109*100+AJ$3,"") ->  | AK109: =IF($Z109>=AK$3,$A109*100+AK$3,"") ->  | AL109: =IF($Z109>=AL$3,$A109*100+AL$3,"") ->  | AM109: =IF($Z109>=AM$3,$A109*100+AM$3,"") ->  | AN109: =IF($Z109>=AN$3,$A109*100+AN$3,"") ->  | AO109: =IF($Z109>=AO$3,$A109*100+AO$3,"") ->  | AP109: =IF($Z109>=AP$3,$A109*100+AP$3,"") ->  | AT109: 100 | AY109: =IF(AU109="","",CONCATENATE(VLOOKUP(AU109,[1]DropConfig!$A:$F,3,FALSE),"×",AV109)) ->  | AZ109: =IF(AW109="","",CONCATENATE(VLOOKUP(AW109,[1]DropConfig!$A:$F,3,FALSE),"×",AX109)) -> 
A110: 30007 | B110: 3000701;100;102 | C110: 98 | D110: 6 | E110: 1 | F110: 0 | G110: 1 | K110: 50 | L110: 1 | M110: 3 | O110: =CONCATENATE(VLOOKUP(M110,[2]PlacesConfig!$A:$C,3,FALSE),IF(N110="",""," - "&VLOOKUP(N110,[2]SmallPlacesConfig!$A:$G,7,FALSE))) -> 藐姑射山 | R110: =IF(S110="","",VLOOKUP(S110,条件类型查询!A:B,2,FALSE)) ->  | Z110: =COUNTIF(EventLinkConfig!O:O,EventConfig!A110) -> 1 | AA110: =IF($Z110>=AA$3,$A110*100+AA$3,"") -> 3000701 | AB110: =IF($Z110>=AB$3,$A110*100+AB$3,"") ->  | AC110: =IF($Z110>=AC$3,$A110*100+AC$3,"") ->  | AD110: =IF($Z110>=AD$3,$A110*100+AD$3,"") ->  | AE110: =IF($Z110>=AE$3,$A110*100+AE$3,"") ->  | AF110: =IF($Z110>=AF$3,$A110*100+AF$3,"") ->  | AG110: =IF($Z110>=AG$3,$A110*100+AG$3,"") ->  | AH110: =IF($Z110>=AH$3,$A110*100+AH$3,"") ->  | AI110: =IF($Z110>=AI$3,$A110*100+AI$3,"") ->  | AJ110: =IF($Z110>=AJ$3,$A110*100+AJ$3,"") ->  | AK110: =IF($Z110>=AK$3,$A110*100+AK$3,"") ->  | AL110: =IF($Z110>=AL$3,$A110*100+AL$3,"") ->  | AM110: =IF($Z110>=AM$3,$A110*100+AM$3,"") ->  | AN110: =IF($Z110>=AN$3,$A110*100+AN$3,"") ->  | AO110: =IF($Z110>=AO$3,$A110*100+AO$3,"") ->  | AP110: =IF($Z110>=AP$3,$A110*100+AP$3,"") ->  | AT110: 100 | AY110: =IF(AU110="","",CONCATENATE(VLOOKUP(AU110,[1]DropConfig!$A:$F,3,FALSE),"×",AV110)) ->  | AZ110: =IF(AW110="","",CONCATENATE(VLOOKUP(AW110,[1]DropConfig!$A:$F,3,FALSE),"×",AX110)) -> 
A111: 30008 | B111: 3000801;100;102 | C111: 98 | D111: 6 | E111: 1 | F111: 0 | G111: 1 | K111: 15 | L111: 1 | M111: 3 | O111: =CONCATENATE(VLOOKUP(M111,[2]PlacesConfig!$A:$C,3,FALSE),IF(N111="",""," - "&VLOOKUP(N111,[2]SmallPlacesConfig!$A:$G,7,FALSE))) -> 藐姑射山 | R111: =IF(S111="","",VLOOKUP(S111,条件类型查询!A:B,2,FALSE)) ->  | Z111: =COUNTIF(EventLinkConfig!O:O,EventConfig!A111) -> 1 | AA111: =IF($Z111>=AA$3,$A111*100+AA$3,"") -> 3000801 | AB111: =IF($Z111>=AB$3,$A111*100+AB$3,"") ->  | AC111: =IF($Z111>=AC$3,$A111*100+AC$3,"") ->  | AD111: =IF($Z111>=AD$3,$A111*100+AD$3,"") ->  | AE111: =IF($Z111>=AE$3,$A111*100+AE$3,"") ->  | AF111: =IF($Z111>=AF$3,$A111*100+AF$3,"") ->  | AG111: =IF($Z111>=AG$3,$A111*100+AG$3,"") ->  | AH111: =IF($Z111>=AH$3,$A111*100+AH$3,"") ->  | AI111: =IF($Z111>=AI$3,$A111*100+AI$3,"") ->  | AJ111: =IF($Z111>=AJ$3,$A111*100+AJ$3,"") ->  | AK111: =IF($Z111>=AK$3,$A111*100+AK$3,"") ->  | AL111: =IF($Z111>=AL$3,$A111*100+AL$3,"") ->  | AM111: =IF($Z111>=AM$3,$A111*100+AM$3,"") ->  | AN111: =IF($Z111>=AN$3,$A111*100+AN$3,"") ->  | AO111: =IF($Z111>=AO$3,$A111*100+AO$3,"") ->  | AP111: =IF($Z111>=AP$3,$A111*100+AP$3,"") ->  | AT111: 100 | AY111: =IF(AU111="","",CONCATENATE(VLOOKUP(AU111,[1]DropConfig!$A:$F,3,FALSE),"×",AV111)) ->  | AZ111: =IF(AW111="","",CONCATENATE(VLOOKUP(AW111,[1]DropConfig!$A:$F,3,FALSE),"×",AX111)) -> 
A112: 30009 | B112: 3000901;3000902;100;102 | C112: 98 | D112: 6 | E112: 1 | F112: 0 | G112: 1 | I112: 1301 | J112: 1 | K112: 100 | L112: 1 | M112: 3 | O112: =CONCATENATE(VLOOKUP(M112,[2]PlacesConfig!$A:$C,3,FALSE),IF(N112="",""," - "&VLOOKUP(N112,[2]SmallPlacesConfig!$A:$G,7,FALSE))) -> 藐姑射山 | R112: =IF(S112="","",VLOOKUP(S112,条件类型查询!A:B,2,FALSE)) ->  | Z112: =COUNTIF(EventLinkConfig!O:O,EventConfig!A112) -> 2 | AA112: =IF($Z112>=AA$3,$A112*100+AA$3,"") -> 3000901 | AB112: =IF($Z112>=AB$3,$A112*100+AB$3,"") -> 3000902 | AC112: =IF($Z112>=AC$3,$A112*100+AC$3,"") ->  | AD112: =IF($Z112>=AD$3,$A112*100+AD$3,"") ->  | AE112: =IF($Z112>=AE$3,$A112*100+AE$3,"") ->  | AF112: =IF($Z112>=AF$3,$A112*100+AF$3,"") ->  | AG112: =IF($Z112>=AG$3,$A112*100+AG$3,"") ->  | AH112: =IF($Z112>=AH$3,$A112*100+AH$3,"") ->  | AI112: =IF($Z112>=AI$3,$A112*100+AI$3,"") ->  | AJ112: =IF($Z112>=AJ$3,$A112*100+AJ$3,"") ->  | AK112: =IF($Z112>=AK$3,$A112*100+AK$3,"") ->  | AL112: =IF($Z112>=AL$3,$A112*100+AL$3,"") ->  | AM112: =IF($Z112>=AM$3,$A112*100+AM$3,"") ->  | AN112: =IF($Z112>=AN$3,$A112*100+AN$3,"") ->  | AO112: =IF($Z112>=AO$3,$A112*100+AO$3,"") ->  | AP112: =IF($Z112>=AP$3,$A112*100+AP$3,"") ->  | AT112: 100 | AY112: =IF(AU112="","",CONCATENATE(VLOOKUP(AU112,[1]DropConfig!$A:$F,3,FALSE),"×",AV112)) ->  | AZ112: =IF(AW112="","",CONCATENATE(VLOOKUP(AW112,[1]DropConfig!$A:$F,3,FALSE),"×",AX112)) -> 
A113: 30010 | B113: 3001001;100;102 | C113: 98 | D113: 6 | E113: 1 | F113: 0 | G113: 1 | I113: 1001 | J113: 1 | K113: 100 | L113: 1 | M113: 3 | O113: =CONCATENATE(VLOOKUP(M113,[2]PlacesConfig!$A:$C,3,FALSE),IF(N113="",""," - "&VLOOKUP(N113,[2]SmallPlacesConfig!$A:$G,7,FALSE))) -> 藐姑射山 | R113: =IF(S113="","",VLOOKUP(S113,条件类型查询!A:B,2,FALSE)) -> 前置事件 | S113: 10 | T113: 1021 | Z113: =COUNTIF(EventLinkConfig!O:O,EventConfig!A113) -> 1 | AA113: =IF($Z113>=AA$3,$A113*100+AA$3,"") -> 3001001 | AB113: =IF($Z113>=AB$3,$A113*100+AB$3,"") ->  | AC113: =IF($Z113>=AC$3,$A113*100+AC$3,"") ->  | AD113: =IF($Z113>=AD$3,$A113*100+AD$3,"") ->  | AE113: =IF($Z113>=AE$3,$A113*100+AE$3,"") ->  | AF113: =IF($Z113>=AF$3,$A113*100+AF$3,"") ->  | AG113: =IF($Z113>=AG$3,$A113*100+AG$3,"") ->  | AH113: =IF($Z113>=AH$3,$A113*100+AH$3,"") ->  | AI113: =IF($Z113>=AI$3,$A113*100+AI$3,"") ->  | AJ113: =IF($Z113>=AJ$3,$A113*100+AJ$3,"") ->  | AK113: =IF($Z113>=AK$3,$A113*100+AK$3,"") ->  | AL113: =IF($Z113>=AL$3,$A113*100+AL$3,"") ->  | AM113: =IF($Z113>=AM$3,$A113*100+AM$3,"") ->  | AN113: =IF($Z113>=AN$3,$A113*100+AN$3,"") ->  | AO113: =IF($Z113>=AO$3,$A113*100+AO$3,"") ->  | AP113: =IF($Z113>=AP$3,$A113*100+AP$3,"") ->  | AT113: 100 | AY113: =IF(AU113="","",CONCATENATE(VLOOKUP(AU113,[1]DropConfig!$A:$F,3,FALSE),"×",AV113)) ->  | AZ113: =IF(AW113="","",CONCATENATE(VLOOKUP(AW113,[1]DropConfig!$A:$F,3,FALSE),"×",AX113)) -> 
A114: 30011 | B114: 3001101;3001102;100;102 | C114: 98 | D114: 6 | E114: 1 | F114: 0 | G114: 1 | I114: 20003 | J114: 3 | K114: 100 | L114: 1 | M114: 2 | O114: =CONCATENATE(VLOOKUP(M114,[2]PlacesConfig!$A:$C,3,FALSE),IF(N114="",""," - "&VLOOKUP(N114,[2]SmallPlacesConfig!$A:$G,7,FALSE))) -> 尧之都 | R114: =IF(S114="","",VLOOKUP(S114,条件类型查询!A:B,2,FALSE)) ->  | Z114: =COUNTIF(EventLinkConfig!O:O,EventConfig!A114) -> 2 | AA114: =IF($Z114>=AA$3,$A114*100+AA$3,"") -> 3001101 | AB114: =IF($Z114>=AB$3,$A114*100+AB$3,"") -> 3001102 | AC114: =IF($Z114>=AC$3,$A114*100+AC$3,"") ->  | AD114: =IF($Z114>=AD$3,$A114*100+AD$3,"") ->  | AE114: =IF($Z114>=AE$3,$A114*100+AE$3,"") ->  | AF114: =IF($Z114>=AF$3,$A114*100+AF$3,"") ->  | AG114: =IF($Z114>=AG$3,$A114*100+AG$3,"") ->  | AH114: =IF($Z114>=AH$3,$A114*100+AH$3,"") ->  | AI114: =IF($Z114>=AI$3,$A114*100+AI$3,"") ->  | AJ114: =IF($Z114>=AJ$3,$A114*100+AJ$3,"") ->  | AK114: =IF($Z114>=AK$3,$A114*100+AK$3,"") ->  | AL114: =IF($Z114>=AL$3,$A114*100+AL$3,"") ->  | AM114: =IF($Z114>=AM$3,$A114*100+AM$3,"") ->  | AN114: =IF($Z114>=AN$3,$A114*100+AN$3,"") ->  | AO114: =IF($Z114>=AO$3,$A114*100+AO$3,"") ->  | AP114: =IF($Z114>=AP$3,$A114*100+AP$3,"") ->  | AT114: 100 | AY114: =IF(AU114="","",CONCATENATE(VLOOKUP(AU114,[1]DropConfig!$A:$F,3,FALSE),"×",AV114)) ->  | AZ114: =IF(AW114="","",CONCATENATE(VLOOKUP(AW114,[1]DropConfig!$A:$F,3,FALSE),"×",AX114)) -> 
A115: 30012 | B115: 3001201;102 | C115: 98 | D115: 6 | E115: 1 | F115: 0 | G115: 1 | I115: 20004 | J115: 1 | K115: 20 | L115: 1 | M115: 2 | O115: =CONCATENATE(VLOOKUP(M115,[2]PlacesConfig!$A:$C,3,FALSE),IF(N115="",""," - "&VLOOKUP(N115,[2]SmallPlacesConfig!$A:$G,7,FALSE))) -> 尧之都 | R115: =IF(S115="","",VLOOKUP(S115,条件类型查询!A:B,2,FALSE)) ->  | Z115: =COUNTIF(EventLinkConfig!O:O,EventConfig!A115) -> 1 | AA115: =IF($Z115>=AA$3,$A115*100+AA$3,"") -> 3001201 | AB115: =IF($Z115>=AB$3,$A115*100+AB$3,"") ->  | AC115: =IF($Z115>=AC$3,$A115*100+AC$3,"") ->  | AD115: =IF($Z115>=AD$3,$A115*100+AD$3,"") ->  | AE115: =IF($Z115>=AE$3,$A115*100+AE$3,"") ->  | AF115: =IF($Z115>=AF$3,$A115*100+AF$3,"") ->  | AG115: =IF($Z115>=AG$3,$A115*100+AG$3,"") ->  | AH115: =IF($Z115>=AH$3,$A115*100+AH$3,"") ->  | AI115: =IF($Z115>=AI$3,$A115*100+AI$3,"") ->  | AJ115: =IF($Z115>=AJ$3,$A115*100+AJ$3,"") ->  | AK115: =IF($Z115>=AK$3,$A115*100+AK$3,"") ->  | AL115: =IF($Z115>=AL$3,$A115*100+AL$3,"") ->  | AM115: =IF($Z115>=AM$3,$A115*100+AM$3,"") ->  | AN115: =IF($Z115>=AN$3,$A115*100+AN$3,"") ->  | AO115: =IF($Z115>=AO$3,$A115*100+AO$3,"") ->  | AP115: =IF($Z115>=AP$3,$A115*100+AP$3,"") ->  | AY115: =IF(AU115="","",CONCATENATE(VLOOKUP(AU115,[1]DropConfig!$A:$F,3,FALSE),"×",AV115)) ->  | AZ115: =IF(AW115="","",CONCATENATE(VLOOKUP(AW115,[1]DropConfig!$A:$F,3,FALSE),"×",AX115)) -> 
A116: 30013 | B116: =IF(A116="","",_xlfn.TEXTJOIN(";",1,AA116:AT116,102)) -> 3001301;102 | C116: 98 | D116: 6 | E116: 1 | F116: 0 | G116: 1 | I116: 20005 | J116: 1 | K116: 20 | L116: 1 | M116: 1 | O116: =CONCATENATE(VLOOKUP(M116,[2]PlacesConfig!$A:$C,3,FALSE),IF(N116="",""," - "&VLOOKUP(N116,[2]SmallPlacesConfig!$A:$G,7,FALSE))) -> 北海 | R116: =IF(S116="","",VLOOKUP(S116,条件类型查询!A:B,2,FALSE)) ->  | U116: 3 | V116: 4163 | W116: 4164 | X116: 搜集风铃 | Y116: 为雀灵儿搜集风铃 | Z116: =COUNTIF(EventLinkConfig!O:O,EventConfig!A116) -> 1 | AA116: =IF($Z116>=AA$3,$A116*100+AA$3,"") -> 3001301 | AB116: =IF($Z116>=AB$3,$A116*100+AB$3,"") ->  | AC116: =IF($Z116>=AC$3,$A116*100+AC$3,"") ->  | AD116: =IF($Z116>=AD$3,$A116*100+AD$3,"") ->  | AE116: =IF($Z116>=AE$3,$A116*100+AE$3,"") ->  | AF116: =IF($Z116>=AF$3,$A116*100+AF$3,"") ->  | AG116: =IF($Z116>=AG$3,$A116*100+AG$3,"") ->  | AH116: =IF($Z116>=AH$3,$A116*100+AH$3,"") ->  | AI116: =IF($Z116>=AI$3,$A116*100+AI$3,"") ->  | AJ116: =IF($Z116>=AJ$3,$A116*100+AJ$3,"") ->  | AK116: =IF($Z116>=AK$3,$A116*100+AK$3,"") ->  | AL116: =IF($Z116>=AL$3,$A116*100+AL$3,"") ->  | AM116: =IF($Z116>=AM$3,$A116*100+AM$3,"") ->  | AN116: =IF($Z116>=AN$3,$A116*100+AN$3,"") ->  | AO116: =IF($Z116>=AO$3,$A116*100+AO$3,"") ->  | AP116: =IF($Z116>=AP$3,$A116*100+AP$3,"") ->  | AY116: =IF(AU116="","",CONCATENATE(VLOOKUP(AU116,[1]DropConfig!$A:$F,3,FALSE),"×",AV116)) ->  | AZ116: =IF(AW116="","",CONCATENATE(VLOOKUP(AW116,[1]DropConfig!$A:$F,3,FALSE),"×",AX116)) -> 
A117: 30014 | B117: 3001401;102 | C117: 98 | D117: 6 | E117: 1 | F117: 0 | G117: 1 | I117: 1001 | J117: 100 | K117: 20 | L117: 1 | M117: 1 | O117: =CONCATENATE(VLOOKUP(M117,[2]PlacesConfig!$A:$C,3,FALSE),IF(N117="",""," - "&VLOOKUP(N117,[2]SmallPlacesConfig!$A:$G,7,FALSE))) -> 北海 | R117: =IF(S117="","",VLOOKUP(S117,条件类型查询!A:B,2,FALSE)) ->  | U117: 1 | V117: 4177 | W117: 4178 | X117: 击败风妖 | Y117: 云枝-击败风妖 | Z117: =COUNTIF(EventLinkConfig!O:O,EventConfig!A117) -> 1 | AA117: =IF($Z117>=AA$3,$A117*100+AA$3,"") -> 3001401 | AB117: =IF($Z117>=AB$3,$A117*100+AB$3,"") ->  | AC117: =IF($Z117>=AC$3,$A117*100+AC$3,"") ->  | AD117: =IF($Z117>=AD$3,$A117*100+AD$3,"") ->  | AE117: =IF($Z117>=AE$3,$A117*100+AE$3,"") ->  | AF117: =IF($Z117>=AF$3,$A117*100+AF$3,"") ->  | AG117: =IF($Z117>=AG$3,$A117*100+AG$3,"") ->  | AH117: =IF($Z117>=AH$3,$A117*100+AH$3,"") ->  | AI117: =IF($Z117>=AI$3,$A117*100+AI$3,"") ->  | AJ117: =IF($Z117>=AJ$3,$A117*100+AJ$3,"") ->  | AK117: =IF($Z117>=AK$3,$A117*100+AK$3,"") ->  | AL117: =IF($Z117>=AL$3,$A117*100+AL$3,"") ->  | AM117: =IF($Z117>=AM$3,$A117*100+AM$3,"") ->  | AN117: =IF($Z117>=AN$3,$A117*100+AN$3,"") ->  | AO117: =IF($Z117>=AO$3,$A117*100+AO$3,"") ->  | AP117: =IF($Z117>=AP$3,$A117*100+AP$3,"") ->  | AY117: =IF(AU117="","",CONCATENATE(VLOOKUP(AU117,[1]DropConfig!$A:$F,3,FALSE),"×",AV117)) ->  | AZ117: =IF(AW117="","",CONCATENATE(VLOOKUP(AW117,[1]DropConfig!$A:$F,3,FALSE),"×",AX117)) -> 
A118: 30015 | B118: 3001501;102 | C118: 98 | D118: 6 | E118: 1 | F118: 0 | G118: 1 | I118: 20006 | J118: 1 | K118: 33 | L118: 1 | M118: 1 | O118: =CONCATENATE(VLOOKUP(M118,[2]PlacesConfig!$A:$C,3,FALSE),IF(N118="",""," - "&VLOOKUP(N118,[2]SmallPlacesConfig!$A:$G,7,FALSE))) -> 北海 | R118: =IF(S118="","",VLOOKUP(S118,条件类型查询!A:B,2,FALSE)) ->  | U118: 3 | V118: 4193 | W118: 4194 | X118: 搜集风灵碎片 | Y118: 风瑶-2. 风灵碎片.岛间搜寻 | Z118: =COUNTIF(EventLinkConfig!O:O,EventConfig!A118) -> 1 | AA118: =IF($Z118>=AA$3,$A118*100+AA$3,"") -> 3001501 | AB118: =IF($Z118>=AB$3,$A118*100+AB$3,"") ->  | AC118: =IF($Z118>=AC$3,$A118*100+AC$3,"") ->  | AD118: =IF($Z118>=AD$3,$A118*100+AD$3,"") ->  | AE118: =IF($Z118>=AE$3,$A118*100+AE$3,"") ->  | AF118: =IF($Z118>=AF$3,$A118*100+AF$3,"") ->  | AG118: =IF($Z118>=AG$3,$A118*100+AG$3,"") ->  | AH118: =IF($Z118>=AH$3,$A118*100+AH$3,"") ->  | AI118: =IF($Z118>=AI$3,$A118*100+AI$3,"") ->  | AJ118: =IF($Z118>=AJ$3,$A118*100+AJ$3,"") ->  | AK118: =IF($Z118>=AK$3,$A118*100+AK$3,"") ->  | AL118: =IF($Z118>=AL$3,$A118*100+AL$3,"") ->  | AM118: =IF($Z118>=AM$3,$A118*100+AM$3,"") ->  | AN118: =IF($Z118>=AN$3,$A118*100+AN$3,"") ->  | AO118: =IF($Z118>=AO$3,$A118*100+AO$3,"") ->  | AP118: =IF($Z118>=AP$3,$A118*100+AP$3,"") ->  | AY118: =IF(AU118="","",CONCATENATE(VLOOKUP(AU118,[1]DropConfig!$A:$F,3,FALSE),"×",AV118)) ->  | AZ118: =IF(AW118="","",CONCATENATE(VLOOKUP(AW118,[1]DropConfig!$A:$F,3,FALSE),"×",AX118)) -> 
A119: 30016 | B119: 3001601;3001602;3001603;3001604;102 | C119: 98 | D119: 6 | E119: 1 | F119: 0 | G119: 1 | I119: 1001 | J119: 100 | K119: 20 | L119: 1 | M119: 1 | O119: =CONCATENATE(VLOOKUP(M119,[2]PlacesConfig!$A:$C,3,FALSE),IF(N119="",""," - "&VLOOKUP(N119,[2]SmallPlacesConfig!$A:$G,7,FALSE))) -> 北海 | R119: =IF(S119="","",VLOOKUP(S119,条件类型查询!A:B,2,FALSE)) ->  | U119: 1 | V119: 4195 | W119: 4196 | X119: 云隐秘闻 | Y119: 风瑶-3. 风中疑云.探听消息 | Z119: =COUNTIF(EventLinkConfig!O:O,EventConfig!A119) -> 4 | AA119: =IF($Z119>=AA$3,$A119*100+AA$3,"") -> 3001601 | AB119: =IF($Z119>=AB$3,$A119*100+AB$3,"") -> 3001602 | AC119: =IF($Z119>=AC$3,$A119*100+AC$3,"") -> 3001603 | AD119: =IF($Z119>=AD$3,$A119*100+AD$3,"") -> 3001604 | AE119: =IF($Z119>=AE$3,$A119*100+AE$3,"") ->  | AF119: =IF($Z119>=AF$3,$A119*100+AF$3,"") ->  | AG119: =IF($Z119>=AG$3,$A119*100+AG$3,"") ->  | AH119: =IF($Z119>=AH$3,$A119*100+AH$3,"") ->  | AI119: =IF($Z119>=AI$3,$A119*100+AI$3,"") ->  | AJ119: =IF($Z119>=AJ$3,$A119*100+AJ$3,"") ->  | AK119: =IF($Z119>=AK$3,$A119*100+AK$3,"") ->  | AL119: =IF($Z119>=AL$3,$A119*100+AL$3,"") ->  | AM119: =IF($Z119>=AM$3,$A119*100+AM$3,"") ->  | AN119: =IF($Z119>=AN$3,$A119*100+AN$3,"") ->  | AO119: =IF($Z119>=AO$3,$A119*100+AO$3,"") ->  | AP119: =IF($Z119>=AP$3,$A119*100+AP$3,"") ->  | AY119: =IF(AU119="","",CONCATENATE(VLOOKUP(AU119,[1]DropConfig!$A:$F,3,FALSE),"×",AV119)) ->  | AZ119: =IF(AW119="","",CONCATENATE(VLOOKUP(AW119,[1]DropConfig!$A:$F,3,FALSE),"×",AX119)) -> 
A120: =A119+1 -> 30017 | B120: 3001701;102 | C120: 98 | D120: 6 | E120: 1 | F120: 0 | G120: 1 | I120: 20007 | J120: 1 | K120: 20 | L120: 1 | M120: 1 | O120: =CONCATENATE(VLOOKUP(M120,[2]PlacesConfig!$A:$C,3,FALSE),IF(N120="",""," - "&VLOOKUP(N120,[2]SmallPlacesConfig!$A:$G,7,FALSE))) -> 北海 | R120: =IF(S120="","",VLOOKUP(S120,条件类型查询!A:B,2,FALSE)) ->  | U120: 3 | V120: 4197 | W120: 4198 | X120: 搜集浮岛灵石 | Y120: 风瑶-4. 隐秘信物.追踪残片 | Z120: =COUNTIF(EventLinkConfig!O:O,EventConfig!A120) -> 1 | AA120: =IF($Z120>=AA$3,$A120*100+AA$3,"") -> 3001701 | AB120: =IF($Z120>=AB$3,$A120*100+AB$3,"") ->  | AC120: =IF($Z120>=AC$3,$A120*100+AC$3,"") ->  | AD120: =IF($Z120>=AD$3,$A120*100+AD$3,"") ->  | AE120: =IF($Z120>=AE$3,$A120*100+AE$3,"") ->  | AF120: =IF($Z120>=AF$3,$A120*100+AF$3,"") ->  | AG120: =IF($Z120>=AG$3,$A120*100+AG$3,"") ->  | AH120: =IF($Z120>=AH$3,$A120*100+AH$3,"") ->  | AI120: =IF($Z120>=AI$3,$A120*100+AI$3,"") ->  | AJ120: =IF($Z120>=AJ$3,$A120*100+AJ$3,"") ->  | AK120: =IF($Z120>=AK$3,$A120*100+AK$3,"") ->  | AL120: =IF($Z120>=AL$3,$A120*100+AL$3,"") ->  | AM120: =IF($Z120>=AM$3,$A120*100+AM$3,"") ->  | AN120: =IF($Z120>=AN$3,$A120*100+AN$3,"") ->  | AO120: =IF($Z120>=AO$3,$A120*100+AO$3,"") ->  | AY120: =IF(AU120="","",CONCATENATE(VLOOKUP(AU120,[1]DropConfig!$A:$F,3,FALSE),"×",AV120)) ->  | AZ120: =IF(AW120="","",CONCATENATE(VLOOKUP(AW120,[1]DropConfig!$A:$F,3,FALSE),"×",AX120)) -> 
A121: 30018 | B121: 3001801;102 | C121: 98 | D121: 6 | E121: 1 | F121: 0 | G121: 1 | I121: 20008 | J121: 1 | K121: 20 | L121: 1 | M121: 1 | O121: =CONCATENATE(VLOOKUP(M121,[2]PlacesConfig!$A:$C,3,FALSE),IF(N121="",""," - "&VLOOKUP(N121,[2]SmallPlacesConfig!$A:$G,7,FALSE))) -> 北海 | R121: =IF(S121="","",VLOOKUP(S121,条件类型查询!A:B,2,FALSE)) ->  | U121: 1 | V121: 4199 | W121: 4200 | X121: 搜集浮岛灵石 | Y121: 风瑶-5. 风中密信.截获情报 | Z121: =COUNTIF(EventLinkConfig!O:O,EventConfig!A121) -> 1 | AA121: =IF($Z121>=AA$3,$A121*100+AA$3,"") -> 3001801 | AB121: =IF($Z121>=AB$3,$A121*100+AB$3,"") ->  | AC121: =IF($Z121>=AC$3,$A121*100+AC$3,"") ->  | AD121: =IF($Z121>=AD$3,$A121*100+AD$3,"") ->  | AE121: =IF($Z121>=AE$3,$A121*100+AE$3,"") ->  | AF121: =IF($Z121>=AF$3,$A121*100+AF$3,"") ->  | AG121: =IF($Z121>=AG$3,$A121*100+AG$3,"") ->  | AH121: =IF($Z121>=AH$3,$A121*100+AH$3,"") ->  | AI121: =IF($Z121>=AI$3,$A121*100+AI$3,"") ->  | AJ121: =IF($Z121>=AJ$3,$A121*100+AJ$3,"") ->  | AK121: =IF($Z121>=AK$3,$A121*100+AK$3,"") ->  | AL121: =IF($Z121>=AL$3,$A121*100+AL$3,"") ->  | AM121: =IF($Z121>=AM$3,$A121*100+AM$3,"") ->  | AN121: =IF($Z121>=AN$3,$A121*100+AN$3,"") ->  | AO121: =IF($Z121>=AO$3,$A121*100+AO$3,"") ->  | AY121: =IF(AU121="","",CONCATENATE(VLOOKUP(AU121,[1]DropConfig!$A:$F,3,FALSE),"×",AV121)) ->  | AZ121: =IF(AW121="","",CONCATENATE(VLOOKUP(AW121,[1]DropConfig!$A:$F,3,FALSE),"×",AX121)) -> 
A122: 30019 | B122: 3001901;102 | C122: 98 | D122: 6 | E122: 1 | F122: 0 | G122: 1 | I122: 20009 | J122: 1 | K122: 20 | L122: 1 | M122: 1 | O122: =CONCATENATE(VLOOKUP(M122,[2]PlacesConfig!$A:$C,3,FALSE),IF(N122="",""," - "&VLOOKUP(N122,[2]SmallPlacesConfig!$A:$G,7,FALSE))) -> 北海 | R122: =IF(S122="","",VLOOKUP(S122,条件类型查询!A:B,2,FALSE)) ->  | U122: 2 | V122: 4213 | W122: 4214 | X122: 搜集尧都玉佩 | Y122: 婉溪-4. 玉佩稳灵.收集信物 | Z122: =COUNTIF(EventLinkConfig!O:O,EventConfig!A122) -> 1 | AA122: =IF($Z122>=AA$3,$A122*100+AA$3,"") -> 3001901 | AB122: =IF($Z122>=AB$3,$A122*100+AB$3,"") ->  | AC122: =IF($Z122>=AC$3,$A122*100+AC$3,"") ->  | AD122: =IF($Z122>=AD$3,$A122*100+AD$3,"") ->  | AE122: =IF($Z122>=AE$3,$A122*100+AE$3,"") ->  | AF122: =IF($Z122>=AF$3,$A122*100+AF$3,"") ->  | AG122: =IF($Z122>=AG$3,$A122*100+AG$3,"") ->  | AH122: =IF($Z122>=AH$3,$A122*100+AH$3,"") ->  | AI122: =IF($Z122>=AI$3,$A122*100+AI$3,"") ->  | AJ122: =IF($Z122>=AJ$3,$A122*100+AJ$3,"") ->  | AK122: =IF($Z122>=AK$3,$A122*100+AK$3,"") ->  | AL122: =IF($Z122>=AL$3,$A122*100+AL$3,"") ->  | AM122: =IF($Z122>=AM$3,$A122*100+AM$3,"") ->  | AN122: =IF($Z122>=AN$3,$A122*100+AN$3,"") ->  | AO122: =IF($Z122>=AO$3,$A122*100+AO$3,"") ->  | AY122: =IF(AU122="","",CONCATENATE(VLOOKUP(AU122,[1]DropConfig!$A:$F,3,FALSE),"×",AV122)) ->  | AZ122: =IF(AW122="","",CONCATENATE(VLOOKUP(AW122,[1]DropConfig!$A:$F,3,FALSE),"×",AX122)) -> 
A123: 30020 | B123: 3002001;102 | C123: 98 | D123: 6 | E123: 1 | F123: 0 | G123: 1 | I123: 20010 | J123: 1 | K123: 20 | L123: 1 | M123: 1 | O123: =CONCATENATE(VLOOKUP(M123,[2]PlacesConfig!$A:$C,3,FALSE),IF(N123="",""," - "&VLOOKUP(N123,[2]SmallPlacesConfig!$A:$G,7,FALSE))) -> 北海 | R123: =IF(S123="","",VLOOKUP(S123,条件类型查询!A:B,2,FALSE)) ->  | U123: 2 | V123: 4227 | W123: 4228 | X123: 搜集山野灵草 | Y123: 许由-2. 山野采草.炼丹初助 | Z123: =COUNTIF(EventLinkConfig!O:O,EventConfig!A123) -> 1 | AA123: =IF($Z123>=AA$3,$A123*100+AA$3,"") -> 3002001 | AB123: =IF($Z123>=AB$3,$A123*100+AB$3,"") ->  | AC123: =IF($Z123>=AC$3,$A123*100+AC$3,"") ->  | AD123: =IF($Z123>=AD$3,$A123*100+AD$3,"") ->  | AE123: =IF($Z123>=AE$3,$A123*100+AE$3,"") ->  | AF123: =IF($Z123>=AF$3,$A123*100+AF$3,"") ->  | AG123: =IF($Z123>=AG$3,$A123*100+AG$3,"") ->  | AH123: =IF($Z123>=AH$3,$A123*100+AH$3,"") ->  | AI123: =IF($Z123>=AI$3,$A123*100+AI$3,"") ->  | AJ123: =IF($Z123>=AJ$3,$A123*100+AJ$3,"") ->  | AK123: =IF($Z123>=AK$3,$A123*100+AK$3,"") ->  | AL123: =IF($Z123>=AL$3,$A123*100+AL$3,"") ->  | AM123: =IF($Z123>=AM$3,$A123*100+AM$3,"") ->  | AN123: =IF($Z123>=AN$3,$A123*100+AN$3,"") ->  | AO123: =IF($Z123>=AO$3,$A123*100+AO$3,"") ->  | AY123: =IF(AU123="","",CONCATENATE(VLOOKUP(AU123,[1]DropConfig!$A:$F,3,FALSE),"×",AV123)) ->  | AZ123: =IF(AW123="","",CONCATENATE(VLOOKUP(AW123,[1]DropConfig!$A:$F,3,FALSE),"×",AX123)) -> 
A124: 30021 | B124: 3002101;3002102;3002103;102 | C124: 98 | D124: 6 | E124: 1 | F124: 0 | G124: 1 | I124: 20011 | J124: 1 | K124: 20 | L124: 1 | M124: 1 | O124: =CONCATENATE(VLOOKUP(M124,[2]PlacesConfig!$A:$C,3,FALSE),IF(N124="",""," - "&VLOOKUP(N124,[2]SmallPlacesConfig!$A:$G,7,FALSE))) -> 北海 | R124: =IF(S124="","",VLOOKUP(S124,条件类型查询!A:B,2,FALSE)) ->  | U124: 2 | V124: 4229 | W124: 4230 | X124: 搜集秘境种子 | Y124: 许由-4. 玉佩镇丹.稳气寻材 | Z124: =COUNTIF(EventLinkConfig!O:O,EventConfig!A124) -> 3 | AA124: =IF($Z124>=AA$3,$A124*100+AA$3,"") -> 3002101 | AB124: =IF($Z124>=AB$3,$A124*100+AB$3,"") -> 3002102 | AC124: =IF($Z124>=AC$3,$A124*100+AC$3,"") -> 3002103 | AD124: =IF($Z124>=AD$3,$A124*100+AD$3,"") ->  | AE124: =IF($Z124>=AE$3,$A124*100+AE$3,"") ->  | AF124: =IF($Z124>=AF$3,$A124*100+AF$3,"") ->  | AG124: =IF($Z124>=AG$3,$A124*100+AG$3,"") ->  | AH124: =IF($Z124>=AH$3,$A124*100+AH$3,"") ->  | AI124: =IF($Z124>=AI$3,$A124*100+AI$3,"") ->  | AJ124: =IF($Z124>=AJ$3,$A124*100+AJ$3,"") ->  | AK124: =IF($Z124>=AK$3,$A124*100+AK$3,"") ->  | AL124: =IF($Z124>=AL$3,$A124*100+AL$3,"") ->  | AM124: =IF($Z124>=AM$3,$A124*100+AM$3,"") ->  | AN124: =IF($Z124>=AN$3,$A124*100+AN$3,"") ->  | AO124: =IF($Z124>=AO$3,$A124*100+AO$3,"") ->  | AY124: =IF(AU124="","",CONCATENATE(VLOOKUP(AU124,[1]DropConfig!$A:$F,3,FALSE),"×",AV124)) ->  | AZ124: =IF(AW124="","",CONCATENATE(VLOOKUP(AW124,[1]DropConfig!$A:$F,3,FALSE),"×",AX124)) -> 
A125: 30022 | B125: 3002201;3002202;102 | C125: 98 | D125: 6 | E125: 1 | F125: 0 | G125: 1 | I125: 20012 | J125: 1 | K125: 20 | L125: 1 | M125: 1 | O125: =CONCATENATE(VLOOKUP(M125,[2]PlacesConfig!$A:$C,3,FALSE),IF(N125="",""," - "&VLOOKUP(N125,[2]SmallPlacesConfig!$A:$G,7,FALSE))) -> 北海 | R125: =IF(S125="","",VLOOKUP(S125,条件类型查询!A:B,2,FALSE)) ->  | U125: 3 | V125: 4242 | W125: 4243 | X125: 搜集甜蜜果实 | Y125: 疯道人-2. 途中解乏 | Z125: =COUNTIF(EventLinkConfig!O:O,EventConfig!A125) -> 2 | AA125: =IF($Z125>=AA$3,$A125*100+AA$3,"") -> 3002201 | AB125: =IF($Z125>=AB$3,$A125*100+AB$3,"") -> 3002202 | AC125: =IF($Z125>=AC$3,$A125*100+AC$3,"") ->  | AD125: =IF($Z125>=AD$3,$A125*100+AD$3,"") ->  | AE125: =IF($Z125>=AE$3,$A125*100+AE$3,"") ->  | AF125: =IF($Z125>=AF$3,$A125*100+AF$3,"") ->  | AG125: =IF($Z125>=AG$3,$A125*100+AG$3,"") ->  | AH125: =IF($Z125>=AH$3,$A125*100+AH$3,"") ->  | AI125: =IF($Z125>=AI$3,$A125*100+AI$3,"") ->  | AJ125: =IF($Z125>=AJ$3,$A125*100+AJ$3,"") ->  | AK125: =IF($Z125>=AK$3,$A125*100+AK$3,"") ->  | AL125: =IF($Z125>=AL$3,$A125*100+AL$3,"") ->  | AM125: =IF($Z125>=AM$3,$A125*100+AM$3,"") ->  | AN125: =IF($Z125>=AN$3,$A125*100+AN$3,"") ->  | AO125: =IF($Z125>=AO$3,$A125*100+AO$3,"") ->  | AY125: =IF(AU125="","",CONCATENATE(VLOOKUP(AU125,[1]DropConfig!$A:$F,3,FALSE),"×",AV125)) ->  | AZ125: =IF(AW125="","",CONCATENATE(VLOOKUP(AW125,[1]DropConfig!$A:$F,3,FALSE),"×",AX125)) -> 
A126: 30023 | B126: 3002301;3002302;102 | C126: 98 | D126: 6 | E126: 1 | F126: 0 | G126: 1 | K126: 20 | L126: 5 | M126: 1 | O126: =CONCATENATE(VLOOKUP(M126,[2]PlacesConfig!$A:$C,3,FALSE),IF(N126="",""," - "&VLOOKUP(N126,[2]SmallPlacesConfig!$A:$G,7,FALSE))) -> 北海 | R126: =IF(S126="","",VLOOKUP(S126,条件类型查询!A:B,2,FALSE)) ->  | U126: 3 | V126: 4275 | X126: 消灭妖邪 | Z126: =COUNTIF(EventLinkConfig!O:O,EventConfig!A126) -> 2 | AA126: =IF($Z126>=AA$3,$A126*100+AA$3,"") -> 3002301 | AB126: =IF($Z126>=AB$3,$A126*100+AB$3,"") -> 3002302 | AC126: =IF($Z126>=AC$3,$A126*100+AC$3,"") ->  | AD126: =IF($Z126>=AD$3,$A126*100+AD$3,"") ->  | AE126: =IF($Z126>=AE$3,$A126*100+AE$3,"") ->  | AF126: =IF($Z126>=AF$3,$A126*100+AF$3,"") ->  | AG126: =IF($Z126>=AG$3,$A126*100+AG$3,"") ->  | AH126: =IF($Z126>=AH$3,$A126*100+AH$3,"") ->  | AI126: =IF($Z126>=AI$3,$A126*100+AI$3,"") ->  | AJ126: =IF($Z126>=AJ$3,$A126*100+AJ$3,"") ->  | AK126: =IF($Z126>=AK$3,$A126*100+AK$3,"") ->  | AL126: =IF($Z126>=AL$3,$A126*100+AL$3,"") ->  | AM126: =IF($Z126>=AM$3,$A126*100+AM$3,"") ->  | AN126: =IF($Z126>=AN$3,$A126*100+AN$3,"") ->  | AO126: =IF($Z126>=AO$3,$A126*100+AO$3,"") ->  | AY126: =IF(AU126="","",CONCATENATE(VLOOKUP(AU126,[1]DropConfig!$A:$F,3,FALSE),"×",AV126)) ->  | AZ126: =IF(AW126="","",CONCATENATE(VLOOKUP(AW126,[1]DropConfig!$A:$F,3,FALSE),"×",AX126)) -> 
A127: 30024 | B127: 3002401;3002402;102 | C127: 98 | D127: 6 | E127: 1 | F127: 0 | G127: 1 | K127: 20 | L127: 5 | M127: 1 | O127: =CONCATENATE(VLOOKUP(M127,[2]PlacesConfig!$A:$C,3,FALSE),IF(N127="",""," - "&VLOOKUP(N127,[2]SmallPlacesConfig!$A:$G,7,FALSE))) -> 北海 | R127: =IF(S127="","",VLOOKUP(S127,条件类型查询!A:B,2,FALSE)) ->  | U127: 3 | V127: 4276 | X127: 消灭仙山西边的妖物 | Z127: =COUNTIF(EventLinkConfig!O:O,EventConfig!A127) -> 2 | AA127: =IF($Z127>=AA$3,$A127*100+AA$3,"") -> 3002401 | AB127: =IF($Z127>=AB$3,$A127*100+AB$3,"") -> 3002402 | AC127: =IF($Z127>=AC$3,$A127*100+AC$3,"") ->  | AD127: =IF($Z127>=AD$3,$A127*100+AD$3,"") ->  | AE127: =IF($Z127>=AE$3,$A127*100+AE$3,"") ->  | AF127: =IF($Z127>=AF$3,$A127*100+AF$3,"") ->  | AG127: =IF($Z127>=AG$3,$A127*100+AG$3,"") ->  | AH127: =IF($Z127>=AH$3,$A127*100+AH$3,"") ->  | AI127: =IF($Z127>=AI$3,$A127*100+AI$3,"") ->  | AJ127: =IF($Z127>=AJ$3,$A127*100+AJ$3,"") ->  | AK127: =IF($Z127>=AK$3,$A127*100+AK$3,"") ->  | AL127: =IF($Z127>=AL$3,$A127*100+AL$3,"") ->  | AM127: =IF($Z127>=AM$3,$A127*100+AM$3,"") ->  | AN127: =IF($Z127>=AN$3,$A127*100+AN$3,"") ->  | AO127: =IF($Z127>=AO$3,$A127*100+AO$3,"") ->  | AY127: =IF(AU127="","",CONCATENATE(VLOOKUP(AU127,[1]DropConfig!$A:$F,3,FALSE),"×",AV127)) ->  | AZ127: =IF(AW127="","",CONCATENATE(VLOOKUP(AW127,[1]DropConfig!$A:$F,3,FALSE),"×",AX127)) -> 
AY128: =IF(AU128="","",CONCATENATE(VLOOKUP(AU128,[1]DropConfig!$A:$F,3,FALSE),"×",AV128)) ->  | AZ128: =IF(AW128="","",CONCATENATE(VLOOKUP(AW128,[1]DropConfig!$A:$F,3,FALSE),"×",AX128)) -> 
B129: =IF(A129="","",_xlfn.TEXTJOIN(";",1,AA129:AT129,102)) ->  | C129: 99 | D129: 5 | E129: 1 | F129: 10 | G129: 1 | H129: 10 | I129: 1501 | J129: 1 | M129: 1 | Q129: 1 | R129: =IF(S129="","",VLOOKUP(S129,条件类型查询!A:B,2,FALSE)) ->  | V129: 4069 | W129: 4144 | X129: 风影为二 | Y129: 风影为二详情占位 | Z129: =COUNTIF(EventLinkConfig!O:O,EventConfig!A129) -> 0 | AA129: =IF($Z129>=AA$3,$A129*100+AA$3,"") ->  | AB129: =IF($Z129>=AB$3,$A129*100+AB$3,"") ->  | AC129: =IF($Z129>=AC$3,$A129*100+AC$3,"") ->  | AD129: =IF($Z129>=AD$3,$A129*100+AD$3,"") ->  | AE129: =IF($Z129>=AE$3,$A129*100+AE$3,"") ->  | AF129: =IF($Z129>=AF$3,$A129*100+AF$3,"") ->  | AG129: =IF($Z129>=AG$3,$A129*100+AG$3,"") ->  | AH129: =IF($Z129>=AH$3,$A129*100+AH$3,"") ->  | AI129: =IF($Z129>=AI$3,$A129*100+AI$3,"") ->  | AJ129: =IF($Z129>=AJ$3,$A129*100+AJ$3,"") ->  | AK129: =IF($Z129>=AK$3,$A129*100+AK$3,"") ->  | AL129: =IF($Z129>=AL$3,$A129*100+AL$3,"") ->  | AM129: =IF($Z129>=AM$3,$A129*100+AM$3,"") ->  | AN129: =IF($Z129>=AN$3,$A129*100+AN$3,"") ->  | AO129: =IF($Z129>=AO$3,$A129*100+AO$3,"") ->  | AP129: =IF($Z129>=AP$3,$A129*100+AP$3,"") ->  | AQ129: =IF($Z129>=AQ$3,$A129*100+AQ$3,"") ->  | AR129: =IF($Z129>=AR$3,$A129*100+AR$3,"") ->  | AS129: =IF($Z129>=AS$3,$A129*100+AS$3,"") ->  | AT129: =IF($Z129>=AT$3,$A129*100+AT$3,"") ->  | AY129: =IF(AU129="","",CONCATENATE(VLOOKUP(AU129,[1]DropConfig!$A:$F,3,FALSE),"×",AV129)) ->  | AZ129: =IF(AW129="","",CONCATENATE(VLOOKUP(AW129,[1]DropConfig!$A:$F,3,FALSE),"×",AX129)) -> 
C130: 99 | D130: 5 | E130: 1 | F130: 10 | G130: 1 | H130: 11 | I130: 1601 | J130: 1 | M130: 1 | Q130: 1 | R130: =IF(S130="","",VLOOKUP(S130,条件类型查询!A:B,2,FALSE)) -> 前置事件 | S130: 10 | T130: 5001 | V130: 4070 | W130: 4145 | X130: 风影合一 | Y130: 风影合一详情占位 | Z130: =COUNTIF(EventLinkConfig!O:O,EventConfig!A130) -> 0 | AA130: =IF($Z130>=AA$3,$A130*100+AA$3,"") ->  | AB130: =IF($Z130>=AB$3,$A130*100+AB$3,"") ->  | AC130: =IF($Z130>=AC$3,$A130*100+AC$3,"") ->  | AD130: =IF($Z130>=AD$3,$A130*100+AD$3,"") ->  | AE130: =IF($Z130>=AE$3,$A130*100+AE$3,"") ->  | AF130: =IF($Z130>=AF$3,$A130*100+AF$3,"") ->  | AG130: =IF($Z130>=AG$3,$A130*100+AG$3,"") ->  | AH130: =IF($Z130>=AH$3,$A130*100+AH$3,"") ->  | AI130: =IF($Z130>=AI$3,$A130*100+AI$3,"") ->  | AJ130: =IF($Z130>=AJ$3,$A130*100+AJ$3,"") ->  | AK130: =IF($Z130>=AK$3,$A130*100+AK$3,"") ->  | AL130: =IF($Z130>=AL$3,$A130*100+AL$3,"") ->  | AM130: =IF($Z130>=AM$3,$A130*100+AM$3,"") ->  | AN130: =IF($Z130>=AN$3,$A130*100+AN$3,"") ->  | AO130: =IF($Z130>=AO$3,$A130*100+AO$3,"") ->  | AP130: =IF($Z130>=AP$3,$A130*100+AP$3,"") ->  | AQ130: =IF($Z130>=AQ$3,$A130*100+AQ$3,"") ->  | AR130: =IF($Z130>=AR$3,$A130*100+AR$3,"") ->  | AS130: =IF($Z130>=AS$3,$A130*100+AS$3,"") ->  | AT130: =IF($Z130>=AT$3,$A130*100+AT$3,"") ->  | AY130: =IF(AU130="","",CONCATENATE(VLOOKUP(AU130,[1]DropConfig!$A:$F,3,FALSE),"×",AV130)) ->  | AZ130: =IF(AW130="","",CONCATENATE(VLOOKUP(AW130,[1]DropConfig!$A:$F,3,FALSE),"×",AX130)) -> 
C131: 99 | D131: 2 | E131: 1 | F131: 0 | G131: 1 | H131: 1 | I131: 1001 | J131: 500 | M131: 1 | Q131: 1 | R131: =IF(S131="","",VLOOKUP(S131,条件类型查询!A:B,2,FALSE)) ->  | V131: 4071 | W131: 4146 | X131: 北海剑妖 | Y131: 百年化妖为红颜，一剑焚海断孽缘 | Z131: =COUNTIF(EventLinkConfig!O:O,EventConfig!A131) -> 0 | AA131: =IF($Z131>=AA$3,$A131*100+AA$3,"") ->  | AB131: =IF($Z131>=AB$3,$A131*100+AB$3,"") ->  | AC131: =IF($Z131>=AC$3,$A131*100+AC$3,"") ->  | AD131: =IF($Z131>=AD$3,$A131*100+AD$3,"") ->  | AE131: =IF($Z131>=AE$3,$A131*100+AE$3,"") ->  | AF131: =IF($Z131>=AF$3,$A131*100+AF$3,"") ->  | AG131: =IF($Z131>=AG$3,$A131*100+AG$3,"") ->  | AH131: =IF($Z131>=AH$3,$A131*100+AH$3,"") ->  | AI131: =IF($Z131>=AI$3,$A131*100+AI$3,"") ->  | AJ131: =IF($Z131>=AJ$3,$A131*100+AJ$3,"") ->  | AK131: =IF($Z131>=AK$3,$A131*100+AK$3,"") ->  | AL131: =IF($Z131>=AL$3,$A131*100+AL$3,"") ->  | AM131: =IF($Z131>=AM$3,$A131*100+AM$3,"") ->  | AN131: =IF($Z131>=AN$3,$A131*100+AN$3,"") ->  | AO131: =IF($Z131>=AO$3,$A131*100+AO$3,"") ->  | AP131: =IF($Z131>=AP$3,$A131*100+AP$3,"") ->  | AQ131: =IF($Z131>=AQ$3,$A131*100+AQ$3,"") ->  | AR131: =IF($Z131>=AR$3,$A131*100+AR$3,"") ->  | AS131: =IF($Z131>=AS$3,$A131*100+AS$3,"") ->  | AT131: =IF($Z131>=AT$3,$A131*100+AT$3,"") ->  | AY131: =IF(AU131="","",CONCATENATE(VLOOKUP(AU131,[1]DropConfig!$A:$F,3,FALSE),"×",AV131)) ->  | AZ131: =IF(AW131="","",CONCATENATE(VLOOKUP(AW131,[1]DropConfig!$A:$F,3,FALSE),"×",AX131)) -> 
A132: 5004 | B132: 500401;102 | C132: 99 | D132: 7 | E132: 1 | F132: 0 | G132: 1 | H132: 1 | I132: 1001 | J132: -20000 | R132: =IF(S132="","",VLOOKUP(S132,条件类型查询!A:B,2,FALSE)) ->  | V132: 4072 | W132: 4147 | X132: 【纳福】灵石 | Y132: 大量获取灵石 | Z132: =COUNTIF(EventLinkConfig!O:O,EventConfig!A132) -> 1 | AA132: =IF($Z132>=AA$3,$A132*100+AA$3,"") -> 500401 | AB132: =IF($Z132>=AB$3,$A132*100+AB$3,"") ->  | AC132: =IF($Z132>=AC$3,$A132*100+AC$3,"") ->  | AD132: =IF($Z132>=AD$3,$A132*100+AD$3,"") ->  | AE132: =IF($Z132>=AE$3,$A132*100+AE$3,"") ->  | AF132: =IF($Z132>=AF$3,$A132*100+AF$3,"") ->  | AG132: =IF($Z132>=AG$3,$A132*100+AG$3,"") ->  | AH132: =IF($Z132>=AH$3,$A132*100+AH$3,"") ->  | AI132: =IF($Z132>=AI$3,$A132*100+AI$3,"") ->  | AJ132: =IF($Z132>=AJ$3,$A132*100+AJ$3,"") ->  | AK132: =IF($Z132>=AK$3,$A132*100+AK$3,"") ->  | AL132: =IF($Z132>=AL$3,$A132*100+AL$3,"") ->  | AM132: =IF($Z132>=AM$3,$A132*100+AM$3,"") ->  | AN132: =IF($Z132>=AN$3,$A132*100+AN$3,"") ->  | AO132: =IF($Z132>=AO$3,$A132*100+AO$3,"") ->  | AP132: =IF($Z132>=AP$3,$A132*100+AP$3,"") ->  | AQ132: =IF($Z132>=AQ$3,$A132*100+AQ$3,"") ->  | AR132: =IF($Z132>=AR$3,$A132*100+AR$3,"") ->  | AS132: =IF($Z132>=AS$3,$A132*100+AS$3,"") ->  | AT132: =IF($Z132>=AT$3,$A132*100+AT$3,"") ->  | AY132: =IF(AU132="","",CONCATENATE(VLOOKUP(AU132,[1]DropConfig!$A:$F,3,FALSE),"×",AV132)) ->  | AZ132: =IF(AW132="","",CONCATENATE(VLOOKUP(AW132,[1]DropConfig!$A:$F,3,FALSE),"×",AX132)) -> 
A133: 5005 | B133: 500501;102 | C133: 99 | D133: 7 | E133: 1 | F133: 0 | G133: 1 | H133: 1 | I133: 1003 | J133: -20000 | R133: =IF(S133="","",VLOOKUP(S133,条件类型查询!A:B,2,FALSE)) ->  | V133: 4073 | W133: 4148 | X133: 【纳福】修为 | Y133: 大量获取修为 | Z133: =COUNTIF(EventLinkConfig!O:O,EventConfig!A133) -> 1 | AA133: =IF($Z133>=AA$3,$A133*100+AA$3,"") -> 500501 | AB133: =IF($Z133>=AB$3,$A133*100+AB$3,"") ->  | AC133: =IF($Z133>=AC$3,$A133*100+AC$3,"") ->  | AD133: =IF($Z133>=AD$3,$A133*100+AD$3,"") ->  | AE133: =IF($Z133>=AE$3,$A133*100+AE$3,"") ->  | AF133: =IF($Z133>=AF$3,$A133*100+AF$3,"") ->  | AG133: =IF($Z133>=AG$3,$A133*100+AG$3,"") ->  | AH133: =IF($Z133>=AH$3,$A133*100+AH$3,"") ->  | AI133: =IF($Z133>=AI$3,$A133*100+AI$3,"") ->  | AJ133: =IF($Z133>=AJ$3,$A133*100+AJ$3,"") ->  | AK133: =IF($Z133>=AK$3,$A133*100+AK$3,"") ->  | AL133: =IF($Z133>=AL$3,$A133*100+AL$3,"") ->  | AM133: =IF($Z133>=AM$3,$A133*100+AM$3,"") ->  | AN133: =IF($Z133>=AN$3,$A133*100+AN$3,"") ->  | AO133: =IF($Z133>=AO$3,$A133*100+AO$3,"") ->  | AP133: =IF($Z133>=AP$3,$A133*100+AP$3,"") ->  | AQ133: =IF($Z133>=AQ$3,$A133*100+AQ$3,"") ->  | AR133: =IF($Z133>=AR$3,$A133*100+AR$3,"") ->  | AS133: =IF($Z133>=AS$3,$A133*100+AS$3,"") ->  | AT133: =IF($Z133>=AT$3,$A133*100+AT$3,"") ->  | AY133: =IF(AU133="","",CONCATENATE(VLOOKUP(AU133,[1]DropConfig!$A:$F,3,FALSE),"×",AV133)) ->  | AZ133: =IF(AW133="","",CONCATENATE(VLOOKUP(AW133,[1]DropConfig!$A:$F,3,FALSE),"×",AX133)) -> 
A134: 5006 | B134: 500601;102 | C134: 99 | D134: 7 | E134: 1 | F134: 0 | G134: 1 | H134: 1 | I134: 1005 | J134: -20000 | R134: =IF(S134="","",VLOOKUP(S134,条件类型查询!A:B,2,FALSE)) ->  | V134: 4074 | W134: 4149 | X134: 【纳福】灵气 | Y134: 大量获取灵气 | Z134: =COUNTIF(EventLinkConfig!O:O,EventConfig!A134) -> 1 | AA134: =IF($Z134>=AA$3,$A134*100+AA$3,"") -> 500601 | AB134: =IF($Z134>=AB$3,$A134*100+AB$3,"") ->  | AC134: =IF($Z134>=AC$3,$A134*100+AC$3,"") ->  | AD134: =IF($Z134>=AD$3,$A134*100+AD$3,"") ->  | AE134: =IF($Z134>=AE$3,$A134*100+AE$3,"") ->  | AF134: =IF($Z134>=AF$3,$A134*100+AF$3,"") ->  | AG134: =IF($Z134>=AG$3,$A134*100+AG$3,"") ->  | AH134: =IF($Z134>=AH$3,$A134*100+AH$3,"") ->  | AI134: =IF($Z134>=AI$3,$A134*100+AI$3,"") ->  | AJ134: =IF($Z134>=AJ$3,$A134*100+AJ$3,"") ->  | AK134: =IF($Z134>=AK$3,$A134*100+AK$3,"") ->  | AL134: =IF($Z134>=AL$3,$A134*100+AL$3,"") ->  | AM134: =IF($Z134>=AM$3,$A134*100+AM$3,"") ->  | AN134: =IF($Z134>=AN$3,$A134*100+AN$3,"") ->  | AO134: =IF($Z134>=AO$3,$A134*100+AO$3,"") ->  | AP134: =IF($Z134>=AP$3,$A134*100+AP$3,"") ->  | AQ134: =IF($Z134>=AQ$3,$A134*100+AQ$3,"") ->  | AR134: =IF($Z134>=AR$3,$A134*100+AR$3,"") ->  | AS134: =IF($Z134>=AS$3,$A134*100+AS$3,"") ->  | AT134: =IF($Z134>=AT$3,$A134*100+AT$3,"") ->  | AY134: =IF(AU134="","",CONCATENATE(VLOOKUP(AU134,[1]DropConfig!$A:$F,3,FALSE),"×",AV134)) ->  | AZ134: =IF(AW134="","",CONCATENATE(VLOOKUP(AW134,[1]DropConfig!$A:$F,3,FALSE),"×",AX134)) -> 
A135: 5007 | B135: 500701;102 | C135: 99 | D135: 7 | E135: 1 | F135: 0 | G135: 1 | H135: 1 | I135: 1006 | J135: -20000 | R135: =IF(S135="","",VLOOKUP(S135,条件类型查询!A:B,2,FALSE)) ->  | V135: 4075 | W135: 4150 | X135: 【纳福】玄晶 | Y135: 大量获取玄晶 | Z135: =COUNTIF(EventLinkConfig!O:O,EventConfig!A135) -> 1 | AA135: =IF($Z135>=AA$3,$A135*100+AA$3,"") -> 500701 | AB135: =IF($Z135>=AB$3,$A135*100+AB$3,"") ->  | AC135: =IF($Z135>=AC$3,$A135*100+AC$3,"") ->  | AD135: =IF($Z135>=AD$3,$A135*100+AD$3,"") ->  | AE135: =IF($Z135>=AE$3,$A135*100+AE$3,"") ->  | AF135: =IF($Z135>=AF$3,$A135*100+AF$3,"") ->  | AG135: =IF($Z135>=AG$3,$A135*100+AG$3,"") ->  | AH135: =IF($Z135>=AH$3,$A135*100+AH$3,"") ->  | AI135: =IF($Z135>=AI$3,$A135*100+AI$3,"") ->  | AJ135: =IF($Z135>=AJ$3,$A135*100+AJ$3,"") ->  | AK135: =IF($Z135>=AK$3,$A135*100+AK$3,"") ->  | AL135: =IF($Z135>=AL$3,$A135*100+AL$3,"") ->  | AM135: =IF($Z135>=AM$3,$A135*100+AM$3,"") ->  | AN135: =IF($Z135>=AN$3,$A135*100+AN$3,"") ->  | AO135: =IF($Z135>=AO$3,$A135*100+AO$3,"") ->  | AP135: =IF($Z135>=AP$3,$A135*100+AP$3,"") ->  | AQ135: =IF($Z135>=AQ$3,$A135*100+AQ$3,"") ->  | AR135: =IF($Z135>=AR$3,$A135*100+AR$3,"") ->  | AS135: =IF($Z135>=AS$3,$A135*100+AS$3,"") ->  | AT135: =IF($Z135>=AT$3,$A135*100+AT$3,"") ->  | AY135: =IF(AU135="","",CONCATENATE(VLOOKUP(AU135,[1]DropConfig!$A:$F,3,FALSE),"×",AV135)) ->  | AZ135: =IF(AW135="","",CONCATENATE(VLOOKUP(AW135,[1]DropConfig!$A:$F,3,FALSE),"×",AX135)) -> 
AY136: =IF(AU136="","",CONCATENATE(VLOOKUP(AU136,[1]DropConfig!$A:$F,3,FALSE),"×",AV136)) ->  | AZ136: =IF(AW136="","",CONCATENATE(VLOOKUP(AW136,[1]DropConfig!$A:$F,3,FALSE),"×",AX136)) -> 
A137: 6001 | B137: =IF(A137="","",_xlfn.TEXTJOIN(";",1,AA137:AT137,102)) -> 600101;600102;600103;600104;600105;600106;600107;600108;600109;600110;600111;600112;600113;600114;600115;600116;600117;102 | C137: 7 | D137: 5 | E137: 1 | F137: 0 | G137: 1 | I137: =_xlfn.TEXTJOIN(";",1,AU137,AW137) -> 1501;1601 | J137: =_xlfn.TEXTJOIN(";",1,AV137,AX137) -> 10;1 | K137: 35 | L137: 1 | M137: 1 | O137: =CONCATENATE(VLOOKUP(M137,[2]PlacesConfig!$A:$C,3,FALSE),IF(N137="",""," - "&VLOOKUP(N137,[2]SmallPlacesConfig!$A:$G,7,FALSE))) -> 北海 | P137: 8 | R137: =IF(S137="","",VLOOKUP(S137,条件类型查询!A:B,2,FALSE)) -> 前置事件 | S137: 10 | T137: 10003 | V137: 4151 | W137: 4152 | X137: 树间闲聊 | Y137: 雀灵儿1 | Z137: =COUNTIF(EventLinkConfig!O:O,EventConfig!A137) -> 17 | AA137: =IF($Z137>=AA$3,$A137*100+AA$3,"") -> 600101 | AB137: =IF($Z137>=AB$3,$A137*100+AB$3,"") -> 600102 | AC137: =IF($Z137>=AC$3,$A137*100+AC$3,"") -> 600103 | AD137: =IF($Z137>=AD$3,$A137*100+AD$3,"") -> 600104 | AE137: =IF($Z137>=AE$3,$A137*100+AE$3,"") -> 600105 | AF137: =IF($Z137>=AF$3,$A137*100+AF$3,"") -> 600106 | AG137: =IF($Z137>=AG$3,$A137*100+AG$3,"") -> 600107 | AH137: =IF($Z137>=AH$3,$A137*100+AH$3,"") -> 600108 | AI137: =IF($Z137>=AI$3,$A137*100+AI$3,"") -> 600109 | AJ137: =IF($Z137>=AJ$3,$A137*100+AJ$3,"") -> 600110 | AK137: =IF($Z137>=AK$3,$A137*100+AK$3,"") -> 600111 | AL137: =IF($Z137>=AL$3,$A137*100+AL$3,"") -> 600112 | AM137: =IF($Z137>=AM$3,$A137*100+AM$3,"") -> 600113 | AN137: =IF($Z137>=AN$3,$A137*100+AN$3,"") -> 600114 | AO137: =IF($Z137>=AO$3,$A137*100+AO$3,"") -> 600115 | AP137: =IF($Z137>=AP$3,$A137*100+AP$3,"") -> 600116 | AQ137: =IF($Z137>=AQ$3,$A137*100+AQ$3,"") -> 600117 | AR137: =IF($Z137>=AR$3,$A137*100+AR$3,"") ->  | AS137: =IF($Z137>=AS$3,$A137*100+AS$3,"") ->  | AT137: =IF($Z137>=AT$3,$A137*100+AT$3,"") ->  | AU137: 1501 | AV137: 10 | AW137: 1601 | AX137: 1 | AY137: =IF(AU137="","",CONCATENATE(VLOOKUP(AU137,[1]DropConfig!$A:$F,3,FALSE),"×",AV137)) -> 好感度礼物1×10 | AZ137: =IF(AW137="","",CONCATENATE(VLOOKUP(AW137,[1]DropConfig!$A:$F,3,FALSE),"×",AX137)) -> 心情礼物1×1
A138: 6002 | B138: 600201;600202;600203;600204;600205;600206;102 | C138: 7 | D138: 5 | E138: 1 | F138: 0 | G138: 1 | I138: =_xlfn.TEXTJOIN(";",1,AU138,AW138) -> 1501;1601 | J138: =_xlfn.TEXTJOIN(";",1,AV138,AX138) -> 10;2 | K138: 30 | L138: 1 | M138: 1 | O138: =CONCATENATE(VLOOKUP(M138,[2]PlacesConfig!$A:$C,3,FALSE),IF(N138="",""," - "&VLOOKUP(N138,[2]SmallPlacesConfig!$A:$G,7,FALSE))) -> 北海 | R138: =IF(S138="","",VLOOKUP(S138,条件类型查询!A:B,2,FALSE)) -> 前置事件 | S138: 10 | T138: =A137 -> 6001 | V138: 4153 | W138: 4154 | X138: 风铃寻趣 | Y138: 雀灵儿2 | Z138: =COUNTIF(EventLinkConfig!O:O,EventConfig!A138) -> 6 | AA138: =IF($Z138>=AA$3,$A138*100+AA$3,"") -> 600201 | AB138: =IF($Z138>=AB$3,$A138*100+AB$3,"") -> 600202 | AC138: =IF($Z138>=AC$3,$A138*100+AC$3,"") -> 600203 | AD138: =IF($Z138>=AD$3,$A138*100+AD$3,"") -> 600204 | AE138: =IF($Z138>=AE$3,$A138*100+AE$3,"") -> 600205 | AF138: =IF($Z138>=AF$3,$A138*100+AF$3,"") -> 600206 | AG138: =IF($Z138>=AG$3,$A138*100+AG$3,"") ->  | AH138: =IF($Z138>=AH$3,$A138*100+AH$3,"") ->  | AI138: =IF($Z138>=AI$3,$A138*100+AI$3,"") ->  | AJ138: =IF($Z138>=AJ$3,$A138*100+AJ$3,"") ->  | AK138: =IF($Z138>=AK$3,$A138*100+AK$3,"") ->  | AL138: =IF($Z138>=AL$3,$A138*100+AL$3,"") ->  | AM138: =IF($Z138>=AM$3,$A138*100+AM$3,"") ->  | AN138: =IF($Z138>=AN$3,$A138*100+AN$3,"") ->  | AO138: =IF($Z138>=AO$3,$A138*100+AO$3,"") ->  | AP138: =IF($Z138>=AP$3,$A138*100+AP$3,"") ->  | AQ138: =IF($Z138>=AQ$3,$A138*100+AQ$3,"") ->  | AR138: =IF($Z138>=AR$3,$A138*100+AR$3,"") ->  | AS138: =IF($Z138>=AS$3,$A138*100+AS$3,"") ->  | AT138: =IF($Z138>=AT$3,$A138*100+AT$3,"") ->  | AU138: 1501 | AV138: 10 | AW138: 1601 | AX138: 2 | AY138: =IF(AU138="","",CONCATENATE(VLOOKUP(AU138,[1]DropConfig!$A:$F,3,FALSE),"×",AV138)) -> 好感度礼物1×10 | AZ138: =IF(AW138="","",CONCATENATE(VLOOKUP(AW138,[1]DropConfig!$A:$F,3,FALSE),"×",AX138)) -> 心情礼物1×2
A139: 6003 | B139: 600301;600302;600303;600304;600305;600306;600307;600308;600309;600310;600311;600312;600313;600314;600315;102 | C139: 7 | D139: 5 | E139: 1 | F139: 0 | G139: 1 | I139: 1501;1601 | J139: 10;3 | K139: 25 | L139: 1 | M139: 1 | O139: =CONCATENATE(VLOOKUP(M139,[2]PlacesConfig!$A:$C,3,FALSE),IF(N139="",""," - "&VLOOKUP(N139,[2]SmallPlacesConfig!$A:$G,7,FALSE))) -> 北海 | R139: =IF(S139="","",VLOOKUP(S139,条件类型查询!A:B,2,FALSE)) -> 前置事件 | S139: 10 | T139: =A138 -> 6002 | V139: 4155 | W139: 4156 | X139: 守护雀巢 | Y139: 雀灵儿3 | Z139: =COUNTIF(EventLinkConfig!O:O,EventConfig!A139) -> 15 | AA139: =IF($Z139>=AA$3,$A139*100+AA$3,"") -> 600301 | AB139: =IF($Z139>=AB$3,$A139*100+AB$3,"") -> 600302 | AC139: =IF($Z139>=AC$3,$A139*100+AC$3,"") -> 600303 | AD139: =IF($Z139>=AD$3,$A139*100+AD$3,"") -> 600304 | AE139: =IF($Z139>=AE$3,$A139*100+AE$3,"") -> 600305 | AF139: =IF($Z139>=AF$3,$A139*100+AF$3,"") -> 600306 | AG139: =IF($Z139>=AG$3,$A139*100+AG$3,"") -> 600307 | AH139: =IF($Z139>=AH$3,$A139*100+AH$3,"") -> 600308 | AI139: =IF($Z139>=AI$3,$A139*100+AI$3,"") -> 600309 | AJ139: =IF($Z139>=AJ$3,$A139*100+AJ$3,"") -> 600310 | AK139: =IF($Z139>=AK$3,$A139*100+AK$3,"") -> 600311 | AL139: =IF($Z139>=AL$3,$A139*100+AL$3,"") -> 600312 | AM139: =IF($Z139>=AM$3,$A139*100+AM$3,"") -> 600313 | AN139: =IF($Z139>=AN$3,$A139*100+AN$3,"") -> 600314 | AO139: =IF($Z139>=AO$3,$A139*100+AO$3,"") -> 600315 | AP139: =IF($Z139>=AP$3,$A139*100+AP$3,"") ->  | AQ139: =IF($Z139>=AQ$3,$A139*100+AQ$3,"") ->  | AR139: =IF($Z139>=AR$3,$A139*100+AR$3,"") ->  | AS139: =IF($Z139>=AS$3,$A139*100+AS$3,"") ->  | AT139: =IF($Z139>=AT$3,$A139*100+AT$3,"") ->  | AU139: 1501 | AV139: 10 | AW139: 1601 | AX139: 3 | AY139: =IF(AU139="","",CONCATENATE(VLOOKUP(AU139,[1]DropConfig!$A:$F,3,FALSE),"×",AV139)) -> 好感度礼物1×10 | AZ139: =IF(AW139="","",CONCATENATE(VLOOKUP(AW139,[1]DropConfig!$A:$F,3,FALSE),"×",AX139)) -> 心情礼物1×3
A140: 6004 | B140: 600401;600402;600403;600404;600405;600406;600407;600408;600409;102 | C140: 7 | D140: 5 | E140: 1 | F140: 0 | G140: 1 | I140: 1501;1601 | J140: 10;4 | K140: 20 | L140: 1 | M140: 1 | O140: =CONCATENATE(VLOOKUP(M140,[2]PlacesConfig!$A:$C,3,FALSE),IF(N140="",""," - "&VLOOKUP(N140,[2]SmallPlacesConfig!$A:$G,7,FALSE))) -> 北海 | R140: =IF(S140="","",VLOOKUP(S140,条件类型查询!A:B,2,FALSE)) -> 前置事件 | S140: 10 | T140: =A139 -> 6003 | V140: 4157 | W140: 4158 | X140: 小飞试胆 | Y140: 雀灵儿4 | Z140: =COUNTIF(EventLinkConfig!O:O,EventConfig!A140) -> 9 | AA140: =IF($Z140>=AA$3,$A140*100+AA$3,"") -> 600401 | AB140: =IF($Z140>=AB$3,$A140*100+AB$3,"") -> 600402 | AC140: =IF($Z140>=AC$3,$A140*100+AC$3,"") -> 600403 | AD140: =IF($Z140>=AD$3,$A140*100+AD$3,"") -> 600404 | AE140: =IF($Z140>=AE$3,$A140*100+AE$3,"") -> 600405 | AF140: =IF($Z140>=AF$3,$A140*100+AF$3,"") -> 600406 | AG140: =IF($Z140>=AG$3,$A140*100+AG$3,"") -> 600407 | AH140: =IF($Z140>=AH$3,$A140*100+AH$3,"") -> 600408 | AI140: =IF($Z140>=AI$3,$A140*100+AI$3,"") -> 600409 | AJ140: =IF($Z140>=AJ$3,$A140*100+AJ$3,"") ->  | AK140: =IF($Z140>=AK$3,$A140*100+AK$3,"") ->  | AL140: =IF($Z140>=AL$3,$A140*100+AL$3,"") ->  | AM140: =IF($Z140>=AM$3,$A140*100+AM$3,"") ->  | AN140: =IF($Z140>=AN$3,$A140*100+AN$3,"") ->  | AO140: =IF($Z140>=AO$3,$A140*100+AO$3,"") ->  | AP140: =IF($Z140>=AP$3,$A140*100+AP$3,"") ->  | AQ140: =IF($Z140>=AQ$3,$A140*100+AQ$3,"") ->  | AR140: =IF($Z140>=AR$3,$A140*100+AR$3,"") ->  | AS140: =IF($Z140>=AS$3,$A140*100+AS$3,"") ->  | AT140: =IF($Z140>=AT$3,$A140*100+AT$3,"") ->  | AU140: 1501 | AV140: 10 | AW140: 1601 | AX140: 4 | AY140: =IF(AU140="","",CONCATENATE(VLOOKUP(AU140,[1]DropConfig!$A:$F,3,FALSE),"×",AV140)) -> 好感度礼物1×10 | AZ140: =IF(AW140="","",CONCATENATE(VLOOKUP(AW140,[1]DropConfig!$A:$F,3,FALSE),"×",AX140)) -> 心情礼物1×4
A141: 6005 | B141: 600501;600502;600503;600504;600505;600506;102 | C141: 7 | D141: 5 | E141: 1 | F141: 0 | G141: 1 | I141: 1501;1601 | J141: 10;5 | K141: 15 | L141: 1 | M141: 1 | O141: =CONCATENATE(VLOOKUP(M141,[2]PlacesConfig!$A:$C,3,FALSE),IF(N141="",""," - "&VLOOKUP(N141,[2]SmallPlacesConfig!$A:$G,7,FALSE))) -> 北海 | R141: =IF(S141="","",VLOOKUP(S141,条件类型查询!A:B,2,FALSE)) -> 前置事件 | S141: 10 | T141: =A140 -> 6004 | V141: 4159 | W141: 4160 | X141: 风涡营救 | Y141: 雀灵儿5 | Z141: =COUNTIF(EventLinkConfig!O:O,EventConfig!A141) -> 6 | AA141: =IF($Z141>=AA$3,$A141*100+AA$3,"") -> 600501 | AB141: =IF($Z141>=AB$3,$A141*100+AB$3,"") -> 600502 | AC141: =IF($Z141>=AC$3,$A141*100+AC$3,"") -> 600503 | AD141: =IF($Z141>=AD$3,$A141*100+AD$3,"") -> 600504 | AE141: =IF($Z141>=AE$3,$A141*100+AE$3,"") -> 600505 | AF141: =IF($Z141>=AF$3,$A141*100+AF$3,"") -> 600506 | AG141: =IF($Z141>=AG$3,$A141*100+AG$3,"") ->  | AH141: =IF($Z141>=AH$3,$A141*100+AH$3,"") ->  | AI141: =IF($Z141>=AI$3,$A141*100+AI$3,"") ->  | AJ141: =IF($Z141>=AJ$3,$A141*100+AJ$3,"") ->  | AK141: =IF($Z141>=AK$3,$A141*100+AK$3,"") ->  | AL141: =IF($Z141>=AL$3,$A141*100+AL$3,"") ->  | AM141: =IF($Z141>=AM$3,$A141*100+AM$3,"") ->  | AN141: =IF($Z141>=AN$3,$A141*100+AN$3,"") ->  | AO141: =IF($Z141>=AO$3,$A141*100+AO$3,"") ->  | AP141: =IF($Z141>=AP$3,$A141*100+AP$3,"") ->  | AQ141: =IF($Z141>=AQ$3,$A141*100+AQ$3,"") ->  | AR141: =IF($Z141>=AR$3,$A141*100+AR$3,"") ->  | AS141: =IF($Z141>=AS$3,$A141*100+AS$3,"") ->  | AT141: =IF($Z141>=AT$3,$A141*100+AT$3,"") ->  | AU141: 1501 | AV141: 10 | AW141: 1601 | AX141: 5 | AY141: =IF(AU141="","",CONCATENATE(VLOOKUP(AU141,[1]DropConfig!$A:$F,3,FALSE),"×",AV141)) -> 好感度礼物1×10 | AZ141: =IF(AW141="","",CONCATENATE(VLOOKUP(AW141,[1]DropConfig!$A:$F,3,FALSE),"×",AX141)) -> 心情礼物1×5
A142: 6006 | B142: 600601;600602;600603;600604;600605;600606;600607;600608;600609;102 | C142: 7 | D142: 5 | E142: 1 | F142: 0 | G142: 1 | I142: 1501;1601 | J142: 10;5 | K142: 10 | L142: 1 | M142: 1 | O142: =CONCATENATE(VLOOKUP(M142,[2]PlacesConfig!$A:$C,3,FALSE),IF(N142="",""," - "&VLOOKUP(N142,[2]SmallPlacesConfig!$A:$G,7,FALSE))) -> 北海 | R142: =IF(S142="","",VLOOKUP(S142,条件类型查询!A:B,2,FALSE)) -> 前置事件 | S142: 10 | T142: =A141 -> 6005 | V142: 4161 | W142: 4162 | X142: 雀侣同行 | Y142: 雀灵儿6 | Z142: =COUNTIF(EventLinkConfig!O:O,EventConfig!A142) -> 9 | AA142: =IF($Z142>=AA$3,$A142*100+AA$3,"") -> 600601 | AB142: =IF($Z142>=AB$3,$A142*100+AB$3,"") -> 600602 | AC142: =IF($Z142>=AC$3,$A142*100+AC$3,"") -> 600603 | AD142: =IF($Z142>=AD$3,$A142*100+AD$3,"") -> 600604 | AE142: =IF($Z142>=AE$3,$A142*100+AE$3,"") -> 600605 | AF142: =IF($Z142>=AF$3,$A142*100+AF$3,"") -> 600606 | AG142: =IF($Z142>=AG$3,$A142*100+AG$3,"") -> 600607 | AH142: =IF($Z142>=AH$3,$A142*100+AH$3,"") -> 600608 | AI142: =IF($Z142>=AI$3,$A142*100+AI$3,"") -> 600609 | AJ142: =IF($Z142>=AJ$3,$A142*100+AJ$3,"") ->  | AK142: =IF($Z142>=AK$3,$A142*100+AK$3,"") ->  | AL142: =IF($Z142>=AL$3,$A142*100+AL$3,"") ->  | AM142: =IF($Z142>=AM$3,$A142*100+AM$3,"") ->  | AN142: =IF($Z142>=AN$3,$A142*100+AN$3,"") ->  | AO142: =IF($Z142>=AO$3,$A142*100+AO$3,"") ->  | AP142: =IF($Z142>=AP$3,$A142*100+AP$3,"") ->  | AQ142: =IF($Z142>=AQ$3,$A142*100+AQ$3,"") ->  | AR142: =IF($Z142>=AR$3,$A142*100+AR$3,"") ->  | AS142: =IF($Z142>=AS$3,$A142*100+AS$3,"") ->  | AT142: =IF($Z142>=AT$3,$A142*100+AT$3,"") ->  | AU142: 1501 | AV142: 10 | AW142: 1601 | AX142: 5 | AY142: =IF(AU142="","",CONCATENATE(VLOOKUP(AU142,[1]DropConfig!$A:$F,3,FALSE),"×",AV142)) -> 好感度礼物1×10 | AZ142: =IF(AW142="","",CONCATENATE(VLOOKUP(AW142,[1]DropConfig!$A:$F,3,FALSE),"×",AX142)) -> 心情礼物1×5
AY143: =IF(AU143="","",CONCATENATE(VLOOKUP(AU143,[1]DropConfig!$A:$F,3,FALSE),"×",AV143)) ->  | AZ143: =IF(AW143="","",CONCATENATE(VLOOKUP(AW143,[1]DropConfig!$A:$F,3,FALSE),"×",AX143)) -> 
A144: 6011 | B144: =IF(A144="","",_xlfn.TEXTJOIN(";",1,AA144:AT144,102)) -> 601101;601102;601103;601104;601105;601106;601107;102 | C144: 7 | D144: 5 | E144: 1 | F144: 0 | G144: 1 | I144: 1501;1601 | J144: 10;1 | K144: 35 | L144: 1 | M144: 1 | O144: =CONCATENATE(VLOOKUP(M144,[2]PlacesConfig!$A:$C,3,FALSE),IF(N144="",""," - "&VLOOKUP(N144,[2]SmallPlacesConfig!$A:$G,7,FALSE))) -> 北海 | R144: =IF(S144="","",VLOOKUP(S144,条件类型查询!A:B,2,FALSE)) -> 前置事件 | S144: 10 | T144: 6001 | V144: 4165 | W144: 4171 | X144: 绿林试探 | Y144: 云枝1 | Z144: =COUNTIF(EventLinkConfig!O:O,EventConfig!A144) -> 7 | AA144: =IF($Z144>=AA$3,$A144*100+AA$3,"") -> 601101 | AB144: =IF($Z144>=AB$3,$A144*100+AB$3,"") -> 601102 | AC144: =IF($Z144>=AC$3,$A144*100+AC$3,"") -> 601103 | AD144: =IF($Z144>=AD$3,$A144*100+AD$3,"") -> 601104 | AE144: =IF($Z144>=AE$3,$A144*100+AE$3,"") -> 601105 | AF144: =IF($Z144>=AF$3,$A144*100+AF$3,"") -> 601106 | AG144: =IF($Z144>=AG$3,$A144*100+AG$3,"") -> 601107 | AH144: =IF($Z144>=AH$3,$A144*100+AH$3,"") ->  | AI144: =IF($Z144>=AI$3,$A144*100+AI$3,"") ->  | AJ144: =IF($Z144>=AJ$3,$A144*100+AJ$3,"") ->  | AK144: =IF($Z144>=AK$3,$A144*100+AK$3,"") ->  | AL144: =IF($Z144>=AL$3,$A144*100+AL$3,"") ->  | AM144: =IF($Z144>=AM$3,$A144*100+AM$3,"") ->  | AN144: =IF($Z144>=AN$3,$A144*100+AN$3,"") ->  | AO144: =IF($Z144>=AO$3,$A144*100+AO$3,"") ->  | AP144: =IF($Z144>=AP$3,$A144*100+AP$3,"") ->  | AQ144: =IF($Z144>=AQ$3,$A144*100+AQ$3,"") ->  | AR144: =IF($Z144>=AR$3,$A144*100+AR$3,"") ->  | AS144: =IF($Z144>=AS$3,$A144*100+AS$3,"") ->  | AT144: =IF($Z144>=AT$3,$A144*100+AT$3,"") ->  | AU144: 1501 | AV144: 10 | AW144: 1601 | AX144: 1 | AY144: =IF(AU144="","",CONCATENATE(VLOOKUP(AU144,[1]DropConfig!$A:$F,3,FALSE),"×",AV144)) -> 好感度礼物1×10 | AZ144: =IF(AW144="","",CONCATENATE(VLOOKUP(AW144,[1]DropConfig!$A:$F,3,FALSE),"×",AX144)) -> 心情礼物1×1
A145: 6012 | B145: 601201;601202;601203;601204;601205;601206;601207;601208;102 | C145: 7 | D145: 5 | E145: 1 | F145: 0 | G145: 1 | I145: 1501;1601 | J145: 10;2 | K145: 30 | L145: 1 | M145: 1 | O145: =CONCATENATE(VLOOKUP(M145,[2]PlacesConfig!$A:$C,3,FALSE),IF(N145="",""," - "&VLOOKUP(N145,[2]SmallPlacesConfig!$A:$G,7,FALSE))) -> 北海 | R145: =IF(S145="","",VLOOKUP(S145,条件类型查询!A:B,2,FALSE)) -> 前置事件 | S145: 10 | T145: =A144 -> 6011 | V145: 4166 | W145: 4172 | X145: 风林除妖 | Y145: 云枝2 | Z145: =COUNTIF(EventLinkConfig!O:O,EventConfig!A145) -> 8 | AA145: =IF($Z145>=AA$3,$A145*100+AA$3,"") -> 601201 | AB145: =IF($Z145>=AB$3,$A145*100+AB$3,"") -> 601202 | AC145: =IF($Z145>=AC$3,$A145*100+AC$3,"") -> 601203 | AD145: =IF($Z145>=AD$3,$A145*100+AD$3,"") -> 601204 | AE145: =IF($Z145>=AE$3,$A145*100+AE$3,"") -> 601205 | AF145: =IF($Z145>=AF$3,$A145*100+AF$3,"") -> 601206 | AG145: =IF($Z145>=AG$3,$A145*100+AG$3,"") -> 601207 | AH145: =IF($Z145>=AH$3,$A145*100+AH$3,"") -> 601208 | AI145: =IF($Z145>=AI$3,$A145*100+AI$3,"") ->  | AJ145: =IF($Z145>=AJ$3,$A145*100+AJ$3,"") ->  | AK145: =IF($Z145>=AK$3,$A145*100+AK$3,"") ->  | AL145: =IF($Z145>=AL$3,$A145*100+AL$3,"") ->  | AM145: =IF($Z145>=AM$3,$A145*100+AM$3,"") ->  | AN145: =IF($Z145>=AN$3,$A145*100+AN$3,"") ->  | AO145: =IF($Z145>=AO$3,$A145*100+AO$3,"") ->  | AP145: =IF($Z145>=AP$3,$A145*100+AP$3,"") ->  | AQ145: =IF($Z145>=AQ$3,$A145*100+AQ$3,"") ->  | AR145: =IF($Z145>=AR$3,$A145*100+AR$3,"") ->  | AS145: =IF($Z145>=AS$3,$A145*100+AS$3,"") ->  | AT145: =IF($Z145>=AT$3,$A145*100+AT$3,"") ->  | AU145: 1501 | AV145: 10 | AW145: 1601 | AX145: 2 | AY145: =IF(AU145="","",CONCATENATE(VLOOKUP(AU145,[1]DropConfig!$A:$F,3,FALSE),"×",AV145)) -> 好感度礼物1×10 | AZ145: =IF(AW145="","",CONCATENATE(VLOOKUP(AW145,[1]DropConfig!$A:$F,3,FALSE),"×",AX145)) -> 心情礼物1×2
A146: 6013 | B146: 601301;601302;601303;601304;601305;601306;601307;601308;601309;601310;102 | C146: 7 | D146: 5 | E146: 1 | F146: 0 | G146: 1 | I146: 1501;1601 | J146: 10;3 | K146: 25 | L146: 1 | M146: 1 | O146: =CONCATENATE(VLOOKUP(M146,[2]PlacesConfig!$A:$C,3,FALSE),IF(N146="",""," - "&VLOOKUP(N146,[2]SmallPlacesConfig!$A:$G,7,FALSE))) -> 北海 | R146: =IF(S146="","",VLOOKUP(S146,条件类型查询!A:B,2,FALSE)) -> 前置事件 | S146: 10 | T146: =A145 -> 6012 | V146: 4167 | W146: 4173 | X146: 琴音守护 | Y146: 云枝3 | Z146: =COUNTIF(EventLinkConfig!O:O,EventConfig!A146) -> 10 | AA146: =IF($Z146>=AA$3,$A146*100+AA$3,"") -> 601301 | AB146: =IF($Z146>=AB$3,$A146*100+AB$3,"") -> 601302 | AC146: =IF($Z146>=AC$3,$A146*100+AC$3,"") -> 601303 | AD146: =IF($Z146>=AD$3,$A146*100+AD$3,"") -> 601304 | AE146: =IF($Z146>=AE$3,$A146*100+AE$3,"") -> 601305 | AF146: =IF($Z146>=AF$3,$A146*100+AF$3,"") -> 601306 | AG146: =IF($Z146>=AG$3,$A146*100+AG$3,"") -> 601307 | AH146: =IF($Z146>=AH$3,$A146*100+AH$3,"") -> 601308 | AI146: =IF($Z146>=AI$3,$A146*100+AI$3,"") -> 601309 | AJ146: =IF($Z146>=AJ$3,$A146*100+AJ$3,"") -> 601310 | AK146: =IF($Z146>=AK$3,$A146*100+AK$3,"") ->  | AL146: =IF($Z146>=AL$3,$A146*100+AL$3,"") ->  | AM146: =IF($Z146>=AM$3,$A146*100+AM$3,"") ->  | AN146: =IF($Z146>=AN$3,$A146*100+AN$3,"") ->  | AO146: =IF($Z146>=AO$3,$A146*100+AO$3,"") ->  | AP146: =IF($Z146>=AP$3,$A146*100+AP$3,"") ->  | AQ146: =IF($Z146>=AQ$3,$A146*100+AQ$3,"") ->  | AR146: =IF($Z146>=AR$3,$A146*100+AR$3,"") ->  | AS146: =IF($Z146>=AS$3,$A146*100+AS$3,"") ->  | AT146: =IF($Z146>=AT$3,$A146*100+AT$3,"") ->  | AU146: 1501 | AV146: 10 | AW146: 1601 | AX146: 3 | AY146: =IF(AU146="","",CONCATENATE(VLOOKUP(AU146,[1]DropConfig!$A:$F,3,FALSE),"×",AV146)) -> 好感度礼物1×10 | AZ146: =IF(AW146="","",CONCATENATE(VLOOKUP(AW146,[1]DropConfig!$A:$F,3,FALSE),"×",AX146)) -> 心情礼物1×3
A147: 6014 | B147: 601401;601402;601403;601404;601405;601406;601407;601408;601409;601410;102 | C147: 7 | D147: 5 | E147: 1 | F147: 0 | G147: 1 | I147: 1501;1601 | J147: 10;4 | K147: 20 | L147: 1 | M147: 1 | O147: =CONCATENATE(VLOOKUP(M147,[2]PlacesConfig!$A:$C,3,FALSE),IF(N147="",""," - "&VLOOKUP(N147,[2]SmallPlacesConfig!$A:$G,7,FALSE))) -> 北海 | R147: =IF(S147="","",VLOOKUP(S147,条件类型查询!A:B,2,FALSE)) -> 前置事件 | S147: 10 | T147: =A146 -> 6013 | V147: 4168 | W147: 4174 | X147: 往事如风 | Y147: 云枝4 | Z147: =COUNTIF(EventLinkConfig!O:O,EventConfig!A147) -> 10 | AA147: =IF($Z147>=AA$3,$A147*100+AA$3,"") -> 601401 | AB147: =IF($Z147>=AB$3,$A147*100+AB$3,"") -> 601402 | AC147: =IF($Z147>=AC$3,$A147*100+AC$3,"") -> 601403 | AD147: =IF($Z147>=AD$3,$A147*100+AD$3,"") -> 601404 | AE147: =IF($Z147>=AE$3,$A147*100+AE$3,"") -> 601405 | AF147: =IF($Z147>=AF$3,$A147*100+AF$3,"") -> 601406 | AG147: =IF($Z147>=AG$3,$A147*100+AG$3,"") -> 601407 | AH147: =IF($Z147>=AH$3,$A147*100+AH$3,"") -> 601408 | AI147: =IF($Z147>=AI$3,$A147*100+AI$3,"") -> 601409 | AJ147: =IF($Z147>=AJ$3,$A147*100+AJ$3,"") -> 601410 | AK147: =IF($Z147>=AK$3,$A147*100+AK$3,"") ->  | AL147: =IF($Z147>=AL$3,$A147*100+AL$3,"") ->  | AM147: =IF($Z147>=AM$3,$A147*100+AM$3,"") ->  | AN147: =IF($Z147>=AN$3,$A147*100+AN$3,"") ->  | AO147: =IF($Z147>=AO$3,$A147*100+AO$3,"") ->  | AP147: =IF($Z147>=AP$3,$A147*100+AP$3,"") ->  | AQ147: =IF($Z147>=AQ$3,$A147*100+AQ$3,"") ->  | AR147: =IF($Z147>=AR$3,$A147*100+AR$3,"") ->  | AS147: =IF($Z147>=AS$3,$A147*100+AS$3,"") ->  | AT147: =IF($Z147>=AT$3,$A147*100+AT$3,"") ->  | AU147: 1501 | AV147: 10 | AW147: 1601 | AX147: 4 | AY147: =IF(AU147="","",CONCATENATE(VLOOKUP(AU147,[1]DropConfig!$A:$F,3,FALSE),"×",AV147)) -> 好感度礼物1×10 | AZ147: =IF(AW147="","",CONCATENATE(VLOOKUP(AW147,[1]DropConfig!$A:$F,3,FALSE),"×",AX147)) -> 心情礼物1×4
A148: 6015 | B148: 601501;601502;601503;601504;601505;601506;601507;601508;601509;601510;601511;102 | C148: 7 | D148: 5 | E148: 1 | F148: 0 | G148: 1 | I148: 1501;1601 | J148: 10;5 | K148: 15 | L148: 1 | M148: 1 | O148: =CONCATENATE(VLOOKUP(M148,[2]PlacesConfig!$A:$C,3,FALSE),IF(N148="",""," - "&VLOOKUP(N148,[2]SmallPlacesConfig!$A:$G,7,FALSE))) -> 北海 | R148: =IF(S148="","",VLOOKUP(S148,条件类型查询!A:B,2,FALSE)) -> 前置事件 | S148: 10 | T148: =A147 -> 6014 | V148: 4169 | W148: 4175 | X148: 大风危机 | Y148: 云枝5 | Z148: =COUNTIF(EventLinkConfig!O:O,EventConfig!A148) -> 11 | AA148: =IF($Z148>=AA$3,$A148*100+AA$3,"") -> 601501 | AB148: =IF($Z148>=AB$3,$A148*100+AB$3,"") -> 601502 | AC148: =IF($Z148>=AC$3,$A148*100+AC$3,"") -> 601503 | AD148: =IF($Z148>=AD$3,$A148*100+AD$3,"") -> 601504 | AE148: =IF($Z148>=AE$3,$A148*100+AE$3,"") -> 601505 | AF148: =IF($Z148>=AF$3,$A148*100+AF$3,"") -> 601506 | AG148: =IF($Z148>=AG$3,$A148*100+AG$3,"") -> 601507 | AH148: =IF($Z148>=AH$3,$A148*100+AH$3,"") -> 601508 | AI148: =IF($Z148>=AI$3,$A148*100+AI$3,"") -> 601509 | AJ148: =IF($Z148>=AJ$3,$A148*100+AJ$3,"") -> 601510 | AK148: =IF($Z148>=AK$3,$A148*100+AK$3,"") -> 601511 | AL148: =IF($Z148>=AL$3,$A148*100+AL$3,"") ->  | AM148: =IF($Z148>=AM$3,$A148*100+AM$3,"") ->  | AN148: =IF($Z148>=AN$3,$A148*100+AN$3,"") ->  | AO148: =IF($Z148>=AO$3,$A148*100+AO$3,"") ->  | AP148: =IF($Z148>=AP$3,$A148*100+AP$3,"") ->  | AQ148: =IF($Z148>=AQ$3,$A148*100+AQ$3,"") ->  | AR148: =IF($Z148>=AR$3,$A148*100+AR$3,"") ->  | AS148: =IF($Z148>=AS$3,$A148*100+AS$3,"") ->  | AT148: =IF($Z148>=AT$3,$A148*100+AT$3,"") ->  | AU148: 1501 | AV148: 10 | AW148: 1601 | AX148: 5 | AY148: =IF(AU148="","",CONCATENATE(VLOOKUP(AU148,[1]DropConfig!$A:$F,3,FALSE),"×",AV148)) -> 好感度礼物1×10 | AZ148: =IF(AW148="","",CONCATENATE(VLOOKUP(AW148,[1]DropConfig!$A:$F,3,FALSE),"×",AX148)) -> 心情礼物1×5
A149: 6016 | B149: 601601;601602;601603;601604;601605;102 | C149: 7 | D149: 5 | E149: 1 | F149: 0 | G149: 1 | I149: 1501;1601 | J149: 10;5 | K149: 10 | L149: 1 | M149: 1 | O149: =CONCATENATE(VLOOKUP(M149,[2]PlacesConfig!$A:$C,3,FALSE),IF(N149="",""," - "&VLOOKUP(N149,[2]SmallPlacesConfig!$A:$G,7,FALSE))) -> 北海 | R149: =IF(S149="","",VLOOKUP(S149,条件类型查询!A:B,2,FALSE)) -> 前置事件 | S149: 10 | T149: =A148 -> 6015 | V149: 4170 | W149: 4176 | X149: 枝侣同行 | Y149: 云枝6 | Z149: =COUNTIF(EventLinkConfig!O:O,EventConfig!A149) -> 5 | AA149: =IF($Z149>=AA$3,$A149*100+AA$3,"") -> 601601 | AB149: =IF($Z149>=AB$3,$A149*100+AB$3,"") -> 601602 | AC149: =IF($Z149>=AC$3,$A149*100+AC$3,"") -> 601603 | AD149: =IF($Z149>=AD$3,$A149*100+AD$3,"") -> 601604 | AE149: =IF($Z149>=AE$3,$A149*100+AE$3,"") -> 601605 | AF149: =IF($Z149>=AF$3,$A149*100+AF$3,"") ->  | AG149: =IF($Z149>=AG$3,$A149*100+AG$3,"") ->  | AH149: =IF($Z149>=AH$3,$A149*100+AH$3,"") ->  | AI149: =IF($Z149>=AI$3,$A149*100+AI$3,"") ->  | AJ149: =IF($Z149>=AJ$3,$A149*100+AJ$3,"") ->  | AK149: =IF($Z149>=AK$3,$A149*100+AK$3,"") ->  | AL149: =IF($Z149>=AL$3,$A149*100+AL$3,"") ->  | AM149: =IF($Z149>=AM$3,$A149*100+AM$3,"") ->  | AN149: =IF($Z149>=AN$3,$A149*100+AN$3,"") ->  | AO149: =IF($Z149>=AO$3,$A149*100+AO$3,"") ->  | AP149: =IF($Z149>=AP$3,$A149*100+AP$3,"") ->  | AQ149: =IF($Z149>=AQ$3,$A149*100+AQ$3,"") ->  | AR149: =IF($Z149>=AR$3,$A149*100+AR$3,"") ->  | AS149: =IF($Z149>=AS$3,$A149*100+AS$3,"") ->  | AT149: =IF($Z149>=AT$3,$A149*100+AT$3,"") ->  | AU149: 1501 | AV149: 10 | AW149: 1601 | AX149: 5 | AY149: =IF(AU149="","",CONCATENATE(VLOOKUP(AU149,[1]DropConfig!$A:$F,3,FALSE),"×",AV149)) -> 好感度礼物1×10 | AZ149: =IF(AW149="","",CONCATENATE(VLOOKUP(AW149,[1]DropConfig!$A:$F,3,FALSE),"×",AX149)) -> 心情礼物1×5
AY150: =IF(AU150="","",CONCATENATE(VLOOKUP(AU150,[1]DropConfig!$A:$F,3,FALSE),"×",AV150)) ->  | AZ150: =IF(AW150="","",CONCATENATE(VLOOKUP(AW150,[1]DropConfig!$A:$F,3,FALSE),"×",AX150)) -> 
A151: 6021 | B151: =IF(A151="","",_xlfn.TEXTJOIN(";",1,AA151:AT151,102)) -> 602101;602102;602103;602104;102 | C151: 7 | D151: 5 | E151: 1 | F151: 0 | G151: 1 | I151: 1501;1601 | J151: 10;1 | K151: 35 | L151: 1 | M151: 1 | O151: =CONCATENATE(VLOOKUP(M151,[2]PlacesConfig!$A:$C,3,FALSE),IF(N151="",""," - "&VLOOKUP(N151,[2]SmallPlacesConfig!$A:$G,7,FALSE))) -> 北海 | R151: =IF(S151="","",VLOOKUP(S151,条件类型查询!A:B,2,FALSE)) -> 境界判断 | S151: 3 | T151: 81 | V151: 4179 | W151: 4185 | X151: 1. 浮岛边缘.初遇风瑶 | Y151: 风瑶1 | Z151: =COUNTIF(EventLinkConfig!O:O,EventConfig!A151) -> 4 | AA151: =IF($Z151>=AA$3,$A151*100+AA$3,"") -> 602101 | AB151: =IF($Z151>=AB$3,$A151*100+AB$3,"") -> 602102 | AC151: =IF($Z151>=AC$3,$A151*100+AC$3,"") -> 602103 | AD151: =IF($Z151>=AD$3,$A151*100+AD$3,"") -> 602104 | AE151: =IF($Z151>=AE$3,$A151*100+AE$3,"") ->  | AF151: =IF($Z151>=AF$3,$A151*100+AF$3,"") ->  | AG151: =IF($Z151>=AG$3,$A151*100+AG$3,"") ->  | AH151: =IF($Z151>=AH$3,$A151*100+AH$3,"") ->  | AI151: =IF($Z151>=AI$3,$A151*100+AI$3,"") ->  | AJ151: =IF($Z151>=AJ$3,$A151*100+AJ$3,"") ->  | AK151: =IF($Z151>=AK$3,$A151*100+AK$3,"") ->  | AL151: =IF($Z151>=AL$3,$A151*100+AL$3,"") ->  | AM151: =IF($Z151>=AM$3,$A151*100+AM$3,"") ->  | AN151: =IF($Z151>=AN$3,$A151*100+AN$3,"") ->  | AO151: =IF($Z151>=AO$3,$A151*100+AO$3,"") ->  | AP151: =IF($Z151>=AP$3,$A151*100+AP$3,"") ->  | AQ151: =IF($Z151>=AQ$3,$A151*100+AQ$3,"") ->  | AR151: =IF($Z151>=AR$3,$A151*100+AR$3,"") ->  | AS151: =IF($Z151>=AS$3,$A151*100+AS$3,"") ->  | AT151: =IF($Z151>=AT$3,$A151*100+AT$3,"") ->  | AU151: 1501 | AV151: 10 | AW151: 1601 | AX151: 1 | AY151: =IF(AU151="","",CONCATENATE(VLOOKUP(AU151,[1]DropConfig!$A:$F,3,FALSE),"×",AV151)) -> 好感度礼物1×10 | AZ151: =IF(AW151="","",CONCATENATE(VLOOKUP(AW151,[1]DropConfig!$A:$F,3,FALSE),"×",AX151)) -> 心情礼物1×1
A152: 6022 | B152: 602201;602202;602203;602204;602205;602206;102 | C152: 7 | D152: 5 | E152: 1 | F152: 0 | G152: 1 | I152: 1501;1601 | J152: 10;2 | K152: 30 | L152: 1 | M152: 1 | O152: =CONCATENATE(VLOOKUP(M152,[2]PlacesConfig!$A:$C,3,FALSE),IF(N152="",""," - "&VLOOKUP(N152,[2]SmallPlacesConfig!$A:$G,7,FALSE))) -> 北海 | R152: =IF(S152="","",VLOOKUP(S152,条件类型查询!A:B,2,FALSE)) -> 前置事件 | S152: 10 | T152: =A151 -> 6021 | V152: 4180 | W152: 4186 | X152: 2. 风灵碎片.岛间搜寻 | Y152: 风瑶2 | Z152: =COUNTIF(EventLinkConfig!O:O,EventConfig!A152) -> 6 | AA152: =IF($Z152>=AA$3,$A152*100+AA$3,"") -> 602201 | AB152: =IF($Z152>=AB$3,$A152*100+AB$3,"") -> 602202 | AC152: =IF($Z152>=AC$3,$A152*100+AC$3,"") -> 602203 | AD152: =IF($Z152>=AD$3,$A152*100+AD$3,"") -> 602204 | AE152: =IF($Z152>=AE$3,$A152*100+AE$3,"") -> 602205 | AF152: =IF($Z152>=AF$3,$A152*100+AF$3,"") -> 602206 | AG152: =IF($Z152>=AG$3,$A152*100+AG$3,"") ->  | AH152: =IF($Z152>=AH$3,$A152*100+AH$3,"") ->  | AI152: =IF($Z152>=AI$3,$A152*100+AI$3,"") ->  | AJ152: =IF($Z152>=AJ$3,$A152*100+AJ$3,"") ->  | AK152: =IF($Z152>=AK$3,$A152*100+AK$3,"") ->  | AL152: =IF($Z152>=AL$3,$A152*100+AL$3,"") ->  | AM152: =IF($Z152>=AM$3,$A152*100+AM$3,"") ->  | AN152: =IF($Z152>=AN$3,$A152*100+AN$3,"") ->  | AO152: =IF($Z152>=AO$3,$A152*100+AO$3,"") ->  | AP152: =IF($Z152>=AP$3,$A152*100+AP$3,"") ->  | AQ152: =IF($Z152>=AQ$3,$A152*100+AQ$3,"") ->  | AR152: =IF($Z152>=AR$3,$A152*100+AR$3,"") ->  | AS152: =IF($Z152>=AS$3,$A152*100+AS$3,"") ->  | AT152: =IF($Z152>=AT$3,$A152*100+AT$3,"") ->  | AU152: 1501 | AV152: 10 | AW152: 1601 | AX152: 2 | AY152: =IF(AU152="","",CONCATENATE(VLOOKUP(AU152,[1]DropConfig!$A:$F,3,FALSE),"×",AV152)) -> 好感度礼物1×10 | AZ152: =IF(AW152="","",CONCATENATE(VLOOKUP(AW152,[1]DropConfig!$A:$F,3,FALSE),"×",AX152)) -> 心情礼物1×2
A153: 6023 | B153: 602301;602302;602303;102 | C153: 7 | D153: 5 | E153: 1 | F153: 0 | G153: 1 | I153: 1501;1601 | J153: 10;3 | K153: 25 | L153: 1 | M153: 1 | O153: =CONCATENATE(VLOOKUP(M153,[2]PlacesConfig!$A:$C,3,FALSE),IF(N153="",""," - "&VLOOKUP(N153,[2]SmallPlacesConfig!$A:$G,7,FALSE))) -> 北海 | R153: =IF(S153="","",VLOOKUP(S153,条件类型查询!A:B,2,FALSE)) -> 前置事件 | S153: 10 | T153: =A152 -> 6022 | V153: 4181 | W153: 4187 | X153: 3. 风中疑云.探听消息 | Y153: 风瑶3 | Z153: =COUNTIF(EventLinkConfig!O:O,EventConfig!A153) -> 3 | AA153: =IF($Z153>=AA$3,$A153*100+AA$3,"") -> 602301 | AB153: =IF($Z153>=AB$3,$A153*100+AB$3,"") -> 602302 | AC153: =IF($Z153>=AC$3,$A153*100+AC$3,"") -> 602303 | AD153: =IF($Z153>=AD$3,$A153*100+AD$3,"") ->  | AE153: =IF($Z153>=AE$3,$A153*100+AE$3,"") ->  | AF153: =IF($Z153>=AF$3,$A153*100+AF$3,"") ->  | AG153: =IF($Z153>=AG$3,$A153*100+AG$3,"") ->  | AH153: =IF($Z153>=AH$3,$A153*100+AH$3,"") ->  | AI153: =IF($Z153>=AI$3,$A153*100+AI$3,"") ->  | AJ153: =IF($Z153>=AJ$3,$A153*100+AJ$3,"") ->  | AK153: =IF($Z153>=AK$3,$A153*100+AK$3,"") ->  | AL153: =IF($Z153>=AL$3,$A153*100+AL$3,"") ->  | AM153: =IF($Z153>=AM$3,$A153*100+AM$3,"") ->  | AN153: =IF($Z153>=AN$3,$A153*100+AN$3,"") ->  | AO153: =IF($Z153>=AO$3,$A153*100+AO$3,"") ->  | AP153: =IF($Z153>=AP$3,$A153*100+AP$3,"") ->  | AQ153: =IF($Z153>=AQ$3,$A153*100+AQ$3,"") ->  | AR153: =IF($Z153>=AR$3,$A153*100+AR$3,"") ->  | AS153: =IF($Z153>=AS$3,$A153*100+AS$3,"") ->  | AT153: =IF($Z153>=AT$3,$A153*100+AT$3,"") ->  | AU153: 1501 | AV153: 10 | AW153: 1601 | AX153: 3 | AY153: =IF(AU153="","",CONCATENATE(VLOOKUP(AU153,[1]DropConfig!$A:$F,3,FALSE),"×",AV153)) -> 好感度礼物1×10 | AZ153: =IF(AW153="","",CONCATENATE(VLOOKUP(AW153,[1]DropConfig!$A:$F,3,FALSE),"×",AX153)) -> 心情礼物1×3
A154: 6024 | B154: 602401;602402;602403;602404;102 | C154: 7 | D154: 5 | E154: 1 | F154: 0 | G154: 1 | I154: 1501;1601 | J154: 10;4 | K154: 20 | L154: 1 | M154: 1 | O154: =CONCATENATE(VLOOKUP(M154,[2]PlacesConfig!$A:$C,3,FALSE),IF(N154="",""," - "&VLOOKUP(N154,[2]SmallPlacesConfig!$A:$G,7,FALSE))) -> 北海 | R154: =IF(S154="","",VLOOKUP(S154,条件类型查询!A:B,2,FALSE)) -> 前置事件 | S154: 10 | T154: =A153 -> 6023 | V154: 4182 | W154: 4188 | X154: 4. 隐秘信物.追踪残片 | Y154: 风瑶4 | Z154: =COUNTIF(EventLinkConfig!O:O,EventConfig!A154) -> 4 | AA154: =IF($Z154>=AA$3,$A154*100+AA$3,"") -> 602401 | AB154: =IF($Z154>=AB$3,$A154*100+AB$3,"") -> 602402 | AC154: =IF($Z154>=AC$3,$A154*100+AC$3,"") -> 602403 | AD154: =IF($Z154>=AD$3,$A154*100+AD$3,"") -> 602404 | AE154: =IF($Z154>=AE$3,$A154*100+AE$3,"") ->  | AF154: =IF($Z154>=AF$3,$A154*100+AF$3,"") ->  | AG154: =IF($Z154>=AG$3,$A154*100+AG$3,"") ->  | AH154: =IF($Z154>=AH$3,$A154*100+AH$3,"") ->  | AI154: =IF($Z154>=AI$3,$A154*100+AI$3,"") ->  | AJ154: =IF($Z154>=AJ$3,$A154*100+AJ$3,"") ->  | AK154: =IF($Z154>=AK$3,$A154*100+AK$3,"") ->  | AL154: =IF($Z154>=AL$3,$A154*100+AL$3,"") ->  | AM154: =IF($Z154>=AM$3,$A154*100+AM$3,"") ->  | AN154: =IF($Z154>=AN$3,$A154*100+AN$3,"") ->  | AO154: =IF($Z154>=AO$3,$A154*100+AO$3,"") ->  | AP154: =IF($Z154>=AP$3,$A154*100+AP$3,"") ->  | AQ154: =IF($Z154>=AQ$3,$A154*100+AQ$3,"") ->  | AR154: =IF($Z154>=AR$3,$A154*100+AR$3,"") ->  | AS154: =IF($Z154>=AS$3,$A154*100+AS$3,"") ->  | AT154: =IF($Z154>=AT$3,$A154*100+AT$3,"") ->  | AU154: 1501 | AV154: 10 | AW154: 1601 | AX154: 4 | AY154: =IF(AU154="","",CONCATENATE(VLOOKUP(AU154,[1]DropConfig!$A:$F,3,FALSE),"×",AV154)) -> 好感度礼物1×10 | AZ154: =IF(AW154="","",CONCATENATE(VLOOKUP(AW154,[1]DropConfig!$A:$F,3,FALSE),"×",AX154)) -> 心情礼物1×4
A155: 6025 | B155: 602501;602502;602503;102 | C155: 7 | D155: 5 | E155: 1 | F155: 0 | G155: 1 | I155: 1501;1601 | J155: 10;5 | K155: 15 | L155: 1 | M155: 1 | O155: =CONCATENATE(VLOOKUP(M155,[2]PlacesConfig!$A:$C,3,FALSE),IF(N155="",""," - "&VLOOKUP(N155,[2]SmallPlacesConfig!$A:$G,7,FALSE))) -> 北海 | R155: =IF(S155="","",VLOOKUP(S155,条件类型查询!A:B,2,FALSE)) -> 前置事件 | S155: 10 | T155: =A154 -> 6024 | V155: 4183 | W155: 4189 | X155: 5. 风中密信.截获情报 | Y155: 风瑶5 | Z155: =COUNTIF(EventLinkConfig!O:O,EventConfig!A155) -> 3 | AA155: =IF($Z155>=AA$3,$A155*100+AA$3,"") -> 602501 | AB155: =IF($Z155>=AB$3,$A155*100+AB$3,"") -> 602502 | AC155: =IF($Z155>=AC$3,$A155*100+AC$3,"") -> 602503 | AD155: =IF($Z155>=AD$3,$A155*100+AD$3,"") ->  | AE155: =IF($Z155>=AE$3,$A155*100+AE$3,"") ->  | AF155: =IF($Z155>=AF$3,$A155*100+AF$3,"") ->  | AG155: =IF($Z155>=AG$3,$A155*100+AG$3,"") ->  | AH155: =IF($Z155>=AH$3,$A155*100+AH$3,"") ->  | AI155: =IF($Z155>=AI$3,$A155*100+AI$3,"") ->  | AJ155: =IF($Z155>=AJ$3,$A155*100+AJ$3,"") ->  | AK155: =IF($Z155>=AK$3,$A155*100+AK$3,"") ->  | AL155: =IF($Z155>=AL$3,$A155*100+AL$3,"") ->  | AM155: =IF($Z155>=AM$3,$A155*100+AM$3,"") ->  | AN155: =IF($Z155>=AN$3,$A155*100+AN$3,"") ->  | AO155: =IF($Z155>=AO$3,$A155*100+AO$3,"") ->  | AP155: =IF($Z155>=AP$3,$A155*100+AP$3,"") ->  | AQ155: =IF($Z155>=AQ$3,$A155*100+AQ$3,"") ->  | AR155: =IF($Z155>=AR$3,$A155*100+AR$3,"") ->  | AS155: =IF($Z155>=AS$3,$A155*100+AS$3,"") ->  | AT155: =IF($Z155>=AT$3,$A155*100+AT$3,"") ->  | AU155: 1501 | AV155: 10 | AW155: 1601 | AX155: 5 | AY155: =IF(AU155="","",CONCATENATE(VLOOKUP(AU155,[1]DropConfig!$A:$F,3,FALSE),"×",AV155)) -> 好感度礼物1×10 | AZ155: =IF(AW155="","",CONCATENATE(VLOOKUP(AW155,[1]DropConfig!$A:$F,3,FALSE),"×",AX155)) -> 心情礼物1×5
A156: 6026 | B156: 602601;602602;602603;602604;602605;602606;602607;102 | C156: 7 | D156: 5 | E156: 1 | F156: 0 | G156: 1 | I156: 1501;1601 | J156: 10;5 | K156: 10 | L156: 1 | M156: 1 | O156: =CONCATENATE(VLOOKUP(M156,[2]PlacesConfig!$A:$C,3,FALSE),IF(N156="",""," - "&VLOOKUP(N156,[2]SmallPlacesConfig!$A:$G,7,FALSE))) -> 北海 | R156: =IF(S156="","",VLOOKUP(S156,条件类型查询!A:B,2,FALSE)) -> 前置事件 | S156: 10 | T156: =A155 -> 6025 | V156: 4184 | W156: 4190 | X156: 6. 兄妹密谈.初步真相 | Y156: 风瑶6 | Z156: =COUNTIF(EventLinkConfig!O:O,EventConfig!A156) -> 7 | AA156: =IF($Z156>=AA$3,$A156*100+AA$3,"") -> 602601 | AB156: =IF($Z156>=AB$3,$A156*100+AB$3,"") -> 602602 | AC156: =IF($Z156>=AC$3,$A156*100+AC$3,"") -> 602603 | AD156: =IF($Z156>=AD$3,$A156*100+AD$3,"") -> 602604 | AE156: =IF($Z156>=AE$3,$A156*100+AE$3,"") -> 602605 | AF156: =IF($Z156>=AF$3,$A156*100+AF$3,"") -> 602606 | AG156: =IF($Z156>=AG$3,$A156*100+AG$3,"") -> 602607 | AH156: =IF($Z156>=AH$3,$A156*100+AH$3,"") ->  | AI156: =IF($Z156>=AI$3,$A156*100+AI$3,"") ->  | AJ156: =IF($Z156>=AJ$3,$A156*100+AJ$3,"") ->  | AK156: =IF($Z156>=AK$3,$A156*100+AK$3,"") ->  | AL156: =IF($Z156>=AL$3,$A156*100+AL$3,"") ->  | AM156: =IF($Z156>=AM$3,$A156*100+AM$3,"") ->  | AN156: =IF($Z156>=AN$3,$A156*100+AN$3,"") ->  | AO156: =IF($Z156>=AO$3,$A156*100+AO$3,"") ->  | AP156: =IF($Z156>=AP$3,$A156*100+AP$3,"") ->  | AQ156: =IF($Z156>=AQ$3,$A156*100+AQ$3,"") ->  | AR156: =IF($Z156>=AR$3,$A156*100+AR$3,"") ->  | AS156: =IF($Z156>=AS$3,$A156*100+AS$3,"") ->  | AT156: =IF($Z156>=AT$3,$A156*100+AT$3,"") ->  | AU156: 1501 | AV156: 10 | AW156: 1601 | AX156: 5 | AY156: =IF(AU156="","",CONCATENATE(VLOOKUP(AU156,[1]DropConfig!$A:$F,3,FALSE),"×",AV156)) -> 好感度礼物1×10 | AZ156: =IF(AW156="","",CONCATENATE(VLOOKUP(AW156,[1]DropConfig!$A:$F,3,FALSE),"×",AX156)) -> 心情礼物1×5
AY157: =IF(AU157="","",CONCATENATE(VLOOKUP(AU157,[1]DropConfig!$A:$F,3,FALSE),"×",AV157)) ->  | AZ157: =IF(AW157="","",CONCATENATE(VLOOKUP(AW157,[1]DropConfig!$A:$F,3,FALSE),"×",AX157)) -> 
A158: 6031 | B158: =IF(A158="","",_xlfn.TEXTJOIN(";",1,AA158:AT158,102)) -> 603101;603102;603103;603104;603105;603106;603107;603108;102 | C158: 7 | D158: 5 | E158: 1 | F158: 0 | G158: 1 | I158: 1501;1601 | J158: 10;1 | K158: 35 | L158: 1 | M158: 2 | O158: =CONCATENATE(VLOOKUP(M158,[2]PlacesConfig!$A:$C,3,FALSE),IF(N158="",""," - "&VLOOKUP(N158,[2]SmallPlacesConfig!$A:$G,7,FALSE))) -> 尧之都 | R158: =IF(S158="","",VLOOKUP(S158,条件类型查询!A:B,2,FALSE)) -> 境界判断 | S158: 3 | T158: 101 | V158: 4201 | W158: 4207 | X158: 1. 山溪小屋.初遇婉溪 | Y158: 婉溪1 | Z158: =COUNTIF(EventLinkConfig!O:O,EventConfig!A158) -> 8 | AA158: =IF($Z158>=AA$3,$A158*100+AA$3,"") -> 603101 | AB158: =IF($Z158>=AB$3,$A158*100+AB$3,"") -> 603102 | AC158: =IF($Z158>=AC$3,$A158*100+AC$3,"") -> 603103 | AD158: =IF($Z158>=AD$3,$A158*100+AD$3,"") -> 603104 | AE158: =IF($Z158>=AE$3,$A158*100+AE$3,"") -> 603105 | AF158: =IF($Z158>=AF$3,$A158*100+AF$3,"") -> 603106 | AG158: =IF($Z158>=AG$3,$A158*100+AG$3,"") -> 603107 | AH158: =IF($Z158>=AH$3,$A158*100+AH$3,"") -> 603108 | AI158: =IF($Z158>=AI$3,$A158*100+AI$3,"") ->  | AJ158: =IF($Z158>=AJ$3,$A158*100+AJ$3,"") ->  | AK158: =IF($Z158>=AK$3,$A158*100+AK$3,"") ->  | AL158: =IF($Z158>=AL$3,$A158*100+AL$3,"") ->  | AM158: =IF($Z158>=AM$3,$A158*100+AM$3,"") ->  | AN158: =IF($Z158>=AN$3,$A158*100+AN$3,"") ->  | AO158: =IF($Z158>=AO$3,$A158*100+AO$3,"") ->  | AP158: =IF($Z158>=AP$3,$A158*100+AP$3,"") ->  | AQ158: =IF($Z158>=AQ$3,$A158*100+AQ$3,"") ->  | AR158: =IF($Z158>=AR$3,$A158*100+AR$3,"") ->  | AS158: =IF($Z158>=AS$3,$A158*100+AS$3,"") ->  | AT158: =IF($Z158>=AT$3,$A158*100+AT$3,"") ->  | AU158: 1501 | AV158: 10 | AW158: 1601 | AX158: 1 | AY158: =IF(AU158="","",CONCATENATE(VLOOKUP(AU158,[1]DropConfig!$A:$F,3,FALSE),"×",AV158)) -> 好感度礼物1×10 | AZ158: =IF(AW158="","",CONCATENATE(VLOOKUP(AW158,[1]DropConfig!$A:$F,3,FALSE),"×",AX158)) -> 心情礼物1×1
A159: 6032 | B159: 603201;603202;603203;603204;102 | C159: 7 | D159: 5 | E159: 1 | F159: 0 | G159: 1 | I159: 1501;1601 | J159: 10;2 | K159: 30 | L159: 1 | M159: 2 | O159: =CONCATENATE(VLOOKUP(M159,[2]PlacesConfig!$A:$C,3,FALSE),IF(N159="",""," - "&VLOOKUP(N159,[2]SmallPlacesConfig!$A:$G,7,FALSE))) -> 尧之都 | R159: =IF(S159="","",VLOOKUP(S159,条件类型查询!A:B,2,FALSE)) -> 前置事件 | S159: 10 | T159: =A158 -> 6031 | V159: 4202 | W159: 4208 | X159: 2. 溪边劳作.浇灌灵田 | Y159: 婉溪2 | Z159: =COUNTIF(EventLinkConfig!O:O,EventConfig!A159) -> 4 | AA159: =IF($Z159>=AA$3,$A159*100+AA$3,"") -> 603201 | AB159: =IF($Z159>=AB$3,$A159*100+AB$3,"") -> 603202 | AC159: =IF($Z159>=AC$3,$A159*100+AC$3,"") -> 603203 | AD159: =IF($Z159>=AD$3,$A159*100+AD$3,"") -> 603204 | AE159: =IF($Z159>=AE$3,$A159*100+AE$3,"") ->  | AF159: =IF($Z159>=AF$3,$A159*100+AF$3,"") ->  | AG159: =IF($Z159>=AG$3,$A159*100+AG$3,"") ->  | AH159: =IF($Z159>=AH$3,$A159*100+AH$3,"") ->  | AI159: =IF($Z159>=AI$3,$A159*100+AI$3,"") ->  | AJ159: =IF($Z159>=AJ$3,$A159*100+AJ$3,"") ->  | AK159: =IF($Z159>=AK$3,$A159*100+AK$3,"") ->  | AL159: =IF($Z159>=AL$3,$A159*100+AL$3,"") ->  | AM159: =IF($Z159>=AM$3,$A159*100+AM$3,"") ->  | AN159: =IF($Z159>=AN$3,$A159*100+AN$3,"") ->  | AO159: =IF($Z159>=AO$3,$A159*100+AO$3,"") ->  | AP159: =IF($Z159>=AP$3,$A159*100+AP$3,"") ->  | AQ159: =IF($Z159>=AQ$3,$A159*100+AQ$3,"") ->  | AR159: =IF($Z159>=AR$3,$A159*100+AR$3,"") ->  | AS159: =IF($Z159>=AS$3,$A159*100+AS$3,"") ->  | AT159: =IF($Z159>=AT$3,$A159*100+AT$3,"") ->  | AU159: 1501 | AV159: 10 | AW159: 1601 | AX159: 2 | AY159: =IF(AU159="","",CONCATENATE(VLOOKUP(AU159,[1]DropConfig!$A:$F,3,FALSE),"×",AV159)) -> 好感度礼物1×10 | AZ159: =IF(AW159="","",CONCATENATE(VLOOKUP(AW159,[1]DropConfig!$A:$F,3,FALSE),"×",AX159)) -> 心情礼物1×2
A160: 6033 | B160: 603301;603302;603303;603304;603305;102 | C160: 7 | D160: 5 | E160: 1 | F160: 0 | G160: 1 | I160: 1501;1601 | J160: 10;3 | K160: 25 | L160: 1 | M160: 2 | O160: =CONCATENATE(VLOOKUP(M160,[2]PlacesConfig!$A:$C,3,FALSE),IF(N160="",""," - "&VLOOKUP(N160,[2]SmallPlacesConfig!$A:$G,7,FALSE))) -> 尧之都 | R160: =IF(S160="","",VLOOKUP(S160,条件类型查询!A:B,2,FALSE)) -> 前置事件 | S160: 10 | T160: =A159 -> 6032 | V160: 4203 | W160: 4209 | X160: 3. 清茶闲话.品茗论道 | Y160: 婉溪3 | Z160: =COUNTIF(EventLinkConfig!O:O,EventConfig!A160) -> 5 | AA160: =IF($Z160>=AA$3,$A160*100+AA$3,"") -> 603301 | AB160: =IF($Z160>=AB$3,$A160*100+AB$3,"") -> 603302 | AC160: =IF($Z160>=AC$3,$A160*100+AC$3,"") -> 603303 | AD160: =IF($Z160>=AD$3,$A160*100+AD$3,"") -> 603304 | AE160: =IF($Z160>=AE$3,$A160*100+AE$3,"") -> 603305 | AF160: =IF($Z160>=AF$3,$A160*100+AF$3,"") ->  | AG160: =IF($Z160>=AG$3,$A160*100+AG$3,"") ->  | AH160: =IF($Z160>=AH$3,$A160*100+AH$3,"") ->  | AI160: =IF($Z160>=AI$3,$A160*100+AI$3,"") ->  | AJ160: =IF($Z160>=AJ$3,$A160*100+AJ$3,"") ->  | AK160: =IF($Z160>=AK$3,$A160*100+AK$3,"") ->  | AL160: =IF($Z160>=AL$3,$A160*100+AL$3,"") ->  | AM160: =IF($Z160>=AM$3,$A160*100+AM$3,"") ->  | AN160: =IF($Z160>=AN$3,$A160*100+AN$3,"") ->  | AO160: =IF($Z160>=AO$3,$A160*100+AO$3,"") ->  | AP160: =IF($Z160>=AP$3,$A160*100+AP$3,"") ->  | AQ160: =IF($Z160>=AQ$3,$A160*100+AQ$3,"") ->  | AR160: =IF($Z160>=AR$3,$A160*100+AR$3,"") ->  | AS160: =IF($Z160>=AS$3,$A160*100+AS$3,"") ->  | AT160: =IF($Z160>=AT$3,$A160*100+AT$3,"") ->  | AU160: 1501 | AV160: 10 | AW160: 1601 | AX160: 3 | AY160: =IF(AU160="","",CONCATENATE(VLOOKUP(AU160,[1]DropConfig!$A:$F,3,FALSE),"×",AV160)) -> 好感度礼物1×10 | AZ160: =IF(AW160="","",CONCATENATE(VLOOKUP(AW160,[1]DropConfig!$A:$F,3,FALSE),"×",AX160)) -> 心情礼物1×3
A161: 6034 | B161: 603401;603402;603403;102 | C161: 7 | D161: 5 | E161: 1 | F161: 0 | G161: 1 | I161: 1501;1601 | J161: 10;4 | K161: 20 | L161: 1 | M161: 2 | O161: =CONCATENATE(VLOOKUP(M161,[2]PlacesConfig!$A:$C,3,FALSE),IF(N161="",""," - "&VLOOKUP(N161,[2]SmallPlacesConfig!$A:$G,7,FALSE))) -> 尧之都 | R161: =IF(S161="","",VLOOKUP(S161,条件类型查询!A:B,2,FALSE)) -> 前置事件 | S161: 10 | T161: =A160 -> 6033 | V161: 4204 | W161: 4210 | X161: 4. 玉佩稳灵.收集信物 | Y161: 婉溪4 | Z161: =COUNTIF(EventLinkConfig!O:O,EventConfig!A161) -> 3 | AA161: =IF($Z161>=AA$3,$A161*100+AA$3,"") -> 603401 | AB161: =IF($Z161>=AB$3,$A161*100+AB$3,"") -> 603402 | AC161: =IF($Z161>=AC$3,$A161*100+AC$3,"") -> 603403 | AD161: =IF($Z161>=AD$3,$A161*100+AD$3,"") ->  | AE161: =IF($Z161>=AE$3,$A161*100+AE$3,"") ->  | AF161: =IF($Z161>=AF$3,$A161*100+AF$3,"") ->  | AG161: =IF($Z161>=AG$3,$A161*100+AG$3,"") ->  | AH161: =IF($Z161>=AH$3,$A161*100+AH$3,"") ->  | AI161: =IF($Z161>=AI$3,$A161*100+AI$3,"") ->  | AJ161: =IF($Z161>=AJ$3,$A161*100+AJ$3,"") ->  | AK161: =IF($Z161>=AK$3,$A161*100+AK$3,"") ->  | AL161: =IF($Z161>=AL$3,$A161*100+AL$3,"") ->  | AM161: =IF($Z161>=AM$3,$A161*100+AM$3,"") ->  | AN161: =IF($Z161>=AN$3,$A161*100+AN$3,"") ->  | AO161: =IF($Z161>=AO$3,$A161*100+AO$3,"") ->  | AP161: =IF($Z161>=AP$3,$A161*100+AP$3,"") ->  | AQ161: =IF($Z161>=AQ$3,$A161*100+AQ$3,"") ->  | AR161: =IF($Z161>=AR$3,$A161*100+AR$3,"") ->  | AS161: =IF($Z161>=AS$3,$A161*100+AS$3,"") ->  | AT161: =IF($Z161>=AT$3,$A161*100+AT$3,"") ->  | AU161: 1501 | AV161: 10 | AW161: 1601 | AX161: 4 | AY161: =IF(AU161="","",CONCATENATE(VLOOKUP(AU161,[1]DropConfig!$A:$F,3,FALSE),"×",AV161)) -> 好感度礼物1×10 | AZ161: =IF(AW161="","",CONCATENATE(VLOOKUP(AW161,[1]DropConfig!$A:$F,3,FALSE),"×",AX161)) -> 心情礼物1×4
A162: 6035 | B162: 603501;603502;603503;102 | C162: 7 | D162: 5 | E162: 1 | F162: 0 | G162: 1 | I162: 1501;1601 | J162: 10;5 | K162: 15 | L162: 1 | M162: 2 | O162: =CONCATENATE(VLOOKUP(M162,[2]PlacesConfig!$A:$C,3,FALSE),IF(N162="",""," - "&VLOOKUP(N162,[2]SmallPlacesConfig!$A:$G,7,FALSE))) -> 尧之都 | R162: =IF(S162="","",VLOOKUP(S162,条件类型查询!A:B,2,FALSE)) -> 前置事件 | S162: 10 | T162: =A161 -> 6034 | V162: 4205 | W162: 4211 | X162: 5. 溪水异动.驱散干扰 | Y162: 婉溪5 | Z162: =COUNTIF(EventLinkConfig!O:O,EventConfig!A162) -> 3 | AA162: =IF($Z162>=AA$3,$A162*100+AA$3,"") -> 603501 | AB162: =IF($Z162>=AB$3,$A162*100+AB$3,"") -> 603502 | AC162: =IF($Z162>=AC$3,$A162*100+AC$3,"") -> 603503 | AD162: =IF($Z162>=AD$3,$A162*100+AD$3,"") ->  | AE162: =IF($Z162>=AE$3,$A162*100+AE$3,"") ->  | AF162: =IF($Z162>=AF$3,$A162*100+AF$3,"") ->  | AG162: =IF($Z162>=AG$3,$A162*100+AG$3,"") ->  | AH162: =IF($Z162>=AH$3,$A162*100+AH$3,"") ->  | AI162: =IF($Z162>=AI$3,$A162*100+AI$3,"") ->  | AJ162: =IF($Z162>=AJ$3,$A162*100+AJ$3,"") ->  | AK162: =IF($Z162>=AK$3,$A162*100+AK$3,"") ->  | AL162: =IF($Z162>=AL$3,$A162*100+AL$3,"") ->  | AM162: =IF($Z162>=AM$3,$A162*100+AM$3,"") ->  | AN162: =IF($Z162>=AN$3,$A162*100+AN$3,"") ->  | AO162: =IF($Z162>=AO$3,$A162*100+AO$3,"") ->  | AP162: =IF($Z162>=AP$3,$A162*100+AP$3,"") ->  | AQ162: =IF($Z162>=AQ$3,$A162*100+AQ$3,"") ->  | AR162: =IF($Z162>=AR$3,$A162*100+AR$3,"") ->  | AS162: =IF($Z162>=AS$3,$A162*100+AS$3,"") ->  | AT162: =IF($Z162>=AT$3,$A162*100+AT$3,"") ->  | AU162: 1501 | AV162: 10 | AW162: 1601 | AX162: 5 | AY162: =IF(AU162="","",CONCATENATE(VLOOKUP(AU162,[1]DropConfig!$A:$F,3,FALSE),"×",AV162)) -> 好感度礼物1×10 | AZ162: =IF(AW162="","",CONCATENATE(VLOOKUP(AW162,[1]DropConfig!$A:$F,3,FALSE),"×",AX162)) -> 心情礼物1×5
A163: 6036 | B163: 603601;603602;603603;603604;603605;603606;102 | C163: 7 | D163: 5 | E163: 1 | F163: 0 | G163: 1 | I163: 1501;1601 | J163: 10;5 | K163: 10 | L163: 1 | M163: 2 | O163: =CONCATENATE(VLOOKUP(M163,[2]PlacesConfig!$A:$C,3,FALSE),IF(N163="",""," - "&VLOOKUP(N163,[2]SmallPlacesConfig!$A:$G,7,FALSE))) -> 尧之都 | R163: =IF(S163="","",VLOOKUP(S163,条件类型查询!A:B,2,FALSE)) -> 前置事件 | S163: 10 | T163: =A162 -> 6035 | V163: 4206 | W163: 4212 | X163: 6. 兄妹心语.隐秘初现 | Y163: 婉溪6 | Z163: =COUNTIF(EventLinkConfig!O:O,EventConfig!A163) -> 6 | AA163: =IF($Z163>=AA$3,$A163*100+AA$3,"") -> 603601 | AB163: =IF($Z163>=AB$3,$A163*100+AB$3,"") -> 603602 | AC163: =IF($Z163>=AC$3,$A163*100+AC$3,"") -> 603603 | AD163: =IF($Z163>=AD$3,$A163*100+AD$3,"") -> 603604 | AE163: =IF($Z163>=AE$3,$A163*100+AE$3,"") -> 603605 | AF163: =IF($Z163>=AF$3,$A163*100+AF$3,"") -> 603606 | AG163: =IF($Z163>=AG$3,$A163*100+AG$3,"") ->  | AH163: =IF($Z163>=AH$3,$A163*100+AH$3,"") ->  | AI163: =IF($Z163>=AI$3,$A163*100+AI$3,"") ->  | AJ163: =IF($Z163>=AJ$3,$A163*100+AJ$3,"") ->  | AK163: =IF($Z163>=AK$3,$A163*100+AK$3,"") ->  | AL163: =IF($Z163>=AL$3,$A163*100+AL$3,"") ->  | AM163: =IF($Z163>=AM$3,$A163*100+AM$3,"") ->  | AN163: =IF($Z163>=AN$3,$A163*100+AN$3,"") ->  | AO163: =IF($Z163>=AO$3,$A163*100+AO$3,"") ->  | AP163: =IF($Z163>=AP$3,$A163*100+AP$3,"") ->  | AQ163: =IF($Z163>=AQ$3,$A163*100+AQ$3,"") ->  | AR163: =IF($Z163>=AR$3,$A163*100+AR$3,"") ->  | AS163: =IF($Z163>=AS$3,$A163*100+AS$3,"") ->  | AT163: =IF($Z163>=AT$3,$A163*100+AT$3,"") ->  | AU163: 1501 | AV163: 10 | AW163: 1601 | AX163: 5 | AY163: =IF(AU163="","",CONCATENATE(VLOOKUP(AU163,[1]DropConfig!$A:$F,3,FALSE),"×",AV163)) -> 好感度礼物1×10 | AZ163: =IF(AW163="","",CONCATENATE(VLOOKUP(AW163,[1]DropConfig!$A:$F,3,FALSE),"×",AX163)) -> 心情礼物1×5
AY164: =IF(AU164="","",CONCATENATE(VLOOKUP(AU164,[1]DropConfig!$A:$F,3,FALSE),"×",AV164)) ->  | AZ164: =IF(AW164="","",CONCATENATE(VLOOKUP(AW164,[1]DropConfig!$A:$F,3,FALSE),"×",AX164)) -> 
A165: 6041 | B165: =IF(A165="","",_xlfn.TEXTJOIN(";",1,AA165:AT165,102)) -> 604101;604102;604103;604104;102 | C165: 7 | D165: 5 | E165: 1 | F165: 0 | G165: 1 | I165: 1501;1601 | J165: 10;1 | K165: 35 | L165: 1 | M165: 2 | O165: =CONCATENATE(VLOOKUP(M165,[2]PlacesConfig!$A:$C,3,FALSE),IF(N165="",""," - "&VLOOKUP(N165,[2]SmallPlacesConfig!$A:$G,7,FALSE))) -> 尧之都 | R165: =IF(S165="","",VLOOKUP(S165,条件类型查询!A:B,2,FALSE)) -> 境界判断 | S165: 3 | T165: 121 | V165: 4215 | W165: 4221 | X165: 1. 山林重逢.隐士闲谈 | Y165: 许由1 | Z165: =COUNTIF(EventLinkConfig!O:O,EventConfig!A165) -> 4 | AA165: =IF($Z165>=AA$3,$A165*100+AA$3,"") -> 604101 | AB165: 604102 | AC165: 604103 | AD165: 604104 | AK165: =IF($Z165>=AK$3,$A165*100+AK$3,"") ->  | AU165: 1501 | AV165: 10 | AW165: 1601 | AX165: 1 | AY165: =IF(AU165="","",CONCATENATE(VLOOKUP(AU165,[1]DropConfig!$A:$F,3,FALSE),"×",AV165)) -> 好感度礼物1×10 | AZ165: =IF(AW165="","",CONCATENATE(VLOOKUP(AW165,[1]DropConfig!$A:$F,3,FALSE),"×",AX165)) -> 心情礼物1×1
A166: 6042 | B166: 604201;604202;604203;604204;102 | C166: 7 | D166: 5 | E166: 1 | F166: 0 | G166: 1 | I166: 1501;1601 | J166: 10;2 | K166: 30 | L166: 1 | M166: 2 | O166: =CONCATENATE(VLOOKUP(M166,[2]PlacesConfig!$A:$C,3,FALSE),IF(N166="",""," - "&VLOOKUP(N166,[2]SmallPlacesConfig!$A:$G,7,FALSE))) -> 尧之都 | R166: =IF(S166="","",VLOOKUP(S166,条件类型查询!A:B,2,FALSE)) -> 前置事件 | S166: 10 | T166: =A165 -> 6041 | V166: 4216 | W166: 4222 | X166: 2. 山野采草.炼丹初助 | Y166: 许由2 | Z166: =COUNTIF(EventLinkConfig!O:O,EventConfig!A166) -> 4 | AA166: 604201 | AB166: 604202 | AC166: 604203 | AD166: 604204 | AU166: 1501 | AV166: 10 | AW166: 1601 | AX166: 2 | AY166: =IF(AU166="","",CONCATENATE(VLOOKUP(AU166,[1]DropConfig!$A:$F,3,FALSE),"×",AV166)) -> 好感度礼物1×10 | AZ166: =IF(AW166="","",CONCATENATE(VLOOKUP(AW166,[1]DropConfig!$A:$F,3,FALSE),"×",AX166)) -> 心情礼物1×2
A167: 6043 | B167: 604301;604302;604303;102 | C167: 7 | D167: 5 | E167: 1 | F167: 0 | G167: 1 | I167: 1501;1601 | J167: 10;3 | K167: 25 | L167: 1 | M167: 2 | O167: =CONCATENATE(VLOOKUP(M167,[2]PlacesConfig!$A:$C,3,FALSE),IF(N167="",""," - "&VLOOKUP(N167,[2]SmallPlacesConfig!$A:$G,7,FALSE))) -> 尧之都 | R167: =IF(S167="","",VLOOKUP(S167,条件类型查询!A:B,2,FALSE)) -> 前置事件 | S167: 10 | T167: =A166 -> 6042 | V167: 4217 | W167: 4223 | X167: 3. 丹炉论道.火候之悟 | Y167: 许由3 | Z167: =COUNTIF(EventLinkConfig!O:O,EventConfig!A167) -> 3 | AA167: 604301 | AB167: 604302 | AC167: 604303 | AU167: 1501 | AV167: 10 | AW167: 1601 | AX167: 3 | AY167: =IF(AU167="","",CONCATENATE(VLOOKUP(AU167,[1]DropConfig!$A:$F,3,FALSE),"×",AV167)) -> 好感度礼物1×10 | AZ167: =IF(AW167="","",CONCATENATE(VLOOKUP(AW167,[1]DropConfig!$A:$F,3,FALSE),"×",AX167)) -> 心情礼物1×3
A168: 6044 | B168: 604401;604402;604403;604404;102 | C168: 7 | D168: 5 | E168: 1 | F168: 0 | G168: 1 | I168: 1501;1601 | J168: 10;4 | K168: 20 | L168: 1 | M168: 2 | O168: =CONCATENATE(VLOOKUP(M168,[2]PlacesConfig!$A:$C,3,FALSE),IF(N168="",""," - "&VLOOKUP(N168,[2]SmallPlacesConfig!$A:$G,7,FALSE))) -> 尧之都 | R168: =IF(S168="","",VLOOKUP(S168,条件类型查询!A:B,2,FALSE)) -> 前置事件 | S168: 10 | T168: =A167 -> 6043 | V168: 4218 | W168: 4224 | X168: 4. 玉佩镇丹.稳气寻材 | Y168: 许由4 | Z168: =COUNTIF(EventLinkConfig!O:O,EventConfig!A168) -> 4 | AA168: 604401 | AB168: 604402 | AC168: 604403 | AD168: 604404 | AU168: 1501 | AV168: 10 | AW168: 1601 | AX168: 4 | AY168: =IF(AU168="","",CONCATENATE(VLOOKUP(AU168,[1]DropConfig!$A:$F,3,FALSE),"×",AV168)) -> 好感度礼物1×10 | AZ168: =IF(AW168="","",CONCATENATE(VLOOKUP(AW168,[1]DropConfig!$A:$F,3,FALSE),"×",AX168)) -> 心情礼物1×4
A169: 6045 | B169: 604501;604502;604503;604504;102 | C169: 7 | D169: 5 | E169: 1 | F169: 0 | G169: 1 | I169: 1501;1601 | J169: 10;5 | K169: 15 | L169: 1 | M169: 2 | O169: =CONCATENATE(VLOOKUP(M169,[2]PlacesConfig!$A:$C,3,FALSE),IF(N169="",""," - "&VLOOKUP(N169,[2]SmallPlacesConfig!$A:$G,7,FALSE))) -> 尧之都 | R169: =IF(S169="","",VLOOKUP(S169,条件类型查询!A:B,2,FALSE)) -> 前置事件 | S169: 10 | T169: =A168 -> 6044 | V169: 4219 | W169: 4225 | X169: 5. 茶丹相融.品味山林 | Y169: 许由5 | Z169: =COUNTIF(EventLinkConfig!O:O,EventConfig!A169) -> 4 | AA169: 604501 | AB169: 604502 | AC169: 604503 | AD169: 604504 | AU169: 1501 | AV169: 10 | AW169: 1601 | AX169: 5 | AY169: =IF(AU169="","",CONCATENATE(VLOOKUP(AU169,[1]DropConfig!$A:$F,3,FALSE),"×",AV169)) -> 好感度礼物1×10 | AZ169: =IF(AW169="","",CONCATENATE(VLOOKUP(AW169,[1]DropConfig!$A:$F,3,FALSE),"×",AX169)) -> 心情礼物1×5
A170: 6046 | B170: 604601;604602;102 | C170: 7 | D170: 5 | E170: 1 | F170: 0 | G170: 1 | I170: 1501;1601 | J170: 10;5 | K170: 10 | L170: 1 | M170: 2 | O170: =CONCATENATE(VLOOKUP(M170,[2]PlacesConfig!$A:$C,3,FALSE),IF(N170="",""," - "&VLOOKUP(N170,[2]SmallPlacesConfig!$A:$G,7,FALSE))) -> 尧之都 | R170: =IF(S170="","",VLOOKUP(S170,条件类型查询!A:B,2,FALSE)) -> 前置事件 | S170: 10 | T170: =A169 -> 6045 | V170: 4220 | W170: 4226 | X170: 6. 隐士心语.道在山林 | Y170: 许由6 | Z170: =COUNTIF(EventLinkConfig!O:O,EventConfig!A170) -> 2 | AA170: 604601 | AB170: 604602 | AU170: 1501 | AV170: 10 | AW170: 1601 | AX170: 5 | AY170: =IF(AU170="","",CONCATENATE(VLOOKUP(AU170,[1]DropConfig!$A:$F,3,FALSE),"×",AV170)) -> 好感度礼物1×10 | AZ170: =IF(AW170="","",CONCATENATE(VLOOKUP(AW170,[1]DropConfig!$A:$F,3,FALSE),"×",AX170)) -> 心情礼物1×5
AY171: =IF(AU171="","",CONCATENATE(VLOOKUP(AU171,[1]DropConfig!$A:$F,3,FALSE),"×",AV171)) ->  | AZ171: =IF(AW171="","",CONCATENATE(VLOOKUP(AW171,[1]DropConfig!$A:$F,3,FALSE),"×",AX171)) -> 
A172: 6051 | B172: =IF(A172="","",_xlfn.TEXTJOIN(";",1,AA172:AT172,102)) -> 605101;605102;605103;605104;102 | C172: 7 | D172: 5 | E172: 1 | F172: 0 | G172: 1 | I172: 1501;1601 | J172: 10;1 | K172: 35 | L172: 1 | M172: 3 | O172: =CONCATENATE(VLOOKUP(M172,[2]PlacesConfig!$A:$C,3,FALSE),IF(N172="",""," - "&VLOOKUP(N172,[2]SmallPlacesConfig!$A:$G,7,FALSE))) -> 藐姑射山 | R172: =IF(S172="","",VLOOKUP(S172,条件类型查询!A:B,2,FALSE)) -> 境界判断 | S172: 3 | T172: 141 | V172: 4231 | W172: 4237 | X172: 1. 随风偶遇.风中疑问 | Y172: 疯道人1 | Z172: =COUNTIF(EventLinkConfig!O:O,EventConfig!A172) -> 4 | AA172: =IF($Z172>=AA$3,$A172*100+AA$3,"") -> 605101 | AB172: 605102 | AC172: 605103 | AD172: 605104 | AK172: =IF($Z172>=AK$3,$A172*100+AK$3,"") ->  | AU172: 1501 | AV172: 10 | AW172: 1601 | AX172: 1 | AY172: =IF(AU172="","",CONCATENATE(VLOOKUP(AU172,[1]DropConfig!$A:$F,3,FALSE),"×",AV172)) -> 好感度礼物1×10 | AZ172: =IF(AW172="","",CONCATENATE(VLOOKUP(AW172,[1]DropConfig!$A:$F,3,FALSE),"×",AX172)) -> 心情礼物1×1
A173: 6052 | B173: =IF(A173="","",_xlfn.TEXTJOIN(";",1,AA173:AT173,102)) -> 605201;605202;605203;605204;102 | C173: 7 | D173: 5 | E173: 1 | F173: 0 | G173: 1 | I173: 1501;1601 | J173: 10;2 | K173: 30 | L173: 1 | M173: 3 | O173: =CONCATENATE(VLOOKUP(M173,[2]PlacesConfig!$A:$C,3,FALSE),IF(N173="",""," - "&VLOOKUP(N173,[2]SmallPlacesConfig!$A:$G,7,FALSE))) -> 藐姑射山 | R173: =IF(S173="","",VLOOKUP(S173,条件类型查询!A:B,2,FALSE)) -> 前置事件 | S173: 10 | T173: =A172 -> 6051 | V173: 4232 | W173: 4238 | X173: 2. 途中解乏 | Y173: 疯道人2 | Z173: =COUNTIF(EventLinkConfig!O:O,EventConfig!A173) -> 4 | AA173: 605201 | AB173: 605202 | AC173: 605203 | AD173: 605204 | AU173: 1501 | AV173: 10 | AW173: 1601 | AX173: 2 | AY173: =IF(AU173="","",CONCATENATE(VLOOKUP(AU173,[1]DropConfig!$A:$F,3,FALSE),"×",AV173)) -> 好感度礼物1×10 | AZ173: =IF(AW173="","",CONCATENATE(VLOOKUP(AW173,[1]DropConfig!$A:$F,3,FALSE),"×",AX173)) -> 心情礼物1×2
A174: 6053 | B174: =IF(A174="","",_xlfn.TEXTJOIN(";",1,AA174:AT174,102)) -> 605301;605302;605303;605304;102 | C174: 7 | D174: 5 | E174: 1 | F174: 0 | G174: 1 | I174: 1501;1601 | J174: 10;3 | K174: 25 | L174: 1 | M174: 3 | O174: =CONCATENATE(VLOOKUP(M174,[2]PlacesConfig!$A:$C,3,FALSE),IF(N174="",""," - "&VLOOKUP(N174,[2]SmallPlacesConfig!$A:$G,7,FALSE))) -> 藐姑射山 | R174: =IF(S174="","",VLOOKUP(S174,条件类型查询!A:B,2,FALSE)) -> 前置事件 | S174: 10 | T174: =A173 -> 6052 | V174: 4233 | W174: 4239 | X174: 3. 游乐论道.评判之辨 | Y174: 疯道人3 | Z174: =COUNTIF(EventLinkConfig!O:O,EventConfig!A174) -> 4 | AA174: 605301 | AB174: 605302 | AC174: 605303 | AD174: 605304 | AU174: 1501 | AV174: 10 | AW174: 1601 | AX174: 3 | AY174: =IF(AU174="","",CONCATENATE(VLOOKUP(AU174,[1]DropConfig!$A:$F,3,FALSE),"×",AV174)) -> 好感度礼物1×10 | AZ174: =IF(AW174="","",CONCATENATE(VLOOKUP(AW174,[1]DropConfig!$A:$F,3,FALSE),"×",AX174)) -> 心情礼物1×3
A175: 6054 | B175: =IF(A175="","",_xlfn.TEXTJOIN(";",1,AA175:AT175,102)) -> 605401;605402;605403;605404;102 | C175: 7 | D175: 5 | E175: 1 | F175: 0 | G175: 1 | I175: 1501;1601 | J175: 10;4 | K175: 20 | L175: 1 | M175: 3 | O175: =CONCATENATE(VLOOKUP(M175,[2]PlacesConfig!$A:$C,3,FALSE),IF(N175="",""," - "&VLOOKUP(N175,[2]SmallPlacesConfig!$A:$G,7,FALSE))) -> 藐姑射山 | R175: =IF(S175="","",VLOOKUP(S175,条件类型查询!A:B,2,FALSE)) -> 前置事件 | S175: 10 | T175: =A174 -> 6053 | V175: 4234 | W175: 4240 | X175: 4. 灵石稳身.自在寻味 | Y175: 疯道人4 | Z175: =COUNTIF(EventLinkConfig!O:O,EventConfig!A175) -> 4 | AA175: 605401 | AB175: 605402 | AC175: 605403 | AD175: 605404 | AU175: 1501 | AV175: 10 | AW175: 1601 | AX175: 4 | AY175: =IF(AU175="","",CONCATENATE(VLOOKUP(AU175,[1]DropConfig!$A:$F,3,FALSE),"×",AV175)) -> 好感度礼物1×10 | AZ175: =IF(AW175="","",CONCATENATE(VLOOKUP(AW175,[1]DropConfig!$A:$F,3,FALSE),"×",AX175)) -> 心情礼物1×4
A176: 6055 | B176: =IF(A176="","",_xlfn.TEXTJOIN(";",1,AA176:AT176,102)) -> 605501;605502;605503;605504;605505;605506;102 | C176: 7 | D176: 5 | E176: 1 | F176: 0 | G176: 1 | I176: 1501;1601 | J176: 10;5 | K176: 15 | L176: 1 | M176: 3 | O176: =CONCATENATE(VLOOKUP(M176,[2]PlacesConfig!$A:$C,3,FALSE),IF(N176="",""," - "&VLOOKUP(N176,[2]SmallPlacesConfig!$A:$G,7,FALSE))) -> 藐姑射山 | R176: =IF(S176="","",VLOOKUP(S176,条件类型查询!A:B,2,FALSE)) -> 前置事件 | S176: 10 | T176: =A175 -> 6054 | V176: 4235 | W176: 4241 | X176: 5. 沉迷赌博.有借无还 | Y176: 疯道人5 | Z176: =COUNTIF(EventLinkConfig!O:O,EventConfig!A176) -> 6 | AA176: 605501 | AB176: 605502 | AC176: 605503 | AD176: 605504 | AE176: 605505 | AF176: 605506 | AU176: 1501 | AV176: 10 | AW176: 1601 | AX176: 5 | AY176: =IF(AU176="","",CONCATENATE(VLOOKUP(AU176,[1]DropConfig!$A:$F,3,FALSE),"×",AV176)) -> 好感度礼物1×10 | AZ176: =IF(AW176="","",CONCATENATE(VLOOKUP(AW176,[1]DropConfig!$A:$F,3,FALSE),"×",AX176)) -> 心情礼物1×5
AY177: =IF(AU177="","",CONCATENATE(VLOOKUP(AU177,[1]DropConfig!$A:$F,3,FALSE),"×",AV177)) ->  | AZ177: =IF(AW177="","",CONCATENATE(VLOOKUP(AW177,[1]DropConfig!$A:$F,3,FALSE),"×",AX177)) -> 
A178: 9111 | B178: =IF(Z178>0,_xlfn.TEXTJOIN(";",1,ROW(INDIRECT(CONCATENATE("",A178*100+1,":",A178*100+Z178,""))),102),"") -> 911101;911102;911103;911104;911105;911106;911107;911108;911109;911110;911111;911112;911113;911114;911115;911116;102 | C178: 6 | D178: 2 | E178: 1 | F178: 0 | G178: 3 | I178: 22001 | J178: 1 | K178: 100 | L178: 1 | M178: 1 | N178: 1 | O178: =CONCATENATE(VLOOKUP(M178,[2]PlacesConfig!$A:$C,3,FALSE),IF(N178="",""," - "&VLOOKUP(N178,[2]SmallPlacesConfig!$A:$G,7,FALSE))) -> 北海 - 海边 | R178: =IF(S178="","",VLOOKUP(S178,条件类型查询!A:B,2,FALSE)) ->  | U178: 1 | V178: 4244 | X178: 渔民的帮助 | Y178: 海岸异象 | Z178: =COUNTIF(EventLinkConfig!O:O,EventConfig!A178) -> 16 | AU178: 22001 | AV178: 1 | AY178: =IF(AU178="","",CONCATENATE(VLOOKUP(AU178,[1]DropConfig!$A:$F,3,FALSE),"×",AV178)) -> 感悟点1×1 | AZ178: =IF(AW178="","",CONCATENATE(VLOOKUP(AW178,[1]DropConfig!$A:$F,3,FALSE),"×",AX178)) -> 
A179: =A178+1 -> 9112 | B179: =IF(Z179>0,_xlfn.TEXTJOIN(";",1,ROW(INDIRECT(CONCATENATE("",A179*100+1,":",A179*100+Z179,""))),102),"") -> 911201;911202;911203;911204;911205;911206;911207;102 | C179: 6 | D179: 2 | E179: 1 | F179: 0 | G179: 3 | I179: 22001 | J179: 1 | K179: 30 | L179: 1 | M179: 1 | N179: 1 | O179: =CONCATENATE(VLOOKUP(M179,[2]PlacesConfig!$A:$C,3,FALSE),IF(N179="",""," - "&VLOOKUP(N179,[2]SmallPlacesConfig!$A:$G,7,FALSE))) -> 北海 - 海边 | R179: =IF(S179="","",VLOOKUP(S179,条件类型查询!A:B,2,FALSE)) -> 前置事件 | S179: 10 | T179: =A178 -> 9111 | U179: 1 | V179: 4245 | X179: 妖物调查 | Y179: 海岸异象 | Z179: =COUNTIF(EventLinkConfig!O:O,EventConfig!A179) -> 7 | AU179: 22001 | AV179: 1 | AY179: =IF(AU179="","",CONCATENATE(VLOOKUP(AU179,[1]DropConfig!$A:$F,3,FALSE),"×",AV179)) -> 感悟点1×1 | AZ179: =IF(AW179="","",CONCATENATE(VLOOKUP(AW179,[1]DropConfig!$A:$F,3,FALSE),"×",AX179)) -> 
A180: 9113 | B180: =IF(Z180>0,_xlfn.TEXTJOIN(";",1,ROW(INDIRECT(CONCATENATE("",A180*100+1,":",A180*100+Z180,""))),102),"") -> 911301;911302;911303;911304;911305;102 | C180: 6 | D180: 2 | E180: 1 | F180: 0 | G180: 3 | I180: 22001 | J180: 1 | K180: 30 | L180: 1 | M180: 1 | N180: 1 | O180: =CONCATENATE(VLOOKUP(M180,[2]PlacesConfig!$A:$C,3,FALSE),IF(N180="",""," - "&VLOOKUP(N180,[2]SmallPlacesConfig!$A:$G,7,FALSE))) -> 北海 - 海边 | R180: =IF(S180="","",VLOOKUP(S180,条件类型查询!A:B,2,FALSE)) -> 前置事件 | S180: 10 | T180: =A179 -> 9112 | U180: 1 | V180: 4246 | X180: 渔民汇报消息 | Y180: 海岸异象 | Z180: =COUNTIF(EventLinkConfig!O:O,EventConfig!A180) -> 5 | AU180: 22001 | AV180: 1 | AY180: =IF(AU180="","",CONCATENATE(VLOOKUP(AU180,[1]DropConfig!$A:$F,3,FALSE),"×",AV180)) -> 感悟点1×1 | AZ180: =IF(AW180="","",CONCATENATE(VLOOKUP(AW180,[1]DropConfig!$A:$F,3,FALSE),"×",AX180)) -> 
A181: 9114 | B181: =IF(Z181>0,_xlfn.TEXTJOIN(";",1,ROW(INDIRECT(CONCATENATE("",A181*100+1,":",A181*100+Z181,""))),102),"") -> 911401;911402;911403;911404;911405;911406;911407;911408;102 | C181: 6 | D181: 2 | E181: 1 | F181: 0 | G181: 3 | I181: 22001 | J181: 1 | K181: 30 | L181: 1 | M181: 1 | N181: 1 | O181: =CONCATENATE(VLOOKUP(M181,[2]PlacesConfig!$A:$C,3,FALSE),IF(N181="",""," - "&VLOOKUP(N181,[2]SmallPlacesConfig!$A:$G,7,FALSE))) -> 北海 - 海边 | R181: =IF(S181="","",VLOOKUP(S181,条件类型查询!A:B,2,FALSE)) -> 前置事件 | S181: 10 | T181: =A180 -> 9113 | U181: 1 | V181: 4247 | X181: 初遇幽魂 | Y181: 幽魂 | Z181: =COUNTIF(EventLinkConfig!O:O,EventConfig!A181) -> 8 | AU181: 22001 | AV181: 1 | AY181: =IF(AU181="","",CONCATENATE(VLOOKUP(AU181,[1]DropConfig!$A:$F,3,FALSE),"×",AV181)) -> 感悟点1×1 | AZ181: =IF(AW181="","",CONCATENATE(VLOOKUP(AW181,[1]DropConfig!$A:$F,3,FALSE),"×",AX181)) -> 
A182: 9115 | B182: =IF(Z182>0,_xlfn.TEXTJOIN(";",1,ROW(INDIRECT(CONCATENATE("",A182*100+1,":",A182*100+Z182,""))),102),"") -> 911501;911502;102 | C182: 6 | D182: 2 | E182: 1 | F182: 0 | G182: 3 | K182: 30 | L182: 1 | M182: 1 | N182: 1 | O182: =CONCATENATE(VLOOKUP(M182,[2]PlacesConfig!$A:$C,3,FALSE),IF(N182="",""," - "&VLOOKUP(N182,[2]SmallPlacesConfig!$A:$G,7,FALSE))) -> 北海 - 海边 | R182: =IF(S182="","",VLOOKUP(S182,条件类型查询!A:B,2,FALSE)) -> 前置事件 | S182: 10 | T182: =A181 -> 9114 | U182: 3 | V182: 4248 | X182: 幽魂石守护兽 | Y182: 幽魂 | Z182: =COUNTIF(EventLinkConfig!O:O,EventConfig!A182) -> 2 | AY182: =IF(AU182="","",CONCATENATE(VLOOKUP(AU182,[1]DropConfig!$A:$F,3,FALSE),"×",AV182)) ->  | AZ182: =IF(AW182="","",CONCATENATE(VLOOKUP(AW182,[1]DropConfig!$A:$F,3,FALSE),"×",AX182)) -> 
A183: 9116 | B183: =IF(Z183>0,_xlfn.TEXTJOIN(";",1,ROW(INDIRECT(CONCATENATE("",A183*100+1,":",A183*100+Z183,""))),102),"") -> 911601;911602;911603;911604;911605;911606;911607;911608;911609;911610;911611;911612;911613;911614;911615;911616;911617;911618;911619;911620;102 | C183: 6 | D183: 2 | E183: 1 | F183: 0 | G183: 3 | I183: 22001 | J183: 1 | K183: 30 | L183: 1 | M183: 1 | N183: 1 | O183: =CONCATENATE(VLOOKUP(M183,[2]PlacesConfig!$A:$C,3,FALSE),IF(N183="",""," - "&VLOOKUP(N183,[2]SmallPlacesConfig!$A:$G,7,FALSE))) -> 北海 - 海边 | R183: =IF(S183="","",VLOOKUP(S183,条件类型查询!A:B,2,FALSE)) -> 拥有特定道具 | S183: 1 | T183: 20013 | U183: 3 | V183: 4249 | X183: 带回幽魂石 | Y183: 幽魂 | Z183: =COUNTIF(EventLinkConfig!O:O,EventConfig!A183) -> 20 | AU183: 22001 | AV183: 1 | AY183: =IF(AU183="","",CONCATENATE(VLOOKUP(AU183,[1]DropConfig!$A:$F,3,FALSE),"×",AV183)) -> 感悟点1×1 | AZ183: =IF(AW183="","",CONCATENATE(VLOOKUP(AW183,[1]DropConfig!$A:$F,3,FALSE),"×",AX183)) -> 
A184: 9117 | B184: =IF(Z184>0,_xlfn.TEXTJOIN(";",1,ROW(INDIRECT(CONCATENATE("",A184*100+1,":",A184*100+Z184,""))),102),"") -> 911701;911702;911703;911704;911705;911706;911707;911708;911709;911710;911711;102 | C184: 6 | D184: 2 | E184: 1 | F184: 0 | G184: 3 | K184: 30 | L184: 1 | M184: 1 | N184: 2 | O184: =CONCATENATE(VLOOKUP(M184,[2]PlacesConfig!$A:$C,3,FALSE),IF(N184="",""," - "&VLOOKUP(N184,[2]SmallPlacesConfig!$A:$G,7,FALSE))) -> 北海 - 秘境 | R184: =IF(S184="","",VLOOKUP(S184,条件类型查询!A:B,2,FALSE)) ->  | U184: 3 | V184: 4250 | X184: 初遇馨儿 | Y184: 馨儿 | Z184: =COUNTIF(EventLinkConfig!O:O,EventConfig!A184) -> 11 | AY184: =IF(AU184="","",CONCATENATE(VLOOKUP(AU184,[1]DropConfig!$A:$F,3,FALSE),"×",AV184)) ->  | AZ184: =IF(AW184="","",CONCATENATE(VLOOKUP(AW184,[1]DropConfig!$A:$F,3,FALSE),"×",AX184)) -> 
A185: 9118 | B185: =IF(Z185>0,_xlfn.TEXTJOIN(";",1,ROW(INDIRECT(CONCATENATE("",A185*100+1,":",A185*100+Z185,""))),102),"") -> 911801;911802;911803;911804;911805;911806;911807;911808;102 | C185: 6 | D185: 2 | E185: 1 | F185: 0 | G185: 3 | I185: 22001 | J185: 1 | K185: 30 | L185: 1 | M185: 1 | N185: 2 | O185: =CONCATENATE(VLOOKUP(M185,[2]PlacesConfig!$A:$C,3,FALSE),IF(N185="",""," - "&VLOOKUP(N185,[2]SmallPlacesConfig!$A:$G,7,FALSE))) -> 北海 - 秘境 | R185: =IF(S185="","",VLOOKUP(S185,条件类型查询!A:B,2,FALSE)) -> 前置事件 | S185: 10 | T185: =A184 -> 9117 | U185: 3 | V185: 4251 | X185: 迷雾妖怪 | Y185: 馨儿 | Z185: =COUNTIF(EventLinkConfig!O:O,EventConfig!A185) -> 8 | AU185: 22001 | AV185: 1 | AY185: =IF(AU185="","",CONCATENATE(VLOOKUP(AU185,[1]DropConfig!$A:$F,3,FALSE),"×",AV185)) -> 感悟点1×1 | AZ185: =IF(AW185="","",CONCATENATE(VLOOKUP(AW185,[1]DropConfig!$A:$F,3,FALSE),"×",AX185)) -> 
A186: 9119 | B186: =IF(Z186>0,_xlfn.TEXTJOIN(";",1,ROW(INDIRECT(CONCATENATE("",A186*100+1,":",A186*100+Z186,""))),102),"") -> 911901;911902;911903;911904;911905;911906;911907;911908;911909;911910;911911;911912;911913;102 | C186: 6 | D186: 2 | E186: 1 | F186: 0 | G186: 3 | K186: 30 | L186: 1 | M186: 1 | N186: 2 | O186: =CONCATENATE(VLOOKUP(M186,[2]PlacesConfig!$A:$C,3,FALSE),IF(N186="",""," - "&VLOOKUP(N186,[2]SmallPlacesConfig!$A:$G,7,FALSE))) -> 北海 - 秘境 | R186: =IF(S186="","",VLOOKUP(S186,条件类型查询!A:B,2,FALSE)) -> 前置事件 | S186: 10 | T186: =A185 -> 9118 | U186: 3 | V186: 4252 | X186: 发现信使 | Y186: 馨儿 | Z186: =COUNTIF(EventLinkConfig!O:O,EventConfig!A186) -> 13 | AY186: =IF(AU186="","",CONCATENATE(VLOOKUP(AU186,[1]DropConfig!$A:$F,3,FALSE),"×",AV186)) ->  | AZ186: =IF(AW186="","",CONCATENATE(VLOOKUP(AW186,[1]DropConfig!$A:$F,3,FALSE),"×",AX186)) -> 
A187: 9120 | B187: =IF(Z187>0,_xlfn.TEXTJOIN(";",1,ROW(INDIRECT(CONCATENATE("",A187*100+1,":",A187*100+Z187,""))),102),"") -> 912001;912002;912003;912004;912005;912006;912007;912008;102 | C187: 6 | D187: 2 | E187: 1 | F187: 0 | G187: 3 | I187: 22001 | J187: 1 | K187: 30 | L187: 1 | M187: 1 | N187: 3 | O187: =CONCATENATE(VLOOKUP(M187,[2]PlacesConfig!$A:$C,3,FALSE),IF(N187="",""," - "&VLOOKUP(N187,[2]SmallPlacesConfig!$A:$G,7,FALSE))) -> 北海 - 浮岛 | R187: =IF(S187="","",VLOOKUP(S187,条件类型查询!A:B,2,FALSE)) -> 前置事件 | S187: 10 | T187: =A186 -> 9119 | U187: 3 | V187: 4253 | X187: 风灵鸟的宝藏 | Y187: 馨儿 | Z187: =COUNTIF(EventLinkConfig!O:O,EventConfig!A187) -> 8 | AU187: 22001 | AV187: 1 | AY187: =IF(AU187="","",CONCATENATE(VLOOKUP(AU187,[1]DropConfig!$A:$F,3,FALSE),"×",AV187)) -> 感悟点1×1 | AZ187: =IF(AW187="","",CONCATENATE(VLOOKUP(AW187,[1]DropConfig!$A:$F,3,FALSE),"×",AX187)) -> 
A188: 9121 | B188: =IF(Z188>0,_xlfn.TEXTJOIN(";",1,ROW(INDIRECT(CONCATENATE("",A188*100+1,":",A188*100+Z188,""))),102),"") -> 912101;912102;912103;912104;912105;912106;102 | C188: 6 | D188: 2 | E188: 1 | F188: 0 | G188: 3 | K188: 30 | L188: 1 | M188: 1 | N188: 3 | O188: =CONCATENATE(VLOOKUP(M188,[2]PlacesConfig!$A:$C,3,FALSE),IF(N188="",""," - "&VLOOKUP(N188,[2]SmallPlacesConfig!$A:$G,7,FALSE))) -> 北海 - 浮岛 | R188: =IF(S188="","",VLOOKUP(S188,条件类型查询!A:B,2,FALSE)) -> 前置事件 | S188: 10 | T188: =A187 -> 9120 | U188: 3 | V188: 4254 | X188: 浮岛灵泉的净化 | Y188: 馨儿 | Z188: =COUNTIF(EventLinkConfig!O:O,EventConfig!A188) -> 6 | AY188: =IF(AU188="","",CONCATENATE(VLOOKUP(AU188,[1]DropConfig!$A:$F,3,FALSE),"×",AV188)) ->  | AZ188: =IF(AW188="","",CONCATENATE(VLOOKUP(AW188,[1]DropConfig!$A:$F,3,FALSE),"×",AX188)) -> 
A189: 9122 | B189: =IF(Z189>0,_xlfn.TEXTJOIN(";",1,ROW(INDIRECT(CONCATENATE("",A189*100+1,":",A189*100+Z189,""))),102),"") -> 912201;912202;912203;912204;912205;912206;912207;912208;912209;912210;912211;912212;912213;912214;912215;102 | C189: 6 | D189: 2 | E189: 1 | F189: 0 | G189: 3 | I189: 22001 | J189: 1 | K189: 30 | L189: 1 | M189: 1 | N189: 3 | O189: =CONCATENATE(VLOOKUP(M189,[2]PlacesConfig!$A:$C,3,FALSE),IF(N189="",""," - "&VLOOKUP(N189,[2]SmallPlacesConfig!$A:$G,7,FALSE))) -> 北海 - 浮岛 | R189: =IF(S189="","",VLOOKUP(S189,条件类型查询!A:B,2,FALSE)) -> 前置事件 | S189: 10 | T189: =A188 -> 9121 | U189: 3 | V189: 4255 | X189: 浮岛盗修的阴谋 | Y189: 馨儿 | Z189: =COUNTIF(EventLinkConfig!O:O,EventConfig!A189) -> 15 | AU189: 22001 | AV189: 1 | AY189: =IF(AU189="","",CONCATENATE(VLOOKUP(AU189,[1]DropConfig!$A:$F,3,FALSE),"×",AV189)) -> 感悟点1×1 | AZ189: =IF(AW189="","",CONCATENATE(VLOOKUP(AW189,[1]DropConfig!$A:$F,3,FALSE),"×",AX189)) -> 
A190: 9123 | B190: =IF(Z190>0,_xlfn.TEXTJOIN(";",1,ROW(INDIRECT(CONCATENATE("",A190*100+1,":",A190*100+Z190,""))),102),"") -> 912301;912302;912303;912304;912305;912306;912307;912308;912309;912310;912311;912312;912313;912314;912315;912316;912317;912318;912319;912320;912321;912322;912323;912324;912325;912326;912327;912328;912329;102 | C190: 6 | D190: 2 | E190: 1 | F190: 0 | G190: 3 | K190: 30 | L190: 1 | M190: 1 | N190: 4 | O190: =CONCATENATE(VLOOKUP(M190,[2]PlacesConfig!$A:$C,3,FALSE),IF(N190="",""," - "&VLOOKUP(N190,[2]SmallPlacesConfig!$A:$G,7,FALSE))) -> 北海 - 深处 | R190: =IF(S190="","",VLOOKUP(S190,条件类型查询!A:B,2,FALSE)) ->  | U190: 3 | V190: 4256 | X190: 初遇柳轻烟 | Y190: 柳轻烟 | Z190: =COUNTIF(EventLinkConfig!O:O,EventConfig!A190) -> 29 | AY190: =IF(AU190="","",CONCATENATE(VLOOKUP(AU190,[1]DropConfig!$A:$F,3,FALSE),"×",AV190)) ->  | AZ190: =IF(AW190="","",CONCATENATE(VLOOKUP(AW190,[1]DropConfig!$A:$F,3,FALSE),"×",AX190)) -> 
A191: 9124 | B191: =IF(Z191>0,_xlfn.TEXTJOIN(";",1,ROW(INDIRECT(CONCATENATE("",A191*100+1,":",A191*100+Z191,""))),102),"") -> 912401;912402;912403;102 | C191: 6 | D191: 2 | E191: 1 | F191: 0 | G191: 3 | I191: 22001 | J191: 1 | K191: 30 | L191: 1 | M191: 1 | N191: 4 | O191: =CONCATENATE(VLOOKUP(M191,[2]PlacesConfig!$A:$C,3,FALSE),IF(N191="",""," - "&VLOOKUP(N191,[2]SmallPlacesConfig!$A:$G,7,FALSE))) -> 北海 - 深处 | R191: =IF(S191="","",VLOOKUP(S191,条件类型查询!A:B,2,FALSE)) -> 前置事件 | S191: 10 | T191: =A190 -> 9123 | U191: 3 | V191: 4257 | X191: 找到血海宗的人 | Y191: 柳轻烟 | Z191: =COUNTIF(EventLinkConfig!O:O,EventConfig!A191) -> 3 | AU191: 22001 | AV191: 1 | AY191: =IF(AU191="","",CONCATENATE(VLOOKUP(AU191,[1]DropConfig!$A:$F,3,FALSE),"×",AV191)) -> 感悟点1×1 | AZ191: =IF(AW191="","",CONCATENATE(VLOOKUP(AW191,[1]DropConfig!$A:$F,3,FALSE),"×",AX191)) -> 
A192: 9125 | B192: =IF(Z192>0,_xlfn.TEXTJOIN(";",1,ROW(INDIRECT(CONCATENATE("",A192*100+1,":",A192*100+Z192,""))),102),"") -> 912501;912502;912503;102 | C192: 6 | D192: 2 | E192: 1 | F192: 0 | G192: 3 | I192: 20014 | J192: 1 | K192: 30 | L192: 1 | M192: 1 | N192: 4 | O192: =CONCATENATE(VLOOKUP(M192,[2]PlacesConfig!$A:$C,3,FALSE),IF(N192="",""," - "&VLOOKUP(N192,[2]SmallPlacesConfig!$A:$G,7,FALSE))) -> 北海 - 深处 | R192: =IF(S192="","",VLOOKUP(S192,条件类型查询!A:B,2,FALSE)) -> 前置事件 | S192: 10 | T192: =A191 -> 9124 | U192: 3 | V192: 4258 | X192: 找到血海宗的人2 | Y192: 柳轻烟 | Z192: =COUNTIF(EventLinkConfig!O:O,EventConfig!A192) -> 3 | AU192: 20014 | AV192: 1 | AY192: =IF(AU192="","",CONCATENATE(VLOOKUP(AU192,[1]DropConfig!$A:$F,3,FALSE),"×",AV192)) -> 云雾秘钥×1 | AZ192: =IF(AW192="","",CONCATENATE(VLOOKUP(AW192,[1]DropConfig!$A:$F,3,FALSE),"×",AX192)) -> 
A193: 9126 | B193: =IF(Z193>0,_xlfn.TEXTJOIN(";",1,ROW(INDIRECT(CONCATENATE("",A193*100+1,":",A193*100+Z193,""))),102),"") -> 912601;912602;912603;912604;102 | C193: 6 | D193: 2 | E193: 1 | F193: 0 | G193: 3 | I193: 22001 | J193: 1 | K193: 30 | L193: 1 | M193: 1 | N193: 4 | O193: =CONCATENATE(VLOOKUP(M193,[2]PlacesConfig!$A:$C,3,FALSE),IF(N193="",""," - "&VLOOKUP(N193,[2]SmallPlacesConfig!$A:$G,7,FALSE))) -> 北海 - 深处 | R193: =IF(S193="","",VLOOKUP(S193,条件类型查询!A:B,2,FALSE)) -> 前置事件 | S193: 10 | T193: =A192 -> 9125 | U193: 3 | V193: 4259 | X193: 回到柳轻烟交任务 | Y193: 柳轻烟 | Z193: =COUNTIF(EventLinkConfig!O:O,EventConfig!A193) -> 4 | AU193: 22001 | AV193: 1 | AY193: =IF(AU193="","",CONCATENATE(VLOOKUP(AU193,[1]DropConfig!$A:$F,3,FALSE),"×",AV193)) -> 感悟点1×1 | AZ193: =IF(AW193="","",CONCATENATE(VLOOKUP(AW193,[1]DropConfig!$A:$F,3,FALSE),"×",AX193)) -> 
A194: 9127 | B194: =IF(Z194>0,_xlfn.TEXTJOIN(";",1,ROW(INDIRECT(CONCATENATE("",A194*100+1,":",A194*100+Z194,""))),102),"") -> 912701;912702;912703;912704;912705;912706;912707;912708;912709;102 | C194: 6 | D194: 2 | E194: 1 | F194: 0 | G194: 3 | K194: 30 | L194: 1 | M194: 2 | N194: 5 | O194: =CONCATENATE(VLOOKUP(M194,[2]PlacesConfig!$A:$C,3,FALSE),IF(N194="",""," - "&VLOOKUP(N194,[2]SmallPlacesConfig!$A:$G,7,FALSE))) -> 尧之都 - 主城 | R194: =IF(S194="","",VLOOKUP(S194,条件类型查询!A:B,2,FALSE)) ->  | U194: 3 | V194: 4260 | X194: 灵花 | Y194: 馨儿 | Z194: =COUNTIF(EventLinkConfig!O:O,EventConfig!A194) -> 9 | AY194: =IF(AU194="","",CONCATENATE(VLOOKUP(AU194,[1]DropConfig!$A:$F,3,FALSE),"×",AV194)) ->  | AZ194: =IF(AW194="","",CONCATENATE(VLOOKUP(AW194,[1]DropConfig!$A:$F,3,FALSE),"×",AX194)) -> 
A195: 9128 | B195: =IF(Z195>0,_xlfn.TEXTJOIN(";",1,ROW(INDIRECT(CONCATENATE("",A195*100+1,":",A195*100+Z195,""))),102),"") -> 912801;912802;912803;912804;912805;912806;912807;102 | C195: 6 | D195: 2 | E195: 1 | F195: 0 | G195: 3 | I195: 22001 | J195: 1 | K195: 30 | L195: 1 | M195: 2 | N195: 5 | O195: =CONCATENATE(VLOOKUP(M195,[2]PlacesConfig!$A:$C,3,FALSE),IF(N195="",""," - "&VLOOKUP(N195,[2]SmallPlacesConfig!$A:$G,7,FALSE))) -> 尧之都 - 主城 | R195: =IF(S195="","",VLOOKUP(S195,条件类型查询!A:B,2,FALSE)) -> 前置事件 | S195: 10 | T195: =A194 -> 9127 | U195: 3 | V195: =V194+1 -> 4261 | X195: 散修劫掠 | Y195: 馨儿 | Z195: =COUNTIF(EventLinkConfig!O:O,EventConfig!A195) -> 7 | AU195: 22001 | AV195: 1 | AY195: =IF(AU195="","",CONCATENATE(VLOOKUP(AU195,[1]DropConfig!$A:$F,3,FALSE),"×",AV195)) -> 感悟点1×1 | AZ195: =IF(AW195="","",CONCATENATE(VLOOKUP(AW195,[1]DropConfig!$A:$F,3,FALSE),"×",AX195)) -> 
A196: 9129 | B196: =IF(Z196>0,_xlfn.TEXTJOIN(";",1,ROW(INDIRECT(CONCATENATE("",A196*100+1,":",A196*100+Z196,""))),102),"") -> 912901;912902;912903;912904;912905;912906;912907;912908;912909;912910;912911;912912;912913;912914;912915;102 | C196: 6 | D196: 2 | E196: 1 | F196: 0 | G196: 3 | K196: 30 | L196: 1 | M196: 2 | N196: 5 | O196: =CONCATENATE(VLOOKUP(M196,[2]PlacesConfig!$A:$C,3,FALSE),IF(N196="",""," - "&VLOOKUP(N196,[2]SmallPlacesConfig!$A:$G,7,FALSE))) -> 尧之都 - 主城 | R196: =IF(S196="","",VLOOKUP(S196,条件类型查询!A:B,2,FALSE)) -> 前置事件 | S196: 10 | T196: =A195 -> 9128 | U196: 3 | V196: 4262 | X196: 散修劫掠2 | Y196: 馨儿 | Z196: =COUNTIF(EventLinkConfig!O:O,EventConfig!A196) -> 15 | AY196: =IF(AU196="","",CONCATENATE(VLOOKUP(AU196,[1]DropConfig!$A:$F,3,FALSE),"×",AV196)) ->  | AZ196: =IF(AW196="","",CONCATENATE(VLOOKUP(AW196,[1]DropConfig!$A:$F,3,FALSE),"×",AX196)) -> 
A197: 9130 | B197: =IF(Z197>0,_xlfn.TEXTJOIN(";",1,ROW(INDIRECT(CONCATENATE("",A197*100+1,":",A197*100+Z197,""))),102),"") -> 913001;913002;913003;913004;913005;913006;913007;102 | C197: 6 | D197: 2 | E197: 1 | F197: 0 | G197: 3 | I197: 22001 | J197: 1 | K197: 30 | L197: 1 | M197: 2 | N197: 5 | O197: =CONCATENATE(VLOOKUP(M197,[2]PlacesConfig!$A:$C,3,FALSE),IF(N197="",""," - "&VLOOKUP(N197,[2]SmallPlacesConfig!$A:$G,7,FALSE))) -> 尧之都 - 主城 | R197: =IF(S197="","",VLOOKUP(S197,条件类型查询!A:B,2,FALSE)) ->  | U197: 3 | V197: 4263 | X197: 灵宝 | Y197: 楚云缪 | Z197: =COUNTIF(EventLinkConfig!O:O,EventConfig!A197) -> 7 | AU197: 22001 | AV197: 1 | AY197: =IF(AU197="","",CONCATENATE(VLOOKUP(AU197,[1]DropConfig!$A:$F,3,FALSE),"×",AV197)) -> 感悟点1×1 | AZ197: =IF(AW197="","",CONCATENATE(VLOOKUP(AW197,[1]DropConfig!$A:$F,3,FALSE),"×",AX197)) -> 
A198: 9131 | B198: =IF(Z198>0,_xlfn.TEXTJOIN(";",1,ROW(INDIRECT(CONCATENATE("",A198*100+1,":",A198*100+Z198,""))),102),"") -> 913101;913102;913103;913104;102 | C198: 6 | D198: 2 | E198: 1 | F198: 0 | G198: 3 | K198: 30 | L198: 1 | M198: 2 | N198: 5 | O198: =CONCATENATE(VLOOKUP(M198,[2]PlacesConfig!$A:$C,3,FALSE),IF(N198="",""," - "&VLOOKUP(N198,[2]SmallPlacesConfig!$A:$G,7,FALSE))) -> 尧之都 - 主城 | R198: =IF(S198="","",VLOOKUP(S198,条件类型查询!A:B,2,FALSE)) -> 前置事件 | S198: 10 | T198: =A197 -> 9130 | U198: 3 | V198: 4264 | X198: 追逐抢夺之人 | Y198: 楚云缪 | Z198: =COUNTIF(EventLinkConfig!O:O,EventConfig!A198) -> 4 | AY198: =IF(AU198="","",CONCATENATE(VLOOKUP(AU198,[1]DropConfig!$A:$F,3,FALSE),"×",AV198)) ->  | AZ198: =IF(AW198="","",CONCATENATE(VLOOKUP(AW198,[1]DropConfig!$A:$F,3,FALSE),"×",AX198)) -> 
A199: 9132 | B199: =IF(Z199>0,_xlfn.TEXTJOIN(";",1,ROW(INDIRECT(CONCATENATE("",A199*100+1,":",A199*100+Z199,""))),102),"") -> 913201;913202;913203;913204;913205;913206;913207;913208;913209;913210;913211;913212;913213;102 | C199: 6 | D199: 2 | E199: 1 | F199: 0 | G199: 3 | I199: 22001 | J199: 1 | K199: 30 | L199: 1 | M199: 2 | N199: 5 | O199: =CONCATENATE(VLOOKUP(M199,[2]PlacesConfig!$A:$C,3,FALSE),IF(N199="",""," - "&VLOOKUP(N199,[2]SmallPlacesConfig!$A:$G,7,FALSE))) -> 尧之都 - 主城 | R199: =IF(S199="","",VLOOKUP(S199,条件类型查询!A:B,2,FALSE)) -> 前置事件 | S199: 10 | T199: =A198 -> 9131 | U199: 3 | V199: 4265 | X199: 青狼散人 | Y199: 楚云缪 | Z199: =COUNTIF(EventLinkConfig!O:O,EventConfig!A199) -> 13 | AU199: 22001 | AV199: 1 | AY199: =IF(AU199="","",CONCATENATE(VLOOKUP(AU199,[1]DropConfig!$A:$F,3,FALSE),"×",AV199)) -> 感悟点1×1 | AZ199: =IF(AW199="","",CONCATENATE(VLOOKUP(AW199,[1]DropConfig!$A:$F,3,FALSE),"×",AX199)) -> 
A200: 9133 | B200: =IF(Z200>0,_xlfn.TEXTJOIN(";",1,ROW(INDIRECT(CONCATENATE("",A200*100+1,":",A200*100+Z200,""))),102),"") -> 913301;913302;913303;913304;913305;913306;913307;913308;913309;102 | C200: 6 | D200: 2 | E200: 1 | F200: 0 | G200: 3 | K200: 30 | L200: 1 | M200: 2 | N200: 6 | O200: =CONCATENATE(VLOOKUP(M200,[2]PlacesConfig!$A:$C,3,FALSE),IF(N200="",""," - "&VLOOKUP(N200,[2]SmallPlacesConfig!$A:$G,7,FALSE))) -> 尧之都 - 山林 | R200: =IF(S200="","",VLOOKUP(S200,条件类型查询!A:B,2,FALSE)) ->  | U200: 3 | V200: 4266 | X200: 血海宗的掠夺 | Y200: 血海宗的掠夺 | Z200: =COUNTIF(EventLinkConfig!O:O,EventConfig!A200) -> 9 | AY200: =IF(AU200="","",CONCATENATE(VLOOKUP(AU200,[1]DropConfig!$A:$F,3,FALSE),"×",AV200)) ->  | AZ200: =IF(AW200="","",CONCATENATE(VLOOKUP(AW200,[1]DropConfig!$A:$F,3,FALSE),"×",AX200)) -> 
... 29 more rows

Sheet EventLinkConfig
A1: ID | B1: conciseEventMessage | D1: EventConditionMessage | G1: PreShow | H1: PreShowPar | J1: NPCID | L1: LanID | N1: DialogueType | O1: EventID | Q1: ConditionId | U1: optionType | V1: optionPara1 | W1: optionPara2 | AG1: PrizeIDs | AH1: PrizeNums | AI1: ResultType | AJ1: ResultOptions
A2: int | B2: int | D2: int | G2: int | H2: int | J2: int | L2: int[] | N2: int | O2: int | Q2: int[] | U2: int | V2: int[] | W2: int[] | AG2: int[] | AH2: int[] | AI2: int | AJ2: int[]
C3: 5001 | AL3: 5000
A4: ID | B4: 任务列表中的简洁描述 | C4: 任务列表中的简洁描述 | D4: 无任务目标时的补充文本 | E4: 无任务目标时的补充文本 | G4: 前置表现 1飞行 | H4: 前置表现参数 | J4: 对话NPCID 空白=不显示 100=玩家 | K4: NPC | L4: 对话 | M4: 对话1 | N4: 对话框类型 | O4: 属于哪个事件 | P4: 步骤 | Q4: 条件判断类型 | R4: 任务目标1 | S4: 任务目标2 | T4: 条件判断内容 | U4: 步骤类型 1=提供选项 2=进入战斗 5=自动退出 3=获得奖励 4=扣除道具 | V4: 事件常量1 1=步骤IDs 2=战斗ID | W4: 事件常量2 1=事件文本 | X4: 选择1 | Y4: 选择1 步骤：填选项文本1 战斗：填战斗ID | Z4: 选择1 步骤1：跳转到哪一步 不填默认跳转到下一步 | AA4: 选择2 | AB4: 选择2 步骤：填选项文本2 | AC4: 选择1 步骤2：跳转到哪一步 不填默认跳转到下一步 | AD4: 选择2 | AE4: 选择3 步骤：填选项文本3 | AF4: 选择1 步骤3：跳转到哪一步 不填默认跳转到下一步 | AG4: 事件结局奖励 | AH4: 事件结局奖励数量 | AI4: 事件结束类型 1：跳转步骤 2：根据战斗结果跳转 3.触发新事件 | AJ4: 结局后提供选项 1.EventLinkId 2.胜利id;失败id 3.EventConfigId | AK4: 1.步骤ID 2.胜利ID 3.事件ID 不填：默认下一个步骤ID | AL4: 语言表最大值
A5: 100 | B5: =IF(C5="","",IF(C5=C4,B4,MAX(AL4,AL3)+1)) ->  | D5: =IF(E5="","",IF(E5=E4,D4,MAX(AL4,AL3,B5)+1)) ->  | L5: =IF(M5="","",MAX(AL4,AL3,B5,D5)+1) -> 5001 | M5: 你被怪物击败，神识也随之消散了。 | P5: =IF(O5="","",IF(O5=O4,P4+1,1)) ->  | Q5: =_xlfn.TEXTJOIN(";",1,R5:S5) ->  | T5: =IF(R5="","","-"&VLOOKUP(R5,EventConditionConfig!A:C,3,FALSE)&IF(S5="","",CHAR(10)&"-"&VLOOKUP(S5,EventConditionConfig!A:C,3,FALSE))) ->  | X5: =IF(OR(ISNUMBER(Y5),Y5=""),"",MAX(AL4,AL3,B5,D5,L5)+1) ->  | AA5: =IF(OR(ISNUMBER(AB5),AB5=""),"",X5+1) ->  | AD5: =IF(OR(ISNUMBER(AE5),AE5=""),"",AA5+1) ->  | AL5: =IF(A5="","",MAX(B5,D5,L5,X5,AA5,AL4,AL3,AD5)) -> 5001
A6: 101 | B6: =IF(C6="","",IF(C6=C5,B5,MAX(AL5,AL4)+1)) ->  | D6: =IF(E6="","",IF(E6=E5,D5,MAX(AL5,AL4,B6)+1)) ->  | L6: =IF(M6="","",MAX(AL5,AL4,B6,D6)+1) -> 5002 | M6: 你败下阵来，感到头晕目眩，试图努力回忆起刚才发生的事情。 | P6: =IF(O6="","",IF(O6=O5,P5+1,1)) ->  | Q6: =_xlfn.TEXTJOIN(";",1,R6:S6) ->  | T6: =IF(R6="","","-"&VLOOKUP(R6,EventConditionConfig!A:C,3,FALSE)&IF(S6="","",CHAR(10)&"-"&VLOOKUP(S6,EventConditionConfig!A:C,3,FALSE))) ->  | X6: =IF(OR(ISNUMBER(Y6),Y6=""),"",MAX(AL5,AL4,B6,D6,L6)+1) ->  | AA6: =IF(OR(ISNUMBER(AB6),AB6=""),"",X6+1) ->  | AD6: =IF(OR(ISNUMBER(AE6),AE6=""),"",AA6+1) ->  | AL6: =IF(A6="","",MAX(B6,D6,L6,X6,AA6,AL5,AL4,AD6)) -> 5002
A7: 102 | L7: 5003 | M7: 战斗胜利，你获得了丰厚的战利品。 | AL7: 5003
A8: 999901 | B8: =IF(C8="","",IF(C8=C7,B7,MAX(AL7,AL6)+1)) ->  | D8: =IF(E8="","",IF(E8=E7,D7,MAX(AL7,AL6,B8)+1)) ->  | L8: =IF(M8="","",MAX(AL7,AL6,B8,D8)+1) -> 5004 | M8: 失败了怎么多次，这次一定要突破心魔。 | N8: 2 | O8: 9999 | P8: =IF(O8="","",IF(O8=O7,P7+1,1)) -> 1 | X8: =IF(OR(ISNUMBER(Y8),Y8=""),"",MAX(AL7,AL6,B8,D8,L8)+1) ->  | AA8: =IF(OR(ISNUMBER(AB8),AB8=""),"",X8+1) ->  | AD8: =IF(OR(ISNUMBER(AE8),AE8=""),"",AA8+1) ->  | AL8: 5004
A9: =O9*100+P9 -> 10101 | B9: 5005 | C9: 击败妖邪 | K9: =IF(J9="","",VLOOKUP(J9,EventNPC!A:E,5,FALSE)) ->  | L9: 5006 | M9: 你发现一只落单的妖邪，应战！ | O9: 101 | P9: 1 | Q9: =_xlfn.TEXTJOIN(";",1,R9:S9) ->  | T9: =IF(R9="","","-"&VLOOKUP(R9,EventConditionConfig!A:C,3,FALSE)&IF(S9="","",CHAR(10)&"-"&VLOOKUP(S9,EventConditionConfig!A:C,3,FALSE))) ->  | U9: =IF(Y9="","",IF(ISTEXT(Y9),1,2)) -> 2 | V9: =IF(U9=1,_xlfn.TEXTJOIN(";",1,IF(Z9="",A9+1,Z9),IF(AND(AA9<>"",AC9=""),A9+1,AC9),IF(AND(AD9<>"",AF9=""),A9+1,AF9)),IF(U9=2,Y9,"")) -> 5001 | W9: =_xlfn.TEXTJOIN(";",1,X9,AA9,AD9) ->  | X9: =IF(OR(ISNUMBER(Y9),Y9=""),"",MAX(AL8,AL6,B9,D9,L9)+1) ->  | Y9: 5001 | AI9: =IF(A9="","",IF(ISNUMBER(Y9),2,IF(A10="",IF(OR(AK9>0,VLOOKUP(O9,EventConfig!A:C,3,FALSE)=4),3,""),1))) -> 2 | AJ9: =IF(AI9="","",CHOOSE(AI9,IF(AK9="",A9+1,AK9),CONCATENATE(IF(AK9="",A9+1,AK9),";101"),IF(AK9="",O9+1,AK9))) -> 102;101 | AK9: 102 | AL9: 5006
B10: =IF(C10="","",IF(C10=C9,B9,MAX(AL9,AL8)+1)) ->  | L10: =IF(M10="","",MAX(AL9,AL8,B10,D10)+1) ->  | P10: =IF(O10="","",IF(O10=O9,P9+1,1)) -> 
A11: =O11*100+P11 -> 10201 | B11: 5007 | C11: 击败妖邪 | D11: =IF(E11="","",IF(E11=E10,D10,MAX(AL10,AL9,B11)+1)) ->  | K11: =IF(J11="","",VLOOKUP(J11,EventNPC!A:E,5,FALSE)) ->  | L11: 5008 | M11: 你发现一只落单的妖邪，应战！ | O11: 102 | P11: 1 | Q11: =_xlfn.TEXTJOIN(";",1,R11:S11) ->  | T11: =IF(R11="","","-"&VLOOKUP(R11,EventConditionConfig!A:C,3,FALSE)&IF(S11="","",CHAR(10)&"-"&VLOOKUP(S11,EventConditionConfig!A:C,3,FALSE))) ->  | U11: =IF(Y11="","",IF(ISTEXT(Y11),1,2)) -> 2 | V11: =IF(U11=1,_xlfn.TEXTJOIN(";",1,IF(Z11="",A11+1,Z11),IF(AND(AA11<>"",AC11=""),A11+1,AC11),IF(AND(AD11<>"",AF11=""),A11+1,AF11)),IF(U11=2,Y11,"")) -> 5006 | W11: =_xlfn.TEXTJOIN(";",1,X11,AA11,AD11) ->  | X11: =IF(OR(ISNUMBER(Y11),Y11=""),"",MAX(AL10,AL8,B11,D11,L11)+1) ->  | Y11: 5006 | AA11: =IF(OR(ISNUMBER(AB11),AB11=""),"",X11+1) ->  | AD11: =IF(OR(ISNUMBER(AE11),AE11=""),"",AA11+1) ->  | AI11: =IF(A11="","",IF(ISNUMBER(Y11),2,IF(A12="",IF(OR(AK11>0,VLOOKUP(O11,EventConfig!A:C,3,FALSE)=4),3,""),1))) -> 2 | AJ11: =IF(AI11="","",CHOOSE(AI11,IF(AK11="",A11+1,AK11),CONCATENATE(IF(AK11="",A11+1,AK11),";101"),IF(AK11="",O11+1,AK11))) -> 10202;101 | AL11: 5008
A13: =O13*100+P13 -> 10301 | B13: 5009 | C13: 使用神识探得资源 | K13: =IF(J13="","",VLOOKUP(J13,EventNPC!A:E,5,FALSE)) ->  | L13: 5010 | M13: 此处仙气缭绕，你用神识一探果然探得丰富资源！ | O13: 103 | P13: 1 | Q13: =_xlfn.TEXTJOIN(";",1,R13:S13) ->  | T13: =IF(R13="","","-"&VLOOKUP(R13,EventConditionConfig!A:C,3,FALSE)&IF(S13="","",CHAR(10)&"-"&VLOOKUP(S13,EventConditionConfig!A:C,3,FALSE))) ->  | U13: =IF(Y13="","",IF(ISTEXT(Y13),1,2)) ->  | V13: =IF(U13=1,_xlfn.TEXTJOIN(";",1,IF(Z13="",A13+1,Z13),IF(AND(AA13<>"",AC13=""),A13+1,AC13),IF(AND(AD13<>"",AF13=""),A13+1,AF13)),IF(U13=2,Y13,"")) ->  | W13: =_xlfn.TEXTJOIN(";",1,X13,AA13,AD13) ->  | X13: =IF(OR(ISNUMBER(Y13),Y13=""),"",MAX(AL12,AL10,B13,D13,L13)+1) ->  | AA13: =IF(OR(ISNUMBER(AB13),AB13=""),"",X13+1) ->  | AD13: =IF(OR(ISNUMBER(AE13),AE13=""),"",AA13+1) ->  | AI13: =IF(A13="","",IF(ISNUMBER(Y13),2,IF(A14="",IF(OR(AK13>0,VLOOKUP(O13,EventConfig!A:C,3,FALSE)=4),3,""),1))) ->  | AJ13: =IF(AI13="","",CHOOSE(AI13,IF(AK13="",A13+1,AK13),CONCATENATE(IF(AK13="",A13+1,AK13),";101"),IF(AK13="",O13+1,AK13))) ->  | AL13: 5010
A15: =O15*100+P15 -> 10401 | B15: 5011 | C15: 使用神识探得资源 | K15: =IF(J15="","",VLOOKUP(J15,EventNPC!A:E,5,FALSE)) ->  | L15: 5012 | M15: 此处仙气缭绕，你用神识一探果然探得丰富资源！ | O15: 104 | P15: 1 | Q15: =_xlfn.TEXTJOIN(";",1,R15:S15) ->  | T15: =IF(R15="","","-"&VLOOKUP(R15,EventConditionConfig!A:C,3,FALSE)&IF(S15="","",CHAR(10)&"-"&VLOOKUP(S15,EventConditionConfig!A:C,3,FALSE))) ->  | U15: =IF(Y15="","",IF(ISTEXT(Y15),1,2)) ->  | V15: =IF(U15=1,_xlfn.TEXTJOIN(";",1,IF(Z15="",A15+1,Z15),IF(AND(AA15<>"",AC15=""),A15+1,AC15),IF(AND(AD15<>"",AF15=""),A15+1,AF15)),IF(U15=2,Y15,"")) ->  | W15: =_xlfn.TEXTJOIN(";",1,X15,AA15,AD15) ->  | X15: =IF(OR(ISNUMBER(Y15),Y15=""),"",MAX(AL14,AL12,B15,D15,L15)+1) ->  | AA15: =IF(OR(ISNUMBER(AB15),AB15=""),"",X15+1) ->  | AD15: =IF(OR(ISNUMBER(AE15),AE15=""),"",AA15+1) ->  | AI15: =IF(A15="","",IF(ISNUMBER(Y15),2,IF(A16="",IF(OR(AK15>0,VLOOKUP(O15,EventConfig!A:C,3,FALSE)=4),3,""),1))) ->  | AJ15: =IF(AI15="","",CHOOSE(AI15,IF(AK15="",A15+1,AK15),CONCATENATE(IF(AK15="",A15+1,AK15),";101"),IF(AK15="",O15+1,AK15))) ->  | AL15: 5012
A17: =O17*100+P17 -> 10501 | B17: 5013 | C17: 使用神识探得资源 | K17: =IF(J17="","",VLOOKUP(J17,EventNPC!A:E,5,FALSE)) ->  | L17: 5014 | M17: 此处仙气缭绕，你用神识一探果然探得丰富资源！ | O17: 105 | P17: 1 | Q17: =_xlfn.TEXTJOIN(";",1,R17:S17) ->  | T17: =IF(R17="","","-"&VLOOKUP(R17,EventConditionConfig!A:C,3,FALSE)&IF(S17="","",CHAR(10)&"-"&VLOOKUP(S17,EventConditionConfig!A:C,3,FALSE))) ->  | U17: =IF(Y17="","",IF(ISTEXT(Y17),1,2)) ->  | V17: =IF(U17=1,_xlfn.TEXTJOIN(";",1,IF(Z17="",A17+1,Z17),IF(AND(AA17<>"",AC17=""),A17+1,AC17),IF(AND(AD17<>"",AF17=""),A17+1,AF17)),IF(U17=2,Y17,"")) ->  | W17: =_xlfn.TEXTJOIN(";",1,X17,AA17,AD17) ->  | X17: =IF(OR(ISNUMBER(Y17),Y17=""),"",MAX(AL16,AL14,B17,D17,L17)+1) ->  | AA17: =IF(OR(ISNUMBER(AB17),AB17=""),"",X17+1) ->  | AD17: =IF(OR(ISNUMBER(AE17),AE17=""),"",AA17+1) ->  | AI17: =IF(A17="","",IF(ISNUMBER(Y17),2,IF(A18="",IF(OR(AK17>0,VLOOKUP(O17,EventConfig!A:C,3,FALSE)=4),3,""),1))) ->  | AJ17: =IF(AI17="","",CHOOSE(AI17,IF(AK17="",A17+1,AK17),CONCATENATE(IF(AK17="",A17+1,AK17),";101"),IF(AK17="",O17+1,AK17))) ->  | AL17: 5014
A19: =O19*100+P19 -> 10601 | B19: 5015 | C19: 使用神识探得资源 | K19: =IF(J19="","",VLOOKUP(J19,EventNPC!A:E,5,FALSE)) ->  | L19: 5016 | M19: 此处仙气缭绕，你用神识一探果然探得丰富资源！ | O19: 106 | P19: 1 | Q19: =_xlfn.TEXTJOIN(";",1,R19:S19) ->  | T19: =IF(R19="","","-"&VLOOKUP(R19,EventConditionConfig!A:C,3,FALSE)&IF(S19="","",CHAR(10)&"-"&VLOOKUP(S19,EventConditionConfig!A:C,3,FALSE))) ->  | U19: =IF(Y19="","",IF(ISTEXT(Y19),1,2)) ->  | V19: =IF(U19=1,_xlfn.TEXTJOIN(";",1,IF(Z19="",A19+1,Z19),IF(AND(AA19<>"",AC19=""),A19+1,AC19),IF(AND(AD19<>"",AF19=""),A19+1,AF19)),IF(U19=2,Y19,"")) ->  | W19: =_xlfn.TEXTJOIN(";",1,X19,AA19,AD19) ->  | X19: =IF(OR(ISNUMBER(Y19),Y19=""),"",MAX(AL18,AL16,B19,D19,L19)+1) ->  | AA19: =IF(OR(ISNUMBER(AB19),AB19=""),"",X19+1) ->  | AD19: =IF(OR(ISNUMBER(AE19),AE19=""),"",AA19+1) ->  | AI19: =IF(A19="","",IF(ISNUMBER(Y19),2,IF(A20="",IF(OR(AK19>0,VLOOKUP(O19,EventConfig!A:C,3,FALSE)=4),3,""),1))) ->  | AJ19: =IF(AI19="","",CHOOSE(AI19,IF(AK19="",A19+1,AK19),CONCATENATE(IF(AK19="",A19+1,AK19),";101"),IF(AK19="",O19+1,AK19))) ->  | AL19: 5016
A21: =O21*100+P21 -> 10701 | B21: 5017 | C21: 使用神识探得资源 | K21: =IF(J21="","",VLOOKUP(J21,EventNPC!A:E,5,FALSE)) ->  | L21: 5018 | M21: 此处仙气缭绕，你用神识一探果然探得丰富资源！ | O21: 107 | P21: 1 | Q21: =_xlfn.TEXTJOIN(";",1,R21:S21) ->  | T21: =IF(R21="","","-"&VLOOKUP(R21,EventConditionConfig!A:C,3,FALSE)&IF(S21="","",CHAR(10)&"-"&VLOOKUP(S21,EventConditionConfig!A:C,3,FALSE))) ->  | U21: =IF(Y21="","",IF(ISTEXT(Y21),1,2)) ->  | V21: =IF(U21=1,_xlfn.TEXTJOIN(";",1,IF(Z21="",A21+1,Z21),IF(AND(AA21<>"",AC21=""),A21+1,AC21),IF(AND(AD21<>"",AF21=""),A21+1,AF21)),IF(U21=2,Y21,"")) ->  | W21: =_xlfn.TEXTJOIN(";",1,X21,AA21,AD21) ->  | X21: =IF(OR(ISNUMBER(Y21),Y21=""),"",MAX(AL20,AL18,B21,D21,L21)+1) ->  | AA21: =IF(OR(ISNUMBER(AB21),AB21=""),"",X21+1) ->  | AD21: =IF(OR(ISNUMBER(AE21),AE21=""),"",AA21+1) ->  | AI21: =IF(A21="","",IF(ISNUMBER(Y21),2,IF(A22="",IF(OR(AK21>0,VLOOKUP(O21,EventConfig!A:C,3,FALSE)=4),3,""),1))) ->  | AJ21: =IF(AI21="","",CHOOSE(AI21,IF(AK21="",A21+1,AK21),CONCATENATE(IF(AK21="",A21+1,AK21),";101"),IF(AK21="",O21+1,AK21))) ->  | AL21: 5018
A23: =O23*100+P23 -> 10801 | B23: 5019 | C23: 使用神识探得资源 | K23: =IF(J23="","",VLOOKUP(J23,EventNPC!A:E,5,FALSE)) ->  | L23: 5020 | M23: 此处仙气缭绕，你用神识一探果然探得丰富资源！ | O23: 108 | P23: 1 | Q23: =_xlfn.TEXTJOIN(";",1,R23:S23) ->  | T23: =IF(R23="","","-"&VLOOKUP(R23,EventConditionConfig!A:C,3,FALSE)&IF(S23="","",CHAR(10)&"-"&VLOOKUP(S23,EventConditionConfig!A:C,3,FALSE))) ->  | U23: =IF(Y23="","",IF(ISTEXT(Y23),1,2)) ->  | V23: =IF(U23=1,_xlfn.TEXTJOIN(";",1,IF(Z23="",A23+1,Z23),IF(AND(AA23<>"",AC23=""),A23+1,AC23),IF(AND(AD23<>"",AF23=""),A23+1,AF23)),IF(U23=2,Y23,"")) ->  | W23: =_xlfn.TEXTJOIN(";",1,X23,AA23,AD23) ->  | X23: =IF(OR(ISNUMBER(Y23),Y23=""),"",MAX(AL22,AL20,B23,D23,L23)+1) ->  | AA23: =IF(OR(ISNUMBER(AB23),AB23=""),"",X23+1) ->  | AD23: =IF(OR(ISNUMBER(AE23),AE23=""),"",AA23+1) ->  | AI23: =IF(A23="","",IF(ISNUMBER(Y23),2,IF(A24="",IF(OR(AK23>0,VLOOKUP(O23,EventConfig!A:C,3,FALSE)=4),3,""),1))) ->  | AJ23: =IF(AI23="","",CHOOSE(AI23,IF(AK23="",A23+1,AK23),CONCATENATE(IF(AK23="",A23+1,AK23),";101"),IF(AK23="",O23+1,AK23))) ->  | AL23: 5020
A25: =O25*100+P25 -> 10901 | B25: 5021 | C25: 使用神识探得资源 | K25: =IF(J25="","",VLOOKUP(J25,EventNPC!A:E,5,FALSE)) ->  | L25: 5022 | M25: 此处仙气缭绕，你用神识一探果然探得丰富资源！ | O25: 109 | P25: 1 | Q25: =_xlfn.TEXTJOIN(";",1,R25:S25) ->  | T25: =IF(R25="","","-"&VLOOKUP(R25,EventConditionConfig!A:C,3,FALSE)&IF(S25="","",CHAR(10)&"-"&VLOOKUP(S25,EventConditionConfig!A:C,3,FALSE))) ->  | U25: =IF(Y25="","",IF(ISTEXT(Y25),1,2)) ->  | V25: =IF(U25=1,_xlfn.TEXTJOIN(";",1,IF(Z25="",A25+1,Z25),IF(AND(AA25<>"",AC25=""),A25+1,AC25),IF(AND(AD25<>"",AF25=""),A25+1,AF25)),IF(U25=2,Y25,"")) ->  | W25: =_xlfn.TEXTJOIN(";",1,X25,AA25,AD25) ->  | X25: =IF(OR(ISNUMBER(Y25),Y25=""),"",MAX(AL24,AL22,B25,D25,L25)+1) ->  | AA25: =IF(OR(ISNUMBER(AB25),AB25=""),"",X25+1) ->  | AD25: =IF(OR(ISNUMBER(AE25),AE25=""),"",AA25+1) ->  | AI25: =IF(A25="","",IF(ISNUMBER(Y25),2,IF(A26="",IF(OR(AK25>0,VLOOKUP(O25,EventConfig!A:C,3,FALSE)=4),3,""),1))) ->  | AJ25: =IF(AI25="","",CHOOSE(AI25,IF(AK25="",A25+1,AK25),CONCATENATE(IF(AK25="",A25+1,AK25),";101"),IF(AK25="",O25+1,AK25))) ->  | AL25: 5022
A27: =O27*100+P27 -> 11001 | B27: 5023 | C27: 击败妖邪 | K27: =IF(J27="","",VLOOKUP(J27,EventNPC!A:E,5,FALSE)) ->  | L27: 5024 | M27: 你发现一只落单的妖邪，应战！ | O27: 110 | P27: 1 | Q27: =_xlfn.TEXTJOIN(";",1,R27:S27) ->  | T27: =IF(R27="","","-"&VLOOKUP(R27,EventConditionConfig!A:C,3,FALSE)&IF(S27="","",CHAR(10)&"-"&VLOOKUP(S27,EventConditionConfig!A:C,3,FALSE))) ->  | U27: =IF(Y27="","",IF(ISTEXT(Y27),1,2)) -> 2 | V27: =IF(U27=1,_xlfn.TEXTJOIN(";",1,IF(Z27="",A27+1,Z27),IF(AND(AA27<>"",AC27=""),A27+1,AC27),IF(AND(AD27<>"",AF27=""),A27+1,AF27)),IF(U27=2,Y27,"")) -> 5002 | W27: =_xlfn.TEXTJOIN(";",1,X27,AA27,AD27) ->  | X27: =IF(OR(ISNUMBER(Y27),Y27=""),"",MAX(AL26,AL24,B27,D27,L27)+1) ->  | Y27: 5002 | AA27: =IF(OR(ISNUMBER(AB27),AB27=""),"",X27+1) ->  | AD27: =IF(OR(ISNUMBER(AE27),AE27=""),"",AA27+1) ->  | AI27: =IF(A27="","",IF(ISNUMBER(Y27),2,IF(A28="",IF(OR(AK27>0,VLOOKUP(O27,EventConfig!A:C,3,FALSE)=4),3,""),1))) -> 2 | AJ27: =IF(AI27="","",CHOOSE(AI27,IF(AK27="",A27+1,AK27),CONCATENATE(IF(AK27="",A27+1,AK27),";101"),IF(AK27="",O27+1,AK27))) -> 11002;101 | AL27: 5024
A29: =O29*100+P29 -> 11101 | B29: 5025 | C29: 击败妖邪 | K29: =IF(J29="","",VLOOKUP(J29,EventNPC!A:E,5,FALSE)) ->  | L29: 5026 | M29: 你发现一只落单的妖邪，应战！ | O29: 111 | P29: 1 | Q29: =_xlfn.TEXTJOIN(";",1,R29:S29) ->  | T29: =IF(R29="","","-"&VLOOKUP(R29,EventConditionConfig!A:C,3,FALSE)&IF(S29="","",CHAR(10)&"-"&VLOOKUP(S29,EventConditionConfig!A:C,3,FALSE))) ->  | U29: =IF(Y29="","",IF(ISTEXT(Y29),1,2)) -> 2 | V29: =IF(U29=1,_xlfn.TEXTJOIN(";",1,IF(Z29="",A29+1,Z29),IF(AND(AA29<>"",AC29=""),A29+1,AC29),IF(AND(AD29<>"",AF29=""),A29+1,AF29)),IF(U29=2,Y29,"")) -> 5007 | W29: =_xlfn.TEXTJOIN(";",1,X29,AA29,AD29) ->  | X29: =IF(OR(ISNUMBER(Y29),Y29=""),"",MAX(AL28,AL26,B29,D29,L29)+1) ->  | Y29: 5007 | AA29: =IF(OR(ISNUMBER(AB29),AB29=""),"",X29+1) ->  | AD29: =IF(OR(ISNUMBER(AE29),AE29=""),"",AA29+1) ->  | AI29: =IF(A29="","",IF(ISNUMBER(Y29),2,IF(A30="",IF(OR(AK29>0,VLOOKUP(O29,EventConfig!A:C,3,FALSE)=4),3,""),1))) -> 2 | AJ29: =IF(AI29="","",CHOOSE(AI29,IF(AK29="",A29+1,AK29),CONCATENATE(IF(AK29="",A29+1,AK29),";101"),IF(AK29="",O29+1,AK29))) -> 11102;101 | AL29: 5026
A31: =O31*100+P31 -> 11201 | B31: 5027 | C31: 使用神识探得资源 | K31: =IF(J31="","",VLOOKUP(J31,EventNPC!A:E,5,FALSE)) ->  | L31: 5028 | M31: 此处仙气缭绕，你用神识一探果然探得丰富资源！ | O31: 112 | P31: 1 | Q31: =_xlfn.TEXTJOIN(";",1,R31:S31) ->  | T31: =IF(R31="","","-"&VLOOKUP(R31,EventConditionConfig!A:C,3,FALSE)&IF(S31="","",CHAR(10)&"-"&VLOOKUP(S31,EventConditionConfig!A:C,3,FALSE))) ->  | U31: =IF(Y31="","",IF(ISTEXT(Y31),1,2)) ->  | V31: =IF(U31=1,_xlfn.TEXTJOIN(";",1,IF(Z31="",A31+1,Z31),IF(AND(AA31<>"",AC31=""),A31+1,AC31),IF(AND(AD31<>"",AF31=""),A31+1,AF31)),IF(U31=2,Y31,"")) ->  | W31: =_xlfn.TEXTJOIN(";",1,X31,AA31,AD31) ->  | X31: =IF(OR(ISNUMBER(Y31),Y31=""),"",MAX(AL30,AL28,B31,D31,L31)+1) ->  | AA31: =IF(OR(ISNUMBER(AB31),AB31=""),"",X31+1) ->  | AD31: =IF(OR(ISNUMBER(AE31),AE31=""),"",AA31+1) ->  | AI31: =IF(A31="","",IF(ISNUMBER(Y31),2,IF(A32="",IF(OR(AK31>0,VLOOKUP(O31,EventConfig!A:C,3,FALSE)=4),3,""),1))) ->  | AJ31: =IF(AI31="","",CHOOSE(AI31,IF(AK31="",A31+1,AK31),CONCATENATE(IF(AK31="",A31+1,AK31),";101"),IF(AK31="",O31+1,AK31))) ->  | AL31: 5028
A33: =O33*100+P33 -> 11301 | B33: 5029 | C33: 使用神识探得资源 | K33: =IF(J33="","",VLOOKUP(J33,EventNPC!A:E,5,FALSE)) ->  | L33: 5030 | M33: 此处仙气缭绕，你用神识一探果然探得丰富资源！ | O33: 113 | P33: 1 | Q33: =_xlfn.TEXTJOIN(";",1,R33:S33) ->  | T33: =IF(R33="","","-"&VLOOKUP(R33,EventConditionConfig!A:C,3,FALSE)&IF(S33="","",CHAR(10)&"-"&VLOOKUP(S33,EventConditionConfig!A:C,3,FALSE))) ->  | U33: =IF(Y33="","",IF(ISTEXT(Y33),1,2)) ->  | V33: =IF(U33=1,_xlfn.TEXTJOIN(";",1,IF(Z33="",A33+1,Z33),IF(AND(AA33<>"",AC33=""),A33+1,AC33),IF(AND(AD33<>"",AF33=""),A33+1,AF33)),IF(U33=2,Y33,"")) ->  | W33: =_xlfn.TEXTJOIN(";",1,X33,AA33,AD33) ->  | X33: =IF(OR(ISNUMBER(Y33),Y33=""),"",MAX(AL32,AL30,B33,D33,L33)+1) ->  | AA33: =IF(OR(ISNUMBER(AB33),AB33=""),"",X33+1) ->  | AD33: =IF(OR(ISNUMBER(AE33),AE33=""),"",AA33+1) ->  | AI33: =IF(A33="","",IF(ISNUMBER(Y33),2,IF(A34="",IF(OR(AK33>0,VLOOKUP(O33,EventConfig!A:C,3,FALSE)=4),3,""),1))) ->  | AJ33: =IF(AI33="","",CHOOSE(AI33,IF(AK33="",A33+1,AK33),CONCATENATE(IF(AK33="",A33+1,AK33),";101"),IF(AK33="",O33+1,AK33))) ->  | AL33: 5030
A35: =O35*100+P35 -> 11401 | B35: 5031 | C35: 使用神识探得资源 | K35: =IF(J35="","",VLOOKUP(J35,EventNPC!A:E,5,FALSE)) ->  | L35: 5032 | M35: 此处仙气缭绕，你用神识一探果然探得丰富资源！ | O35: 114 | P35: 1 | Q35: =_xlfn.TEXTJOIN(";",1,R35:S35) ->  | T35: =IF(R35="","","-"&VLOOKUP(R35,EventConditionConfig!A:C,3,FALSE)&IF(S35="","",CHAR(10)&"-"&VLOOKUP(S35,EventConditionConfig!A:C,3,FALSE))) ->  | U35: =IF(Y35="","",IF(ISTEXT(Y35),1,2)) ->  | V35: =IF(U35=1,_xlfn.TEXTJOIN(";",1,IF(Z35="",A35+1,Z35),IF(AND(AA35<>"",AC35=""),A35+1,AC35),IF(AND(AD35<>"",AF35=""),A35+1,AF35)),IF(U35=2,Y35,"")) ->  | W35: =_xlfn.TEXTJOIN(";",1,X35,AA35,AD35) ->  | X35: =IF(OR(ISNUMBER(Y35),Y35=""),"",MAX(AL34,AL32,B35,D35,L35)+1) ->  | AA35: =IF(OR(ISNUMBER(AB35),AB35=""),"",X35+1) ->  | AD35: =IF(OR(ISNUMBER(AE35),AE35=""),"",AA35+1) ->  | AI35: =IF(A35="","",IF(ISNUMBER(Y35),2,IF(A80="",IF(OR(AK35>0,VLOOKUP(O35,EventConfig!A:C,3,FALSE)=4),3,""),1))) ->  | AJ35: =IF(AI35="","",CHOOSE(AI35,IF(AK35="",A35+1,AK35),CONCATENATE(IF(AK35="",A35+1,AK35),";101"),IF(AK35="",O35+1,AK35))) ->  | AL35: 5032
A37: =O37*100+P37 -> 11501 | B37: 5033 | C37: 使用神识探得资源 | K37: =IF(J37="","",VLOOKUP(J37,EventNPC!A:E,5,FALSE)) ->  | L37: 5034 | M37: 此处仙气缭绕，你用神识一探果然探得丰富资源！ | O37: 115 | P37: 1 | Q37: =_xlfn.TEXTJOIN(";",1,R37:S37) ->  | T37: =IF(R37="","","-"&VLOOKUP(R37,EventConditionConfig!A:C,3,FALSE)&IF(S37="","",CHAR(10)&"-"&VLOOKUP(S37,EventConditionConfig!A:C,3,FALSE))) ->  | U37: =IF(Y37="","",IF(ISTEXT(Y37),1,2)) ->  | V37: =IF(U37=1,_xlfn.TEXTJOIN(";",1,IF(Z37="",A37+1,Z37),IF(AND(AA37<>"",AC37=""),A37+1,AC37),IF(AND(AD37<>"",AF37=""),A37+1,AF37)),IF(U37=2,Y37,"")) ->  | W37: =_xlfn.TEXTJOIN(";",1,X37,AA37,AD37) ->  | X37: =IF(OR(ISNUMBER(Y37),Y37=""),"",MAX(AL36,AL34,B37,D37,L37)+1) ->  | AA37: =IF(OR(ISNUMBER(AB37),AB37=""),"",X37+1) ->  | AD37: =IF(OR(ISNUMBER(AE37),AE37=""),"",AA37+1) ->  | AI37: =IF(A37="","",IF(ISNUMBER(Y37),2,IF(A38="",IF(OR(AK37>0,VLOOKUP(O37,EventConfig!A:C,3,FALSE)=4),3,""),1))) ->  | AJ37: =IF(AI37="","",CHOOSE(AI37,IF(AK37="",A37+1,AK37),CONCATENATE(IF(AK37="",A37+1,AK37),";101"),IF(AK37="",O37+1,AK37))) ->  | AL37: 5034
A39: =O39*100+P39 -> 11601 | B39: 5035 | C39: 使用神识探得资源 | K39: =IF(J39="","",VLOOKUP(J39,EventNPC!A:E,5,FALSE)) ->  | L39: 5036 | M39: 此处仙气缭绕，你用神识一探果然探得丰富资源！ | O39: 116 | P39: 1 | Q39: =_xlfn.TEXTJOIN(";",1,R39:S39) ->  | T39: =IF(R39="","","-"&VLOOKUP(R39,EventConditionConfig!A:C,3,FALSE)&IF(S39="","",CHAR(10)&"-"&VLOOKUP(S39,EventConditionConfig!A:C,3,FALSE))) ->  | U39: =IF(Y39="","",IF(ISTEXT(Y39),1,2)) ->  | V39: =IF(U39=1,_xlfn.TEXTJOIN(";",1,IF(Z39="",A39+1,Z39),IF(AND(AA39<>"",AC39=""),A39+1,AC39),IF(AND(AD39<>"",AF39=""),A39+1,AF39)),IF(U39=2,Y39,"")) ->  | W39: =_xlfn.TEXTJOIN(";",1,X39,AA39,AD39) ->  | X39: =IF(OR(ISNUMBER(Y39),Y39=""),"",MAX(AL38,AL36,B39,D39,L39)+1) ->  | AA39: =IF(OR(ISNUMBER(AB39),AB39=""),"",X39+1) ->  | AD39: =IF(OR(ISNUMBER(AE39),AE39=""),"",AA39+1) ->  | AI39: =IF(A39="","",IF(ISNUMBER(Y39),2,IF(A40="",IF(OR(AK39>0,VLOOKUP(O39,EventConfig!A:C,3,FALSE)=4),3,""),1))) ->  | AJ39: =IF(AI39="","",CHOOSE(AI39,IF(AK39="",A39+1,AK39),CONCATENATE(IF(AK39="",A39+1,AK39),";101"),IF(AK39="",O39+1,AK39))) ->  | AL39: 5036
A41: =O41*100+P41 -> 11701 | B41: 5037 | C41: 使用神识探得资源 | K41: =IF(J41="","",VLOOKUP(J41,EventNPC!A:E,5,FALSE)) ->  | L41: 5038 | M41: 此处仙气缭绕，你用神识一探果然探得丰富资源！ | O41: 117 | P41: 1 | Q41: =_xlfn.TEXTJOIN(";",1,R41:S41) ->  | T41: =IF(R41="","","-"&VLOOKUP(R41,EventConditionConfig!A:C,3,FALSE)&IF(S41="","",CHAR(10)&"-"&VLOOKUP(S41,EventConditionConfig!A:C,3,FALSE))) ->  | U41: =IF(Y41="","",IF(ISTEXT(Y41),1,2)) ->  | V41: =IF(U41=1,_xlfn.TEXTJOIN(";",1,IF(Z41="",A41+1,Z41),IF(AND(AA41<>"",AC41=""),A41+1,AC41),IF(AND(AD41<>"",AF41=""),A41+1,AF41)),IF(U41=2,Y41,"")) ->  | W41: =_xlfn.TEXTJOIN(";",1,X41,AA41,AD41) ->  | X41: =IF(OR(ISNUMBER(Y41),Y41=""),"",MAX(AL40,AL38,B41,D41,L41)+1) ->  | AA41: =IF(OR(ISNUMBER(AB41),AB41=""),"",X41+1) ->  | AD41: =IF(OR(ISNUMBER(AE41),AE41=""),"",AA41+1) ->  | AI41: =IF(A41="","",IF(ISNUMBER(Y41),2,IF(A104="",IF(OR(AK41>0,VLOOKUP(O41,EventConfig!A:C,3,FALSE)=4),3,""),1))) -> 1 | AJ41: =IF(AI41="","",CHOOSE(AI41,IF(AK41="",A41+1,AK41),CONCATENATE(IF(AK41="",A41+1,AK41),";101"),IF(AK41="",O41+1,AK41))) -> 11702 | AL41: 5038
A43: =O43*100+P43 -> 11801 | B43: 5039 | C43: 使用神识探得资源 | K43: =IF(J43="","",VLOOKUP(J43,EventNPC!A:E,5,FALSE)) ->  | L43: 5040 | M43: 此处仙气缭绕，你用神识一探果然探得丰富资源！ | O43: 118 | P43: 1 | Q43: =_xlfn.TEXTJOIN(";",1,R43:S43) ->  | T43: =IF(R43="","","-"&VLOOKUP(R43,EventConditionConfig!A:C,3,FALSE)&IF(S43="","",CHAR(10)&"-"&VLOOKUP(S43,EventConditionConfig!A:C,3,FALSE))) ->  | U43: =IF(Y43="","",IF(ISTEXT(Y43),1,2)) ->  | V43: =IF(U43=1,_xlfn.TEXTJOIN(";",1,IF(Z43="",A43+1,Z43),IF(AND(AA43<>"",AC43=""),A43+1,AC43),IF(AND(AD43<>"",AF43=""),A43+1,AF43)),IF(U43=2,Y43,"")) ->  | W43: =_xlfn.TEXTJOIN(";",1,X43,AA43,AD43) ->  | X43: =IF(OR(ISNUMBER(Y43),Y43=""),"",MAX(AL42,AL40,B43,D43,L43)+1) ->  | AA43: =IF(OR(ISNUMBER(AB43),AB43=""),"",X43+1) ->  | AD43: =IF(OR(ISNUMBER(AE43),AE43=""),"",AA43+1) ->  | AI43: =IF(A43="","",IF(ISNUMBER(Y43),2,IF(A44="",IF(OR(AK43>0,VLOOKUP(O43,EventConfig!A:C,3,FALSE)=4),3,""),1))) ->  | AJ43: =IF(AI43="","",CHOOSE(AI43,IF(AK43="",A43+1,AK43),CONCATENATE(IF(AK43="",A43+1,AK43),";101"),IF(AK43="",O43+1,AK43))) ->  | AL43: 5040
A45: =O45*100+P45 -> 11901 | B45: 5041 | C45: 击败妖邪 | K45: =IF(J45="","",VLOOKUP(J45,EventNPC!A:E,5,FALSE)) ->  | L45: 5042 | M45: 你发现一只落单的妖邪，应战！ | O45: 119 | P45: 1 | Q45: =_xlfn.TEXTJOIN(";",1,R45:S45) ->  | T45: =IF(R45="","","-"&VLOOKUP(R45,EventConditionConfig!A:C,3,FALSE)&IF(S45="","",CHAR(10)&"-"&VLOOKUP(S45,EventConditionConfig!A:C,3,FALSE))) ->  | U45: =IF(Y45="","",IF(ISTEXT(Y45),1,2)) -> 2 | V45: =IF(U45=1,_xlfn.TEXTJOIN(";",1,IF(Z45="",A45+1,Z45),IF(AND(AA45<>"",AC45=""),A45+1,AC45),IF(AND(AD45<>"",AF45=""),A45+1,AF45)),IF(U45=2,Y45,"")) -> 5003 | W45: =_xlfn.TEXTJOIN(";",1,X45,AA45,AD45) ->  | X45: =IF(OR(ISNUMBER(Y45),Y45=""),"",MAX(AL44,AL42,B45,D45,L45)+1) ->  | Y45: 5003 | AA45: =IF(OR(ISNUMBER(AB45),AB45=""),"",X45+1) ->  | AD45: =IF(OR(ISNUMBER(AE45),AE45=""),"",AA45+1) ->  | AI45: =IF(A45="","",IF(ISNUMBER(Y45),2,IF(A46="",IF(OR(AK45>0,VLOOKUP(O45,EventConfig!A:C,3,FALSE)=4),3,""),1))) -> 2 | AJ45: =IF(AI45="","",CHOOSE(AI45,IF(AK45="",A45+1,AK45),CONCATENATE(IF(AK45="",A45+1,AK45),";101"),IF(AK45="",O45+1,AK45))) -> 11902;101 | AL45: 5042
A47: =O47*100+P47 -> 12001 | B47: 5043 | C47: 击败妖邪 | K47: =IF(J47="","",VLOOKUP(J47,EventNPC!A:E,5,FALSE)) ->  | L47: 5044 | M47: 你发现一只落单的妖邪，应战！ | O47: 120 | P47: 1 | Q47: =_xlfn.TEXTJOIN(";",1,R47:S47) ->  | T47: =IF(R47="","","-"&VLOOKUP(R47,EventConditionConfig!A:C,3,FALSE)&IF(S47="","",CHAR(10)&"-"&VLOOKUP(S47,EventConditionConfig!A:C,3,FALSE))) ->  | U47: =IF(Y47="","",IF(ISTEXT(Y47),1,2)) -> 2 | V47: =IF(U47=1,_xlfn.TEXTJOIN(";",1,IF(Z47="",A47+1,Z47),IF(AND(AA47<>"",AC47=""),A47+1,AC47),IF(AND(AD47<>"",AF47=""),A47+1,AF47)),IF(U47=2,Y47,"")) -> 5008 | W47: =_xlfn.TEXTJOIN(";",1,X47,AA47,AD47) ->  | X47: =IF(OR(ISNUMBER(Y47),Y47=""),"",MAX(AL46,AL44,B47,D47,L47)+1) ->  | Y47: 5008 | AA47: =IF(OR(ISNUMBER(AB47),AB47=""),"",X47+1) ->  | AD47: =IF(OR(ISNUMBER(AE47),AE47=""),"",AA47+1) ->  | AI47: =IF(A47="","",IF(ISNUMBER(Y47),2,IF(A48="",IF(OR(AK47>0,VLOOKUP(O47,EventConfig!A:C,3,FALSE)=4),3,""),1))) -> 2 | AJ47: =IF(AI47="","",CHOOSE(AI47,IF(AK47="",A47+1,AK47),CONCATENATE(IF(AK47="",A47+1,AK47),";101"),IF(AK47="",O47+1,AK47))) -> 12002;101 | AL47: 5044
A49: =O49*100+P49 -> 12101 | B49: 5045 | C49: 使用神识探得资源 | K49: =IF(J49="","",VLOOKUP(J49,EventNPC!A:E,5,FALSE)) ->  | L49: 5046 | M49: 此处仙气缭绕，你用神识一探果然探得丰富资源！ | O49: 121 | P49: 1 | Q49: =_xlfn.TEXTJOIN(";",1,R49:S49) ->  | T49: =IF(R49="","","-"&VLOOKUP(R49,EventConditionConfig!A:C,3,FALSE)&IF(S49="","",CHAR(10)&"-"&VLOOKUP(S49,EventConditionConfig!A:C,3,FALSE))) ->  | U49: =IF(Y49="","",IF(ISTEXT(Y49),1,2)) ->  | V49: =IF(U49=1,_xlfn.TEXTJOIN(";",1,IF(Z49="",A49+1,Z49),IF(AND(AA49<>"",AC49=""),A49+1,AC49),IF(AND(AD49<>"",AF49=""),A49+1,AF49)),IF(U49=2,Y49,"")) ->  | W49: =_xlfn.TEXTJOIN(";",1,X49,AA49,AD49) ->  | X49: =IF(OR(ISNUMBER(Y49),Y49=""),"",MAX(AL48,AL46,B49,D49,L49)+1) ->  | AA49: =IF(OR(ISNUMBER(AB49),AB49=""),"",X49+1) ->  | AD49: =IF(OR(ISNUMBER(AE49),AE49=""),"",AA49+1) ->  | AI49: =IF(A49="","",IF(ISNUMBER(Y49),2,IF(A50="",IF(OR(AK49>0,VLOOKUP(O49,EventConfig!A:C,3,FALSE)=4),3,""),1))) ->  | AJ49: =IF(AI49="","",CHOOSE(AI49,IF(AK49="",A49+1,AK49),CONCATENATE(IF(AK49="",A49+1,AK49),";101"),IF(AK49="",O49+1,AK49))) ->  | AL49: 5046
A51: =O51*100+P51 -> 12201 | B51: 5047 | C51: 使用神识探得资源 | K51: =IF(J51="","",VLOOKUP(J51,EventNPC!A:E,5,FALSE)) ->  | L51: 5048 | M51: 此处仙气缭绕，你用神识一探果然探得丰富资源！ | O51: 122 | P51: 1 | Q51: =_xlfn.TEXTJOIN(";",1,R51:S51) ->  | T51: =IF(R51="","","-"&VLOOKUP(R51,EventConditionConfig!A:C,3,FALSE)&IF(S51="","",CHAR(10)&"-"&VLOOKUP(S51,EventConditionConfig!A:C,3,FALSE))) ->  | U51: =IF(Y51="","",IF(ISTEXT(Y51),1,2)) ->  | V51: =IF(U51=1,_xlfn.TEXTJOIN(";",1,IF(Z51="",A51+1,Z51),IF(AND(AA51<>"",AC51=""),A51+1,AC51),IF(AND(AD51<>"",AF51=""),A51+1,AF51)),IF(U51=2,Y51,"")) ->  | W51: =_xlfn.TEXTJOIN(";",1,X51,AA51,AD51) ->  | X51: =IF(OR(ISNUMBER(Y51),Y51=""),"",MAX(AL50,AL48,B51,D51,L51)+1) ->  | AA51: =IF(OR(ISNUMBER(AB51),AB51=""),"",X51+1) ->  | AD51: =IF(OR(ISNUMBER(AE51),AE51=""),"",AA51+1) ->  | AI51: =IF(A51="","",IF(ISNUMBER(Y51),2,IF(A52="",IF(OR(AK51>0,VLOOKUP(O51,EventConfig!A:C,3,FALSE)=4),3,""),1))) ->  | AJ51: =IF(AI51="","",CHOOSE(AI51,IF(AK51="",A51+1,AK51),CONCATENATE(IF(AK51="",A51+1,AK51),";101"),IF(AK51="",O51+1,AK51))) ->  | AL51: 5048
A53: =O53*100+P53 -> 12301 | B53: 5049 | C53: 使用神识探得资源 | K53: =IF(J53="","",VLOOKUP(J53,EventNPC!A:E,5,FALSE)) ->  | L53: 5050 | M53: 此处仙气缭绕，你用神识一探果然探得丰富资源！ | O53: 123 | P53: 1 | Q53: =_xlfn.TEXTJOIN(";",1,R53:S53) ->  | T53: =IF(R53="","","-"&VLOOKUP(R53,EventConditionConfig!A:C,3,FALSE)&IF(S53="","",CHAR(10)&"-"&VLOOKUP(S53,EventConditionConfig!A:C,3,FALSE))) ->  | U53: =IF(Y53="","",IF(ISTEXT(Y53),1,2)) ->  | V53: =IF(U53=1,_xlfn.TEXTJOIN(";",1,IF(Z53="",A53+1,Z53),IF(AND(AA53<>"",AC53=""),A53+1,AC53),IF(AND(AD53<>"",AF53=""),A53+1,AF53)),IF(U53=2,Y53,"")) ->  | W53: =_xlfn.TEXTJOIN(";",1,X53,AA53,AD53) ->  | X53: =IF(OR(ISNUMBER(Y53),Y53=""),"",MAX(AL52,AL50,B53,D53,L53)+1) ->  | AA53: =IF(OR(ISNUMBER(AB53),AB53=""),"",X53+1) ->  | AD53: =IF(OR(ISNUMBER(AE53),AE53=""),"",AA53+1) ->  | AI53: =IF(A53="","",IF(ISNUMBER(Y53),2,IF(A54="",IF(OR(AK53>0,VLOOKUP(O53,EventConfig!A:C,3,FALSE)=4),3,""),1))) ->  | AJ53: =IF(AI53="","",CHOOSE(AI53,IF(AK53="",A53+1,AK53),CONCATENATE(IF(AK53="",A53+1,AK53),";101"),IF(AK53="",O53+1,AK53))) ->  | AL53: 5050
A55: =O55*100+P55 -> 12401 | B55: 5051 | C55: 使用神识探得资源 | K55: =IF(J55="","",VLOOKUP(J55,EventNPC!A:E,5,FALSE)) ->  | L55: 5052 | M55: 此处仙气缭绕，你用神识一探果然探得丰富资源！ | O55: 124 | P55: 1 | Q55: =_xlfn.TEXTJOIN(";",1,R55:S55) ->  | T55: =IF(R55="","","-"&VLOOKUP(R55,EventConditionConfig!A:C,3,FALSE)&IF(S55="","",CHAR(10)&"-"&VLOOKUP(S55,EventConditionConfig!A:C,3,FALSE))) ->  | U55: =IF(Y55="","",IF(ISTEXT(Y55),1,2)) ->  | V55: =IF(U55=1,_xlfn.TEXTJOIN(";",1,IF(Z55="",A55+1,Z55),IF(AND(AA55<>"",AC55=""),A55+1,AC55),IF(AND(AD55<>"",AF55=""),A55+1,AF55)),IF(U55=2,Y55,"")) ->  | W55: =_xlfn.TEXTJOIN(";",1,X55,AA55,AD55) ->  | X55: =IF(OR(ISNUMBER(Y55),Y55=""),"",MAX(AL54,AL52,B55,D55,L55)+1) ->  | AA55: =IF(OR(ISNUMBER(AB55),AB55=""),"",X55+1) ->  | AD55: =IF(OR(ISNUMBER(AE55),AE55=""),"",AA55+1) ->  | AI55: =IF(A55="","",IF(ISNUMBER(Y55),2,IF(A118="",IF(OR(AK55>0,VLOOKUP(O55,EventConfig!A:C,3,FALSE)=4),3,""),1))) -> 1 | AJ55: =IF(AI55="","",CHOOSE(AI55,IF(AK55="",A55+1,AK55),CONCATENATE(IF(AK55="",A55+1,AK55),";101"),IF(AK55="",O55+1,AK55))) -> 12402 | AL55: 5052
A57: =O57*100+P57 -> 12501 | B57: 5053 | C57: 使用神识探得资源 | K57: =IF(J57="","",VLOOKUP(J57,EventNPC!A:E,5,FALSE)) ->  | L57: 5054 | M57: 此处仙气缭绕，你用神识一探果然探得丰富资源！ | O57: 125 | P57: 1 | Q57: =_xlfn.TEXTJOIN(";",1,R57:S57) ->  | T57: =IF(R57="","","-"&VLOOKUP(R57,EventConditionConfig!A:C,3,FALSE)&IF(S57="","",CHAR(10)&"-"&VLOOKUP(S57,EventConditionConfig!A:C,3,FALSE))) ->  | U57: =IF(Y57="","",IF(ISTEXT(Y57),1,2)) ->  | V57: =IF(U57=1,_xlfn.TEXTJOIN(";",1,IF(Z57="",A57+1,Z57),IF(AND(AA57<>"",AC57=""),A57+1,AC57),IF(AND(AD57<>"",AF57=""),A57+1,AF57)),IF(U57=2,Y57,"")) ->  | W57: =_xlfn.TEXTJOIN(";",1,X57,AA57,AD57) ->  | X57: =IF(OR(ISNUMBER(Y57),Y57=""),"",MAX(AL56,AL54,B57,D57,L57)+1) ->  | AA57: =IF(OR(ISNUMBER(AB57),AB57=""),"",X57+1) ->  | AD57: =IF(OR(ISNUMBER(AE57),AE57=""),"",AA57+1) ->  | AI57: =IF(A57="","",IF(ISNUMBER(Y57),2,IF(A58="",IF(OR(AK57>0,VLOOKUP(O57,EventConfig!A:C,3,FALSE)=4),3,""),1))) ->  | AJ57: =IF(AI57="","",CHOOSE(AI57,IF(AK57="",A57+1,AK57),CONCATENATE(IF(AK57="",A57+1,AK57),";101"),IF(AK57="",O57+1,AK57))) ->  | AL57: 5054
A59: =O59*100+P59 -> 12601 | B59: 5055 | C59: 使用神识探得资源 | K59: =IF(J59="","",VLOOKUP(J59,EventNPC!A:E,5,FALSE)) ->  | L59: 5056 | M59: 此处仙气缭绕，你用神识一探果然探得丰富资源！ | O59: 126 | P59: 1 | Q59: =_xlfn.TEXTJOIN(";",1,R59:S59) ->  | T59: =IF(R59="","","-"&VLOOKUP(R59,EventConditionConfig!A:C,3,FALSE)&IF(S59="","",CHAR(10)&"-"&VLOOKUP(S59,EventConditionConfig!A:C,3,FALSE))) ->  | U59: =IF(Y59="","",IF(ISTEXT(Y59),1,2)) ->  | V59: =IF(U59=1,_xlfn.TEXTJOIN(";",1,IF(Z59="",A59+1,Z59),IF(AND(AA59<>"",AC59=""),A59+1,AC59),IF(AND(AD59<>"",AF59=""),A59+1,AF59)),IF(U59=2,Y59,"")) ->  | W59: =_xlfn.TEXTJOIN(";",1,X59,AA59,AD59) ->  | X59: =IF(OR(ISNUMBER(Y59),Y59=""),"",MAX(AL58,AL56,B59,D59,L59)+1) ->  | AA59: =IF(OR(ISNUMBER(AB59),AB59=""),"",X59+1) ->  | AD59: =IF(OR(ISNUMBER(AE59),AE59=""),"",AA59+1) ->  | AI59: =IF(A59="","",IF(ISNUMBER(Y59),2,IF(A60="",IF(OR(AK59>0,VLOOKUP(O59,EventConfig!A:C,3,FALSE)=4),3,""),1))) ->  | AJ59: =IF(AI59="","",CHOOSE(AI59,IF(AK59="",A59+1,AK59),CONCATENATE(IF(AK59="",A59+1,AK59),";101"),IF(AK59="",O59+1,AK59))) ->  | AL59: 5056
A61: =O61*100+P61 -> 12701 | B61: 5057 | C61: 使用神识探得资源 | K61: =IF(J61="","",VLOOKUP(J61,EventNPC!A:E,5,FALSE)) ->  | L61: 5058 | M61: 此处仙气缭绕，你用神识一探果然探得丰富资源！ | O61: 127 | P61: 1 | Q61: =_xlfn.TEXTJOIN(";",1,R61:S61) ->  | T61: =IF(R61="","","-"&VLOOKUP(R61,EventConditionConfig!A:C,3,FALSE)&IF(S61="","",CHAR(10)&"-"&VLOOKUP(S61,EventConditionConfig!A:C,3,FALSE))) ->  | U61: =IF(Y61="","",IF(ISTEXT(Y61),1,2)) ->  | V61: =IF(U61=1,_xlfn.TEXTJOIN(";",1,IF(Z61="",A61+1,Z61),IF(AND(AA61<>"",AC61=""),A61+1,AC61),IF(AND(AD61<>"",AF61=""),A61+1,AF61)),IF(U61=2,Y61,"")) ->  | W61: =_xlfn.TEXTJOIN(";",1,X61,AA61,AD61) ->  | X61: =IF(OR(ISNUMBER(Y61),Y61=""),"",MAX(AL60,AL58,B61,D61,L61)+1) ->  | AA61: =IF(OR(ISNUMBER(AB61),AB61=""),"",X61+1) ->  | AD61: =IF(OR(ISNUMBER(AE61),AE61=""),"",AA61+1) ->  | AI61: =IF(A61="","",IF(ISNUMBER(Y61),2,IF(A124="",IF(OR(AK61>0,VLOOKUP(O61,EventConfig!A:C,3,FALSE)=4),3,""),1))) ->  | AJ61: =IF(AI61="","",CHOOSE(AI61,IF(AK61="",A61+1,AK61),CONCATENATE(IF(AK61="",A61+1,AK61),";101"),IF(AK61="",O61+1,AK61))) ->  | AL61: 5058
A63: =O63*100+P63 -> 12801 | B63: 5059 | C63: 击败妖邪 | K63: =IF(J63="","",VLOOKUP(J63,EventNPC!A:E,5,FALSE)) ->  | L63: 5060 | M63: 你发现一只落单的妖邪，应战！ | O63: 128 | P63: 1 | Q63: =_xlfn.TEXTJOIN(";",1,R63:S63) ->  | T63: =IF(R63="","","-"&VLOOKUP(R63,EventConditionConfig!A:C,3,FALSE)&IF(S63="","",CHAR(10)&"-"&VLOOKUP(S63,EventConditionConfig!A:C,3,FALSE))) ->  | U63: =IF(Y63="","",IF(ISTEXT(Y63),1,2)) -> 2 | V63: =IF(U63=1,_xlfn.TEXTJOIN(";",1,IF(Z63="",A63+1,Z63),IF(AND(AA63<>"",AC63=""),A63+1,AC63),IF(AND(AD63<>"",AF63=""),A63+1,AF63)),IF(U63=2,Y63,"")) -> 5004 | W63: =_xlfn.TEXTJOIN(";",1,X63,AA63,AD63) ->  | X63: =IF(OR(ISNUMBER(Y63),Y63=""),"",MAX(AL62,AL60,B63,D63,L63)+1) ->  | Y63: 5004 | AA63: =IF(OR(ISNUMBER(AB63),AB63=""),"",X63+1) ->  | AD63: =IF(OR(ISNUMBER(AE63),AE63=""),"",AA63+1) ->  | AI63: =IF(A63="","",IF(ISNUMBER(Y63),2,IF(A64="",IF(OR(AK63>0,VLOOKUP(O63,EventConfig!A:C,3,FALSE)=4),3,""),1))) -> 2 | AJ63: =IF(AI63="","",CHOOSE(AI63,IF(AK63="",A63+1,AK63),CONCATENATE(IF(AK63="",A63+1,AK63),";101"),IF(AK63="",O63+1,AK63))) -> 12802;101 | AL63: 5060
A65: =O65*100+P65 -> 12901 | B65: 5061 | C65: 击败妖邪 | K65: =IF(J65="","",VLOOKUP(J65,EventNPC!A:E,5,FALSE)) ->  | L65: 5062 | M65: 你发现一只落单的妖邪，应战！ | O65: 129 | P65: 1 | Q65: =_xlfn.TEXTJOIN(";",1,R65:S65) ->  | T65: =IF(R65="","","-"&VLOOKUP(R65,EventConditionConfig!A:C,3,FALSE)&IF(S65="","",CHAR(10)&"-"&VLOOKUP(S65,EventConditionConfig!A:C,3,FALSE))) ->  | U65: =IF(Y65="","",IF(ISTEXT(Y65),1,2)) -> 2 | V65: =IF(U65=1,_xlfn.TEXTJOIN(";",1,IF(Z65="",A65+1,Z65),IF(AND(AA65<>"",AC65=""),A65+1,AC65),IF(AND(AD65<>"",AF65=""),A65+1,AF65)),IF(U65=2,Y65,"")) -> 5009 | W65: =_xlfn.TEXTJOIN(";",1,X65,AA65,AD65) ->  | X65: =IF(OR(ISNUMBER(Y65),Y65=""),"",MAX(AL64,AL62,B65,D65,L65)+1) ->  | Y65: 5009 | AA65: =IF(OR(ISNUMBER(AB65),AB65=""),"",X65+1) ->  | AD65: =IF(OR(ISNUMBER(AE65),AE65=""),"",AA65+1) ->  | AI65: =IF(A65="","",IF(ISNUMBER(Y65),2,IF(A66="",IF(OR(AK65>0,VLOOKUP(O65,EventConfig!A:C,3,FALSE)=4),3,""),1))) -> 2 | AJ65: =IF(AI65="","",CHOOSE(AI65,IF(AK65="",A65+1,AK65),CONCATENATE(IF(AK65="",A65+1,AK65),";101"),IF(AK65="",O65+1,AK65))) -> 12902;101 | AL65: 5062
A67: =O67*100+P67 -> 13001 | B67: 5063 | C67: 使用神识探得资源 | K67: =IF(J67="","",VLOOKUP(J67,EventNPC!A:E,5,FALSE)) ->  | L67: 5064 | M67: 此处仙气缭绕，你用神识一探果然探得丰富资源！ | O67: 130 | P67: 1 | Q67: =_xlfn.TEXTJOIN(";",1,R67:S67) ->  | T67: =IF(R67="","","-"&VLOOKUP(R67,EventConditionConfig!A:C,3,FALSE)&IF(S67="","",CHAR(10)&"-"&VLOOKUP(S67,EventConditionConfig!A:C,3,FALSE))) ->  | U67: =IF(Y67="","",IF(ISTEXT(Y67),1,2)) ->  | V67: =IF(U67=1,_xlfn.TEXTJOIN(";",1,IF(Z67="",A67+1,Z67),IF(AND(AA67<>"",AC67=""),A67+1,AC67),IF(AND(AD67<>"",AF67=""),A67+1,AF67)),IF(U67=2,Y67,"")) ->  | W67: =_xlfn.TEXTJOIN(";",1,X67,AA67,AD67) ->  | X67: =IF(OR(ISNUMBER(Y67),Y67=""),"",MAX(AL66,AL64,B67,D67,L67)+1) ->  | AA67: =IF(OR(ISNUMBER(AB67),AB67=""),"",X67+1) ->  | AD67: =IF(OR(ISNUMBER(AE67),AE67=""),"",AA67+1) ->  | AI67: =IF(A67="","",IF(ISNUMBER(Y67),2,IF(A68="",IF(OR(AK67>0,VLOOKUP(O67,EventConfig!A:C,3,FALSE)=4),3,""),1))) ->  | AJ67: =IF(AI67="","",CHOOSE(AI67,IF(AK67="",A67+1,AK67),CONCATENATE(IF(AK67="",A67+1,AK67),";101"),IF(AK67="",O67+1,AK67))) ->  | AL67: 5064
A69: =O69*100+P69 -> 13101 | B69: 5065 | C69: 使用神识探得资源 | K69: =IF(J69="","",VLOOKUP(J69,EventNPC!A:E,5,FALSE)) ->  | L69: 5066 | M69: 此处仙气缭绕，你用神识一探果然探得丰富资源！ | O69: 131 | P69: 1 | Q69: =_xlfn.TEXTJOIN(";",1,R69:S69) ->  | T69: =IF(R69="","","-"&VLOOKUP(R69,EventConditionConfig!A:C,3,FALSE)&IF(S69="","",CHAR(10)&"-"&VLOOKUP(S69,EventConditionConfig!A:C,3,FALSE))) ->  | U69: =IF(Y69="","",IF(ISTEXT(Y69),1,2)) ->  | V69: =IF(U69=1,_xlfn.TEXTJOIN(";",1,IF(Z69="",A69+1,Z69),IF(AND(AA69<>"",AC69=""),A69+1,AC69),IF(AND(AD69<>"",AF69=""),A69+1,AF69)),IF(U69=2,Y69,"")) ->  | W69: =_xlfn.TEXTJOIN(";",1,X69,AA69,AD69) ->  | X69: =IF(OR(ISNUMBER(Y69),Y69=""),"",MAX(AL68,AL66,B69,D69,L69)+1) ->  | AA69: =IF(OR(ISNUMBER(AB69),AB69=""),"",X69+1) ->  | AD69: =IF(OR(ISNUMBER(AE69),AE69=""),"",AA69+1) ->  | AI69: =IF(A69="","",IF(ISNUMBER(Y69),2,IF(A70="",IF(OR(AK69>0,VLOOKUP(O69,EventConfig!A:C,3,FALSE)=4),3,""),1))) ->  | AJ69: =IF(AI69="","",CHOOSE(AI69,IF(AK69="",A69+1,AK69),CONCATENATE(IF(AK69="",A69+1,AK69),";101"),IF(AK69="",O69+1,AK69))) ->  | AL69: 5066
AL70: =IF(A70="","",MAX(B70,D70,L70,X70,AA70,AL69,AL68,AD70)) -> 
A71: =O71*100+P71 -> 13201 | B71: 5067 | C71: 使用神识探得资源 | K71: =IF(J71="","",VLOOKUP(J71,EventNPC!A:E,5,FALSE)) ->  | L71: 5068 | M71: 此处仙气缭绕，你用神识一探果然探得丰富资源！ | O71: 132 | P71: 1 | Q71: =_xlfn.TEXTJOIN(";",1,R71:S71) ->  | T71: =IF(R71="","","-"&VLOOKUP(R71,EventConditionConfig!A:C,3,FALSE)&IF(S71="","",CHAR(10)&"-"&VLOOKUP(S71,EventConditionConfig!A:C,3,FALSE))) ->  | U71: =IF(Y71="","",IF(ISTEXT(Y71),1,2)) ->  | V71: =IF(U71=1,_xlfn.TEXTJOIN(";",1,IF(Z71="",A71+1,Z71),IF(AND(AA71<>"",AC71=""),A71+1,AC71),IF(AND(AD71<>"",AF71=""),A71+1,AF71)),IF(U71=2,Y71,"")) ->  | W71: =_xlfn.TEXTJOIN(";",1,X71,AA71,AD71) ->  | X71: =IF(OR(ISNUMBER(Y71),Y71=""),"",MAX(AL70,AL68,B71,D71,L71)+1) ->  | AA71: =IF(OR(ISNUMBER(AB71),AB71=""),"",X71+1) ->  | AD71: =IF(OR(ISNUMBER(AE71),AE71=""),"",AA71+1) ->  | AI71: =IF(A71="","",IF(ISNUMBER(Y71),2,IF(A72="",IF(OR(AK71>0,VLOOKUP(O71,EventConfig!A:C,3,FALSE)=4),3,""),1))) ->  | AJ71: =IF(AI71="","",CHOOSE(AI71,IF(AK71="",A71+1,AK71),CONCATENATE(IF(AK71="",A71+1,AK71),";101"),IF(AK71="",O71+1,AK71))) ->  | AL71: 5068
A73: =O73*100+P73 -> 13301 | B73: 5069 | C73: 使用神识探得资源 | K73: =IF(J73="","",VLOOKUP(J73,EventNPC!A:E,5,FALSE)) ->  | L73: 5070 | M73: 此处仙气缭绕，你用神识一探果然探得丰富资源！ | O73: 133 | P73: 1 | Q73: =_xlfn.TEXTJOIN(";",1,R73:S73) ->  | T73: =IF(R73="","","-"&VLOOKUP(R73,EventConditionConfig!A:C,3,FALSE)&IF(S73="","",CHAR(10)&"-"&VLOOKUP(S73,EventConditionConfig!A:C,3,FALSE))) ->  | U73: =IF(Y73="","",IF(ISTEXT(Y73),1,2)) ->  | V73: =IF(U73=1,_xlfn.TEXTJOIN(";",1,IF(Z73="",A73+1,Z73),IF(AND(AA73<>"",AC73=""),A73+1,AC73),IF(AND(AD73<>"",AF73=""),A73+1,AF73)),IF(U73=2,Y73,"")) ->  | W73: =_xlfn.TEXTJOIN(";",1,X73,AA73,AD73) ->  | X73: =IF(OR(ISNUMBER(Y73),Y73=""),"",MAX(AL72,AL70,B73,D73,L73)+1) ->  | AA73: =IF(OR(ISNUMBER(AB73),AB73=""),"",X73+1) ->  | AD73: =IF(OR(ISNUMBER(AE73),AE73=""),"",AA73+1) ->  | AI73: =IF(A73="","",IF(ISNUMBER(Y73),2,IF(A136="",IF(OR(AK73>0,VLOOKUP(O73,EventConfig!A:C,3,FALSE)=4),3,""),1))) ->  | AJ73: =IF(AI73="","",CHOOSE(AI73,IF(AK73="",A73+1,AK73),CONCATENATE(IF(AK73="",A73+1,AK73),";101"),IF(AK73="",O73+1,AK73))) ->  | AL73: 5070
B74: =IF(C74="","",IF(C74=C73,B73,MAX(AL73,AL72)+1)) ->  | L74: =IF(M74="","",MAX(AL73,AL72,B74,D74)+1) ->  | P74: =IF(O74="","",IF(O74=O73,P73+1,1)) -> 
A75: =O75*100+P75 -> 13401 | B75: 5071 | C75: 使用神识探得资源 | D75: =IF(E75="","",IF(E75=E74,D74,MAX(AL74,AL73,B75)+1)) ->  | K75: =IF(J75="","",VLOOKUP(J75,EventNPC!A:E,5,FALSE)) ->  | L75: 5072 | M75: 此处仙气缭绕，你用神识一探果然探得丰富资源！ | O75: 134 | P75: 1 | Q75: =_xlfn.TEXTJOIN(";",1,R75:S75) ->  | T75: =IF(R75="","","-"&VLOOKUP(R75,EventConditionConfig!A:C,3,FALSE)&IF(S75="","",CHAR(10)&"-"&VLOOKUP(S75,EventConditionConfig!A:C,3,FALSE))) ->  | U75: =IF(Y75="","",IF(ISTEXT(Y75),1,2)) ->  | V75: =IF(U75=1,_xlfn.TEXTJOIN(";",1,IF(Z75="",A75+1,Z75),IF(AND(AA75<>"",AC75=""),A75+1,AC75),IF(AND(AD75<>"",AF75=""),A75+1,AF75)),IF(U75=2,Y75,"")) ->  | W75: =_xlfn.TEXTJOIN(";",1,X75,AA75,AD75) ->  | X75: =IF(OR(ISNUMBER(Y75),Y75=""),"",MAX(AL74,AL72,B75,D75,L75)+1) ->  | AA75: =IF(OR(ISNUMBER(AB75),AB75=""),"",X75+1) ->  | AD75: =IF(OR(ISNUMBER(AE75),AE75=""),"",AA75+1) ->  | AI75: =IF(A75="","",IF(ISNUMBER(Y75),2,IF(A76="",IF(OR(AK75>0,VLOOKUP(O75,EventConfig!A:C,3,FALSE)=4),3,""),1))) ->  | AJ75: =IF(AI75="","",CHOOSE(AI75,IF(AK75="",A75+1,AK75),CONCATENATE(IF(AK75="",A75+1,AK75),";101"),IF(AK75="",O75+1,AK75))) ->  | AL75: 5072
A77: =O77*100+P77 -> 13501 | B77: 5073 | C77: 使用神识探得资源 | K77: =IF(J77="","",VLOOKUP(J77,EventNPC!A:E,5,FALSE)) ->  | L77: 5074 | M77: 此处仙气缭绕，你用神识一探果然探得丰富资源！ | O77: 135 | P77: 1 | Q77: =_xlfn.TEXTJOIN(";",1,R77:S77) ->  | T77: =IF(R77="","","-"&VLOOKUP(R77,EventConditionConfig!A:C,3,FALSE)&IF(S77="","",CHAR(10)&"-"&VLOOKUP(S77,EventConditionConfig!A:C,3,FALSE))) ->  | U77: =IF(Y77="","",IF(ISTEXT(Y77),1,2)) ->  | V77: =IF(U77=1,_xlfn.TEXTJOIN(";",1,IF(Z77="",A77+1,Z77),IF(AND(AA77<>"",AC77=""),A77+1,AC77),IF(AND(AD77<>"",AF77=""),A77+1,AF77)),IF(U77=2,Y77,"")) ->  | W77: =_xlfn.TEXTJOIN(";",1,X77,AA77,AD77) ->  | X77: =IF(OR(ISNUMBER(Y77),Y77=""),"",MAX(AL76,AL74,B77,D77,L77)+1) ->  | AA77: =IF(OR(ISNUMBER(AB77),AB77=""),"",X77+1) ->  | AD77: =IF(OR(ISNUMBER(AE77),AE77=""),"",AA77+1) ->  | AI77: =IF(A77="","",IF(ISNUMBER(Y77),2,IF(A78="",IF(OR(AK77>0,VLOOKUP(O77,EventConfig!A:C,3,FALSE)=4),3,""),1))) ->  | AJ77: =IF(AI77="","",CHOOSE(AI77,IF(AK77="",A77+1,AK77),CONCATENATE(IF(AK77="",A77+1,AK77),";101"),IF(AK77="",O77+1,AK77))) ->  | AL77: 5074
A79: =O79*100+P79 -> 13601 | B79: 5075 | C79: 使用神识探得资源 | K79: =IF(J79="","",VLOOKUP(J79,EventNPC!A:E,5,FALSE)) ->  | L79: 5076 | M79: 此处仙气缭绕，你用神识一探果然探得丰富资源！ | O79: 136 | P79: 1 | Q79: =_xlfn.TEXTJOIN(";",1,R79:S79) ->  | T79: =IF(R79="","","-"&VLOOKUP(R79,EventConditionConfig!A:C,3,FALSE)&IF(S79="","",CHAR(10)&"-"&VLOOKUP(S79,EventConditionConfig!A:C,3,FALSE))) ->  | U79: =IF(Y79="","",IF(ISTEXT(Y79),1,2)) ->  | V79: =IF(U79=1,_xlfn.TEXTJOIN(";",1,IF(Z79="",A79+1,Z79),IF(AND(AA79<>"",AC79=""),A79+1,AC79),IF(AND(AD79<>"",AF79=""),A79+1,AF79)),IF(U79=2,Y79,"")) ->  | W79: =_xlfn.TEXTJOIN(";",1,X79,AA79,AD79) ->  | AA79: =IF(OR(ISNUMBER(AB79),AB79=""),"",X79+1) ->  | AD79: =IF(OR(ISNUMBER(AE79),AE79=""),"",AA79+1) ->  | AI79: =IF(A79="","",IF(ISNUMBER(Y79),2,IF(A142="",IF(OR(AK79>0,VLOOKUP(O79,EventConfig!A:C,3,FALSE)=4),3,""),1))) -> 1 | AJ79: =IF(AI79="","",CHOOSE(AI79,IF(AK79="",A79+1,AK79),CONCATENATE(IF(AK79="",A79+1,AK79),";101"),IF(AK79="",O79+1,AK79))) -> 13602 | AL79: 5076
T80: =IF(R80="","","-"&VLOOKUP(R80,EventConditionConfig!A:C,3,FALSE)&IF(S80="","",CHAR(10)&"-"&VLOOKUP(S80,EventConditionConfig!A:C,3,FALSE))) ->  | W80: =_xlfn.TEXTJOIN(";",1,X80,AA80,AD80) -> 
A81: =O81*100+P81 -> 13701 | B81: 5077 | C81: 击败妖邪 | K81: =IF(J81="","",VLOOKUP(J81,EventNPC!A:E,5,FALSE)) ->  | L81: 5078 | M81: 你发现一只落单的妖邪，应战！ | O81: 137 | P81: 1 | Q81: =_xlfn.TEXTJOIN(";",1,R81:S81) ->  | T81: =IF(R81="","","-"&VLOOKUP(R81,EventConditionConfig!A:C,3,FALSE)&IF(S81="","",CHAR(10)&"-"&VLOOKUP(S81,EventConditionConfig!A:C,3,FALSE))) ->  | U81: =IF(Y81="","",IF(ISTEXT(Y81),1,2)) -> 2 | V81: =IF(U81=1,_xlfn.TEXTJOIN(";",1,IF(Z81="",A81+1,Z81),IF(AND(AA81<>"",AC81=""),A81+1,AC81),IF(AND(AD81<>"",AF81=""),A81+1,AF81)),IF(U81=2,Y81,"")) -> 5005 | Y81: 5005 | AI81: =IF(A81="","",IF(ISNUMBER(Y81),2,IF(A82="",IF(OR(AK81>0,VLOOKUP(O81,EventConfig!A:C,3,FALSE)=4),3,""),1))) -> 2 | AJ81: =IF(AI81="","",CHOOSE(AI81,IF(AK81="",A81+1,AK81),CONCATENATE(IF(AK81="",A81+1,AK81),";101"),IF(AK81="",O81+1,AK81))) -> 13702;101 | AL81: 5078
A83: =O83*100+P83 -> 13801 | B83: 5079 | C83: 击败妖邪 | K83: =IF(J83="","",VLOOKUP(J83,EventNPC!A:E,5,FALSE)) ->  | L83: 5080 | M83: 你发现一只落单的妖邪，应战！ | O83: 138 | P83: 1 | Q83: =_xlfn.TEXTJOIN(";",1,R83:S83) ->  | T83: =IF(R83="","","-"&VLOOKUP(R83,EventConditionConfig!A:C,3,FALSE)&IF(S83="","",CHAR(10)&"-"&VLOOKUP(S83,EventConditionConfig!A:C,3,FALSE))) ->  | U83: =IF(Y83="","",IF(ISTEXT(Y83),1,2)) -> 2 | V83: =IF(U83=1,_xlfn.TEXTJOIN(";",1,IF(Z83="",A83+1,Z83),IF(AND(AA83<>"",AC83=""),A83+1,AC83),IF(AND(AD83<>"",AF83=""),A83+1,AF83)),IF(U83=2,Y83,"")) -> 5010 | Y83: 5010 | AA83: =IF(OR(ISNUMBER(AB83),AB83=""),"",X83+1) ->  | AD83: =IF(OR(ISNUMBER(AE83),AE83=""),"",AA83+1) ->  | AI83: =IF(A83="","",IF(ISNUMBER(Y83),2,IF(A84="",IF(OR(AK83>0,VLOOKUP(O83,EventConfig!A:C,3,FALSE)=4),3,""),1))) -> 2 | AJ83: =IF(AI83="","",CHOOSE(AI83,IF(AK83="",A83+1,AK83),CONCATENATE(IF(AK83="",A83+1,AK83),";101"),IF(AK83="",O83+1,AK83))) -> 13802;101 | AL83: 5080
A85: =O85*100+P85 -> 13901 | B85: 5081 | C85: 使用神识探得资源 | K85: =IF(J85="","",VLOOKUP(J85,EventNPC!A:E,5,FALSE)) ->  | L85: 5082 | M85: 此处仙气缭绕，你用神识一探果然探得丰富资源！ | O85: 139 | P85: 1 | Q85: =_xlfn.TEXTJOIN(";",1,R85:S85) ->  | T85: =IF(R85="","","-"&VLOOKUP(R85,EventConditionConfig!A:C,3,FALSE)&IF(S85="","",CHAR(10)&"-"&VLOOKUP(S85,EventConditionConfig!A:C,3,FALSE))) ->  | U85: =IF(Y85="","",IF(ISTEXT(Y85),1,2)) ->  | V85: =IF(U85=1,_xlfn.TEXTJOIN(";",1,IF(Z85="",A85+1,Z85),IF(AND(AA85<>"",AC85=""),A85+1,AC85),IF(AND(AD85<>"",AF85=""),A85+1,AF85)),IF(U85=2,Y85,"")) ->  | AA85: =IF(OR(ISNUMBER(AB85),AB85=""),"",X85+1) ->  | AD85: =IF(OR(ISNUMBER(AE85),AE85=""),"",AA85+1) ->  | AI85: =IF(A85="","",IF(ISNUMBER(Y85),2,IF(A86="",IF(OR(AK85>0,VLOOKUP(O85,EventConfig!A:C,3,FALSE)=4),3,""),1))) ->  | AJ85: =IF(AI85="","",CHOOSE(AI85,IF(AK85="",A85+1,AK85),CONCATENATE(IF(AK85="",A85+1,AK85),";101"),IF(AK85="",O85+1,AK85))) ->  | AL85: 5082
A87: =O87*100+P87 -> 14001 | B87: 5083 | C87: 使用神识探得资源 | K87: =IF(J87="","",VLOOKUP(J87,EventNPC!A:E,5,FALSE)) ->  | L87: 5084 | M87: 此处仙气缭绕，你用神识一探果然探得丰富资源！ | O87: 140 | P87: 1 | Q87: =_xlfn.TEXTJOIN(";",1,R87:S87) ->  | T87: =IF(R87="","","-"&VLOOKUP(R87,EventConditionConfig!A:C,3,FALSE)&IF(S87="","",CHAR(10)&"-"&VLOOKUP(S87,EventConditionConfig!A:C,3,FALSE))) ->  | U87: =IF(Y87="","",IF(ISTEXT(Y87),1,2)) ->  | V87: =IF(U87=1,_xlfn.TEXTJOIN(";",1,IF(Z87="",A87+1,Z87),IF(AND(AA87<>"",AC87=""),A87+1,AC87),IF(AND(AD87<>"",AF87=""),A87+1,AF87)),IF(U87=2,Y87,"")) ->  | AA87: =IF(OR(ISNUMBER(AB87),AB87=""),"",X87+1) ->  | AD87: =IF(OR(ISNUMBER(AE87),AE87=""),"",AA87+1) ->  | AI87: =IF(A87="","",IF(ISNUMBER(Y87),2,IF(A88="",IF(OR(AK87>0,VLOOKUP(O87,EventConfig!A:C,3,FALSE)=4),3,""),1))) ->  | AJ87: =IF(AI87="","",CHOOSE(AI87,IF(AK87="",A87+1,AK87),CONCATENATE(IF(AK87="",A87+1,AK87),";101"),IF(AK87="",O87+1,AK87))) ->  | AL87: 5084
A89: =O89*100+P89 -> 14101 | B89: 5085 | C89: 使用神识探得资源 | K89: =IF(J89="","",VLOOKUP(J89,EventNPC!A:E,5,FALSE)) ->  | L89: 5086 | M89: 此处仙气缭绕，你用神识一探果然探得丰富资源！ | O89: 141 | P89: 1 | Q89: =_xlfn.TEXTJOIN(";",1,R89:S89) ->  | T89: =IF(R89="","","-"&VLOOKUP(R89,EventConditionConfig!A:C,3,FALSE)&IF(S89="","",CHAR(10)&"-"&VLOOKUP(S89,EventConditionConfig!A:C,3,FALSE))) ->  | U89: =IF(Y89="","",IF(ISTEXT(Y89),1,2)) ->  | V89: =IF(U89=1,_xlfn.TEXTJOIN(";",1,IF(Z89="",A89+1,Z89),IF(AND(AA89<>"",AC89=""),A89+1,AC89),IF(AND(AD89<>"",AF89=""),A89+1,AF89)),IF(U89=2,Y89,"")) ->  | AA89: =IF(OR(ISNUMBER(AB89),AB89=""),"",X89+1) ->  | AD89: =IF(OR(ISNUMBER(AE89),AE89=""),"",AA89+1) ->  | AI89: =IF(A89="","",IF(ISNUMBER(Y89),2,IF(A90="",IF(OR(AK89>0,VLOOKUP(O89,EventConfig!A:C,3,FALSE)=4),3,""),1))) ->  | AJ89: =IF(AI89="","",CHOOSE(AI89,IF(AK89="",A89+1,AK89),CONCATENATE(IF(AK89="",A89+1,AK89),";101"),IF(AK89="",O89+1,AK89))) ->  | AL89: 5086
A91: =O91*100+P91 -> 14201 | B91: 5087 | C91: 使用神识探得资源 | K91: =IF(J91="","",VLOOKUP(J91,EventNPC!A:E,5,FALSE)) ->  | L91: 5088 | M91: 此处仙气缭绕，你用神识一探果然探得丰富资源！ | O91: 142 | P91: 1 | Q91: =_xlfn.TEXTJOIN(";",1,R91:S91) ->  | T91: =IF(R91="","","-"&VLOOKUP(R91,EventConditionConfig!A:C,3,FALSE)&IF(S91="","",CHAR(10)&"-"&VLOOKUP(S91,EventConditionConfig!A:C,3,FALSE))) ->  | U91: =IF(Y91="","",IF(ISTEXT(Y91),1,2)) ->  | V91: =IF(U91=1,_xlfn.TEXTJOIN(";",1,IF(Z91="",A91+1,Z91),IF(AND(AA91<>"",AC91=""),A91+1,AC91),IF(AND(AD91<>"",AF91=""),A91+1,AF91)),IF(U91=2,Y91,"")) ->  | AA91: =IF(OR(ISNUMBER(AB91),AB91=""),"",X91+1) ->  | AD91: =IF(OR(ISNUMBER(AE91),AE91=""),"",AA91+1) ->  | AI91: =IF(A91="","",IF(ISNUMBER(Y91),2,IF(A154="",IF(OR(AK91>0,VLOOKUP(O91,EventConfig!A:C,3,FALSE)=4),3,""),1))) -> 1 | AJ91: =IF(AI91="","",CHOOSE(AI91,IF(AK91="",A91+1,AK91),CONCATENATE(IF(AK91="",A91+1,AK91),";101"),IF(AK91="",O91+1,AK91))) -> 14202 | AL91: 5088
A93: =O93*100+P93 -> 14301 | B93: 5089 | C93: 使用神识探得资源 | K93: =IF(J93="","",VLOOKUP(J93,EventNPC!A:E,5,FALSE)) ->  | L93: 5090 | M93: 此处仙气缭绕，你用神识一探果然探得丰富资源！ | O93: 143 | P93: 1 | Q93: =_xlfn.TEXTJOIN(";",1,R93:S93) ->  | T93: =IF(R93="","","-"&VLOOKUP(R93,EventConditionConfig!A:C,3,FALSE)&IF(S93="","",CHAR(10)&"-"&VLOOKUP(S93,EventConditionConfig!A:C,3,FALSE))) ->  | U93: =IF(Y93="","",IF(ISTEXT(Y93),1,2)) ->  | V93: =IF(U93=1,_xlfn.TEXTJOIN(";",1,IF(Z93="",A93+1,Z93),IF(AND(AA93<>"",AC93=""),A93+1,AC93),IF(AND(AD93<>"",AF93=""),A93+1,AF93)),IF(U93=2,Y93,"")) ->  | AA93: =IF(OR(ISNUMBER(AB93),AB93=""),"",X93+1) ->  | AD93: =IF(OR(ISNUMBER(AE93),AE93=""),"",AA93+1) ->  | AI93: =IF(A93="","",IF(ISNUMBER(Y93),2,IF(A94="",IF(OR(AK93>0,VLOOKUP(O93,EventConfig!A:C,3,FALSE)=4),3,""),1))) ->  | AJ93: =IF(AI93="","",CHOOSE(AI93,IF(AK93="",A93+1,AK93),CONCATENATE(IF(AK93="",A93+1,AK93),";101"),IF(AK93="",O93+1,AK93))) ->  | AL93: 5090
A95: =O95*100+P95 -> 14401 | B95: 5091 | C95: 使用神识探得资源 | K95: =IF(J95="","",VLOOKUP(J95,EventNPC!A:E,5,FALSE)) ->  | L95: 5092 | M95: 此处仙气缭绕，你用神识一探果然探得丰富资源！ | O95: 144 | P95: 1 | Q95: =_xlfn.TEXTJOIN(";",1,R95:S95) ->  | T95: =IF(R95="","","-"&VLOOKUP(R95,EventConditionConfig!A:C,3,FALSE)&IF(S95="","",CHAR(10)&"-"&VLOOKUP(S95,EventConditionConfig!A:C,3,FALSE))) ->  | U95: =IF(Y95="","",IF(ISTEXT(Y95),1,2)) ->  | V95: =IF(U95=1,_xlfn.TEXTJOIN(";",1,IF(Z95="",A95+1,Z95),IF(AND(AA95<>"",AC95=""),A95+1,AC95),IF(AND(AD95<>"",AF95=""),A95+1,AF95)),IF(U95=2,Y95,"")) ->  | X95: =IF(OR(ISNUMBER(Y95),Y95=""),"",MAX(AL94,AL92,B95,D95,L95)+1) ->  | AA95: =IF(OR(ISNUMBER(AB95),AB95=""),"",X95+1) ->  | AD95: =IF(OR(ISNUMBER(AE95),AE95=""),"",AA95+1) ->  | AI95: =IF(A95="","",IF(ISNUMBER(Y95),2,IF(A96="",IF(OR(AK95>0,VLOOKUP(O95,EventConfig!A:C,3,FALSE)=4),3,""),1))) ->  | AJ95: =IF(AI95="","",CHOOSE(AI95,IF(AK95="",A95+1,AK95),CONCATENATE(IF(AK95="",A95+1,AK95),";101"),IF(AK95="",O95+1,AK95))) ->  | AL95: 5092
A97: =O97*100+P97 -> 14501 | B97: 5093 | C97: 使用神识探得资源 | K97: =IF(J97="","",VLOOKUP(J97,EventNPC!A:E,5,FALSE)) ->  | L97: 5094 | M97: 此处仙气缭绕，你用神识一探果然探得丰富资源！ | O97: 145 | P97: 1 | Q97: =_xlfn.TEXTJOIN(";",1,R97:S97) ->  | T97: =IF(R97="","","-"&VLOOKUP(R97,EventConditionConfig!A:C,3,FALSE)&IF(S97="","",CHAR(10)&"-"&VLOOKUP(S97,EventConditionConfig!A:C,3,FALSE))) ->  | U97: =IF(Y97="","",IF(ISTEXT(Y97),1,2)) ->  | V97: =IF(U97=1,_xlfn.TEXTJOIN(";",1,IF(Z97="",A97+1,Z97),IF(AND(AA97<>"",AC97=""),A97+1,AC97),IF(AND(AD97<>"",AF97=""),A97+1,AF97)),IF(U97=2,Y97,"")) ->  | X97: =IF(OR(ISNUMBER(Y97),Y97=""),"",MAX(AL96,AL94,B97,D97,L97)+1) ->  | AA97: =IF(OR(ISNUMBER(AB97),AB97=""),"",X97+1) ->  | AD97: =IF(OR(ISNUMBER(AE97),AE97=""),"",AA97+1) ->  | AI97: =IF(A97="","",IF(ISNUMBER(Y97),2,IF(A160="",IF(OR(AK97>0,VLOOKUP(O97,EventConfig!A:C,3,FALSE)=4),3,""),1))) ->  | AJ97: =IF(AI97="","",CHOOSE(AI97,IF(AK97="",A97+1,AK97),CONCATENATE(IF(AK97="",A97+1,AK97),";101"),IF(AK97="",O97+1,AK97))) ->  | AL97: 5094
B98: =IF(C98="","",IF(C98=C53,B53,MAX(AL53,AL52)+1)) ->  | D98: =IF(E98="","",IF(E98=E53,D53,MAX(AL53,AL52,B98)+1)) ->  | L98: =IF(M98="","",MAX(AL53,AL52,B98,D98)+1) ->  | P98: =IF(O98="","",IF(O98=O53,P53+1,1)) ->  | Q98: =_xlfn.TEXTJOIN(";",1,R98:S98) ->  | T98: =IF(R98="","","-"&VLOOKUP(R98,EventConditionConfig!A:C,3,FALSE)&IF(S98="","",CHAR(10)&"-"&VLOOKUP(S98,EventConditionConfig!A:C,3,FALSE))) ->  | X98: =IF(OR(ISNUMBER(Y98),Y98=""),"",MAX(AL53,AL52,B98,D98,L98)+1) ->  | AA98: =IF(OR(ISNUMBER(AB98),AB98=""),"",X98+1) ->  | AD98: =IF(OR(ISNUMBER(AE98),AE98=""),"",AA98+1) -> 
A99: =O99*100+P99 -> 1101 | B99: =IF(C99="","",IF(C99=C80,B80,MAX(AL80,AL35)+1)) ->  | D99: =IF(E99="","",IF(E99=E80,D80,MAX(AL80,AL35,B99)+1)) ->  | L99: =IF(M99="","",MAX(AL80,AL35,B99,D99)+1) -> 5033 | M99: 你遇到一只拦路的妖兽，它看起来饥肠辘辘 | O99: 11 | P99: =IF(O99="","",IF(O99=O80,P80+1,1)) -> 1 | T99: =IF(R99="","","-"&VLOOKUP(R99,EventConditionConfig!A:C,3,FALSE)&IF(S99="","",CHAR(10)&"-"&VLOOKUP(S99,EventConditionConfig!A:C,3,FALSE))) ->  | X99: =IF(OR(ISNUMBER(Y99),Y99=""),"",MAX(AL80,AL35,B99,D99,L99)+1) ->  | AI99: 1 | AJ99: =A100 -> 1102 | AL99: 5094
A100: =O100*100+P100 -> 1102 | B100: =IF(C100="","",IF(C100=C99,B99,MAX(AL99,AL80)+1)) ->  | D100: =IF(E100="","",IF(E100=E99,D99,MAX(AL99,AL80,B100)+1)) ->  | L100: =IF(M100="","",MAX(AL99,AL80,B100,D100)+1) -> 5095 | M100: 你扔出一块鹿肉，趁它抢食之际，你祭出腰间的法宝 | O100: 11 | P100: 2 | T100: =IF(R100="","","-"&VLOOKUP(R100,EventConditionConfig!A:C,3,FALSE)&IF(S100="","",CHAR(10)&"-"&VLOOKUP(S100,EventConditionConfig!A:C,3,FALSE))) ->  | X100: =IF(OR(ISNUMBER(Y100),Y100=""),"",MAX(AL99,AL80,B100,D100,L100)+1) ->  | AI100: 1 | AJ100: =A101 -> 1103 | AL100: 5095
A101: =O101*100+P101 -> 1103 | L101: 5096 | M101: 你成功诱捕了怪物，并从它身上吸取了一些修为 | O101: 11 | P101: 3 | Q101: =_xlfn.TEXTJOIN(";",1,R101:S101) ->  | T101: =IF(R101="","","-"&VLOOKUP(R101,EventConditionConfig!A:C,3,FALSE)&IF(S101="","",CHAR(10)&"-"&VLOOKUP(S101,EventConditionConfig!A:C,3,FALSE))) ->  | AL101: 5096
T102: =IF(R102="","","-"&VLOOKUP(R102,EventConditionConfig!A:C,3,FALSE)&IF(S102="","",CHAR(10)&"-"&VLOOKUP(S102,EventConditionConfig!A:C,3,FALSE))) -> 
A103: =O103*100+P103 -> 1201 | L103: 5097 | M103: 你偶遇一处仙气四溢无人生活的洞穴 | O103: 12 | P103: 1 | T103: =IF(R103="","","-"&VLOOKUP(R103,EventConditionConfig!A:C,3,FALSE)&IF(S103="","",CHAR(10)&"-"&VLOOKUP(S103,EventConditionConfig!A:C,3,FALSE))) ->  | AI103: 1 | AJ103: =A104 -> 1202 | AL103: 5097
A104: =O104*100+P104 -> 1202 | L104: 5098 | M104: 不知哪位高人在洞穴内壁留下绝世秘籍 | O104: 12 | P104: 2 | T104: =IF(R104="","","-"&VLOOKUP(R104,EventConditionConfig!A:C,3,FALSE)&IF(S104="","",CHAR(10)&"-"&VLOOKUP(S104,EventConditionConfig!A:C,3,FALSE))) ->  | AI104: 1 | AJ104: =A105 -> 1203 | AL104: 5098
A105: =O105*100+P105 -> 1203 | L105: 5099 | M105: 你仔细研读后，功法得到精进 | O105: 12 | P105: 3 | T105: =IF(R105="","","-"&VLOOKUP(R105,EventConditionConfig!A:C,3,FALSE)&IF(S105="","",CHAR(10)&"-"&VLOOKUP(S105,EventConditionConfig!A:C,3,FALSE))) ->  | AL105: 5099
T106: =IF(R106="","","-"&VLOOKUP(R106,EventConditionConfig!A:C,3,FALSE)&IF(S106="","",CHAR(10)&"-"&VLOOKUP(S106,EventConditionConfig!A:C,3,FALSE))) -> 
A107: =O107*100+P107 -> 1301 | L107: 5100 | M107: 你偶然发现一只枯萎的葫芦，但泛着蓝光 | O107: 13 | P107: 1 | T107: =IF(R107="","","-"&VLOOKUP(R107,EventConditionConfig!A:C,3,FALSE)&IF(S107="","",CHAR(10)&"-"&VLOOKUP(S107,EventConditionConfig!A:C,3,FALSE))) ->  | AI107: 1 | AJ107: =A108 -> 1302 | AL107: 5100
A108: =O108*100+P108 -> 1302 | L108: 5101 | M108: 好奇的你凑近一看，不知谁将这件法宝遗落于此 | O108: 13 | P108: 2 | T108: =IF(R108="","","-"&VLOOKUP(R108,EventConditionConfig!A:C,3,FALSE)&IF(S108="","",CHAR(10)&"-"&VLOOKUP(S108,EventConditionConfig!A:C,3,FALSE))) ->  | AI108: 1 | AJ108: =A109 -> 1303 | AL108: 5101
A109: =O109*100+P109 -> 1303 | L109: 5102 | M109: 但法宝已经枯竭，你后悔没有早点发现它 | O109: 13 | P109: 3 | T109: =IF(R109="","","-"&VLOOKUP(R109,EventConditionConfig!A:C,3,FALSE)&IF(S109="","",CHAR(10)&"-"&VLOOKUP(S109,EventConditionConfig!A:C,3,FALSE))) ->  | AI109: 1 | AJ109: =A110 -> 1304 | AL109: 5102
A110: =O110*100+P110 -> 1304 | L110: 5103 | M110: 最后你从法宝中回收了一些玄晶 | O110: 13 | P110: 4 | T110: =IF(R110="","","-"&VLOOKUP(R110,EventConditionConfig!A:C,3,FALSE)&IF(S110="","",CHAR(10)&"-"&VLOOKUP(S110,EventConditionConfig!A:C,3,FALSE))) ->  | AL110: 5103
T111: =IF(R111="","","-"&VLOOKUP(R111,EventConditionConfig!A:C,3,FALSE)&IF(S111="","",CHAR(10)&"-"&VLOOKUP(S111,EventConditionConfig!A:C,3,FALSE))) -> 
A112: =O112*100+P112 -> 1401 | L112: 5104 | M112: 你路过一座矿山，一个闪光点引起了你的注意 | O112: 14 | P112: 1 | Q112: =_xlfn.TEXTJOIN(";",1,R112:S112) ->  | T112: =IF(R112="","","-"&VLOOKUP(R112,EventConditionConfig!A:C,3,FALSE)&IF(S112="","",CHAR(10)&"-"&VLOOKUP(S112,EventConditionConfig!A:C,3,FALSE))) ->  | AI112: 1 | AJ112: =A113 -> 1402 | AL112: 5104
A113: =O113*100+P113 -> 1402 | L113: 5105 | M113: 原来这是一颗珍贵的绿玛瑙 | O113: 14 | P113: 2 | Q113: =_xlfn.TEXTJOIN(";",1,R113:S113) ->  | T113: =IF(R113="","","-"&VLOOKUP(R113,EventConditionConfig!A:C,3,FALSE)&IF(S113="","",CHAR(10)&"-"&VLOOKUP(S113,EventConditionConfig!A:C,3,FALSE))) ->  | AI113: 1 | AJ113: =A114 -> 1403 | AL113: 5105
A114: =O114*100+P114 -> 1403 | L114: 5106 | M114: 你祭出法宝，将它转化成一些灵石 | O114: 14 | P114: 3 | Q114: =_xlfn.TEXTJOIN(";",1,R114:S114) ->  | T114: =IF(R114="","","-"&VLOOKUP(R114,EventConditionConfig!A:C,3,FALSE)&IF(S114="","",CHAR(10)&"-"&VLOOKUP(S114,EventConditionConfig!A:C,3,FALSE))) ->  | AL114: 5106
A116: =O116*100+P116 -> 1501 | L116: 5107 | M116: 漫漫旅途，你通过神识释放增进不少阅历 | O116: 15 | P116: 1 | Q116: =_xlfn.TEXTJOIN(";",1,R116:S116) ->  | T116: =IF(R116="","","-"&VLOOKUP(R116,EventConditionConfig!A:C,3,FALSE)&IF(S116="","",CHAR(10)&"-"&VLOOKUP(S116,EventConditionConfig!A:C,3,FALSE))) ->  | AI116: 1 | AJ116: =A117 -> 1502 | AL116: 5107
A117: =O117*100+P117 -> 1502 | L117: 5108 | M117: 但随之而来的是神识用尽的空虚感 | O117: 15 | P117: 2 | Q117: =_xlfn.TEXTJOIN(";",1,R117:S117) ->  | T117: =IF(R117="","","-"&VLOOKUP(R117,EventConditionConfig!A:C,3,FALSE)&IF(S117="","",CHAR(10)&"-"&VLOOKUP(S117,EventConditionConfig!A:C,3,FALSE))) ->  | AI117: 1 | AJ117: =A118 -> 1503 | AL117: 5108
A118: =O118*100+P118 -> 1503 | L118: 5109 | M118: 但这种感受何尝又不是一种新的阅历呢 | O118: 15 | P118: 3 | Q118: =_xlfn.TEXTJOIN(";",1,R118:S118) ->  | T118: =IF(R118="","","-"&VLOOKUP(R118,EventConditionConfig!A:C,3,FALSE)&IF(S118="","",CHAR(10)&"-"&VLOOKUP(S118,EventConditionConfig!A:C,3,FALSE))) ->  | AI118: 1 | AJ118: =A119 -> 1504 | AL118: 5109
A119: =O119*100+P119 -> 1504 | L119: 5110 | M119: 你将这些新的感悟存进了一颗神识丹 | O119: 15 | P119: 4 | Q119: =_xlfn.TEXTJOIN(";",1,R119:S119) ->  | T119: =IF(R119="","","-"&VLOOKUP(R119,EventConditionConfig!A:C,3,FALSE)&IF(S119="","",CHAR(10)&"-"&VLOOKUP(S119,EventConditionConfig!A:C,3,FALSE))) ->  | AL119: 5110
A121: =O121*100+P121 -> 1601 | L121: 5111 | M121: 两只体型硕大的妖兽正在为了一颗灵丹而缠斗 | O121: 16 | P121: 1 | Q121: =_xlfn.TEXTJOIN(";",1,R121:S121) ->  | T121: =IF(R121="","","-"&VLOOKUP(R121,EventConditionConfig!A:C,3,FALSE)&IF(S121="","",CHAR(10)&"-"&VLOOKUP(S121,EventConditionConfig!A:C,3,FALSE))) ->  | AI121: 1 | AJ121: =A122 -> 1602 | AL121: 5111
A122: =O122*100+P122 -> 1602 | L122: 5112 | M122: 突然一道闪电自天而降，正中两只妖兽 | O122: 16 | P122: 2 | Q122: =_xlfn.TEXTJOIN(";",1,R122:S122) ->  | T122: =IF(R122="","","-"&VLOOKUP(R122,EventConditionConfig!A:C,3,FALSE)&IF(S122="","",CHAR(10)&"-"&VLOOKUP(S122,EventConditionConfig!A:C,3,FALSE))) ->  | AI122: 1 | AJ122: =A123 -> 1603 | AL122: 5112
A123: =O123*100+P123 -> 1603 | L123: 5113 | M123: 何其悲哉，念完往生咒，你顺手拿走了这颗珍贵的妖丹 | O123: 16 | P123: 3 | Q123: =_xlfn.TEXTJOIN(";",1,R123:S123) ->  | T123: =IF(R123="","","-"&VLOOKUP(R123,EventConditionConfig!A:C,3,FALSE)&IF(S123="","",CHAR(10)&"-"&VLOOKUP(S123,EventConditionConfig!A:C,3,FALSE))) ->  | AL123: 5113
A125: 9003 | L125: 5114 | M125: 你在闭关修炼时，感受到一股凌厉的剑意波动。深入探查，发现一名白衣剑修“清霜”盘坐于谷中，周围剑气环绕，正与一柄散发不祥气息的灵剑对峙。她似在参悟剑诀，却灵气不足，剑灵桀骜。 | T125: =IF(R125="","","-"&VLOOKUP(R125,EventConditionConfig!A:C,3,FALSE)&IF(S125="","",CHAR(10)&"-"&VLOOKUP(S125,EventConditionConfig!A:C,3,FALSE))) ->  | U125: 1 | V125: 9004;9006 | W125: 2041;2042 | AL125: 5114
A126: 9004 | L126: 5115 | M126: 你上前以剑意对抗剑灵 | T126: =IF(R126="","","-"&VLOOKUP(R126,EventConditionConfig!A:C,3,FALSE)&IF(S126="","",CHAR(10)&"-"&VLOOKUP(S126,EventConditionConfig!A:C,3,FALSE))) ->  | U126: 2 | V126: 100001 | AI126: 2 | AJ126: 9005;100 | AL126: 5115
A127: 9005 | L127: 5116 | M127: 成功压制剑灵，清霜赠你“霜华剑符”并结下道友之谊 | T127: =IF(R127="","","-"&VLOOKUP(R127,EventConditionConfig!A:C,3,FALSE)&IF(S127="","",CHAR(10)&"-"&VLOOKUP(S127,EventConditionConfig!A:C,3,FALSE))) ->  | AL127: 5116
A128: 9006 | L128: 5117 | M128: 你察觉谷中灵气匮乏，清霜剑意凝滞。神识探查得知，附近秘境可采集“玄冰花” | T128: =IF(R128="","","-"&VLOOKUP(R128,EventConditionConfig!A:C,3,FALSE)&IF(S128="","",CHAR(10)&"-"&VLOOKUP(S128,EventConditionConfig!A:C,3,FALSE))) ->  | AL128: 5117
A129: 9007 | L129: 5118 | M129: 献上玄冰花，清霜炼化灵气突破瓶颈，赠你“玄霜剑意” | T129: =IF(R129="","","-"&VLOOKUP(R129,EventConditionConfig!A:C,3,FALSE)&IF(S129="","",CHAR(10)&"-"&VLOOKUP(S129,EventConditionConfig!A:C,3,FALSE))) ->  | AI129: 1 | AJ129: 9007 | AL129: 5118
A130: 9008 | T130: =IF(R130="","","-"&VLOOKUP(R130,EventConditionConfig!A:C,3,FALSE)&IF(S130="","",CHAR(10)&"-"&VLOOKUP(S130,EventConditionConfig!A:C,3,FALSE))) ->  | U130: 3 | AG130: 1001 | AH130: 999 | AL130: 5118
T131: =IF(R131="","","-"&VLOOKUP(R131,EventConditionConfig!A:C,3,FALSE)&IF(S131="","",CHAR(10)&"-"&VLOOKUP(S131,EventConditionConfig!A:C,3,FALSE))) -> 
A132: 9025 | B132: =IF(C132="","",IF(C132=C131,B131,MAX(AL131,AL130)+1)) ->  | D132: =IF(E132="","",IF(E132=E131,D131,MAX(AL131,AL130,B132)+1)) -> 5119 | E132: 和惠子交谈 | L132: =IF(M132="","",MAX(AL131,AL130,B132,D132)+1) -> 5120 | M132: 惠子种的葫芦没用，他非常生气，需要打败魔休 | P132: =IF(O132="","",IF(O132=O131,P131+1,1)) ->  | T132: =IF(R132="","","-"&VLOOKUP(R132,EventConditionConfig!A:C,3,FALSE)&IF(S132="","",CHAR(10)&"-"&VLOOKUP(S132,EventConditionConfig!A:C,3,FALSE))) ->  | U132: 1 | V132: 9026 | W132: 2075 | X132: =IF(OR(ISNUMBER(Y132),Y132=""),"",MAX(AL131,AL130,B132,D132,L132)+1) ->  | AA132: =IF(OR(ISNUMBER(AB132),AB132=""),"",X132+1) ->  | AD132: =IF(OR(ISNUMBER(AE132),AE132=""),"",AA132+1) ->  | AL132: 5120
A133: 9026 | L133: 5121 | M133: 选择后接新的事件 | T133: =IF(R133="","","-"&VLOOKUP(R133,EventConditionConfig!A:C,3,FALSE)&IF(S133="","",CHAR(10)&"-"&VLOOKUP(S133,EventConditionConfig!A:C,3,FALSE))) ->  | X133: 5122 | Y133: 接受任务 | AI133: 3 | AJ133: 9014 | AL133: 5122
T134: =IF(R134="","","-"&VLOOKUP(R134,EventConditionConfig!A:C,3,FALSE)&IF(S134="","",CHAR(10)&"-"&VLOOKUP(S134,EventConditionConfig!A:C,3,FALSE))) ->  | AL134: =IF(A134="","",MAX(B134,D134,L134,X134,AA134,AL133,AL132,AD134)) -> 
A135: 9014 | D135: 5123 | E135: 击杀魔休 | Q135: 3 | R135: 3 | T135: =IF(R135="","","-"&VLOOKUP(R135,EventConditionConfig!A:C,3,FALSE)&IF(S135="","",CHAR(10)&"-"&VLOOKUP(S135,EventConditionConfig!A:C,3,FALSE))) -> -击杀魔休 | AL135: 5123
Q136: =_xlfn.TEXTJOIN(";",1,R136:S136) ->  | T136: =IF(R136="","","-"&VLOOKUP(R136,EventConditionConfig!A:C,3,FALSE)&IF(S136="","",CHAR(10)&"-"&VLOOKUP(S136,EventConditionConfig!A:C,3,FALSE))) -> 
A137: 9031 | B137: 5124 | C137: 出现Boss魔修 | D137: 5125 | E137: 打败魔修 | T137: =IF(R137="","","-"&VLOOKUP(R137,EventConditionConfig!A:C,3,FALSE)&IF(S137="","",CHAR(10)&"-"&VLOOKUP(S137,EventConditionConfig!A:C,3,FALSE))) ->  | U137: 2 | V137: 100001 | AL137: 5125
A139: =O139*100+P139 -> 1000001 | B139: =IF(C139="","",IF(C139=C138,B138,MAX(AL138,AL137)+1)) ->  | K139: =IF(J139="","",VLOOKUP(J139,EventNPC!A:E,5,FALSE)) ->  | L139: 5126 | M139: （渡劫失败后，悬浮于混沌虚空，破碎道袍微微飘动，丹田空虚。） | O139: 10000 | P139: =IF(O139="","",IF(O139=O138,P138+1,1)) -> 1 | Q139: =_xlfn.TEXTJOIN(";",1,R139:S139) ->  | T139: =IF(R139="","","-"&VLOOKUP(R139,EventConditionConfig!A:C,3,FALSE)&IF(S139="","",CHAR(10)&"-"&VLOOKUP(S139,EventConditionConfig!A:C,3,FALSE))) ->  | U139: =IF(Y139="","",IF(ISTEXT(Y139),1,2)) ->  | V139: =IF(U139=1,_xlfn.TEXTJOIN(";",1,IF(Z139="",A139+1,Z139),IF(AND(AA139<>"",AC139=""),A139+1,AC139),IF(AND(AD139<>"",AF139=""),A139+1,AF139)),IF(U139=2,Y139,"")) ->  | W139: =_xlfn.TEXTJOIN(";",1,X139,AA139,AD139) ->  | X139: =IF(OR(ISNUMBER(Y139),Y139=""),"",MAX(AL138,AL136,B139,D139,L139)+1) ->  | AA139: =IF(OR(ISNUMBER(AB139),AB139=""),"",X139+1) ->  | AD139: =IF(OR(ISNUMBER(AE139),AE139=""),"",AA139+1) ->  | AI139: =IF(A139="","",IF(ISNUMBER(Y139),2,IF(A140="",IF(OR(AK139>0,VLOOKUP(O139,EventConfig!A:C,3,FALSE)=4),3,""),1))) -> 1 | AJ139: =IF(AI139="","",CHOOSE(AI139,IF(AK139="",A139+1,AK139),CONCATENATE(IF(AK139="",A139+1,AK139),";101"),IF(AK139="",O139+1,AK139))) -> 1000002 | AL139: 5126
A140: 1000002 | J140: 100 | K140: =IF(J140="","",VLOOKUP(J140,EventNPC!A:E,5,FALSE)) -> 玩家 | L140: 5127 | M140: 还是做不到吗……多次渡劫，又功亏一篑！ | O140: 10000 | P140: 2 | T140: =IF(R140="","","-"&VLOOKUP(R140,EventConditionConfig!A:C,3,FALSE)&IF(S140="","",CHAR(10)&"-"&VLOOKUP(S140,EventConditionConfig!A:C,3,FALSE))) ->  | V140: =IF(U140=1,_xlfn.TEXTJOIN(";",1,IF(Z140="",A140+1,Z140),IF(AND(AA140<>"",AC140=""),A140+1,AC140),IF(AND(AD140<>"",AF140=""),A140+1,AF140)),IF(U140=2,Y140,"")) ->  | W140: =_xlfn.TEXTJOIN(";",1,X140,AA140,AD140) ->  | AI140: =IF(A140="","",IF(ISNUMBER(Y140),2,IF(A141="",IF(OR(AK140>0,VLOOKUP(O140,EventConfig!A:C,3,FALSE)=4),3,""),1))) -> 1 | AJ140: =IF(AI140="","",CHOOSE(AI140,IF(AK140="",A140+1,AK140),CONCATENATE(IF(AK140="",A140+1,AK140),";101"),IF(AK140="",O140+1,AK140))) -> 1000003 | AL140: 5127
A141: 1000003 | J141: 100 | K141: =IF(J141="","",VLOOKUP(J141,EventNPC!A:E,5,FALSE)) -> 玩家 | L141: 5128 | M141: 好在神魂未灭，不过一身修为几乎散尽，只剩练气修为…… | O141: 10000 | P141: 3 | T141: =IF(R141="","","-"&VLOOKUP(R141,EventConditionConfig!A:C,3,FALSE)&IF(S141="","",CHAR(10)&"-"&VLOOKUP(S141,EventConditionConfig!A:C,3,FALSE))) ->  | AI141: =IF(A141="","",IF(ISNUMBER(Y141),2,IF(A142="",IF(OR(AK141>0,VLOOKUP(O141,EventConfig!A:C,3,FALSE)=4),3,""),1))) -> 1 | AJ141: 1000004 | AL141: 5128
A142: 1000004 | J142: 100 | K142: =IF(J142="","",VLOOKUP(J142,EventNPC!A:E,5,FALSE)) -> 玩家 | L142: 5129 | M142: 此处是何地？ | O142: 10000 | P142: 4 | T142: =IF(R142="","","-"&VLOOKUP(R142,EventConditionConfig!A:C,3,FALSE)&IF(S142="","",CHAR(10)&"-"&VLOOKUP(S142,EventConditionConfig!A:C,3,FALSE))) ->  | AI142: =IF(A142="","",IF(ISNUMBER(Y142),2,IF(A143="",IF(OR(AK142>0,VLOOKUP(O142,EventConfig!A:C,3,FALSE)=4),3,""),1))) -> 1 | AJ142: 1000005 | AL142: 5129
